Workbook

Sheet Calculator
N1: Input
N2: Formula
B3: Kotak Mahindra Life Insurance Company Ltd. | N3: Not allowed
B4: Kotak Lifetime Income Plan - 107N103V06 | N4: Heading
B6: Name of Annuitant | F6: Mr.Customer
B7: Client Category | F7: Existing Group Customers
B8: Age of Annuitant | F8: 60
B9: Purchase price including GST | F9: 1000000
B10: Purchase price (net of GST) | F10: =ROUND(F9/1.018,0) -> 982318
B11: GST @1.8% | F11: =F9-F10 -> 17682
B12: Annuity Option | F12: Lifetime Income
B13: Guaranteed term | F13: N/A
B14: Spouse | F14: =IF(OR(F12=Input!Q3,F12=Input!Q4,F12=Input!Q5),"No","Yes") -> No
B15: Spouse name | F15: Ms.Customer
B16: Spouse Age | F16: 55
B19: Annuity Payable Yearly | C19: Annuity Payable Half-Yearly | D19: Annuity Payable Quarterly | E19: Annuity Payable Monthly
B20: =IF(Input!DX19<1000,"-",IF(F7="New Group Customers",IF(AND(F8<=99,F8>=45),Input!BA19,0),IF(AND(F8>=18,F8<=99),Input!BA19,0))) -> 79246 | C20: =IF(Input!DX19<1000,"-",IF(F7="New Group Customers",IF(AND(F8<=99,F8>=45),Input!BZ19,0),IF(AND(F8>=18,F8<=99),Input!BZ19,0))) -> 38434 | D20: =IF(Input!DX19<1000,"-",IF(F7="New Group Customers",IF(AND(F8<=99,F8>=45),Input!CY19,0),IF(AND(F8>=18,F8<=99),Input!CY19,0))) -> 19019 | E20: =IF(Input!DX19<1000,"-",IF(F7="New Group Customers",IF(AND(F8<=99,F8>=45),Input!DX19,0),IF(AND(F8>=18,F8<=99),Input!DX19,0))) -> 6274
B27: Terms and Conditions
B28: 1. This is a non unit-linked non-participating annuity plan.
B29: 2. This illustration is subject to future change in tax rates or any other laws, regulations or guidelines affecting the annuity plans.
B30: 3. For more details on terms and conditions, please read the sales brochure carefully before concluding a sale.
B31: 4. Annuity rates shown are indicative and as per the rates available currently. Please check for the applicable rates before concluding the sale.
B32: 5. After the policy contract is issued, the annuity option chosen and annuity payable is guaranteed for life and cannot be changed
B33: 6. TDS at prevailing rate will be deducted from any amount paid under a life insurance policy subject to the provisions of prevailing tax laws. In case of non-availability of valid PAN, TDS will be deducted at higher rate. Tax laws are subject to changes from time to time. Kindly consult your tax advisor for tax implication of your policy.
B35: 7.Goods and Services Tax and cess as applicable are levied at applicable Tax rates in accordance with the prevailing Tax Laws. Prevailing tax laws are applicable on this policy which may vary from time to time.
B39: I, __________________________________________________________________(Name), have explained the premiums and benefits under the product fully to the prospect / policyholder | I39: I, ___________________________________________________________________(Name), having received the information with respect to the above, have understood the above statement before entering into the contract
B43: Date : _______________ ____________________________________ Place : ________________ Signature of Agent /Intermediary/Official | I43: Date : _______________ Place : _______________ Signature of Prospect / Policyholder
B47: Kotak Mahindra Life Insurance Company Limited
B48: CIN: U66030MH2000PLC128503
B49: Regd. Off : 2nd Floor, Plot # C- 12, G- Block, BKC, Bandra (E) , Mumbai – 400051
B50: Regn. No: 107. Toll Free No.: 1800 209 8800. Website: http://insurance.kotak.com

Sheet Input (hidden)
J1: For Office Use Only (w.e.f. Dec 20 / Ver 1.0) | P1: Product Details | W1: Annuity Amount | AL1: Lifetime Income Option Calculation | AW1: State List | AY1: Annuity Amount | BN1: Lifetime Income Option Calculation | BX1: Annuity Amount | CM1: Lifetime Income Option Calculation | CW1: Annuity Amount | DL1: Lifetime Income Option Calculation | DV1: Annuity Amount | EK1: Lifetime Income Option Calculation
J2: Proposal No: | P2: Policy Term Drop down List | Q2: Options Available | R2: Eligibility Conditions | W2: Option | Z2: Final Rates | AB2: Indicator | AC2: Monthly annuity | AL2: Single Premium Bands | AM2: Frequency of Payment | AW2: Andaman and Nicobar Islands | AY2: Option | BB2: Final Rates | BD2: Indicator | BE2: Monthly annuity | BN2: Single Premium Bands | BO2: Frequency of Payment | BX2: Option | CA2: Final Rates | CC2: Indicator | CD2: Monthly annuity | CM2: Single Premium Bands | CN2: Frequency of Payment | CW2: Option | CZ2: Final Rates | DB2: Indicator | DC2: Monthly annuity | DL2: Single Premium Bands | DM2: Frequency of Payment | DV2: Option | DY2: Final Rates | EA2: Indicator | EB2: Monthly annuity | EK2: Single Premium Bands | EL2: Frequency of Payment
J3: Policy No: | P3: 5 | Q3: Lifetime Income | R3: Min. Age of Annuitant | T3: 45/18 | W3: Lifetime IncomeN/A | Z3: =IF($R$22="ann",AM9,IF($R$22="hlf",AN9,IF($R$22="qrt",AO9,AP9))) -> 0.00638658552 | AB3: =IF($Y$18=W3,1,0) -> 1 | AC3: =AP9 -> 0.00638658552 | AM3: ann | AN3: hlf | AO3: qrt | AP3: mth | AW3: Andhra Pradesh | AY3: Lifetime IncomeN/A | BB3: =IF($T$37="ann",BO9,IF($T$37="hlf",BP9,IF($T$37="qrt",BQ9,BR9))) -> 0.0806726592 | BD3: =IF($Y$18=AY3,1,0) -> 1 | BE3: =BR9 -> 0.00638658552 | BO3: ann | BP3: hlf | BQ3: qrt | BR3: mth | BX3: Lifetime IncomeN/A | CA3: =IF($T$38="ann",CN9,IF($T$38="hlf",CO9,IF($T$38="qrt",CP9,CQ9))) -> 0.03912623971 | CC3: =IF($Y$18=BX3,1,0) -> 1 | CD3: =CQ9 -> 0.00638658552 | CN3: ann | CO3: hlf | CP3: qrt | CQ3: mth | CW3: Lifetime IncomeN/A | CZ3: =IF($T$39="ann",DM9,IF($T$39="hlf",DN9,IF($T$39="qrt",DO9,DP9))) -> 0.01936143821 | DB3: =IF($Y$18=CW3,1,0) -> 1 | DC3: =DP9 -> 0.00638658552 | DM3: ann | DN3: hlf | DO3: qrt | DP3: mth | DV3: Lifetime IncomeN/A | DY3: =IF($T$40="ann",EL9,IF($T$40="hlf",EM9,IF($T$40="qrt",EN9,EO9))) -> 0.00638658552 | EA3: =IF($Y$18=DV3,1,0) -> 1 | EB3: =EO9 -> 0.00638658552 | EL3: ann | EM3: hlf | EN3: qrt | EO3: mth
P4: 10 | Q4: Lifetime Income with Cash-Back | R4: Max. Age of Annuitant | T4: 99/99 | W4: Lifetime Income with Cash-BackN/A | Z4: =IF($R$22="ann",AM20,IF($R$22="hlf",AN20,IF($R$22="qrt",AO20,AP20))) -> 0.00482252376 | AB4: =IF($Y$18=W4,1,0) -> 0 | AC4: =AP20 -> 0.00482252376 | AL4: 250000 | AM4: =VLOOKUP(Age,'SL_Revised Mar 2021'!$A$3:$G$103,2,0) -> 0.0784 | AN4: =AM4*97%/2 -> 0.038024 | AO4: =AM4*96%/4 -> 0.018816 | AP4: =AM4*95%/12 -> 0.006206666667 | AR4: Less than Rs.250,000 | AW4: Arunachal Pradesh | AY4: Lifetime Income with Cash-BackN/A | BB4: =IF($T$37="ann",BO20,IF($T$37="hlf",BP20,IF($T$37="qrt",BQ20,BR20))) -> 0.0609160896 | BD4: =IF($Y$18=AY4,1,0) -> 0 | BE4: =BR20 -> 0.00482252376 | BN4: 250000 | BO4: =VLOOKUP(Age,'SL_Revised Mar 2021'!$A$3:$G$103,2,0) -> 0.0784 | BP4: =BO4*97%/2 -> 0.038024 | BQ4: =BO4*96%/4 -> 0.018816 | BR4: =BO4*95%/12 -> 0.006206666667 | BT4: Less than Rs.250,000 | BX4: Lifetime Income with Cash-BackN/A | CA4: =IF($T$38="ann",CN20,IF($T$38="hlf",CO20,IF($T$38="qrt",CP20,CQ20))) -> 0.02954430346 | CC4: =IF($Y$18=BX4,1,0) -> 0 | CD4: =CQ20 -> 0.00482252376 | CM4: 250000 | CN4: =VLOOKUP(Age,'SL_Revised Mar 2021'!$A$3:$G$103,2,0) -> 0.0784 | CO4: =CN4*97%/2 -> 0.038024 | CP4: =CN4*96%/4 -> 0.018816 | CQ4: =CN4*95%/12 -> 0.006206666667 | CS4: Less than Rs.250,000 | CW4: Lifetime Income with Cash-BackN/A | CZ4: =IF($T$39="ann",DM20,IF($T$39="hlf",DN20,IF($T$39="qrt",DO20,DP20))) -> 0.0146198615 | DB4: =IF($Y$18=CW4,1,0) -> 0 | DC4: =DP20 -> 0.00482252376 | DL4: 250000 | DM4: =VLOOKUP(Age,'SL_Revised Mar 2021'!$A$3:$G$103,2,0) -> 0.0784 | DN4: =DM4*97%/2 -> 0.038024 | DO4: =DM4*96%/4 -> 0.018816 | DP4: =DM4*95%/12 -> 0.006206666667 | DR4: Less than Rs.250,000 | DV4: Lifetime Income with Cash-BackN/A | DY4: =IF($T$40="ann",EL20,IF($T$40="hlf",EM20,IF($T$40="qrt",EN20,EO20))) -> 0.00482252376 | EA4: =IF($Y$18=DV4,1,0) -> 0 | EB4: =EO20 -> 0.00482252376 | EK4: 250000 | EL4: =VLOOKUP(Age,'SL_Revised Mar 2021'!$A$3:$G$103,2,0) -> 0.0784 | EM4: =EL4*97%/2 -> 0.038024 | EN4: =EL4*96%/4 -> 0.018816 | EO4: =EL4*95%/12 -> 0.006206666667 | EQ4: Less than Rs.250,000
B5: Kotak Lifetime Income Plan - Benefit Ilustration An Immediate Annuity Non-Linked Non-Participating Life Insurance Plan UIN 107N103V06 This shall form part of the Policy Document | P5: 15 | Q5: Lifetime Income with Term Guarantee of 5/10/15/20 Years | R5: Min. Age of Spouse | T5: 35/18 | W5: Lifetime Income with Term Guarantee of 5/10/15/20 Years5 | Z5: =IF($R$22="ann",AM30,IF($R$22="hlf",AN30,IF($R$22="qrt",AO30,AP30))) -> 0.0063540009 | AB5: =IF($Y$18=W5,1,0) -> 0 | AC5: =AP30 -> 0.0063540009 | AL5: 500000 | AM5: =AM4*1.0063 -> 0.07889392 | AN5: =AM5*97%/2 -> 0.0382635512 | AO5: =AM5*96%/4 -> 0.0189345408 | AP5: =AM5*95%/12 -> 0.006245768667 | AR5: 250,000 to less than 500,000 | AW5: Assam | AY5: Lifetime Income with Term Guarantee of 5/10/15/20 Years5 | BB5: =IF($T$37="ann",BO30,IF($T$37="hlf",BP30,IF($T$37="qrt",BQ30,BR30))) -> 0.080261064 | BD5: =IF($Y$18=AY5,1,0) -> 0 | BE5: =BR30 -> 0.0063540009 | BN5: 500000 | BO5: =BO4*1.0063 -> 0.07889392 | BP5: =BO5*97%/2 -> 0.0382635512 | BQ5: =BO5*96%/4 -> 0.0189345408 | BR5: =BO5*95%/12 -> 0.006245768667 | BT5: 250,000 to less than 500,000 | BX5: Lifetime Income with Term Guarantee of 5/10/15/20 Years5 | CA5: =IF($T$38="ann",CN30,IF($T$38="hlf",CO30,IF($T$38="qrt",CP30,CQ30))) -> 0.03892661604 | CC5: =IF($Y$18=BX5,1,0) -> 0 | CD5: =CQ30 -> 0.0063540009 | CM5: 500000 | CN5: =CN4*1.0063 -> 0.07889392 | CO5: =CN5*97%/2 -> 0.0382635512 | CP5: =CN5*96%/4 -> 0.0189345408 | CQ5: =CN5*95%/12 -> 0.006245768667 | CS5: 250,000 to less than 500,000 | CW5: Lifetime Income with Term Guarantee of 5/10/15/20 Years5 | CZ5: =IF($T$39="ann",DM30,IF($T$39="hlf",DN30,IF($T$39="qrt",DO30,DP30))) -> 0.01926265536 | DB5: =IF($Y$18=CW5,1,0) -> 0 | DC5: =DP30 -> 0.0063540009 | DL5: 500000 | DM5: =DM4*1.0063 -> 0.07889392 | DN5: =DM5*97%/2 -> 0.0382635512 | DO5: =DM5*96%/4 -> 0.0189345408 | DP5: =DM5*95%/12 -> 0.006245768667 | DR5: 250,000 to less than 500,000 | DV5: Lifetime Income with Term Guarantee of 5/10/15/20 Years5 | DY5: =IF($T$40="ann",EL30,IF($T$40="hlf",EM30,IF($T$40="qrt",EN30,EO30))) -> 0.0063540009 | EA5: =IF($Y$18=DV5,1,0) -> 0 | EB5: =EO30 -> 0.0063540009 | EK5: 500000 | EL5: =EL4*1.0063 -> 0.07889392 | EM5: =EL5*97%/2 -> 0.0382635512 | EN5: =EL5*96%/4 -> 0.0189345408 | EO5: =EL5*95%/12 -> 0.006245768667 | EQ5: 250,000 to less than 500,000
B6: Dear Customer, The illustration is approved by the Board of Directors of the Company and takes into account the guidelines for illustrations set by the Life Insurance Council and the IRDAI. Some benefits are guaranteed and some benefits are variable with returns based on the future performance of your life insurance company. If your policy offers guaranteed returns then these will be clearly marked “guaranteed” in the illustration table on this page. If your policy offers variable returns then the illustrations on this page will show two different rates of assumed investment returns. These assumed rates return are not guaranteed and they are not upper or lower limits of what you might get back as the value of your policy is dependent on a number of factors including future investment performance. | P6: 20 | Q6: Last survivor Lifetime Income with 100% annuity to Surviving Spouse | R6: Max. Age of Spouse | T6: 99/99 | W6: Lifetime Income with Term Guarantee of 5/10/15/20 Years10 | Z6: =IF($R$22="ann",AM41,IF($R$22="hlf",AN41,IF($R$22="qrt",AO41,AP41))) -> 0.00627253935 | AB6: =IF($Y$18=W6,1,0) -> 0 | AC6: =AP41 -> 0.00627253935 | AL6: 1000000 | AM6: =AM4*1.0188 -> 0.07987392 | AN6: =AM6*97%/2 -> 0.0387388512 | AO6: =AM6*96%/4 -> 0.0191697408 | AP6: =AM6*95%/12 -> 0.006323352 | AR6: 500,000 to less than 10,00,000 | AW6: Bihar | AY6: Lifetime Income with Term Guarantee of 5/10/15/20 Years10 | BB6: =IF($T$37="ann",BO41,IF($T$37="hlf",BP41,IF($T$37="qrt",BQ41,BR41))) -> 0.079232076 | BD6: =IF($Y$18=AY6,1,0) -> 0 | BE6: =BR41 -> 0.00627253935 | BN6: 1000000 | BO6: =BO4*1.0188 -> 0.07987392 | BP6: =BO6*97%/2 -> 0.0387388512 | BQ6: =BO6*96%/4 -> 0.0191697408 | BR6: =BO6*95%/12 -> 0.006323352 | BT6: 500,000 to less than 10,00,000 | BX6: Lifetime Income with Term Guarantee of 5/10/15/20 Years10 | CA6: =IF($T$38="ann",CN41,IF($T$38="hlf",CO41,IF($T$38="qrt",CP41,CQ41))) -> 0.03842755686 | CC6: =IF($Y$18=BX6,1,0) -> 0 | CD6: =CQ41 -> 0.00627253935 | CM6: 1000000 | CN6: =CN4*1.0188 -> 0.07987392 | CO6: =CN6*97%/2 -> 0.0387388512 | CP6: =CN6*96%/4 -> 0.0191697408 | CQ6: =CN6*95%/12 -> 0.006323352 | CS6: 500,000 to less than 10,00,000 | CW6: Lifetime Income with Term Guarantee of 5/10/15/20 Years10 | CZ6: =IF($T$39="ann",DM41,IF($T$39="hlf",DN41,IF($T$39="qrt",DO41,DP41))) -> 0.01901569824 | DB6: =IF($Y$18=CW6,1,0) -> 0 | DC6: =DP41 -> 0.00627253935 | DL6: 1000000 | DM6: =DM4*1.0188 -> 0.07987392 | DN6: =DM6*97%/2 -> 0.0387388512 | DO6: =DM6*96%/4 -> 0.0191697408 | DP6: =DM6*95%/12 -> 0.006323352 | DR6: 500,000 to less than 10,00,000 | DV6: Lifetime Income with Term Guarantee of 5/10/15/20 Years10 | DY6: =IF($T$40="ann",EL41,IF($T$40="hlf",EM41,IF($T$40="qrt",EN41,EO41))) -> 0.00627253935 | EA6: =IF($Y$18=DV6,1,0) -> 0 | EB6: =EO41 -> 0.00627253935 | EK6: 1000000 | EL6: =EL4*1.0188 -> 0.07987392 | EM6: =EL6*97%/2 -> 0.0387388512 | EN6: =EL6*96%/4 -> 0.0191697408 | EO6: =EL6*95%/12 -> 0.006323352 | EQ6: 500,000 to less than 10,00,000
B7: Name of Annuitant | D7: Mr Customer | G7: =IF(D7="","Please enter Name of the Annuitant",IF(D9="","Please enter the Date of Birth",IF(D8="","Please enter the Gender",""))) ->  | I7: Name of Proposer , if different from Annuitant | K7: Mr Customer | P7: N/A | Q7: Last survivor Lifetime Income with 50% annuity to Surviving Spouse | R7: Min. Single Premium | T7: Minimum Single premium shall be such that the minimum annuity payable in this plan is at least equal to Rs.1000 per month | W7: Lifetime Income with Term Guarantee of 5/10/15/20 Years15 | Z7: =IF($R$22="ann",AM52,IF($R$22="hlf",AN52,IF($R$22="qrt",AO52,AP52))) -> 0.00614220087 | AB7: 0 | AC7: =AP52 -> 0.00614220087 | AL7: 5000000 | AM7: =AM4*1.025 -> 0.08036 | AN7: =AM7*97%/2 -> 0.0389746 | AO7: =AM7*96%/4 -> 0.0192864 | AP7: =AM7*95%/12 -> 0.006361833333 | AR7: 10,00,000 to less than 50,00,000 | AW7: Chandigarh | AY7: Lifetime Income with Term Guarantee of 5/10/15/20 Years15 | BB7: =IF($T$37="ann",BO52,IF($T$37="hlf",BP52,IF($T$37="qrt",BQ52,BR52))) -> 0.0775856952 | BD7: 0 | BE7: =BR52 -> 0.00614220087 | BN7: 5000000 | BO7: =BO4*1.025 -> 0.08036 | BP7: =BO7*97%/2 -> 0.0389746 | BQ7: =BO7*96%/4 -> 0.0192864 | BR7: =BO7*95%/12 -> 0.006361833333 | BT7: 10,00,000 to less than 50,00,000 | BX7: Lifetime Income with Term Guarantee of 5/10/15/20 Years15 | CA7: =IF($T$38="ann",CN52,IF($T$38="hlf",CO52,IF($T$38="qrt",CP52,CQ52))) -> 0.03762906217 | CC7: 0 | CD7: =CQ52 -> 0.00614220087 | CM7: 5000000 | CN7: =CN4*1.025 -> 0.08036 | CO7: =CN7*97%/2 -> 0.0389746 | CP7: =CN7*96%/4 -> 0.0192864 | CQ7: =CN7*95%/12 -> 0.006361833333 | CS7: 10,00,000 to less than 50,00,000 | CW7: Lifetime Income with Term Guarantee of 5/10/15/20 Years15 | CZ7: =IF($T$39="ann",DM52,IF($T$39="hlf",DN52,IF($T$39="qrt",DO52,DP52))) -> 0.01862056685 | DB7: 0 | DC7: =DP52 -> 0.00614220087 | DL7: 5000000 | DM7: =DM4*1.025 -> 0.08036 | DN7: =DM7*97%/2 -> 0.0389746 | DO7: =DM7*96%/4 -> 0.0192864 | DP7: =DM7*95%/12 -> 0.006361833333 | DR7: 10,00,000 to less than 50,00,000 | DV7: Lifetime Income with Term Guarantee of 5/10/15/20 Years15 | DY7: =IF($T$40="ann",EL52,IF($T$40="hlf",EM52,IF($T$40="qrt",EN52,EO52))) -> 0.00614220087 | EA7: 0 | EB7: =EO52 -> 0.00614220087 | EK7: 5000000 | EL7: =EL4*1.025 -> 0.08036 | EM7: =EL7*97%/2 -> 0.0389746 | EN7: =EL7*96%/4 -> 0.0192864 | EO7: =EL7*95%/12 -> 0.006361833333 | EQ7: 10,00,000 to less than 50,00,000
B8: Gender of Annuitant | D8: Female | I8: Gender of Proposer | K8: Female | Q8: Last survivor Lifetime Income with 100% annuity to the Surviving Spouse and Cash-back on death of Surviving Spouse | W8: Lifetime Income with Term Guarantee of 5/10/15/20 Years20 | Z8: =IF($R$22="ann",AM63,IF($R$22="hlf",AN63,IF($R$22="qrt",AO63,AP63))) -> 0.005987423925 | AB8: 0 | AC8: =AP63 -> 0.005987423925 | AL8: 5000000+ | AM8: =AM4*1.03 -> 0.080752 | AN8: =AM8*97%/2 -> 0.03916472 | AO8: =AM8*96%/4 -> 0.01938048 | AP8: =AM8*95%/12 -> 0.006392866667 | AR8: 50,00,000 & above | AW8: Chattisgarh | AY8: Lifetime Income with Term Guarantee of 5/10/15/20 Years20 | BB8: =IF($T$37="ann",BO63,IF($T$37="hlf",BP63,IF($T$37="qrt",BQ63,BR63))) -> 0.075630618 | BD8: 0 | BE8: =BR63 -> 0.005987423925 | BN8: 5000000+ | BO8: =BO4*1.03 -> 0.080752 | BP8: =BO8*97%/2 -> 0.03916472 | BQ8: =BO8*96%/4 -> 0.01938048 | BR8: =BO8*95%/12 -> 0.006392866667 | BT8: 50,00,000 & above | BX8: Lifetime Income with Term Guarantee of 5/10/15/20 Years20 | CA8: =IF($T$38="ann",CN63,IF($T$38="hlf",CO63,IF($T$38="qrt",CP63,CQ63))) -> 0.03668084973 | CC8: 0 | CD8: =CQ63 -> 0.005987423925 | CM8: 5000000+ | CN8: =CN4*1.03 -> 0.080752 | CO8: =CN8*97%/2 -> 0.03916472 | CP8: =CN8*96%/4 -> 0.01938048 | CQ8: =CN8*95%/12 -> 0.006392866667 | CS8: 50,00,000 & above | CW8: Lifetime Income with Term Guarantee of 5/10/15/20 Years20 | CZ8: =IF($T$39="ann",DM63,IF($T$39="hlf",DN63,IF($T$39="qrt",DO63,DP63))) -> 0.01815134832 | DB8: 0 | DC8: =DP63 -> 0.005987423925 | DL8: 5000000+ | DM8: =DM4*1.03 -> 0.080752 | DN8: =DM8*97%/2 -> 0.03916472 | DO8: =DM8*96%/4 -> 0.01938048 | DP8: =DM8*95%/12 -> 0.006392866667 | DR8: 50,00,000 & above | DV8: Lifetime Income with Term Guarantee of 5/10/15/20 Years20 | DY8: =IF($T$40="ann",EL63,IF($T$40="hlf",EM63,IF($T$40="qrt",EN63,EO63))) -> 0.005987423925 | EA8: 0 | EB8: =EO63 -> 0.005987423925 | EK8: 5000000+ | EL8: =EL4*1.03 -> 0.080752 | EM8: =EL8*97%/2 -> 0.03916472 | EN8: =EL8*96%/4 -> 0.01938048 | EO8: =EL8*95%/12 -> 0.006392866667 | EQ8: 50,00,000 & above
B9: Date of Birth of Annuitant | D9: 1973-01-01 | G9: =IF(K11="","Please select the Client Category",IF(Tax_Region="","Please select Agent’s Branch Location",IF(AND(LEFT(K11,3)="NPS",I21<>"Monthly"),"Please select the Frequency of Annuity Payment as Monthly",IF(I21="","Please select the Frequency of Annuity Payment",IF(B21="","Please select the Annuity Option",IF(Proposer_Location="","Please select Proposer's Current Location","")))))) ->  | I9: Date of Birth of Proposer | K9: 1973-01-01 | W9: Last survivor Lifetime Income with 100% annuity to Surviving SpouseN/A | Z9: =IF($R$22="ann",AM74,IF($R$22="hlf",AN74,IF($R$22="qrt",AO74,AP74))) -> 0.00549050847 | AB9: 0 | AC9: =AP74 -> 0.00549050847 | AL9: Annuity | AM9: =IF(SP<$AL4,AM4,IF(SP<$AL5,AM5,IF(SP<$AL6,AM6,IF(SP<$AL7,AM7,AM8))))*IF(OR($K$11="Existing Pension Plan policyholders of KLI",$K$11="Nominees of deceased KLI pension policyholder",$K$11="Members of Superannuation scheme",$K$11="New Group Customers",$K$11="Existing Group Customers"),101%,1) -> 0.0806726592 | AN9: =IF(SP<$AL4,AN4,IF(SP<$AL5,AN5,IF(SP<$AL6,AN6,IF(SP<$AL7,AN7,AN8))))*IF(OR($K$11="Existing Pension Plan policyholders of KLI",$K$11="Nominees of deceased KLI pension policyholder",$K$11="Members of Superannuation scheme",$K$11="New Group Customers",$K$11="Existing Group Customers"),101%,1) -> 0.03912623971 | AO9: =IF(SP<$AL4,AO4,IF(SP<$AL5,AO5,IF(SP<$AL6,AO6,IF(SP<$AL7,AO7,AO8))))*IF(OR($K$11="Existing Pension Plan policyholders of KLI",$K$11="Nominees of deceased KLI pension policyholder",$K$11="Members of Superannuation scheme",$K$11="New Group Customers",$K$11="Existing Group Customers"),101%,1) -> 0.01936143821 | AP9: =IF(SP<$AL4,AP4,IF(SP<$AL5,AP5,IF(SP<$AL6,AP6,IF(SP<$AL7,AP7,AP8))))*IF(OR($K$11="Existing Pension Plan policyholders of KLI",$K$11="Nominees of deceased KLI pension policyholder",$K$11="Members of Superannuation scheme",$K$11="New Group Customers",$K$11="Existing Group Customers"),101%,1) -> 0.00638658552 | AW9: Dadra and Nagar Haveli | AY9: Last survivor Lifetime Income with 100% annuity to Surviving SpouseN/A | BB9: =IF($T$37="ann",BO74,IF($T$37="hlf",BP74,IF($T$37="qrt",BQ74,BR74))) -> 0.0693537912 | BD9: 0 | BE9: =BR74 -> 0.00549050847 | BN9: Annuity | BO9: =IF(SP<$AL4,BO4,IF(SP<$AL5,BO5,IF(SP<$AL6,BO6,IF(SP<$AL7,BO7,BO8))))*IF(OR($K$11="Existing Pension Plan policyholders of KLI",$K$11="Nominees of deceased KLI pension policyholder",$K$11="Members of Superannuation scheme",$K$11="New Group Customers",$K$11="Existing Group Customers"),101%,1) -> 0.0806726592 | BP9: =IF(SP<$AL4,BP4,IF(SP<$AL5,BP5,IF(SP<$AL6,BP6,IF(SP<$AL7,BP7,BP8))))*IF(OR($K$11="Existing Pension Plan policyholders of KLI",$K$11="Nominees of deceased KLI pension policyholder",$K$11="Members of Superannuation scheme",$K$11="New Group Customers",$K$11="Existing Group Customers"),101%,1) -> 0.03912623971 | BQ9: =IF(SP<$AL4,BQ4,IF(SP<$AL5,BQ5,IF(SP<$AL6,BQ6,IF(SP<$AL7,BQ7,BQ8))))*IF(OR($K$11="Existing Pension Plan policyholders of KLI",$K$11="Nominees of deceased KLI pension policyholder",$K$11="Members of Superannuation scheme",$K$11="New Group Customers",$K$11="Existing Group Customers"),101%,1) -> 0.01936143821 | BR9: =IF(SP<$AL4,BR4,IF(SP<$AL5,BR5,IF(SP<$AL6,BR6,IF(SP<$AL7,BR7,BR8))))*IF(OR($K$11="Existing Pension Plan policyholders of KLI",$K$11="Nominees of deceased KLI pension policyholder",$K$11="Members of Superannuation scheme",$K$11="New Group Customers",$K$11="Existing Group Customers"),101%,1) -> 0.00638658552 | BX9: Last survivor Lifetime Income with 100% annuity to Surviving SpouseN/A | CA9: =IF($T$38="ann",CN74,IF($T$38="hlf",CO74,IF($T$38="qrt",CP74,CQ74))) -> 0.03363658873 | CC9: 0 | CD9: =CQ74 -> 0.00549050847 | CM9: Annuity | CN9: =IF(SP<$AL4,CN4,IF(SP<$AL5,CN5,IF(SP<$AL6,CN6,IF(SP<$AL7,CN7,CN8))))*IF(OR($K$11="Existing Pension Plan policyholders of KLI",$K$11="Nominees of deceased KLI pension policyholder",$K$11="Members of Superannuation scheme",$K$11="New Group Customers",$K$11="Existing Group Customers"),101%,1) -> 0.0806726592 | CO9: =IF(SP<$AL4,CO4,IF(SP<$AL5,CO5,IF(SP<$AL6,CO6,IF(SP<$AL7,CO7,CO8))))*IF(OR($K$11="Existing Pension Plan policyholders of KLI",$K$11="Nominees of deceased KLI pension policyholder",$K$11="Members of Superannuation scheme",$K$11="New Group Customers",$K$11="Existing Group Customers"),101%,1) -> 0.03912623971 | CP9: =IF(SP<$AL4,CP4,IF(SP<$AL5,CP5,IF(SP<$AL6,CP6,IF(SP<$AL7,CP7,CP8))))*IF(OR($K$11="Existing Pension Plan policyholders of KLI",$K$11="Nominees of deceased KLI pension policyholder",$K$11="Members of Superannuation scheme",$K$11="New Group Customers",$K$11="Existing Group Customers"),101%,1) -> 0.01936143821 | CQ9: =IF(SP<$AL4,CQ4,IF(SP<$AL5,CQ5,IF(SP<$AL6,CQ6,IF(SP<$AL7,CQ7,CQ8))))*IF(OR($K$11="Existing Pension Plan policyholders of KLI",$K$11="Nominees of deceased KLI pension policyholder",$K$11="Members of Superannuation scheme",$K$11="New Group Customers",$K$11="Existing Group Customers"),101%,1) -> 0.00638658552 | CW9: Last survivor Lifetime Income with 100% annuity to Surviving SpouseN/A | CZ9: =IF($T$39="ann",DM74,IF($T$39="hlf",DN74,IF($T$39="qrt",DO74,DP74))) -> 0.01664490989 | DB9: 0 | DC9: =DP74 -> 0.00549050847 | DL9: Annuity | DM9: =IF(SP<$AL4,DM4,IF(SP<$AL5,DM5,IF(SP<$AL6,DM6,IF(SP<$AL7,DM7,DM8))))*IF(OR($K$11="Existing Pension Plan policyholders of KLI",$K$11="Nominees of deceased KLI pension policyholder",$K$11="Members of Superannuation scheme",$K$11="New Group Customers",$K$11="Existing Group Customers"),101%,1) -> 0.0806726592 | DN9: =IF(SP<$AL4,DN4,IF(SP<$AL5,DN5,IF(SP<$AL6,DN6,IF(SP<$AL7,DN7,DN8))))*IF(OR($K$11="Existing Pension Plan policyholders of KLI",$K$11="Nominees of deceased KLI pension policyholder",$K$11="Members of Superannuation scheme",$K$11="New Group Customers",$K$11="Existing Group Customers"),101%,1) -> 0.03912623971 | DO9: =IF(SP<$AL4,DO4,IF(SP<$AL5,DO5,IF(SP<$AL6,DO6,IF(SP<$AL7,DO7,DO8))))*IF(OR($K$11="Existing Pension Plan policyholders of KLI",$K$11="Nominees of deceased KLI pension policyholder",$K$11="Members of Superannuation scheme",$K$11="New Group Customers",$K$11="Existing Group Customers"),101%,1) -> 0.01936143821 | DP9: =IF(SP<$AL4,DP4,IF(SP<$AL5,DP5,IF(SP<$AL6,DP6,IF(SP<$AL7,DP7,DP8))))*IF(OR($K$11="Existing Pension Plan policyholders of KLI",$K$11="Nominees of deceased KLI pension policyholder",$K$11="Members of Superannuation scheme",$K$11="New Group Customers",$K$11="Existing Group Customers"),101%,1) -> 0.00638658552 | DV9: Last survivor Lifetime Income with 100% annuity to Surviving SpouseN/A | DY9: =IF($T$40="ann",EL74,IF($T$40="hlf",EM74,IF($T$40="qrt",EN74,EO74))) -> 0.00549050847 | EA9: 0 | EB9: =EO74 -> 0.00549050847 | EK9: Annuity | EL9: =IF(SP<$AL4,EL4,IF(SP<$AL5,EL5,IF(SP<$AL6,EL6,IF(SP<$AL7,EL7,EL8))))*IF(OR($K$11="Existing Pension Plan policyholders of KLI",$K$11="Nominees of deceased KLI pension policyholder",$K$11="Members of Superannuation scheme",$K$11="New Group Customers",$K$11="Existing Group Customers"),101%,1) -> 0.0806726592 | EM9: =IF(SP<$AL4,EM4,IF(SP<$AL5,EM5,IF(SP<$AL6,EM6,IF(SP<$AL7,EM7,EM8))))*IF(OR($K$11="Existing Pension Plan policyholders of KLI",$K$11="Nominees of deceased KLI pension policyholder",$K$11="Members of Superannuation scheme",$K$11="New Group Customers",$K$11="Existing Group Customers"),101%,1) -> 0.03912623971 | EN9: =IF(SP<$AL4,EN4,IF(SP<$AL5,EN5,IF(SP<$AL6,EN6,IF(SP<$AL7,EN7,EN8))))*IF(OR($K$11="Existing Pension Plan policyholders of KLI",$K$11="Nominees of deceased KLI pension policyholder",$K$11="Members of Superannuation scheme",$K$11="New Group Customers",$K$11="Existing Group Customers"),101%,1) -> 0.01936143821 | EO9: =IF(SP<$AL4,EO4,IF(SP<$AL5,EO5,IF(SP<$AL6,EO6,IF(SP<$AL7,EO7,EO8))))*IF(OR($K$11="Existing Pension Plan policyholders of KLI",$K$11="Nominees of deceased KLI pension policyholder",$K$11="Members of Superannuation scheme",$K$11="New Group Customers",$K$11="Existing Group Customers"),101%,1) -> 0.00638658552
B10: Age as on last birthday | D10: =Calculator!F8 -> 60 | I10: Age as on last birthday | K10: =Calculator!F8 -> 60 | W10: Last survivor Lifetime Income with 50% annuity to Surviving SpouseN/A | Z10: =IF($R$22="ann",AM85,IF($R$22="hlf",AN85,IF($R$22="qrt",AO85,AP85))) -> 0.00589781622 | AB10: 0 | AC10: =AP85 -> 0.00589781622 | AW10: Daman and Diu | AY10: Last survivor Lifetime Income with 50% annuity to Surviving SpouseN/A | BB10: =IF($T$37="ann",BO85,IF($T$37="hlf",BP85,IF($T$37="qrt",BQ85,BR85))) -> 0.0744987312 | BD10: 0 | BE10: =BR85 -> 0.00589781622 | BX10: Last survivor Lifetime Income with 50% annuity to Surviving SpouseN/A | CA10: =IF($T$38="ann",CN85,IF($T$38="hlf",CO85,IF($T$38="qrt",CP85,CQ85))) -> 0.03613188463 | CC10: 0 | CD10: =CQ85 -> 0.00589781622 | CW10: Last survivor Lifetime Income with 50% annuity to Surviving SpouseN/A | CZ10: =IF($T$39="ann",DM85,IF($T$39="hlf",DN85,IF($T$39="qrt",DO85,DP85))) -> 0.01787969549 | DB10: 0 | DC10: =DP85 -> 0.00589781622 | DV10: Last survivor Lifetime Income with 50% annuity to Surviving SpouseN/A | DY10: =IF($T$40="ann",EL85,IF($T$40="hlf",EM85,IF($T$40="qrt",EN85,EO85))) -> 0.00589781622 | EA10: 0 | EB10: =EO85 -> 0.00589781622
B11: =IF(SUM(AB9:AB11)=1,"Name of Spouse", "") ->  | D11: =Calculator!F15 -> Ms.Customer | G11: =IF(Age<100,IF(AND(OR(LEFT(K11,2)="NE",LEFT(K11,3)="NPS"),Age<45),"Minimum age at entry is 45 years for "&K11,IF(AND(OR(LEFT(K11)="M",LEFT(K11)="E"),Age<18),"Minimum age at entry is 18 years for "&K11,IF(AND(LEFT(K11,1)="Q",Age < 55),"Minimum age at entry is 55 years if purchased through QROPS",IF(AND(LEFT(K11,3)="Nom",Age < 0),"Minimum age at entry is 0 years for Nominees of deceased KLI pension plan policyholders","")))),"Max age at entry cannot be more than 99 years") ->  | I11: Client Category | K11: =Calculator!F7 -> Existing Group Customers | P11: Gender | W11: Last survivor Lifetime Income with 100% annuity to the Surviving Spouse and Cash-back on death of Surviving SpouseN/A | Z11: =IF($R$22="ann",AM96,IF($R$22="hlf",AN96,IF($R$22="qrt",AO96,AP96))) -> 0.00477364683 | AB11: 0 | AC11: =AP96 -> 0.00477364683 | AW11: Delhi | AY11: Last survivor Lifetime Income with 100% annuity to the Surviving Spouse and Cash-back on death of Surviving SpouseN/A | BB11: =IF($T$37="ann",BO96,IF($T$37="hlf",BP96,IF($T$37="qrt",BQ96,BR96))) -> 0.0602986968 | BD11: 0 | BE11: =BR96 -> 0.00477364683 | BX11: Last survivor Lifetime Income with 100% annuity to the Surviving Spouse and Cash-back on death of Surviving SpouseN/A | CA11: =IF($T$38="ann",CN96,IF($T$38="hlf",CO96,IF($T$38="qrt",CP96,CQ96))) -> 0.02924486795 | CC11: 0 | CD11: =CQ96 -> 0.00477364683 | CW11: Last survivor Lifetime Income with 100% annuity to the Surviving Spouse and Cash-back on death of Surviving SpouseN/A | CZ11: =IF($T$39="ann",DM96,IF($T$39="hlf",DN96,IF($T$39="qrt",DO96,DP96))) -> 0.01447168723 | DB11: 0 | DC11: =DP96 -> 0.00477364683 | DV11: Last survivor Lifetime Income with 100% annuity to the Surviving Spouse and Cash-back on death of Surviving SpouseN/A | DY11: =IF($T$40="ann",EL96,IF($T$40="hlf",EM96,IF($T$40="qrt",EN96,EO96))) -> 0.00477364683 | EA11: 0 | EB11: =EO96 -> 0.00477364683
B12: =IF(B11="","","Gender of Spouse") ->  | D12: Male | G12: =IF(B21="Last Survivor Lifetime Income",IF(D11="","Please enter Name of the Spouse",IF(D13="","Please enter the Date of Birth of Spouse",IF(D12="","Please enter the Gender of Spouse",""))),"") ->  | I12: =IF(OR(LEFT(K11,2)="Ne",LEFT(K11,5)="QROPS",LEFT(K11,3)="NPS",LEFT(K11,5)="Group"),"",IF(K11="Members of Superannuation scheme","Master Policy Number","Existing Policy Number")) -> Existing Policy Number | K12: 127890 | P12: Male | R12: Service Tax | T12: =IF(OR(LEFT(K11,3)="NPS",AND(K11=T32,Proposer_Location="Foreign Country",Location="NRI")),0%,IF(Tax_Region="Rest of India",Q29*(1+Q28),R29*(1+R28))) -> 0.018 | AL12: Lifetime Income with Cashback Option Calculation | AW12: Goa | BN12: Lifetime Income with Cashback Option Calculation | CM12: Lifetime Income with Cashback Option Calculation | DL12: Lifetime Income with Cashback Option Calculation | EK12: Lifetime Income with Cashback Option Calculation
B13: =IF(B11="","","Date of Birth of Spouse") ->  | D13: 1966-01-17 | G13: =IF(T20="No","",IF(_Age1<100,IF(T20="Yes",IF(AND(OR(LEFT(K11,2)="NE",LEFT(K11,3)="NPS",LEFT(K11,1)="Q"),_Age1<35),"Spouse Age Cannot be less than 35 years for "&K11,IF(_Age1<18,"Spouse Age Cannot be less than 18 years",IF(Age<18,"Age Cannot be less than 18 years for selected Annuity Option",""))),""),"Spouse Age Cannot be greater than 99 years")) ->  | I13: Agent's Branch Location | K13: Chattisgarh | P13: Female | AL13: Single Premium Bands | AM13: Frequency of Payment | AW13: Gujarat | BN13: Single Premium Bands | BO13: Frequency of Payment | CM13: Single Premium Bands | CN13: Frequency of Payment | DL13: Single Premium Bands | DM13: Frequency of Payment | EK13: Single Premium Bands | EL13: Frequency of Payment
B14: =IF(B11="","","Age as on last birthday") ->  | D14: =Calculator!F16 -> 55 | I14: Proposer's Current Location | K14: Foreign Country | AM14: ann | AN14: hlf | AO14: qrt | AP14: mth | AW14: Haryana | BO14: ann | BP14: hlf | BQ14: qrt | BR14: mth | CN14: ann | CO14: hlf | CP14: qrt | CQ14: mth | DM14: ann | DN14: hlf | DO14: qrt | DP14: mth | EL14: ann | EM14: hlf | EN14: qrt | EO14: mth
B15: Is Proposer same as annuitant | D15: Yes | G15: =IFERROR(IF(Y22<1000,"Minimum Single premium shall be such that the minimum annuity payable in this plan is at least equal to Rs.1000 per month. Single Premium must be more than or equal to "& Y26,""),"Please check the inputs") ->  | I15: NRI/Resident India | K15: Resident India | R15: Condition for showing premium | AL15: 250000 | AM15: =VLOOKUP(Age,'SL_Revised Mar 2021'!$A$3:$G$103,3,0) -> 0.0592 | AN15: =AM15*97%/2 -> 0.028712 | AO15: =AM15*96%/4 -> 0.014208 | AP15: =AM15*95%/12 -> 0.004686666667 | AW15: Himachal Pradesh | BN15: 250000 | BO15: =VLOOKUP(Age,'SL_Revised Mar 2021'!$A$3:$G$103,3,0) -> 0.0592 | BP15: =BO15*97%/2 -> 0.028712 | BQ15: =BO15*96%/4 -> 0.014208 | BR15: =BO15*95%/12 -> 0.004686666667 | CM15: 250000 | CN15: =VLOOKUP(Age,'SL_Revised Mar 2021'!$A$3:$G$103,3,0) -> 0.0592 | CO15: =CN15*97%/2 -> 0.028712 | CP15: =CN15*96%/4 -> 0.014208 | CQ15: =CN15*95%/12 -> 0.004686666667 | DL15: 250000 | DM15: =VLOOKUP(Age,'SL_Revised Mar 2021'!$A$3:$G$103,3,0) -> 0.0592 | DN15: =DM15*97%/2 -> 0.028712 | DO15: =DM15*96%/4 -> 0.014208 | DP15: =DM15*95%/12 -> 0.004686666667 | EK15: 250000 | EL15: =VLOOKUP(Age,'SL_Revised Mar 2021'!$A$3:$G$103,3,0) -> 0.0592 | EM15: =EL15*97%/2 -> 0.028712 | EN15: =EL15*96%/4 -> 0.014208 | EO15: =EL15*95%/12 -> 0.004686666667
B16: =IF(AND(LEFT(K11,5)="QROPS",D15="No"),"If annuity is availed through QROPs then Annuitant and Proposer should be same",IF(D15="No",IF(AND(K7=D7,K8=D8,K9=D9),"Proposer details should be different from annuitant",""),IF(AND(K7=D7,D8=K8,D9=K9),"","Please ensure Annuitant details are same as Proposer"))) ->  | J16: =IF(AND(B21="Lifetime Income with Term Guarantee of 5/10/15/20 Years",OR(H21="",H21="N/A")),"Please select Guarantee Term",IF(AND(B21<>"Lifetime Income with Term Guarantee of 5/10/15/20 Years",H21<>"N/A"),"Please de-select Guarantee Term","")) ->  | P16: Annuity Mode | R16: =OR(G7<>"",G9<>"",G15<>"",J16<>"",G11<>"",G12<>"",G13<>"",I17<>"",I22<>"",B16<>"") -> FALSE | AL16: 500000 | AM16: =AM15*1.0063 -> 0.05957296 | AN16: =AM16*97%/2 -> 0.0288928856 | AO16: =AM16*96%/4 -> 0.0142975104 | AP16: =AM16*95%/12 -> 0.004716192667 | AW16: Jammu and Kashmir | BF16: ann | BG16: =$Y$19 -> 6274 | BN16: 500000 | BO16: =BO15*1.0063 -> 0.05957296 | BP16: =BO16*97%/2 -> 0.0288928856 | BQ16: =BO16*96%/4 -> 0.0142975104 | BR16: =BO16*95%/12 -> 0.004716192667 | CE16: ann | CF16: =$Y$19 -> 6274 | CM16: 500000 | CN16: =CN15*1.0063 -> 0.05957296 | CO16: =CN16*97%/2 -> 0.0288928856 | CP16: =CN16*96%/4 -> 0.0142975104 | CQ16: =CN16*95%/12 -> 0.004716192667 | DD16: ann | DE16: =$Y$19 -> 6274 | DL16: 500000 | DM16: =DM15*1.0063 -> 0.05957296 | DN16: =DM16*97%/2 -> 0.0288928856 | DO16: =DM16*96%/4 -> 0.0142975104 | DP16: =DM16*95%/12 -> 0.004716192667 | EK16: 500000 | EL16: =EL15*1.0063 -> 0.05957296 | EM16: =EL16*97%/2 -> 0.0288928856 | EN16: =EL16*96%/4 -> 0.0142975104 | EO16: =EL16*95%/12 -> 0.004716192667
I17: =IF(AND(OR(K11<>"New Customers",LEFT(K11,3)<>"NPS",LEFT(K11,5)<>"QROPS",K11<>"New Group Customers"),K12=""), "Please Enter Your "&I12, "") ->  | P17: Yearly | Q17: 0 | AL17: 1000000 | AM17: =AM15*1.0188 -> 0.06031296 | AN17: =AM17*97%/2 -> 0.0292517856 | AO17: =AM17*96%/4 -> 0.0144751104 | AP17: =AM17*95%/12 -> 0.004774776 | AW17: Jharkhand | BF17: hlf | BG17: =$Y$19 -> 6274 | BN17: 1000000 | BO17: =BO15*1.0188 -> 0.06031296 | BP17: =BO17*97%/2 -> 0.0292517856 | BQ17: =BO17*96%/4 -> 0.0144751104 | BR17: =BO17*95%/12 -> 0.004774776 | CE17: hlf | CF17: =$Y$19 -> 6274 | CM17: 1000000 | CN17: =CN15*1.0188 -> 0.06031296 | CO17: =CN17*97%/2 -> 0.0292517856 | CP17: =CN17*96%/4 -> 0.0144751104 | CQ17: =CN17*95%/12 -> 0.004774776 | DD17: hlf | DE17: =$Y$19 -> 6274 | DL17: 1000000 | DM17: =DM15*1.0188 -> 0.06031296 | DN17: =DM17*97%/2 -> 0.0292517856 | DO17: =DM17*96%/4 -> 0.0144751104 | DP17: =DM17*95%/12 -> 0.004774776 | EK17: 1000000 | EL17: =EL15*1.0188 -> 0.06031296 | EM17: =EL17*97%/2 -> 0.0292517856 | EN17: =EL17*96%/4 -> 0.0144751104 | EO17: =EL17*95%/12 -> 0.004774776
B18: Plan Details | P18: Half Yearly | Q18: 1 | W18: Premium Calculation Code | Y18: =(B21&H21) -> Lifetime IncomeN/A | AL18: 5000000 | AM18: =AM15*1.025 -> 0.06068 | AN18: =AM18*97%/2 -> 0.0294298 | AO18: =AM18*96%/4 -> 0.0145632 | AP18: =AM18*95%/12 -> 0.004803833333 | AW18: Karnataka | AY18: Premium Calculation Code | BA18: =(AD21&AJ21) ->  | BF18: qrt | BG18: 6274 | BN18: 5000000 | BO18: =BO15*1.025 -> 0.06068 | BP18: =BO18*97%/2 -> 0.0294298 | BQ18: =BO18*96%/4 -> 0.0145632 | BR18: =BO18*95%/12 -> 0.004803833333 | BX18: Premium Calculation Code | BZ18: =(BC21&BI21) ->  | CE18: qrt | CF18: 6274 | CM18: 5000000 | CN18: =CN15*1.025 -> 0.06068 | CO18: =CN18*97%/2 -> 0.0294298 | CP18: =CN18*96%/4 -> 0.0145632 | CQ18: =CN18*95%/12 -> 0.004803833333 | CW18: Premium Calculation Code | CY18: =(CB21&CH21) ->  | DD18: qrt | DE18: 6274 | DL18: 5000000 | DM18: =DM15*1.025 -> 0.06068 | DN18: =DM18*97%/2 -> 0.0294298 | DO18: =DM18*96%/4 -> 0.0145632 | DP18: =DM18*95%/12 -> 0.004803833333 | DV18: Premium Calculation Code | DX18: =(DA21&DG21) ->  | EK18: 5000000 | EL18: =EL15*1.025 -> 0.06068 | EM18: =EL18*97%/2 -> 0.0294298 | EN18: =EL18*96%/4 -> 0.0145632 | EO18: =EL18*95%/12 -> 0.004803833333
B19: Annuity Option | H19: Guarantee Term | I19: Frequency of Annuity Payment | J19: Annuity Installment (Rs.) | L19: Amount of Single Premium | P19: Quarterly | Q19: 2 | R19: Date of Illustration | T19: =TODAY() -> 2021-04-12 | W19: Annuity Amount | Y19: =ROUND(SUMPRODUCT(Z3:Z12,AB3:AB12)*SP,0) -> 6274 | AL19: 5000,000+ | AM19: =AM15*1.03 -> 0.060976 | AN19: =AM19*97%/2 -> 0.02957336 | AO19: =AM19*96%/4 -> 0.01463424 | AP19: =AM19*95%/12 -> 0.004827266667 | AW19: Kerala | AY19: Annuity Amount | BA19: =ROUND(SUMPRODUCT(BB3:BB12,BD3:BD12)*SP,0) -> 79246 | BF19: mnt | BG19: 6274 | BN19: 5000,000+ | BO19: =BO15*1.03 -> 0.060976 | BP19: =BO19*97%/2 -> 0.02957336 | BQ19: =BO19*96%/4 -> 0.01463424 | BR19: =BO19*95%/12 -> 0.004827266667 | BX19: Annuity Amount | BZ19: =ROUND(SUMPRODUCT(CA3:CA12,CC3:CC12)*SP,0) -> 38434 | CE19: mnt | CF19: 6274 | CM19: 5000,000+ | CN19: =CN15*1.03 -> 0.060976 | CO19: =CN19*97%/2 -> 0.02957336 | CP19: =CN19*96%/4 -> 0.01463424 | CQ19: =CN19*95%/12 -> 0.004827266667 | CW19: Annuity Amount | CY19: =ROUND(SUMPRODUCT(CZ3:CZ12,DB3:DB12)*SP,0) -> 19019 | DD19: mnt | DE19: 6274 | DL19: 5000,000+ | DM19: =DM15*1.03 -> 0.060976 | DN19: =DM19*97%/2 -> 0.02957336 | DO19: =DM19*96%/4 -> 0.01463424 | DP19: =DM19*95%/12 -> 0.004827266667 | DV19: Annuity Amount | DX19: =ROUND(SUMPRODUCT(DY3:DY12,EA3:EA12)*SP,0) -> 6274 | EK19: 5000,000+ | EL19: =EL15*1.03 -> 0.060976 | EM19: =EL19*97%/2 -> 0.02957336 | EN19: =EL19*96%/4 -> 0.01463424 | EO19: =EL19*95%/12 -> 0.004827266667
P20: Monthly | Q20: 3 | R20: Spouse Details Required | T20: =IF(SUM(AB9:AB11)=1,"Yes","No") -> No | AL20: Annuity | AM20: =IF(SP<$AL15,AM15,IF(SP<$AL16,AM16,IF(SP<$AL17,AM17,IF(SP<$AL18,AM18,AM19))))*IF(OR($K$11="Existing Pension Plan policyholders of KLI",$K$11="Nominees of deceased KLI pension policyholder",$K$11="Members of Superannuation scheme",$K$11="New Group Customers",$K$11="Existing Group Customers"),101%,1) -> 0.0609160896 | AN20: =IF(SP<$AL15,AN15,IF(SP<$AL16,AN16,IF(SP<$AL17,AN17,IF(SP<$AL18,AN18,AN19))))*IF(OR($K$11="Existing Pension Plan policyholders of KLI",$K$11="Nominees of deceased KLI pension policyholder",$K$11="Members of Superannuation scheme",$K$11="New Group Customers",$K$11="Existing Group Customers"),101%,1) -> 0.02954430346 | AO20: =IF(SP<$AL15,AO15,IF(SP<$AL16,AO16,IF(SP<$AL17,AO17,IF(SP<$AL18,AO18,AO19))))*IF(OR($K$11="Existing Pension Plan policyholders of KLI",$K$11="Nominees of deceased KLI pension policyholder",$K$11="Members of Superannuation scheme",$K$11="New Group Customers",$K$11="Existing Group Customers"),101%,1) -> 0.0146198615 | AP20: =IF(SP<$AL15,AP15,IF(SP<$AL16,AP16,IF(SP<$AL17,AP17,IF(SP<$AL18,AP18,AP19))))*IF(OR($K$11="Existing Pension Plan policyholders of KLI",$K$11="Nominees of deceased KLI pension policyholder",$K$11="Members of Superannuation scheme",$K$11="New Group Customers",$K$11="Existing Group Customers"),101%,1) -> 0.00482252376 | AW20: Lakshadweep Islands | BN20: Annuity | BO20: =IF(SP<$AL15,BO15,IF(SP<$AL16,BO16,IF(SP<$AL17,BO17,IF(SP<$AL18,BO18,BO19))))*IF(OR($K$11="Existing Pension Plan policyholders of KLI",$K$11="Nominees of deceased KLI pension policyholder",$K$11="Members of Superannuation scheme",$K$11="New Group Customers",$K$11="Existing Group Customers"),101%,1) -> 0.0609160896 | BP20: =IF(SP<$AL15,BP15,IF(SP<$AL16,BP16,IF(SP<$AL17,BP17,IF(SP<$AL18,BP18,BP19))))*IF(OR($K$11="Existing Pension Plan policyholders of KLI",$K$11="Nominees of deceased KLI pension policyholder",$K$11="Members of Superannuation scheme",$K$11="New Group Customers",$K$11="Existing Group Customers"),101%,1) -> 0.02954430346 | BQ20: =IF(SP<$AL15,BQ15,IF(SP<$AL16,BQ16,IF(SP<$AL17,BQ17,IF(SP<$AL18,BQ18,BQ19))))*IF(OR($K$11="Existing Pension Plan policyholders of KLI",$K$11="Nominees of deceased KLI pension policyholder",$K$11="Members of Superannuation scheme",$K$11="New Group Customers",$K$11="Existing Group Customers"),101%,1) -> 0.0146198615 | BR20: =IF(SP<$AL15,BR15,IF(SP<$AL16,BR16,IF(SP<$AL17,BR17,IF(SP<$AL18,BR18,BR19))))*IF(OR($K$11="Existing Pension Plan policyholders of KLI",$K$11="Nominees of deceased KLI pension policyholder",$K$11="Members of Superannuation scheme",$K$11="New Group Customers",$K$11="Existing Group Customers"),101%,1) -> 0.00482252376 | CM20: Annuity | CN20: =IF(SP<$AL15,CN15,IF(SP<$AL16,CN16,IF(SP<$AL17,CN17,IF(SP<$AL18,CN18,CN19))))*IF(OR($K$11="Existing Pension Plan policyholders of KLI",$K$11="Nominees of deceased KLI pension policyholder",$K$11="Members of Superannuation scheme",$K$11="New Group Customers",$K$11="Existing Group Customers"),101%,1) -> 0.0609160896 | CO20: =IF(SP<$AL15,CO15,IF(SP<$AL16,CO16,IF(SP<$AL17,CO17,IF(SP<$AL18,CO18,CO19))))*IF(OR($K$11="Existing Pension Plan policyholders of KLI",$K$11="Nominees of deceased KLI pension policyholder",$K$11="Members of Superannuation scheme",$K$11="New Group Customers",$K$11="Existing Group Customers"),101%,1) -> 0.02954430346 | CP20: =IF(SP<$AL15,CP15,IF(SP<$AL16,CP16,IF(SP<$AL17,CP17,IF(SP<$AL18,CP18,CP19))))*IF(OR($K$11="Existing Pension Plan policyholders of KLI",$K$11="Nominees of deceased KLI pension policyholder",$K$11="Members of Superannuation scheme",$K$11="New Group Customers",$K$11="Existing Group Customers"),101%,1) -> 0.0146198615 | CQ20: =IF(SP<$AL15,CQ15,IF(SP<$AL16,CQ16,IF(SP<$AL17,CQ17,IF(SP<$AL18,CQ18,CQ19))))*IF(OR($K$11="Existing Pension Plan policyholders of KLI",$K$11="Nominees of deceased KLI pension policyholder",$K$11="Members of Superannuation scheme",$K$11="New Group Customers",$K$11="Existing Group Customers"),101%,1) -> 0.00482252376 | DL20: Annuity | DM20: =IF(SP<$AL15,DM15,IF(SP<$AL16,DM16,IF(SP<$AL17,DM17,IF(SP<$AL18,DM18,DM19))))*IF(OR($K$11="Existing Pension Plan policyholders of KLI",$K$11="Nominees of deceased KLI pension policyholder",$K$11="Members of Superannuation scheme",$K$11="New Group Customers",$K$11="Existing Group Customers"),101%,1) -> 0.0609160896 | DN20: =IF(SP<$AL15,DN15,IF(SP<$AL16,DN16,IF(SP<$AL17,DN17,IF(SP<$AL18,DN18,DN19))))*IF(OR($K$11="Existing Pension Plan policyholders of KLI",$K$11="Nominees of deceased KLI pension policyholder",$K$11="Members of Superannuation scheme",$K$11="New Group Customers",$K$11="Existing Group Customers"),101%,1) -> 0.02954430346 | DO20: =IF(SP<$AL15,DO15,IF(SP<$AL16,DO16,IF(SP<$AL17,DO17,IF(SP<$AL18,DO18,DO19))))*IF(OR($K$11="Existing Pension Plan policyholders of KLI",$K$11="Nominees of deceased KLI pension policyholder",$K$11="Members of Superannuation scheme",$K$11="New Group Customers",$K$11="Existing Group Customers"),101%,1) -> 0.0146198615 | DP20: =IF(SP<$AL15,DP15,IF(SP<$AL16,DP16,IF(SP<$AL17,DP17,IF(SP<$AL18,DP18,DP19))))*IF(OR($K$11="Existing Pension Plan policyholders of KLI",$K$11="Nominees of deceased KLI pension policyholder",$K$11="Members of Superannuation scheme",$K$11="New Group Customers",$K$11="Existing Group Customers"),101%,1) -> 0.00482252376 | EK20: Annuity | EL20: =IF(SP<$AL15,EL15,IF(SP<$AL16,EL16,IF(SP<$AL17,EL17,IF(SP<$AL18,EL18,EL19))))*IF(OR($K$11="Existing Pension Plan policyholders of KLI",$K$11="Nominees of deceased KLI pension policyholder",$K$11="Members of Superannuation scheme",$K$11="New Group Customers",$K$11="Existing Group Customers"),101%,1) -> 0.0609160896 | EM20: =IF(SP<$AL15,EM15,IF(SP<$AL16,EM16,IF(SP<$AL17,EM17,IF(SP<$AL18,EM18,EM19))))*IF(OR($K$11="Existing Pension Plan policyholders of KLI",$K$11="Nominees of deceased KLI pension policyholder",$K$11="Members of Superannuation scheme",$K$11="New Group Customers",$K$11="Existing Group Customers"),101%,1) -> 0.02954430346 | EN20: =IF(SP<$AL15,EN15,IF(SP<$AL16,EN16,IF(SP<$AL17,EN17,IF(SP<$AL18,EN18,EN19))))*IF(OR($K$11="Existing Pension Plan policyholders of KLI",$K$11="Nominees of deceased KLI pension policyholder",$K$11="Members of Superannuation scheme",$K$11="New Group Customers",$K$11="Existing Group Customers"),101%,1) -> 0.0146198615 | EO20: =IF(SP<$AL15,EO15,IF(SP<$AL16,EO16,IF(SP<$AL17,EO17,IF(SP<$AL18,EO18,EO19))))*IF(OR($K$11="Existing Pension Plan policyholders of KLI",$K$11="Nominees of deceased KLI pension policyholder",$K$11="Members of Superannuation scheme",$K$11="New Group Customers",$K$11="Existing Group Customers"),101%,1) -> 0.00482252376
B21: =Calculator!F12 -> Lifetime Income | H21: =Calculator!F13 -> N/A | I21: Monthly | J21: =IF(R16=TRUE,"Check any Validations",Y19) -> 6274 | L21: =Calculator!F10 -> 982318 | R21: Chosen Annuity Mode | AW21: Madhya Pradesh
B22: =IF(B21="Last survivor Lifetime Income with 50% annuity to Surviving Spouse","Under this annuity option - "&D7&" will be treated as Primary Annuitant and "&D11&" will be treated as Secondary Annuitant.","") ->  | I22: =IF(K9="","",IF(K10<18,"Minimum Entry Age for Proposer is 18",IF(K10>99,"Maximum Entry Age for Proposer is 99",""))) ->  | R22: =IF(I21="Yearly","ann",IF(I21="Half Yearly","hlf",IF(I21="Quarterly","qrt","mth"))) -> mth | W22: Monthly Annuity Amount | Y22: =ROUND(SUMPRODUCT(AB3:AB12,AC3:AC12)*SP,4) -> 6273.6579 | AL22: Lifetime Income with Term Guarantee of 5 Years Option Calculation | AW22: Maharashtra | AY22: Monthly Annuity Amount | BA22: =ROUND(SUMPRODUCT(BD3:BD12,BE3:BE12)*SP,4) -> 6273.6579 | BN22: Lifetime Income with Term Guarantee of 5 Years Option Calculation | BX22: Monthly Annuity Amount | BZ22: =ROUND(SUMPRODUCT(CC3:CC12,CD3:CD12)*SP,4) -> 6273.6579 | CM22: Lifetime Income with Term Guarantee of 5 Years Option Calculation | CW22: Monthly Annuity Amount | CY22: =ROUND(SUMPRODUCT(DB3:DB12,DC3:DC12)*SP,4) -> 6273.6579 | DL22: Lifetime Income with Term Guarantee of 5 Years Option Calculation | DV22: Monthly Annuity Amount | DX22: =ROUND(SUMPRODUCT(EA3:EA12,EB3:EB12)*SP,4) -> 6273.6579 | EK22: Lifetime Income with Term Guarantee of 5 Years Option Calculation
B23: Applicable rate of Goods and Services tax and Cess on the Single Premium | L23: =IF(R16=TRUE,"",IF(ISNUMBER($T$12),$T$12,0)) -> 0.018 | S23: =VLOOKUP($I$21,$P$17:$Q$20,2,0) -> 3 | AL23: Single Premium Bands | AM23: Frequency of Payment | AW23: Manipur | BN23: Single Premium Bands | BO23: Frequency of Payment | CM23: Single Premium Bands | CN23: Frequency of Payment | DL23: Single Premium Bands | DM23: Frequency of Payment | EK23: Single Premium Bands | EL23: Frequency of Payment
B24: Goods and Services tax and Cess payable on the Single Premium | L24: =IF(R16=TRUE,"",ROUND(IF(ISNUMBER(L21*$T$12),L21*$T$12,0),0)) -> 17682 | AM24: ann | AN24: hlf | AO24: qrt | AP24: mth | AW24: Meghalaya | BO24: ann | BP24: hlf | BQ24: qrt | BR24: mth | CN24: ann | CO24: hlf | CP24: qrt | CQ24: mth | DM24: ann | DN24: hlf | DO24: qrt | DP24: mth | EL24: ann | EM24: hlf | EN24: qrt | EO24: mth
B25: Total Amount of single premium to be paid, inclusive of Goods and Services Tax and cess | L25: =IF(R16=TRUE,"Check any Validations",SP+L24) -> 1000000 | AL25: 250000 | AM25: =VLOOKUP(Age,'SL_Revised Mar 2021'!$A$3:$G$103,4,0) -> 0.078 | AN25: =AM25*97%/2 -> 0.03783 | AO25: =AM25*96%/4 -> 0.01872 | AP25: =AM25*95%/12 -> 0.006175 | AW25: Mizoram | BN25: 250000 | BO25: =VLOOKUP(Age,'SL_Revised Mar 2021'!$A$3:$G$103,4,0) -> 0.078 | BP25: =BO25*97%/2 -> 0.03783 | BQ25: =BO25*96%/4 -> 0.01872 | BR25: =BO25*95%/12 -> 0.006175 | CM25: 250000 | CN25: =VLOOKUP(Age,'SL_Revised Mar 2021'!$A$3:$G$103,4,0) -> 0.078 | CO25: =CN25*97%/2 -> 0.03783 | CP25: =CN25*96%/4 -> 0.01872 | CQ25: =CN25*95%/12 -> 0.006175 | DL25: 250000 | DM25: =VLOOKUP(Age,'SL_Revised Mar 2021'!$A$3:$G$103,4,0) -> 0.078 | DN25: =DM25*97%/2 -> 0.03783 | DO25: =DM25*96%/4 -> 0.01872 | DP25: =DM25*95%/12 -> 0.006175 | EK25: 250000 | EL25: =VLOOKUP(Age,'SL_Revised Mar 2021'!$A$3:$G$103,4,0) -> 0.078 | EM25: =EL25*97%/2 -> 0.03783 | EN25: =EL25*96%/4 -> 0.01872 | EO25: =EL25*95%/12 -> 0.006175
B26: Terms and Conditions | Q26: Rest of India | R26: Jammu and Kashmir | W26: SP for monthly premium of 1000 | Y26: =ROUNDUP(1000/SUMPRODUCT($AB$3:$AB$12,$AC$3:$AC$12),0) -> 156579 | AL26: 500000 | AM26: =AM25*1.0063 -> 0.0784914 | AN26: =AM26*97%/2 -> 0.038068329 | AO26: =AM26*96%/4 -> 0.018837936 | AP26: =AM26*95%/12 -> 0.0062139025 | AW26: Nagaland | AY26: SP for monthly premium of 1000 | BA26: =ROUNDUP(1000/SUMPRODUCT($AB$3:$AB$12,$AC$3:$AC$12),0) -> 156579 | BN26: 500000 | BO26: =BO25*1.0063 -> 0.0784914 | BP26: =BO26*97%/2 -> 0.038068329 | BQ26: =BO26*96%/4 -> 0.018837936 | BR26: =BO26*95%/12 -> 0.0062139025 | BX26: SP for monthly premium of 1000 | BZ26: =ROUNDUP(1000/SUMPRODUCT($AB$3:$AB$12,$AC$3:$AC$12),0) -> 156579 | CM26: 500000 | CN26: =CN25*1.0063 -> 0.0784914 | CO26: =CN26*97%/2 -> 0.038068329 | CP26: =CN26*96%/4 -> 0.018837936 | CQ26: =CN26*95%/12 -> 0.0062139025 | CW26: SP for monthly premium of 1000 | CY26: =ROUNDUP(1000/SUMPRODUCT($AB$3:$AB$12,$AC$3:$AC$12),0) -> 156579 | DL26: 500000 | DM26: =DM25*1.0063 -> 0.0784914 | DN26: =DM26*97%/2 -> 0.038068329 | DO26: =DM26*96%/4 -> 0.018837936 | DP26: =DM26*95%/12 -> 0.0062139025 | DV26: SP for monthly premium of 1000 | DX26: =ROUNDUP(1000/SUMPRODUCT($AB$3:$AB$12,$AC$3:$AC$12),0) -> 156579 | EK26: 500000 | EL26: =EL25*1.0063 -> 0.0784914 | EM26: =EL26*97%/2 -> 0.038068329 | EN26: =EL26*96%/4 -> 0.018837936 | EO26: =EL26*95%/12 -> 0.0062139025
B27: 1. This is a non unit-linked non-participating annuity plan. | AL27: 1000000 | AM27: =AM25*1.0188 -> 0.0794664 | AN27: =AM27*97%/2 -> 0.038541204 | AO27: =AM27*96%/4 -> 0.019071936 | AP27: =AM27*95%/12 -> 0.00629109 | AW27: Odisha | BN27: 1000000 | BO27: =BO25*1.0188 -> 0.0794664 | BP27: =BO27*97%/2 -> 0.038541204 | BQ27: =BO27*96%/4 -> 0.019071936 | BR27: =BO27*95%/12 -> 0.00629109 | CM27: 1000000 | CN27: =CN25*1.0188 -> 0.0794664 | CO27: =CN27*97%/2 -> 0.038541204 | CP27: =CN27*96%/4 -> 0.019071936 | CQ27: =CN27*95%/12 -> 0.00629109 | DL27: 1000000 | DM27: =DM25*1.0188 -> 0.0794664 | DN27: =DM27*97%/2 -> 0.038541204 | DO27: =DM27*96%/4 -> 0.019071936 | DP27: =DM27*95%/12 -> 0.00629109 | EK27: 1000000 | EL27: =EL25*1.0188 -> 0.0794664 | EM27: =EL27*97%/2 -> 0.038541204 | EN27: =EL27*96%/4 -> 0.019071936 | EO27: =EL27*95%/12 -> 0.00629109
B28: 2. This illustration is subject to future change in tax rates or any other laws, regulations or guidelines affecting the annuity plans. | P28: Cess | Q28: 0 | R28: 0 | T28: New Customers | U28: 45 | AL28: 5000000 | AM28: =AM25*1.025 -> 0.07995 | AN28: =AM28*97%/2 -> 0.03877575 | AO28: =AM28*96%/4 -> 0.019188 | AP28: =AM28*95%/12 -> 0.006329375 | AW28: Pondicherry | BN28: 5000000 | BO28: =BO25*1.025 -> 0.07995 | BP28: =BO28*97%/2 -> 0.03877575 | BQ28: =BO28*96%/4 -> 0.019188 | BR28: =BO28*95%/12 -> 0.006329375 | CM28: 5000000 | CN28: =CN25*1.025 -> 0.07995 | CO28: =CN28*97%/2 -> 0.03877575 | CP28: =CN28*96%/4 -> 0.019188 | CQ28: =CN28*95%/12 -> 0.006329375 | DL28: 5000000 | DM28: =DM25*1.025 -> 0.07995 | DN28: =DM28*97%/2 -> 0.03877575 | DO28: =DM28*96%/4 -> 0.019188 | DP28: =DM28*95%/12 -> 0.006329375 | EK28: 5000000 | EL28: =EL25*1.025 -> 0.07995 | EM28: =EL28*97%/2 -> 0.03877575 | EN28: =EL28*96%/4 -> 0.019188 | EO28: =EL28*95%/12 -> 0.006329375
B29: 3. For more details on terms and conditions, please read the sales brochure carefully before concluding a sale. | P29: Base Service Tax | Q29: =IF(AND(Proposer_Location="Foreign Country",Location="NRI"),0%,IF(AND(Tax_Region="Kerala",Proposer_Location="Kerala"),1.9%,1.8%)) -> 0.018 | R29: =IF(AND(Proposer_Location="Foreign Country",Location="NRI"),0%,IF(AND(Tax_Region="Kerala",Proposer_Location="Kerala"),1.9%,1.8%)) -> 0.018 | T29: Existing Pension Plan policyholders of KLI | U29: 18 | AL29: 5000,000+ | AM29: =AM25*1.03 -> 0.08034 | AN29: =AM29*97%/2 -> 0.0389649 | AO29: =AM29*96%/4 -> 0.0192816 | AP29: =AM29*95%/12 -> 0.00636025 | AW29: Punjab | BN29: 5000,000+ | BO29: =BO25*1.03 -> 0.08034 | BP29: =BO29*97%/2 -> 0.0389649 | BQ29: =BO29*96%/4 -> 0.0192816 | BR29: =BO29*95%/12 -> 0.00636025 | CM29: 5000,000+ | CN29: =CN25*1.03 -> 0.08034 | CO29: =CN29*97%/2 -> 0.0389649 | CP29: =CN29*96%/4 -> 0.0192816 | CQ29: =CN29*95%/12 -> 0.00636025 | DL29: 5000,000+ | DM29: =DM25*1.03 -> 0.08034 | DN29: =DM29*97%/2 -> 0.0389649 | DO29: =DM29*96%/4 -> 0.0192816 | DP29: =DM29*95%/12 -> 0.00636025 | EK29: 5000,000+ | EL29: =EL25*1.03 -> 0.08034 | EM29: =EL29*97%/2 -> 0.0389649 | EN29: =EL29*96%/4 -> 0.0192816 | EO29: =EL29*95%/12 -> 0.00636025
B30: 4. Annuity rates shown are indicative and as per the rates available currently. Please check for the applicable rates before concluding the sale. | T30: Nominees of deceased KLI pension policyholder | U30: 0 | AL30: Annuity | AM30: =IF(SP<$AL25,AM25,IF(SP<$AL26,AM26,IF(SP<$AL27,AM27,IF(SP<$AL28,AM28,AM29))))*IF(OR($K$11="Existing Pension Plan policyholders of KLI",$K$11="Nominees of deceased KLI pension policyholder",$K$11="Members of Superannuation scheme",$K$11="New Group Customers",$K$11="Existing Group Customers"),101%,1) -> 0.080261064 | AN30: =IF(SP<$AL25,AN25,IF(SP<$AL26,AN26,IF(SP<$AL27,AN27,IF(SP<$AL28,AN28,AN29))))*IF(OR($K$11="Existing Pension Plan policyholders of KLI",$K$11="Nominees of deceased KLI pension policyholder",$K$11="Members of Superannuation scheme",$K$11="New Group Customers",$K$11="Existing Group Customers"),101%,1) -> 0.03892661604 | AO30: =IF(SP<$AL25,AO25,IF(SP<$AL26,AO26,IF(SP<$AL27,AO27,IF(SP<$AL28,AO28,AO29))))*IF(OR($K$11="Existing Pension Plan policyholders of KLI",$K$11="Nominees of deceased KLI pension policyholder",$K$11="Members of Superannuation scheme",$K$11="New Group Customers",$K$11="Existing Group Customers"),101%,1) -> 0.01926265536 | AP30: =IF(SP<$AL25,AP25,IF(SP<$AL26,AP26,IF(SP<$AL27,AP27,IF(SP<$AL28,AP28,AP29))))*IF(OR($K$11="Existing Pension Plan policyholders of KLI",$K$11="Nominees of deceased KLI pension policyholder",$K$11="Members of Superannuation scheme",$K$11="New Group Customers",$K$11="Existing Group Customers"),101%,1) -> 0.0063540009 | AW30: Rajasthan | BN30: Annuity | BO30: =IF(SP<$AL25,BO25,IF(SP<$AL26,BO26,IF(SP<$AL27,BO27,IF(SP<$AL28,BO28,BO29))))*IF(OR($K$11="Existing Pension Plan policyholders of KLI",$K$11="Nominees of deceased KLI pension policyholder",$K$11="Members of Superannuation scheme",$K$11="New Group Customers",$K$11="Existing Group Customers"),101%,1) -> 0.080261064 | BP30: =IF(SP<$AL25,BP25,IF(SP<$AL26,BP26,IF(SP<$AL27,BP27,IF(SP<$AL28,BP28,BP29))))*IF(OR($K$11="Existing Pension Plan policyholders of KLI",$K$11="Nominees of deceased KLI pension policyholder",$K$11="Members of Superannuation scheme",$K$11="New Group Customers",$K$11="Existing Group Customers"),101%,1) -> 0.03892661604 | BQ30: =IF(SP<$AL25,BQ25,IF(SP<$AL26,BQ26,IF(SP<$AL27,BQ27,IF(SP<$AL28,BQ28,BQ29))))*IF(OR($K$11="Existing Pension Plan policyholders of KLI",$K$11="Nominees of deceased KLI pension policyholder",$K$11="Members of Superannuation scheme",$K$11="New Group Customers",$K$11="Existing Group Customers"),101%,1) -> 0.01926265536 | BR30: =IF(SP<$AL25,BR25,IF(SP<$AL26,BR26,IF(SP<$AL27,BR27,IF(SP<$AL28,BR28,BR29))))*IF(OR($K$11="Existing Pension Plan policyholders of KLI",$K$11="Nominees of deceased KLI pension policyholder",$K$11="Members of Superannuation scheme",$K$11="New Group Customers",$K$11="Existing Group Customers"),101%,1) -> 0.0063540009 | CM30: Annuity | CN30: =IF(SP<$AL25,CN25,IF(SP<$AL26,CN26,IF(SP<$AL27,CN27,IF(SP<$AL28,CN28,CN29))))*IF(OR($K$11="Existing Pension Plan policyholders of KLI",$K$11="Nominees of deceased KLI pension policyholder",$K$11="Members of Superannuation scheme",$K$11="New Group Customers",$K$11="Existing Group Customers"),101%,1) -> 0.080261064 | CO30: =IF(SP<$AL25,CO25,IF(SP<$AL26,CO26,IF(SP<$AL27,CO27,IF(SP<$AL28,CO28,CO29))))*IF(OR($K$11="Existing Pension Plan policyholders of KLI",$K$11="Nominees of deceased KLI pension policyholder",$K$11="Members of Superannuation scheme",$K$11="New Group Customers",$K$11="Existing Group Customers"),101%,1) -> 0.03892661604 | CP30: =IF(SP<$AL25,CP25,IF(SP<$AL26,CP26,IF(SP<$AL27,CP27,IF(SP<$AL28,CP28,CP29))))*IF(OR($K$11="Existing Pension Plan policyholders of KLI",$K$11="Nominees of deceased KLI pension policyholder",$K$11="Members of Superannuation scheme",$K$11="New Group Customers",$K$11="Existing Group Customers"),101%,1) -> 0.01926265536 | CQ30: =IF(SP<$AL25,CQ25,IF(SP<$AL26,CQ26,IF(SP<$AL27,CQ27,IF(SP<$AL28,CQ28,CQ29))))*IF(OR($K$11="Existing Pension Plan policyholders of KLI",$K$11="Nominees of deceased KLI pension policyholder",$K$11="Members of Superannuation scheme",$K$11="New Group Customers",$K$11="Existing Group Customers"),101%,1) -> 0.0063540009 | DL30: Annuity | DM30: =IF(SP<$AL25,DM25,IF(SP<$AL26,DM26,IF(SP<$AL27,DM27,IF(SP<$AL28,DM28,DM29))))*IF(OR($K$11="Existing Pension Plan policyholders of KLI",$K$11="Nominees of deceased KLI pension policyholder",$K$11="Members of Superannuation scheme",$K$11="New Group Customers",$K$11="Existing Group Customers"),101%,1) -> 0.080261064 | DN30: =IF(SP<$AL25,DN25,IF(SP<$AL26,DN26,IF(SP<$AL27,DN27,IF(SP<$AL28,DN28,DN29))))*IF(OR($K$11="Existing Pension Plan policyholders of KLI",$K$11="Nominees of deceased KLI pension policyholder",$K$11="Members of Superannuation scheme",$K$11="New Group Customers",$K$11="Existing Group Customers"),101%,1) -> 0.03892661604 | DO30: =IF(SP<$AL25,DO25,IF(SP<$AL26,DO26,IF(SP<$AL27,DO27,IF(SP<$AL28,DO28,DO29))))*IF(OR($K$11="Existing Pension Plan policyholders of KLI",$K$11="Nominees of deceased KLI pension policyholder",$K$11="Members of Superannuation scheme",$K$11="New Group Customers",$K$11="Existing Group Customers"),101%,1) -> 0.01926265536 | DP30: =IF(SP<$AL25,DP25,IF(SP<$AL26,DP26,IF(SP<$AL27,DP27,IF(SP<$AL28,DP28,DP29))))*IF(OR($K$11="Existing Pension Plan policyholders of KLI",$K$11="Nominees of deceased KLI pension policyholder",$K$11="Members of Superannuation scheme",$K$11="New Group Customers",$K$11="Existing Group Customers"),101%,1) -> 0.0063540009 | EK30: Annuity | EL30: =IF(SP<$AL25,EL25,IF(SP<$AL26,EL26,IF(SP<$AL27,EL27,IF(SP<$AL28,EL28,EL29))))*IF(OR($K$11="Existing Pension Plan policyholders of KLI",$K$11="Nominees of deceased KLI pension policyholder",$K$11="Members of Superannuation scheme",$K$11="New Group Customers",$K$11="Existing Group Customers"),101%,1) -> 0.080261064 | EM30: =IF(SP<$AL25,EM25,IF(SP<$AL26,EM26,IF(SP<$AL27,EM27,IF(SP<$AL28,EM28,EM29))))*IF(OR($K$11="Existing Pension Plan policyholders of KLI",$K$11="Nominees of deceased KLI pension policyholder",$K$11="Members of Superannuation scheme",$K$11="New Group Customers",$K$11="Existing Group Customers"),101%,1) -> 0.03892661604 | EN30: =IF(SP<$AL25,EN25,IF(SP<$AL26,EN26,IF(SP<$AL27,EN27,IF(SP<$AL28,EN28,EN29))))*IF(OR($K$11="Existing Pension Plan policyholders of KLI",$K$11="Nominees of deceased KLI pension policyholder",$K$11="Members of Superannuation scheme",$K$11="New Group Customers",$K$11="Existing Group Customers"),101%,1) -> 0.01926265536 | EO30: =IF(SP<$AL25,EO25,IF(SP<$AL26,EO26,IF(SP<$AL27,EO27,IF(SP<$AL28,EO28,EO29))))*IF(OR($K$11="Existing Pension Plan policyholders of KLI",$K$11="Nominees of deceased KLI pension policyholder",$K$11="Members of Superannuation scheme",$K$11="New Group Customers",$K$11="Existing Group Customers"),101%,1) -> 0.0063540009
B31: 5. After the policy contract is issued, the annuity option chosen and annuity payable is guaranteed for life and cannot be changed | T31: Members of Superannuation scheme | AW31: Sikkim
B32: 6. TDS at prevailing rate will be deducted from any amount paid under a life insurance policy subject to the provisions of prevailing tax laws. In case of non-availability of valid PAN, TDS will be deducted at higher rate. Tax laws are subject to changes from time to time. Kindly consult your tax advisor for tax implication of your policy. | T32: QROPS Customers | AW32: Tamil Nadu
T33: NPS Customers | AL33: Lifetime Income with Term Guarantee of 10 Years Option Calculation | AW33: Telangana | BN33: Lifetime Income with Term Guarantee of 10 Years Option Calculation | CM33: Lifetime Income with Term Guarantee of 10 Years Option Calculation | DL33: Lifetime Income with Term Guarantee of 10 Years Option Calculation | EK33: Lifetime Income with Term Guarantee of 10 Years Option Calculation
B34: 7.Goods and Services Tax and cess as applicable are levied at applicable Tax rates in accordance with the prevailing Tax Laws. Prevailing tax laws are applicable on this policy which may vary from time to time. | T34: New Group Customers | U34: 45 | AL34: Single Premium Bands | AM34: Frequency of Payment | AW34: Tripura | BN34: Single Premium Bands | BO34: Frequency of Payment | CM34: Single Premium Bands | CN34: Frequency of Payment | DL34: Single Premium Bands | DM34: Frequency of Payment | EK34: Single Premium Bands | EL34: Frequency of Payment
T35: Existing Group Customers | U35: 18 | AM35: ann | AN35: hlf | AO35: qrt | AP35: mth | AW35: Uttar Pradesh | BO35: ann | BP35: hlf | BQ35: qrt | BR35: mth | CN35: ann | CO35: hlf | CP35: qrt | CQ35: mth | DM35: ann | DN35: hlf | DO35: qrt | DP35: mth | EL35: ann | EM35: hlf | EN35: qrt | EO35: mth
AL36: 250000 | AM36: =VLOOKUP(Age,'SL_Revised Mar 2021'!$A$3:$G$103,5,0) -> 0.077 | AN36: =AM36*97%/2 -> 0.037345 | AO36: =AM36*96%/4 -> 0.01848 | AP36: =AM36*95%/12 -> 0.006095833333 | AW36: Uttarakhand | BN36: 250000 | BO36: =VLOOKUP(Age,'SL_Revised Mar 2021'!$A$3:$G$103,5,0) -> 0.077 | BP36: =BO36*97%/2 -> 0.037345 | BQ36: =BO36*96%/4 -> 0.01848 | BR36: =BO36*95%/12 -> 0.006095833333 | CM36: 250000 | CN36: =VLOOKUP(Age,'SL_Revised Mar 2021'!$A$3:$G$103,5,0) -> 0.077 | CO36: =CN36*97%/2 -> 0.037345 | CP36: =CN36*96%/4 -> 0.01848 | CQ36: =CN36*95%/12 -> 0.006095833333 | DL36: 250000 | DM36: =VLOOKUP(Age,'SL_Revised Mar 2021'!$A$3:$G$103,5,0) -> 0.077 | DN36: =DM36*97%/2 -> 0.037345 | DO36: =DM36*96%/4 -> 0.01848 | DP36: =DM36*95%/12 -> 0.006095833333 | EK36: 250000 | EL36: =VLOOKUP(Age,'SL_Revised Mar 2021'!$A$3:$G$103,5,0) -> 0.077 | EM36: =EL36*97%/2 -> 0.037345 | EN36: =EL36*96%/4 -> 0.01848 | EO36: =EL36*95%/12 -> 0.006095833333
T37: ann | AL37: 500000 | AM37: =AM36*1.0063 -> 0.0774851 | AN37: =AM37*97%/2 -> 0.0375802735 | AO37: =AM37*96%/4 -> 0.018596424 | AP37: =AM37*95%/12 -> 0.006134237083 | AW37: West Bengal | BN37: 500000 | BO37: =BO36*1.0063 -> 0.0774851 | BP37: =BO37*97%/2 -> 0.0375802735 | BQ37: =BO37*96%/4 -> 0.018596424 | BR37: =BO37*95%/12 -> 0.006134237083 | CM37: 500000 | CN37: =CN36*1.0063 -> 0.0774851 | CO37: =CN37*97%/2 -> 0.0375802735 | CP37: =CN37*96%/4 -> 0.018596424 | CQ37: =CN37*95%/12 -> 0.006134237083 | DL37: 500000 | DM37: =DM36*1.0063 -> 0.0774851 | DN37: =DM37*97%/2 -> 0.0375802735 | DO37: =DM37*96%/4 -> 0.018596424 | DP37: =DM37*95%/12 -> 0.006134237083 | EK37: 500000 | EL37: =EL36*1.0063 -> 0.0774851 | EM37: =EL37*97%/2 -> 0.0375802735 | EN37: =EL37*96%/4 -> 0.018596424 | EO37: =EL37*95%/12 -> 0.006134237083
B38: I, __________________________________________________________________(Name), have explained the premiums and benefits under the product fully to the prospect / policyholder | I38: I, ___________________________________________________________________(Name), having received the information with respect to the above, have understood the above statement before entering into the contract | T38: hlf | AL38: 1000000 | AM38: =AM36*1.0188 -> 0.0784476 | AN38: =AM38*97%/2 -> 0.038047086 | AO38: =AM38*96%/4 -> 0.018827424 | AP38: =AM38*95%/12 -> 0.006210435 | AW38: Foreign Country | BN38: 1000000 | BO38: =BO36*1.0188 -> 0.0784476 | BP38: =BO38*97%/2 -> 0.038047086 | BQ38: =BO38*96%/4 -> 0.018827424 | BR38: =BO38*95%/12 -> 0.006210435 | CM38: 1000000 | CN38: =CN36*1.0188 -> 0.0784476 | CO38: =CN38*97%/2 -> 0.038047086 | CP38: =CN38*96%/4 -> 0.018827424 | CQ38: =CN38*95%/12 -> 0.006210435 | DL38: 1000000 | DM38: =DM36*1.0188 -> 0.0784476 | DN38: =DM38*97%/2 -> 0.038047086 | DO38: =DM38*96%/4 -> 0.018827424 | DP38: =DM38*95%/12 -> 0.006210435 | EK38: 1000000 | EL38: =EL36*1.0188 -> 0.0784476 | EM38: =EL38*97%/2 -> 0.038047086 | EN38: =EL38*96%/4 -> 0.018827424 | EO38: =EL38*95%/12 -> 0.006210435
T39: qrt | AL39: 5000000 | AM39: =AM36*1.025 -> 0.078925 | AN39: =AM39*97%/2 -> 0.038278625 | AO39: =AM39*96%/4 -> 0.018942 | AP39: =AM39*95%/12 -> 0.006248229167 | BN39: 5000000 | BO39: =BO36*1.025 -> 0.078925 | BP39: =BO39*97%/2 -> 0.038278625 | BQ39: =BO39*96%/4 -> 0.018942 | BR39: =BO39*95%/12 -> 0.006248229167 | CM39: 5000000 | CN39: =CN36*1.025 -> 0.078925 | CO39: =CN39*97%/2 -> 0.038278625 | CP39: =CN39*96%/4 -> 0.018942 | CQ39: =CN39*95%/12 -> 0.006248229167 | DL39: 5000000 | DM39: =DM36*1.025 -> 0.078925 | DN39: =DM39*97%/2 -> 0.038278625 | DO39: =DM39*96%/4 -> 0.018942 | DP39: =DM39*95%/12 -> 0.006248229167 | EK39: 5000000 | EL39: =EL36*1.025 -> 0.078925 | EM39: =EL39*97%/2 -> 0.038278625 | EN39: =EL39*96%/4 -> 0.018942 | EO39: =EL39*95%/12 -> 0.006248229167
T40: mth | AL40: 5000,000+ | AM40: =AM36*1.03 -> 0.07931 | AN40: =AM40*97%/2 -> 0.03846535 | AO40: =AM40*96%/4 -> 0.0190344 | AP40: =AM40*95%/12 -> 0.006278708333 | BN40: 5000,000+ | BO40: =BO36*1.03 -> 0.07931 | BP40: =BO40*97%/2 -> 0.03846535 | BQ40: =BO40*96%/4 -> 0.0190344 | BR40: =BO40*95%/12 -> 0.006278708333 | CM40: 5000,000+ | CN40: =CN36*1.03 -> 0.07931 | CO40: =CN40*97%/2 -> 0.03846535 | CP40: =CN40*96%/4 -> 0.0190344 | CQ40: =CN40*95%/12 -> 0.006278708333 | DL40: 5000,000+ | DM40: =DM36*1.03 -> 0.07931 | DN40: =DM40*97%/2 -> 0.03846535 | DO40: =DM40*96%/4 -> 0.0190344 | DP40: =DM40*95%/12 -> 0.006278708333 | EK40: 5000,000+ | EL40: =EL36*1.03 -> 0.07931 | EM40: =EL40*97%/2 -> 0.03846535 | EN40: =EL40*96%/4 -> 0.0190344 | EO40: =EL40*95%/12 -> 0.006278708333
AL41: Annuity | AM41: =IF(SP<$AL36,AM36,IF(SP<$AL37,AM37,IF(SP<$AL38,AM38,IF(SP<$AL39,AM39,AM40))))*IF(OR($K$11="Existing Pension Plan policyholders of KLI",$K$11="Nominees of deceased KLI pension policyholder",$K$11="Members of Superannuation scheme",$K$11="New Group Customers",$K$11="Existing Group Customers"),101%,1) -> 0.079232076 | AN41: =IF(SP<$AL36,AN36,IF(SP<$AL37,AN37,IF(SP<$AL38,AN38,IF(SP<$AL39,AN39,AN40))))*IF(OR($K$11="Existing Pension Plan policyholders of KLI",$K$11="Nominees of deceased KLI pension policyholder",$K$11="Members of Superannuation scheme",$K$11="New Group Customers",$K$11="Existing Group Customers"),101%,1) -> 0.03842755686 | AO41: =IF(SP<$AL36,AO36,IF(SP<$AL37,AO37,IF(SP<$AL38,AO38,IF(SP<$AL39,AO39,AO40))))*IF(OR($K$11="Existing Pension Plan policyholders of KLI",$K$11="Nominees of deceased KLI pension policyholder",$K$11="Members of Superannuation scheme",$K$11="New Group Customers",$K$11="Existing Group Customers"),101%,1) -> 0.01901569824 | AP41: =IF(SP<$AL36,AP36,IF(SP<$AL37,AP37,IF(SP<$AL38,AP38,IF(SP<$AL39,AP39,AP40))))*IF(OR($K$11="Existing Pension Plan policyholders of KLI",$K$11="Nominees of deceased KLI pension policyholder",$K$11="Members of Superannuation scheme",$K$11="New Group Customers",$K$11="Existing Group Customers"),101%,1) -> 0.00627253935 | BN41: Annuity | BO41: =IF(SP<$AL36,BO36,IF(SP<$AL37,BO37,IF(SP<$AL38,BO38,IF(SP<$AL39,BO39,BO40))))*IF(OR($K$11="Existing Pension Plan policyholders of KLI",$K$11="Nominees of deceased KLI pension policyholder",$K$11="Members of Superannuation scheme",$K$11="New Group Customers",$K$11="Existing Group Customers"),101%,1) -> 0.079232076 | BP41: =IF(SP<$AL36,BP36,IF(SP<$AL37,BP37,IF(SP<$AL38,BP38,IF(SP<$AL39,BP39,BP40))))*IF(OR($K$11="Existing Pension Plan policyholders of KLI",$K$11="Nominees of deceased KLI pension policyholder",$K$11="Members of Superannuation scheme",$K$11="New Group Customers",$K$11="Existing Group Customers"),101%,1) -> 0.03842755686 | BQ41: =IF(SP<$AL36,BQ36,IF(SP<$AL37,BQ37,IF(SP<$AL38,BQ38,IF(SP<$AL39,BQ39,BQ40))))*IF(OR($K$11="Existing Pension Plan policyholders of KLI",$K$11="Nominees of deceased KLI pension policyholder",$K$11="Members of Superannuation scheme",$K$11="New Group Customers",$K$11="Existing Group Customers"),101%,1) -> 0.01901569824 | BR41: =IF(SP<$AL36,BR36,IF(SP<$AL37,BR37,IF(SP<$AL38,BR38,IF(SP<$AL39,BR39,BR40))))*IF(OR($K$11="Existing Pension Plan policyholders of KLI",$K$11="Nominees of deceased KLI pension policyholder",$K$11="Members of Superannuation scheme",$K$11="New Group Customers",$K$11="Existing Group Customers"),101%,1) -> 0.00627253935 | CM41: Annuity | CN41: =IF(SP<$AL36,CN36,IF(SP<$AL37,CN37,IF(SP<$AL38,CN38,IF(SP<$AL39,CN39,CN40))))*IF(OR($K$11="Existing Pension Plan policyholders of KLI",$K$11="Nominees of deceased KLI pension policyholder",$K$11="Members of Superannuation scheme",$K$11="New Group Customers",$K$11="Existing Group Customers"),101%,1) -> 0.079232076 | CO41: =IF(SP<$AL36,CO36,IF(SP<$AL37,CO37,IF(SP<$AL38,CO38,IF(SP<$AL39,CO39,CO40))))*IF(OR($K$11="Existing Pension Plan policyholders of KLI",$K$11="Nominees of deceased KLI pension policyholder",$K$11="Members of Superannuation scheme",$K$11="New Group Customers",$K$11="Existing Group Customers"),101%,1) -> 0.03842755686 | CP41: =IF(SP<$AL36,CP36,IF(SP<$AL37,CP37,IF(SP<$AL38,CP38,IF(SP<$AL39,CP39,CP40))))*IF(OR($K$11="Existing Pension Plan policyholders of KLI",$K$11="Nominees of deceased KLI pension policyholder",$K$11="Members of Superannuation scheme",$K$11="New Group Customers",$K$11="Existing Group Customers"),101%,1) -> 0.01901569824 | CQ41: =IF(SP<$AL36,CQ36,IF(SP<$AL37,CQ37,IF(SP<$AL38,CQ38,IF(SP<$AL39,CQ39,CQ40))))*IF(OR($K$11="Existing Pension Plan policyholders of KLI",$K$11="Nominees of deceased KLI pension policyholder",$K$11="Members of Superannuation scheme",$K$11="New Group Customers",$K$11="Existing Group Customers"),101%,1) -> 0.00627253935 | DL41: Annuity | DM41: =IF(SP<$AL36,DM36,IF(SP<$AL37,DM37,IF(SP<$AL38,DM38,IF(SP<$AL39,DM39,DM40))))*IF(OR($K$11="Existing Pension Plan policyholders of KLI",$K$11="Nominees of deceased KLI pension policyholder",$K$11="Members of Superannuation scheme",$K$11="New Group Customers",$K$11="Existing Group Customers"),101%,1) -> 0.079232076 | DN41: =IF(SP<$AL36,DN36,IF(SP<$AL37,DN37,IF(SP<$AL38,DN38,IF(SP<$AL39,DN39,DN40))))*IF(OR($K$11="Existing Pension Plan policyholders of KLI",$K$11="Nominees of deceased KLI pension policyholder",$K$11="Members of Superannuation scheme",$K$11="New Group Customers",$K$11="Existing Group Customers"),101%,1) -> 0.03842755686 | DO41: =IF(SP<$AL36,DO36,IF(SP<$AL37,DO37,IF(SP<$AL38,DO38,IF(SP<$AL39,DO39,DO40))))*IF(OR($K$11="Existing Pension Plan policyholders of KLI",$K$11="Nominees of deceased KLI pension policyholder",$K$11="Members of Superannuation scheme",$K$11="New Group Customers",$K$11="Existing Group Customers"),101%,1) -> 0.01901569824 | DP41: =IF(SP<$AL36,DP36,IF(SP<$AL37,DP37,IF(SP<$AL38,DP38,IF(SP<$AL39,DP39,DP40))))*IF(OR($K$11="Existing Pension Plan policyholders of KLI",$K$11="Nominees of deceased KLI pension policyholder",$K$11="Members of Superannuation scheme",$K$11="New Group Customers",$K$11="Existing Group Customers"),101%,1) -> 0.00627253935 | EK41: Annuity | EL41: =IF(SP<$AL36,EL36,IF(SP<$AL37,EL37,IF(SP<$AL38,EL38,IF(SP<$AL39,EL39,EL40))))*IF(OR($K$11="Existing Pension Plan policyholders of KLI",$K$11="Nominees of deceased KLI pension policyholder",$K$11="Members of Superannuation scheme",$K$11="New Group Customers",$K$11="Existing Group Customers"),101%,1) -> 0.079232076 | EM41: =IF(SP<$AL36,EM36,IF(SP<$AL37,EM37,IF(SP<$AL38,EM38,IF(SP<$AL39,EM39,EM40))))*IF(OR($K$11="Existing Pension Plan policyholders of KLI",$K$11="Nominees of deceased KLI pension policyholder",$K$11="Members of Superannuation scheme",$K$11="New Group Customers",$K$11="Existing Group Customers"),101%,1) -> 0.03842755686 | EN41: =IF(SP<$AL36,EN36,IF(SP<$AL37,EN37,IF(SP<$AL38,EN38,IF(SP<$AL39,EN39,EN40))))*IF(OR($K$11="Existing Pension Plan policyholders of KLI",$K$11="Nominees of deceased KLI pension policyholder",$K$11="Members of Superannuation scheme",$K$11="New Group Customers",$K$11="Existing Group Customers"),101%,1) -> 0.01901569824 | EO41: =IF(SP<$AL36,EO36,IF(SP<$AL37,EO37,IF(SP<$AL38,EO38,IF(SP<$AL39,EO39,EO40))))*IF(OR($K$11="Existing Pension Plan policyholders of KLI",$K$11="Nominees of deceased KLI pension policyholder",$K$11="Members of Superannuation scheme",$K$11="New Group Customers",$K$11="Existing Group Customers"),101%,1) -> 0.00627253935
B42: Date : _______________ ____________________________________ Place : ________________ Signature of Agent /Intermediary/Official | I42: Date : _______________ Place : _______________ Signature of Prospect / Policyholder
AL44: Lifetime Income with Term Guarantee of 15 Years Option Calculation | BN44: Lifetime Income with Term Guarantee of 15 Years Option Calculation | CM44: Lifetime Income with Term Guarantee of 15 Years Option Calculation | DL44: Lifetime Income with Term Guarantee of 15 Years Option Calculation | EK44: Lifetime Income with Term Guarantee of 15 Years Option Calculation
AL45: Single Premium Bands | AM45: Frequency of Payment | BN45: Single Premium Bands | BO45: Frequency of Payment | CM45: Single Premium Bands | CN45: Frequency of Payment | DL45: Single Premium Bands | DM45: Frequency of Payment | EK45: Single Premium Bands | EL45: Frequency of Payment
B46: Kotak Mahindra Life Insurance Company Limited | AM46: ann | AN46: hlf | AO46: qrt | AP46: mth | BO46: ann | BP46: hlf | BQ46: qrt | BR46: mth | CN46: ann | CO46: hlf | CP46: qrt | CQ46: mth | DM46: ann | DN46: hlf | DO46: qrt | DP46: mth | EL46: ann | EM46: hlf | EN46: qrt | EO46: mth
B47: CIN: U66030MH2000PLC128503 | AL47: 250000 | AM47: =VLOOKUP(Age,'SL_Revised Mar 2021'!$A$3:$G$103,6,0) -> 0.0754 | AN47: =AM47*97%/2 -> 0.036569 | AO47: =AM47*96%/4 -> 0.018096 | AP47: =AM47*95%/12 -> 0.005969166667 | BN47: 250000 | BO47: =VLOOKUP(Age,'SL_Revised Mar 2021'!$A$3:$G$103,6,0) -> 0.0754 | BP47: =BO47*97%/2 -> 0.036569 | BQ47: =BO47*96%/4 -> 0.018096 | BR47: =BO47*95%/12 -> 0.005969166667 | CM47: 250000 | CN47: =VLOOKUP(Age,'SL_Revised Mar 2021'!$A$3:$G$103,6,0) -> 0.0754 | CO47: =CN47*97%/2 -> 0.036569 | CP47: =CN47*96%/4 -> 0.018096 | CQ47: =CN47*95%/12 -> 0.005969166667 | DL47: 250000 | DM47: =VLOOKUP(Age,'SL_Revised Mar 2021'!$A$3:$G$103,6,0) -> 0.0754 | DN47: =DM47*97%/2 -> 0.036569 | DO47: =DM47*96%/4 -> 0.018096 | DP47: =DM47*95%/12 -> 0.005969166667 | EK47: 250000 | EL47: =VLOOKUP(Age,'SL_Revised Mar 2021'!$A$3:$G$103,6,0) -> 0.0754 | EM47: =EL47*97%/2 -> 0.036569 | EN47: =EL47*96%/4 -> 0.018096 | EO47: =EL47*95%/12 -> 0.005969166667
B48: Regd. Off : 2nd Floor, Plot # C- 12, G- Block, BKC, Bandra (E) , Mumbai – 400051 | AL48: 500000 | AM48: =AM47*1.0063 -> 0.07587502 | AN48: =AM48*97%/2 -> 0.0367993847 | AO48: =AM48*96%/4 -> 0.0182100048 | AP48: =AM48*95%/12 -> 0.006006772417 | BN48: 500000 | BO48: =BO47*1.0063 -> 0.07587502 | BP48: =BO48*97%/2 -> 0.0367993847 | BQ48: =BO48*96%/4 -> 0.0182100048 | BR48: =BO48*95%/12 -> 0.006006772417 | CM48: 500000 | CN48: =CN47*1.0063 -> 0.07587502 | CO48: =CN48*97%/2 -> 0.0367993847 | CP48: =CN48*96%/4 -> 0.0182100048 | CQ48: =CN48*95%/12 -> 0.006006772417 | DL48: 500000 | DM48: =DM47*1.0063 -> 0.07587502 | DN48: =DM48*97%/2 -> 0.0367993847 | DO48: =DM48*96%/4 -> 0.0182100048 | DP48: =DM48*95%/12 -> 0.006006772417 | EK48: 500000 | EL48: =EL47*1.0063 -> 0.07587502 | EM48: =EL48*97%/2 -> 0.0367993847 | EN48: =EL48*96%/4 -> 0.0182100048 | EO48: =EL48*95%/12 -> 0.006006772417
B49: Regn. No: 107. Toll Free No.: 1800 209 8800. Website: http://insurance.kotak.com | AL49: 1000000 | AM49: =AM47*1.0188 -> 0.07681752 | AN49: =AM49*97%/2 -> 0.0372564972 | AO49: =AM49*96%/4 -> 0.0184362048 | AP49: =AM49*95%/12 -> 0.006081387 | BN49: 1000000 | BO49: =BO47*1.0188 -> 0.07681752 | BP49: =BO49*97%/2 -> 0.0372564972 | BQ49: =BO49*96%/4 -> 0.0184362048 | BR49: =BO49*95%/12 -> 0.006081387 | CM49: 1000000 | CN49: =CN47*1.0188 -> 0.07681752 | CO49: =CN49*97%/2 -> 0.0372564972 | CP49: =CN49*96%/4 -> 0.0184362048 | CQ49: =CN49*95%/12 -> 0.006081387 | DL49: 1000000 | DM49: =DM47*1.0188 -> 0.07681752 | DN49: =DM49*97%/2 -> 0.0372564972 | DO49: =DM49*96%/4 -> 0.0184362048 | DP49: =DM49*95%/12 -> 0.006081387 | EK49: 1000000 | EL49: =EL47*1.0188 -> 0.07681752 | EM49: =EL49*97%/2 -> 0.0372564972 | EN49: =EL49*96%/4 -> 0.0184362048 | EO49: =EL49*95%/12 -> 0.006081387
AL50: 5000000 | AM50: =AM47*1.025 -> 0.077285 | AN50: =AM50*97%/2 -> 0.037483225 | AO50: =AM50*96%/4 -> 0.0185484 | AP50: =AM50*95%/12 -> 0.006118395833 | BN50: 5000000 | BO50: =BO47*1.025 -> 0.077285 | BP50: =BO50*97%/2 -> 0.037483225 | BQ50: =BO50*96%/4 -> 0.0185484 | BR50: =BO50*95%/12 -> 0.006118395833 | CM50: 5000000 | CN50: =CN47*1.025 -> 0.077285 | CO50: =CN50*97%/2 -> 0.037483225 | CP50: =CN50*96%/4 -> 0.0185484 | CQ50: =CN50*95%/12 -> 0.006118395833 | DL50: 5000000 | DM50: =DM47*1.025 -> 0.077285 | DN50: =DM50*97%/2 -> 0.037483225 | DO50: =DM50*96%/4 -> 0.0185484 | DP50: =DM50*95%/12 -> 0.006118395833 | EK50: 5000000 | EL50: =EL47*1.025 -> 0.077285 | EM50: =EL50*97%/2 -> 0.037483225 | EN50: =EL50*96%/4 -> 0.0185484 | EO50: =EL50*95%/12 -> 0.006118395833
AL51: 5000,000+ | AM51: =AM47*1.03 -> 0.077662 | AN51: =AM51*97%/2 -> 0.03766607 | AO51: =AM51*96%/4 -> 0.01863888 | AP51: =AM51*95%/12 -> 0.006148241667 | BN51: 5000,000+ | BO51: =BO47*1.03 -> 0.077662 | BP51: =BO51*97%/2 -> 0.03766607 | BQ51: =BO51*96%/4 -> 0.01863888 | BR51: =BO51*95%/12 -> 0.006148241667 | CM51: 5000,000+ | CN51: =CN47*1.03 -> 0.077662 | CO51: =CN51*97%/2 -> 0.03766607 | CP51: =CN51*96%/4 -> 0.01863888 | CQ51: =CN51*95%/12 -> 0.006148241667 | DL51: 5000,000+ | DM51: =DM47*1.03 -> 0.077662 | DN51: =DM51*97%/2 -> 0.03766607 | DO51: =DM51*96%/4 -> 0.01863888 | DP51: =DM51*95%/12 -> 0.006148241667 | EK51: 5000,000+ | EL51: =EL47*1.03 -> 0.077662 | EM51: =EL51*97%/2 -> 0.03766607 | EN51: =EL51*96%/4 -> 0.01863888 | EO51: =EL51*95%/12 -> 0.006148241667
AL52: Annuity | AM52: =IF(SP<$AL47,AM47,IF(SP<$AL48,AM48,IF(SP<$AL49,AM49,IF(SP<$AL50,AM50,AM51))))*IF(OR($K$11="Existing Pension Plan policyholders of KLI",$K$11="Nominees of deceased KLI pension policyholder",$K$11="Members of Superannuation scheme",$K$11="New Group Customers",$K$11="Existing Group Customers"),101%,1) -> 0.0775856952 | AN52: =IF(SP<$AL47,AN47,IF(SP<$AL48,AN48,IF(SP<$AL49,AN49,IF(SP<$AL50,AN50,AN51))))*IF(OR($K$11="Existing Pension Plan policyholders of KLI",$K$11="Nominees of deceased KLI pension policyholder",$K$11="Members of Superannuation scheme",$K$11="New Group Customers",$K$11="Existing Group Customers"),101%,1) -> 0.03762906217 | AO52: =IF(SP<$AL47,AO47,IF(SP<$AL48,AO48,IF(SP<$AL49,AO49,IF(SP<$AL50,AO50,AO51))))*IF(OR($K$11="Existing Pension Plan policyholders of KLI",$K$11="Nominees of deceased KLI pension policyholder",$K$11="Members of Superannuation scheme",$K$11="New Group Customers",$K$11="Existing Group Customers"),101%,1) -> 0.01862056685 | AP52: =IF(SP<$AL47,AP47,IF(SP<$AL48,AP48,IF(SP<$AL49,AP49,IF(SP<$AL50,AP50,AP51))))*IF(OR($K$11="Existing Pension Plan policyholders of KLI",$K$11="Nominees of deceased KLI pension policyholder",$K$11="Members of Superannuation scheme",$K$11="New Group Customers",$K$11="Existing Group Customers"),101%,1) -> 0.00614220087 | BN52: Annuity | BO52: =IF(SP<$AL47,BO47,IF(SP<$AL48,BO48,IF(SP<$AL49,BO49,IF(SP<$AL50,BO50,BO51))))*IF(OR($K$11="Existing Pension Plan policyholders of KLI",$K$11="Nominees of deceased KLI pension policyholder",$K$11="Members of Superannuation scheme",$K$11="New Group Customers",$K$11="Existing Group Customers"),101%,1) -> 0.0775856952 | BP52: =IF(SP<$AL47,BP47,IF(SP<$AL48,BP48,IF(SP<$AL49,BP49,IF(SP<$AL50,BP50,BP51))))*IF(OR($K$11="Existing Pension Plan policyholders of KLI",$K$11="Nominees of deceased KLI pension policyholder",$K$11="Members of Superannuation scheme",$K$11="New Group Customers",$K$11="Existing Group Customers"),101%,1) -> 0.03762906217 | BQ52: =IF(SP<$AL47,BQ47,IF(SP<$AL48,BQ48,IF(SP<$AL49,BQ49,IF(SP<$AL50,BQ50,BQ51))))*IF(OR($K$11="Existing Pension Plan policyholders of KLI",$K$11="Nominees of deceased KLI pension policyholder",$K$11="Members of Superannuation scheme",$K$11="New Group Customers",$K$11="Existing Group Customers"),101%,1) -> 0.01862056685 | BR52: =IF(SP<$AL47,BR47,IF(SP<$AL48,BR48,IF(SP<$AL49,BR49,IF(SP<$AL50,BR50,BR51))))*IF(OR($K$11="Existing Pension Plan policyholders of KLI",$K$11="Nominees of deceased KLI pension policyholder",$K$11="Members of Superannuation scheme",$K$11="New Group Customers",$K$11="Existing Group Customers"),101%,1) -> 0.00614220087 | CM52: Annuity | CN52: =IF(SP<$AL47,CN47,IF(SP<$AL48,CN48,IF(SP<$AL49,CN49,IF(SP<$AL50,CN50,CN51))))*IF(OR($K$11="Existing Pension Plan policyholders of KLI",$K$11="Nominees of deceased KLI pension policyholder",$K$11="Members of Superannuation scheme",$K$11="New Group Customers",$K$11="Existing Group Customers"),101%,1) -> 0.0775856952 | CO52: =IF(SP<$AL47,CO47,IF(SP<$AL48,CO48,IF(SP<$AL49,CO49,IF(SP<$AL50,CO50,CO51))))*IF(OR($K$11="Existing Pension Plan policyholders of KLI",$K$11="Nominees of deceased KLI pension policyholder",$K$11="Members of Superannuation scheme",$K$11="New Group Customers",$K$11="Existing Group Customers"),101%,1) -> 0.03762906217 | CP52: =IF(SP<$AL47,CP47,IF(SP<$AL48,CP48,IF(SP<$AL49,CP49,IF(SP<$AL50,CP50,CP51))))*IF(OR($K$11="Existing Pension Plan policyholders of KLI",$K$11="Nominees of deceased KLI pension policyholder",$K$11="Members of Superannuation scheme",$K$11="New Group Customers",$K$11="Existing Group Customers"),101%,1) -> 0.01862056685 | CQ52: =IF(SP<$AL47,CQ47,IF(SP<$AL48,CQ48,IF(SP<$AL49,CQ49,IF(SP<$AL50,CQ50,CQ51))))*IF(OR($K$11="Existing Pension Plan policyholders of KLI",$K$11="Nominees of deceased KLI pension policyholder",$K$11="Members of Superannuation scheme",$K$11="New Group Customers",$K$11="Existing Group Customers"),101%,1) -> 0.00614220087 | DL52: Annuity | DM52: =IF(SP<$AL47,DM47,IF(SP<$AL48,DM48,IF(SP<$AL49,DM49,IF(SP<$AL50,DM50,DM51))))*IF(OR($K$11="Existing Pension Plan policyholders of KLI",$K$11="Nominees of deceased KLI pension policyholder",$K$11="Members of Superannuation scheme",$K$11="New Group Customers",$K$11="Existing Group Customers"),101%,1) -> 0.0775856952 | DN52: =IF(SP<$AL47,DN47,IF(SP<$AL48,DN48,IF(SP<$AL49,DN49,IF(SP<$AL50,DN50,DN51))))*IF(OR($K$11="Existing Pension Plan policyholders of KLI",$K$11="Nominees of deceased KLI pension policyholder",$K$11="Members of Superannuation scheme",$K$11="New Group Customers",$K$11="Existing Group Customers"),101%,1) -> 0.03762906217 | DO52: =IF(SP<$AL47,DO47,IF(SP<$AL48,DO48,IF(SP<$AL49,DO49,IF(SP<$AL50,DO50,DO51))))*IF(OR($K$11="Existing Pension Plan policyholders of KLI",$K$11="Nominees of deceased KLI pension policyholder",$K$11="Members of Superannuation scheme",$K$11="New Group Customers",$K$11="Existing Group Customers"),101%,1) -> 0.01862056685 | DP52: =IF(SP<$AL47,DP47,IF(SP<$AL48,DP48,IF(SP<$AL49,DP49,IF(SP<$AL50,DP50,DP51))))*IF(OR($K$11="Existing Pension Plan policyholders of KLI",$K$11="Nominees of deceased KLI pension policyholder",$K$11="Members of Superannuation scheme",$K$11="New Group Customers",$K$11="Existing Group Customers"),101%,1) -> 0.00614220087 | EK52: Annuity | EL52: =IF(SP<$AL47,EL47,IF(SP<$AL48,EL48,IF(SP<$AL49,EL49,IF(SP<$AL50,EL50,EL51))))*IF(OR($K$11="Existing Pension Plan policyholders of KLI",$K$11="Nominees of deceased KLI pension policyholder",$K$11="Members of Superannuation scheme",$K$11="New Group Customers",$K$11="Existing Group Customers"),101%,1) -> 0.0775856952 | EM52: =IF(SP<$AL47,EM47,IF(SP<$AL48,EM48,IF(SP<$AL49,EM49,IF(SP<$AL50,EM50,EM51))))*IF(OR($K$11="Existing Pension Plan policyholders of KLI",$K$11="Nominees of deceased KLI pension policyholder",$K$11="Members of Superannuation scheme",$K$11="New Group Customers",$K$11="Existing Group Customers"),101%,1) -> 0.03762906217 | EN52: =IF(SP<$AL47,EN47,IF(SP<$AL48,EN48,IF(SP<$AL49,EN49,IF(SP<$AL50,EN50,EN51))))*IF(OR($K$11="Existing Pension Plan policyholders of KLI",$K$11="Nominees of deceased KLI pension policyholder",$K$11="Members of Superannuation scheme",$K$11="New Group Customers",$K$11="Existing Group Customers"),101%,1) -> 0.01862056685 | EO52: =IF(SP<$AL47,EO47,IF(SP<$AL48,EO48,IF(SP<$AL49,EO49,IF(SP<$AL50,EO50,EO51))))*IF(OR($K$11="Existing Pension Plan policyholders of KLI",$K$11="Nominees of deceased KLI pension policyholder",$K$11="Members of Superannuation scheme",$K$11="New Group Customers",$K$11="Existing Group Customers"),101%,1) -> 0.00614220087
AL55: Lifetime Income with Term Guarantee of 20 Years Option Calculation | BN55: Lifetime Income with Term Guarantee of 20 Years Option Calculation | CM55: Lifetime Income with Term Guarantee of 20 Years Option Calculation | DL55: Lifetime Income with Term Guarantee of 20 Years Option Calculation | EK55: Lifetime Income with Term Guarantee of 20 Years Option Calculation
AL56: Single Premium Bands | AM56: Frequency of Payment | BN56: Single Premium Bands | BO56: Frequency of Payment | CM56: Single Premium Bands | CN56: Frequency of Payment | DL56: Single Premium Bands | DM56: Frequency of Payment | EK56: Single Premium Bands | EL56: Frequency of Payment
AM57: ann | AN57: hlf | AO57: qrt | AP57: mth | BO57: ann | BP57: hlf | BQ57: qrt | BR57: mth | CN57: ann | CO57: hlf | CP57: qrt | CQ57: mth | DM57: ann | DN57: hlf | DO57: qrt | DP57: mth | EL57: ann | EM57: hlf | EN57: qrt | EO57: mth
AL58: 250000 | AM58: =VLOOKUP(Age,'SL_Revised Mar 2021'!$A$3:$G$103,7,0) -> 0.0735 | AN58: =AM58*97%/2 -> 0.0356475 | AO58: =AM58*96%/4 -> 0.01764 | AP58: =AM58*95%/12 -> 0.00581875 | BN58: 250000 | BO58: =VLOOKUP(Age,'SL_Revised Mar 2021'!$A$3:$G$103,7,0) -> 0.0735 | BP58: =BO58*97%/2 -> 0.0356475 | BQ58: =BO58*96%/4 -> 0.01764 | BR58: =BO58*95%/12 -> 0.00581875 | CM58: 250000 | CN58: =VLOOKUP(Age,'SL_Revised Mar 2021'!$A$3:$G$103,7,0) -> 0.0735 | CO58: =CN58*97%/2 -> 0.0356475 | CP58: =CN58*96%/4 -> 0.01764 | CQ58: =CN58*95%/12 -> 0.00581875 | DL58: 250000 | DM58: =VLOOKUP(Age,'SL_Revised Mar 2021'!$A$3:$G$103,7,0) -> 0.0735 | DN58: =DM58*97%/2 -> 0.0356475 | DO58: =DM58*96%/4 -> 0.01764 | DP58: =DM58*95%/12 -> 0.00581875 | EK58: 250000 | EL58: =VLOOKUP(Age,'SL_Revised Mar 2021'!$A$3:$G$103,7,0) -> 0.0735 | EM58: =EL58*97%/2 -> 0.0356475 | EN58: =EL58*96%/4 -> 0.01764 | EO58: =EL58*95%/12 -> 0.00581875
AL59: 500000 | AM59: =AM58*1.0063 -> 0.07396305 | AN59: =AM59*97%/2 -> 0.03587207925 | AO59: =AM59*96%/4 -> 0.017751132 | AP59: =AM59*95%/12 -> 0.005855408125 | BN59: 500000 | BO59: =BO58*1.0063 -> 0.07396305 | BP59: =BO59*97%/2 -> 0.03587207925 | BQ59: =BO59*96%/4 -> 0.017751132 | BR59: =BO59*95%/12 -> 0.005855408125 | CM59: 500000 | CN59: =CN58*1.0063 -> 0.07396305 | CO59: =CN59*97%/2 -> 0.03587207925 | CP59: =CN59*96%/4 -> 0.017751132 | CQ59: =CN59*95%/12 -> 0.005855408125 | DL59: 500000 | DM59: =DM58*1.0063 -> 0.07396305 | DN59: =DM59*97%/2 -> 0.03587207925 | DO59: =DM59*96%/4 -> 0.017751132 | DP59: =DM59*95%/12 -> 0.005855408125 | EK59: 500000 | EL59: =EL58*1.0063 -> 0.07396305 | EM59: =EL59*97%/2 -> 0.03587207925 | EN59: =EL59*96%/4 -> 0.017751132 | EO59: =EL59*95%/12 -> 0.005855408125
AL60: 1000000 | AM60: =AM58*1.0188 -> 0.0748818 | AN60: =AM60*97%/2 -> 0.036317673 | AO60: =AM60*96%/4 -> 0.017971632 | AP60: =AM60*95%/12 -> 0.0059281425 | BN60: 1000000 | BO60: =BO58*1.0188 -> 0.0748818 | BP60: =BO60*97%/2 -> 0.036317673 | BQ60: =BO60*96%/4 -> 0.017971632 | BR60: =BO60*95%/12 -> 0.0059281425 | CM60: 1000000 | CN60: =CN58*1.0188 -> 0.0748818 | CO60: =CN60*97%/2 -> 0.036317673 | CP60: =CN60*96%/4 -> 0.017971632 | CQ60: =CN60*95%/12 -> 0.0059281425 | DL60: 1000000 | DM60: =DM58*1.0188 -> 0.0748818 | DN60: =DM60*97%/2 -> 0.036317673 | DO60: =DM60*96%/4 -> 0.017971632 | DP60: =DM60*95%/12 -> 0.0059281425 | EK60: 1000000 | EL60: =EL58*1.0188 -> 0.0748818 | EM60: =EL60*97%/2 -> 0.036317673 | EN60: =EL60*96%/4 -> 0.017971632 | EO60: =EL60*95%/12 -> 0.0059281425
AL61: 5000000 | AM61: =AM58*1.025 -> 0.0753375 | AN61: =AM61*97%/2 -> 0.0365386875 | AO61: =AM61*96%/4 -> 0.018081 | AP61: =AM61*95%/12 -> 0.00596421875 | BN61: 5000000 | BO61: =BO58*1.025 -> 0.0753375 | BP61: =BO61*97%/2 -> 0.0365386875 | BQ61: =BO61*96%/4 -> 0.018081 | BR61: =BO61*95%/12 -> 0.00596421875 | CM61: 5000000 | CN61: =CN58*1.025 -> 0.0753375 | CO61: =CN61*97%/2 -> 0.0365386875 | CP61: =CN61*96%/4 -> 0.018081 | CQ61: =CN61*95%/12 -> 0.00596421875 | DL61: 5000000 | DM61: =DM58*1.025 -> 0.0753375 | DN61: =DM61*97%/2 -> 0.0365386875 | DO61: =DM61*96%/4 -> 0.018081 | DP61: =DM61*95%/12 -> 0.00596421875 | EK61: 5000000 | EL61: =EL58*1.025 -> 0.0753375 | EM61: =EL61*97%/2 -> 0.0365386875 | EN61: =EL61*96%/4 -> 0.018081 | EO61: =EL61*95%/12 -> 0.00596421875
AL62: 50,00,000+ | AM62: =AM58*1.03 -> 0.075705 | AN62: =AM62*97%/2 -> 0.036716925 | AO62: =AM62*96%/4 -> 0.0181692 | AP62: =AM62*95%/12 -> 0.0059933125 | BN62: 50,00,000+ | BO62: =BO58*1.03 -> 0.075705 | BP62: =BO62*97%/2 -> 0.036716925 | BQ62: =BO62*96%/4 -> 0.0181692 | BR62: =BO62*95%/12 -> 0.0059933125 | CM62: 50,00,000+ | CN62: =CN58*1.03 -> 0.075705 | CO62: =CN62*97%/2 -> 0.036716925 | CP62: =CN62*96%/4 -> 0.0181692 | CQ62: =CN62*95%/12 -> 0.0059933125 | DL62: 50,00,000+ | DM62: =DM58*1.03 -> 0.075705 | DN62: =DM62*97%/2 -> 0.036716925 | DO62: =DM62*96%/4 -> 0.0181692 | DP62: =DM62*95%/12 -> 0.0059933125 | EK62: 50,00,000+ | EL62: =EL58*1.03 -> 0.075705 | EM62: =EL62*97%/2 -> 0.036716925 | EN62: =EL62*96%/4 -> 0.0181692 | EO62: =EL62*95%/12 -> 0.0059933125
AL63: Annuity | AM63: =IF(SP<$AL58,AM58,IF(SP<$AL59,AM59,IF(SP<$AL60,AM60,IF(SP<$AL61,AM61,AM62))))*IF(OR($K$11="Existing Pension Plan policyholders of KLI",$K$11="Nominees of deceased KLI pension policyholder",$K$11="Members of Superannuation scheme",$K$11="New Group Customers",$K$11="Existing Group Customers"),101%,1) -> 0.075630618 | AN63: =IF(SP<$AL58,AN58,IF(SP<$AL59,AN59,IF(SP<$AL60,AN60,IF(SP<$AL61,AN61,AN62))))*IF(OR($K$11="Existing Pension Plan policyholders of KLI",$K$11="Nominees of deceased KLI pension policyholder",$K$11="Members of Superannuation scheme",$K$11="New Group Customers",$K$11="Existing Group Customers"),101%,1) -> 0.03668084973 | AO63: =IF(SP<$AL58,AO58,IF(SP<$AL59,AO59,IF(SP<$AL60,AO60,IF(SP<$AL61,AO61,AO62))))*IF(OR($K$11="Existing Pension Plan policyholders of KLI",$K$11="Nominees of deceased KLI pension policyholder",$K$11="Members of Superannuation scheme",$K$11="New Group Customers",$K$11="Existing Group Customers"),101%,1) -> 0.01815134832 | AP63: =IF(SP<$AL58,AP58,IF(SP<$AL59,AP59,IF(SP<$AL60,AP60,IF(SP<$AL61,AP61,AP62))))*IF(OR($K$11="Existing Pension Plan policyholders of KLI",$K$11="Nominees of deceased KLI pension policyholder",$K$11="Members of Superannuation scheme",$K$11="New Group Customers",$K$11="Existing Group Customers"),101%,1) -> 0.005987423925 | BN63: Annuity | BO63: =IF(SP<$AL58,BO58,IF(SP<$AL59,BO59,IF(SP<$AL60,BO60,IF(SP<$AL61,BO61,BO62))))*IF(OR($K$11="Existing Pension Plan policyholders of KLI",$K$11="Nominees of deceased KLI pension policyholder",$K$11="Members of Superannuation scheme",$K$11="New Group Customers",$K$11="Existing Group Customers"),101%,1) -> 0.075630618 | BP63: =IF(SP<$AL58,BP58,IF(SP<$AL59,BP59,IF(SP<$AL60,BP60,IF(SP<$AL61,BP61,BP62))))*IF(OR($K$11="Existing Pension Plan policyholders of KLI",$K$11="Nominees of deceased KLI pension policyholder",$K$11="Members of Superannuation scheme",$K$11="New Group Customers",$K$11="Existing Group Customers"),101%,1) -> 0.03668084973 | BQ63: =IF(SP<$AL58,BQ58,IF(SP<$AL59,BQ59,IF(SP<$AL60,BQ60,IF(SP<$AL61,BQ61,BQ62))))*IF(OR($K$11="Existing Pension Plan policyholders of KLI",$K$11="Nominees of deceased KLI pension policyholder",$K$11="Members of Superannuation scheme",$K$11="New Group Customers",$K$11="Existing Group Customers"),101%,1) -> 0.01815134832 | BR63: =IF(SP<$AL58,BR58,IF(SP<$AL59,BR59,IF(SP<$AL60,BR60,IF(SP<$AL61,BR61,BR62))))*IF(OR($K$11="Existing Pension Plan policyholders of KLI",$K$11="Nominees of deceased KLI pension policyholder",$K$11="Members of Superannuation scheme",$K$11="New Group Customers",$K$11="Existing Group Customers"),101%,1) -> 0.005987423925 | CM63: Annuity | CN63: =IF(SP<$AL58,CN58,IF(SP<$AL59,CN59,IF(SP<$AL60,CN60,IF(SP<$AL61,CN61,CN62))))*IF(OR($K$11="Existing Pension Plan policyholders of KLI",$K$11="Nominees of deceased KLI pension policyholder",$K$11="Members of Superannuation scheme",$K$11="New Group Customers",$K$11="Existing Group Customers"),101%,1) -> 0.075630618 | CO63: =IF(SP<$AL58,CO58,IF(SP<$AL59,CO59,IF(SP<$AL60,CO60,IF(SP<$AL61,CO61,CO62))))*IF(OR($K$11="Existing Pension Plan policyholders of KLI",$K$11="Nominees of deceased KLI pension policyholder",$K$11="Members of Superannuation scheme",$K$11="New Group Customers",$K$11="Existing Group Customers"),101%,1) -> 0.03668084973 | CP63: =IF(SP<$AL58,CP58,IF(SP<$AL59,CP59,IF(SP<$AL60,CP60,IF(SP<$AL61,CP61,CP62))))*IF(OR($K$11="Existing Pension Plan policyholders of KLI",$K$11="Nominees of deceased KLI pension policyholder",$K$11="Members of Superannuation scheme",$K$11="New Group Customers",$K$11="Existing Group Customers"),101%,1) -> 0.01815134832 | CQ63: =IF(SP<$AL58,CQ58,IF(SP<$AL59,CQ59,IF(SP<$AL60,CQ60,IF(SP<$AL61,CQ61,CQ62))))*IF(OR($K$11="Existing Pension Plan policyholders of KLI",$K$11="Nominees of deceased KLI pension policyholder",$K$11="Members of Superannuation scheme",$K$11="New Group Customers",$K$11="Existing Group Customers"),101%,1) -> 0.005987423925 | DL63: Annuity | DM63: =IF(SP<$AL58,DM58,IF(SP<$AL59,DM59,IF(SP<$AL60,DM60,IF(SP<$AL61,DM61,DM62))))*IF(OR($K$11="Existing Pension Plan policyholders of KLI",$K$11="Nominees of deceased KLI pension policyholder",$K$11="Members of Superannuation scheme",$K$11="New Group Customers",$K$11="Existing Group Customers"),101%,1) -> 0.075630618 | DN63: =IF(SP<$AL58,DN58,IF(SP<$AL59,DN59,IF(SP<$AL60,DN60,IF(SP<$AL61,DN61,DN62))))*IF(OR($K$11="Existing Pension Plan policyholders of KLI",$K$11="Nominees of deceased KLI pension policyholder",$K$11="Members of Superannuation scheme",$K$11="New Group Customers",$K$11="Existing Group Customers"),101%,1) -> 0.03668084973 | DO63: =IF(SP<$AL58,DO58,IF(SP<$AL59,DO59,IF(SP<$AL60,DO60,IF(SP<$AL61,DO61,DO62))))*IF(OR($K$11="Existing Pension Plan policyholders of KLI",$K$11="Nominees of deceased KLI pension policyholder",$K$11="Members of Superannuation scheme",$K$11="New Group Customers",$K$11="Existing Group Customers"),101%,1) -> 0.01815134832 | DP63: =IF(SP<$AL58,DP58,IF(SP<$AL59,DP59,IF(SP<$AL60,DP60,IF(SP<$AL61,DP61,DP62))))*IF(OR($K$11="Existing Pension Plan policyholders of KLI",$K$11="Nominees of deceased KLI pension policyholder",$K$11="Members of Superannuation scheme",$K$11="New Group Customers",$K$11="Existing Group Customers"),101%,1) -> 0.005987423925 | EK63: Annuity | EL63: =IF(SP<$AL58,EL58,IF(SP<$AL59,EL59,IF(SP<$AL60,EL60,IF(SP<$AL61,EL61,EL62))))*IF(OR($K$11="Existing Pension Plan policyholders of KLI",$K$11="Nominees of deceased KLI pension policyholder",$K$11="Members of Superannuation scheme",$K$11="New Group Customers",$K$11="Existing Group Customers"),101%,1) -> 0.075630618 | EM63: =IF(SP<$AL58,EM58,IF(SP<$AL59,EM59,IF(SP<$AL60,EM60,IF(SP<$AL61,EM61,EM62))))*IF(OR($K$11="Existing Pension Plan policyholders of KLI",$K$11="Nominees of deceased KLI pension policyholder",$K$11="Members of Superannuation scheme",$K$11="New Group Customers",$K$11="Existing Group Customers"),101%,1) -> 0.03668084973 | EN63: =IF(SP<$AL58,EN58,IF(SP<$AL59,EN59,IF(SP<$AL60,EN60,IF(SP<$AL61,EN61,EN62))))*IF(OR($K$11="Existing Pension Plan policyholders of KLI",$K$11="Nominees of deceased KLI pension policyholder",$K$11="Members of Superannuation scheme",$K$11="New Group Customers",$K$11="Existing Group Customers"),101%,1) -> 0.01815134832 | EO63: =IF(SP<$AL58,EO58,IF(SP<$AL59,EO59,IF(SP<$AL60,EO60,IF(SP<$AL61,EO61,EO62))))*IF(OR($K$11="Existing Pension Plan policyholders of KLI",$K$11="Nominees of deceased KLI pension policyholder",$K$11="Members of Superannuation scheme",$K$11="New Group Customers",$K$11="Existing Group Customers"),101%,1) -> 0.005987423925
AL66: Last survivor Lifetime Income with 100% annuity to Surviving SpouseN/A | BN66: Last survivor Lifetime Income with 100% annuity to Surviving SpouseN/A | CM66: Last survivor Lifetime Income with 100% annuity to Surviving SpouseN/A | DL66: Last survivor Lifetime Income with 100% annuity to Surviving SpouseN/A | EK66: Last survivor Lifetime Income with 100% annuity to Surviving SpouseN/A
AL67: Single Premium Bands | AM67: Frequency of Payment | BN67: Single Premium Bands | BO67: Frequency of Payment | CM67: Single Premium Bands | CN67: Frequency of Payment | DL67: Single Premium Bands | DM67: Frequency of Payment | EK67: Single Premium Bands | EL67: Frequency of Payment
AM68: ann | AN68: hlf | AO68: qrt | AP68: mth | BO68: ann | BP68: hlf | BQ68: qrt | BR68: mth | CN68: ann | CO68: hlf | CP68: qrt | CQ68: mth | DM68: ann | DN68: hlf | DO68: qrt | DP68: mth | EL68: ann | EM68: hlf | EN68: qrt | EO68: mth
AL69: 250000 | AM69: =IFERROR(IF(Age>_Age1,VLOOKUP(Age,'JL_Revised Mar 2021'!$A$4:$CE$85,_Age1-16,0),VLOOKUP(_Age1,'JL_Revised Mar 2021'!$A$4:$CE$85,Age-16,0)),0) -> 0.0674 | AN69: =AM69*97%/2 -> 0.032689 | AO69: =AM69*96%/4 -> 0.016176 | AP69: =AM69*95%/12 -> 0.005335833333 | BN69: 250000 | BO69: =IFERROR(IF(Age>_Age1,VLOOKUP(Age,'JL_Revised Mar 2021'!$A$4:$CE$85,_Age1-16,0),VLOOKUP(_Age1,'JL_Revised Mar 2021'!$A$4:$CE$85,Age-16,0)),0) -> 0.0674 | BP69: =BO69*97%/2 -> 0.032689 | BQ69: =BO69*96%/4 -> 0.016176 | BR69: =BO69*95%/12 -> 0.005335833333 | CM69: 250000 | CN69: =IFERROR(IF(Age>_Age1,VLOOKUP(Age,'JL_Revised Mar 2021'!$A$4:$CE$85,_Age1-16,0),VLOOKUP(_Age1,'JL_Revised Mar 2021'!$A$4:$CE$85,Age-16,0)),0) -> 0.0674 | CO69: =CN69*97%/2 -> 0.032689 | CP69: =CN69*96%/4 -> 0.016176 | CQ69: =CN69*95%/12 -> 0.005335833333 | DL69: 250000 | DM69: =IFERROR(IF(Age>_Age1,VLOOKUP(Age,'JL_Revised Mar 2021'!$A$4:$CE$85,_Age1-16,0),VLOOKUP(_Age1,'JL_Revised Mar 2021'!$A$4:$CE$85,Age-16,0)),0) -> 0.0674 | DN69: =DM69*97%/2 -> 0.032689 | DO69: =DM69*96%/4 -> 0.016176 | DP69: =DM69*95%/12 -> 0.005335833333 | EK69: 250000 | EL69: =IFERROR(IF(Age>_Age1,VLOOKUP(Age,'JL_Revised Mar 2021'!$A$4:$CE$85,_Age1-16,0),VLOOKUP(_Age1,'JL_Revised Mar 2021'!$A$4:$CE$85,Age-16,0)),0) -> 0.0674 | EM69: =EL69*97%/2 -> 0.032689 | EN69: =EL69*96%/4 -> 0.016176 | EO69: =EL69*95%/12 -> 0.005335833333
AL70: 500000 | AM70: =AM69*1.0063 -> 0.06782462 | AN70: =AM70*97%/2 -> 0.0328949407 | AO70: =AM70*96%/4 -> 0.0162779088 | AP70: =AM70*95%/12 -> 0.005369449083 | BN70: 500000 | BO70: =BO69*1.0063 -> 0.06782462 | BP70: =BO70*97%/2 -> 0.0328949407 | BQ70: =BO70*96%/4 -> 0.0162779088 | BR70: =BO70*95%/12 -> 0.005369449083 | CM70: 500000 | CN70: =CN69*1.0063 -> 0.06782462 | CO70: =CN70*97%/2 -> 0.0328949407 | CP70: =CN70*96%/4 -> 0.0162779088 | CQ70: =CN70*95%/12 -> 0.005369449083 | DL70: 500000 | DM70: =DM69*1.0063 -> 0.06782462 | DN70: =DM70*97%/2 -> 0.0328949407 | DO70: =DM70*96%/4 -> 0.0162779088 | DP70: =DM70*95%/12 -> 0.005369449083 | EK70: 500000 | EL70: =EL69*1.0063 -> 0.06782462 | EM70: =EL70*97%/2 -> 0.0328949407 | EN70: =EL70*96%/4 -> 0.0162779088 | EO70: =EL70*95%/12 -> 0.005369449083
AL71: 1000000 | AM71: =AM69*1.0188 -> 0.06866712 | AN71: =AM71*97%/2 -> 0.0333035532 | AO71: =AM71*96%/4 -> 0.0164801088 | AP71: =AM71*95%/12 -> 0.005436147 | BN71: 1000000 | BO71: =BO69*1.0188 -> 0.06866712 | BP71: =BO71*97%/2 -> 0.0333035532 | BQ71: =BO71*96%/4 -> 0.0164801088 | BR71: =BO71*95%/12 -> 0.005436147 | CM71: 1000000 | CN71: =CN69*1.0188 -> 0.06866712 | CO71: =CN71*97%/2 -> 0.0333035532 | CP71: =CN71*96%/4 -> 0.0164801088 | CQ71: =CN71*95%/12 -> 0.005436147 | DL71: 1000000 | DM71: =DM69*1.0188 -> 0.06866712 | DN71: =DM71*97%/2 -> 0.0333035532 | DO71: =DM71*96%/4 -> 0.0164801088 | DP71: =DM71*95%/12 -> 0.005436147 | EK71: 1000000 | EL71: =EL69*1.0188 -> 0.06866712 | EM71: =EL71*97%/2 -> 0.0333035532 | EN71: =EL71*96%/4 -> 0.0164801088 | EO71: =EL71*95%/12 -> 0.005436147
AL72: 5000000 | AM72: =AM69*1.025 -> 0.069085 | AN72: =AM72*97%/2 -> 0.033506225 | AO72: =AM72*96%/4 -> 0.0165804 | AP72: =AM72*95%/12 -> 0.005469229167 | BN72: 5000000 | BO72: =BO69*1.025 -> 0.069085 | BP72: =BO72*97%/2 -> 0.033506225 | BQ72: =BO72*96%/4 -> 0.0165804 | BR72: =BO72*95%/12 -> 0.005469229167 | CM72: 5000000 | CN72: =CN69*1.025 -> 0.069085 | CO72: =CN72*97%/2 -> 0.033506225 | CP72: =CN72*96%/4 -> 0.0165804 | CQ72: =CN72*95%/12 -> 0.005469229167 | DL72: 5000000 | DM72: =DM69*1.025 -> 0.069085 | DN72: =DM72*97%/2 -> 0.033506225 | DO72: =DM72*96%/4 -> 0.0165804 | DP72: =DM72*95%/12 -> 0.005469229167 | EK72: 5000000 | EL72: =EL69*1.025 -> 0.069085 | EM72: =EL72*97%/2 -> 0.033506225 | EN72: =EL72*96%/4 -> 0.0165804 | EO72: =EL72*95%/12 -> 0.005469229167
AL73: 5000,000+ | AM73: =AM69*1.03 -> 0.069422 | AN73: =AM73*97%/2 -> 0.03366967 | AO73: =AM73*96%/4 -> 0.01666128 | AP73: =AM73*95%/12 -> 0.005495908333 | BN73: 5000,000+ | BO73: =BO69*1.03 -> 0.069422 | BP73: =BO73*97%/2 -> 0.03366967 | BQ73: =BO73*96%/4 -> 0.01666128 | BR73: =BO73*95%/12 -> 0.005495908333 | CM73: 5000,000+ | CN73: =CN69*1.03 -> 0.069422 | CO73: =CN73*97%/2 -> 0.03366967 | CP73: =CN73*96%/4 -> 0.01666128 | CQ73: =CN73*95%/12 -> 0.005495908333 | DL73: 5000,000+ | DM73: =DM69*1.03 -> 0.069422 | DN73: =DM73*97%/2 -> 0.03366967 | DO73: =DM73*96%/4 -> 0.01666128 | DP73: =DM73*95%/12 -> 0.005495908333 | EK73: 5000,000+ | EL73: =EL69*1.03 -> 0.069422 | EM73: =EL73*97%/2 -> 0.03366967 | EN73: =EL73*96%/4 -> 0.01666128 | EO73: =EL73*95%/12 -> 0.005495908333
AL74: Annuity | AM74: =IF(SP<$AL69,AM69,IF(SP<$AL70,AM70,IF(SP<$AL71,AM71,IF(SP<$AL72,AM72,AM73))))*IF(OR($K$11="Existing Pension Plan policyholders of KLI",$K$11="Nominees of deceased KLI pension policyholder",$K$11="Members of Superannuation scheme",$K$11="New Group Customers",$K$11="Existing Group Customers"),101%,1) -> 0.0693537912 | AN74: =IF(SP<$AL69,AN69,IF(SP<$AL70,AN70,IF(SP<$AL71,AN71,IF(SP<$AL72,AN72,AN73))))*IF(OR($K$11="Existing Pension Plan policyholders of KLI",$K$11="Nominees of deceased KLI pension policyholder",$K$11="Members of Superannuation scheme",$K$11="New Group Customers",$K$11="Existing Group Customers"),101%,1) -> 0.03363658873 | AO74: =IF(SP<$AL69,AO69,IF(SP<$AL70,AO70,IF(SP<$AL71,AO71,IF(SP<$AL72,AO72,AO73))))*IF(OR($K$11="Existing Pension Plan policyholders of KLI",$K$11="Nominees of deceased KLI pension policyholder",$K$11="Members of Superannuation scheme",$K$11="New Group Customers",$K$11="Existing Group Customers"),101%,1) -> 0.01664490989 | AP74: =IF(SP<$AL69,AP69,IF(SP<$AL70,AP70,IF(SP<$AL71,AP71,IF(SP<$AL72,AP72,AP73))))*IF(OR($K$11="Existing Pension Plan policyholders of KLI",$K$11="Nominees of deceased KLI pension policyholder",$K$11="Members of Superannuation scheme",$K$11="New Group Customers",$K$11="Existing Group Customers"),101%,1) -> 0.00549050847 | BN74: Annuity | BO74: =IF(SP<$AL69,BO69,IF(SP<$AL70,BO70,IF(SP<$AL71,BO71,IF(SP<$AL72,BO72,BO73))))*IF(OR($K$11="Existing Pension Plan policyholders of KLI",$K$11="Nominees of deceased KLI pension policyholder",$K$11="Members of Superannuation scheme",$K$11="New Group Customers",$K$11="Existing Group Customers"),101%,1) -> 0.0693537912 | BP74: =IF(SP<$AL69,BP69,IF(SP<$AL70,BP70,IF(SP<$AL71,BP71,IF(SP<$AL72,BP72,BP73))))*IF(OR($K$11="Existing Pension Plan policyholders of KLI",$K$11="Nominees of deceased KLI pension policyholder",$K$11="Members of Superannuation scheme",$K$11="New Group Customers",$K$11="Existing Group Customers"),101%,1) -> 0.03363658873 | BQ74: =IF(SP<$AL69,BQ69,IF(SP<$AL70,BQ70,IF(SP<$AL71,BQ71,IF(SP<$AL72,BQ72,BQ73))))*IF(OR($K$11="Existing Pension Plan policyholders of KLI",$K$11="Nominees of deceased KLI pension policyholder",$K$11="Members of Superannuation scheme",$K$11="New Group Customers",$K$11="Existing Group Customers"),101%,1) -> 0.01664490989 | BR74: =IF(SP<$AL69,BR69,IF(SP<$AL70,BR70,IF(SP<$AL71,BR71,IF(SP<$AL72,BR72,BR73))))*IF(OR($K$11="Existing Pension Plan policyholders of KLI",$K$11="Nominees of deceased KLI pension policyholder",$K$11="Members of Superannuation scheme",$K$11="New Group Customers",$K$11="Existing Group Customers"),101%,1) -> 0.00549050847 | CM74: Annuity | CN74: =IF(SP<$AL69,CN69,IF(SP<$AL70,CN70,IF(SP<$AL71,CN71,IF(SP<$AL72,CN72,CN73))))*IF(OR($K$11="Existing Pension Plan policyholders of KLI",$K$11="Nominees of deceased KLI pension policyholder",$K$11="Members of Superannuation scheme",$K$11="New Group Customers",$K$11="Existing Group Customers"),101%,1) -> 0.0693537912 | CO74: =IF(SP<$AL69,CO69,IF(SP<$AL70,CO70,IF(SP<$AL71,CO71,IF(SP<$AL72,CO72,CO73))))*IF(OR($K$11="Existing Pension Plan policyholders of KLI",$K$11="Nominees of deceased KLI pension policyholder",$K$11="Members of Superannuation scheme",$K$11="New Group Customers",$K$11="Existing Group Customers"),101%,1) -> 0.03363658873 | CP74: =IF(SP<$AL69,CP69,IF(SP<$AL70,CP70,IF(SP<$AL71,CP71,IF(SP<$AL72,CP72,CP73))))*IF(OR($K$11="Existing Pension Plan policyholders of KLI",$K$11="Nominees of deceased KLI pension policyholder",$K$11="Members of Superannuation scheme",$K$11="New Group Customers",$K$11="Existing Group Customers"),101%,1) -> 0.01664490989 | CQ74: =IF(SP<$AL69,CQ69,IF(SP<$AL70,CQ70,IF(SP<$AL71,CQ71,IF(SP<$AL72,CQ72,CQ73))))*IF(OR($K$11="Existing Pension Plan policyholders of KLI",$K$11="Nominees of deceased KLI pension policyholder",$K$11="Members of Superannuation scheme",$K$11="New Group Customers",$K$11="Existing Group Customers"),101%,1) -> 0.00549050847 | DL74: Annuity | DM74: =IF(SP<$AL69,DM69,IF(SP<$AL70,DM70,IF(SP<$AL71,DM71,IF(SP<$AL72,DM72,DM73))))*IF(OR($K$11="Existing Pension Plan policyholders of KLI",$K$11="Nominees of deceased KLI pension policyholder",$K$11="Members of Superannuation scheme",$K$11="New Group Customers",$K$11="Existing Group Customers"),101%,1) -> 0.0693537912 | DN74: =IF(SP<$AL69,DN69,IF(SP<$AL70,DN70,IF(SP<$AL71,DN71,IF(SP<$AL72,DN72,DN73))))*IF(OR($K$11="Existing Pension Plan policyholders of KLI",$K$11="Nominees of deceased KLI pension policyholder",$K$11="Members of Superannuation scheme",$K$11="New Group Customers",$K$11="Existing Group Customers"),101%,1) -> 0.03363658873 | DO74: =IF(SP<$AL69,DO69,IF(SP<$AL70,DO70,IF(SP<$AL71,DO71,IF(SP<$AL72,DO72,DO73))))*IF(OR($K$11="Existing Pension Plan policyholders of KLI",$K$11="Nominees of deceased KLI pension policyholder",$K$11="Members of Superannuation scheme",$K$11="New Group Customers",$K$11="Existing Group Customers"),101%,1) -> 0.01664490989 | DP74: =IF(SP<$AL69,DP69,IF(SP<$AL70,DP70,IF(SP<$AL71,DP71,IF(SP<$AL72,DP72,DP73))))*IF(OR($K$11="Existing Pension Plan policyholders of KLI",$K$11="Nominees of deceased KLI pension policyholder",$K$11="Members of Superannuation scheme",$K$11="New Group Customers",$K$11="Existing Group Customers"),101%,1) -> 0.00549050847 | EK74: Annuity | EL74: =IF(SP<$AL69,EL69,IF(SP<$AL70,EL70,IF(SP<$AL71,EL71,IF(SP<$AL72,EL72,EL73))))*IF(OR($K$11="Existing Pension Plan policyholders of KLI",$K$11="Nominees of deceased KLI pension policyholder",$K$11="Members of Superannuation scheme",$K$11="New Group Customers",$K$11="Existing Group Customers"),101%,1) -> 0.0693537912 | EM74: =IF(SP<$AL69,EM69,IF(SP<$AL70,EM70,IF(SP<$AL71,EM71,IF(SP<$AL72,EM72,EM73))))*IF(OR($K$11="Existing Pension Plan policyholders of KLI",$K$11="Nominees of deceased KLI pension policyholder",$K$11="Members of Superannuation scheme",$K$11="New Group Customers",$K$11="Existing Group Customers"),101%,1) -> 0.03363658873 | EN74: =IF(SP<$AL69,EN69,IF(SP<$AL70,EN70,IF(SP<$AL71,EN71,IF(SP<$AL72,EN72,EN73))))*IF(OR($K$11="Existing Pension Plan policyholders of KLI",$K$11="Nominees of deceased KLI pension policyholder",$K$11="Members of Superannuation scheme",$K$11="New Group Customers",$K$11="Existing Group Customers"),101%,1) -> 0.01664490989 | EO74: =IF(SP<$AL69,EO69,IF(SP<$AL70,EO70,IF(SP<$AL71,EO71,IF(SP<$AL72,EO72,EO73))))*IF(OR($K$11="Existing Pension Plan policyholders of KLI",$K$11="Nominees of deceased KLI pension policyholder",$K$11="Members of Superannuation scheme",$K$11="New Group Customers",$K$11="Existing Group Customers"),101%,1) -> 0.00549050847
AL77: Last survivor Lifetime Income with 50% annuity to Surviving SpouseN/A | BN77: Last survivor Lifetime Income with 50% annuity to Surviving SpouseN/A | CM77: Last survivor Lifetime Income with 50% annuity to Surviving SpouseN/A | DL77: Last survivor Lifetime Income with 50% annuity to Surviving SpouseN/A | EK77: Last survivor Lifetime Income with 50% annuity to Surviving SpouseN/A
AL78: Single Premium Bands | AM78: Frequency of Payment | BN78: Single Premium Bands | BO78: Frequency of Payment | CM78: Single Premium Bands | CN78: Frequency of Payment | DL78: Single Premium Bands | DM78: Frequency of Payment | EK78: Single Premium Bands | EL78: Frequency of Payment
AM79: ann | AN79: hlf | AO79: qrt | AP79: mth | BO79: ann | BP79: hlf | BQ79: qrt | BR79: mth | CN79: ann | CO79: hlf | CP79: qrt | CQ79: mth | DM79: ann | DN79: hlf | DO79: qrt | DP79: mth | EL79: ann | EM79: hlf | EN79: qrt | EO79: mth
AL80: 250000 | AM80: =IFERROR(VLOOKUP(Age,'JL_50%_Revised Mar 2021'!$C$4:$CG$85,_Age1-16,0),0) -> 0.0724 | AN80: =AM80*97%/2 -> 0.035114 | AO80: =AM80*96%/4 -> 0.017376 | AP80: =AM80*95%/12 -> 0.005731666667 | BN80: 250000 | BO80: =IFERROR(VLOOKUP(Age,'JL_50%_Revised Mar 2021'!$C$4:$CG$85,_Age1-16,0),0) -> 0.0724 | BP80: =BO80*97%/2 -> 0.035114 | BQ80: =BO80*96%/4 -> 0.017376 | BR80: =BO80*95%/12 -> 0.005731666667 | CM80: 250000 | CN80: =IFERROR(VLOOKUP(Age,'JL_50%_Revised Mar 2021'!$C$4:$CG$85,_Age1-16,0),0) -> 0.0724 | CO80: =CN80*97%/2 -> 0.035114 | CP80: =CN80*96%/4 -> 0.017376 | CQ80: =CN80*95%/12 -> 0.005731666667 | DL80: 250000 | DM80: =IFERROR(VLOOKUP(Age,'JL_50%_Revised Mar 2021'!$C$4:$CG$85,_Age1-16,0),0) -> 0.0724 | DN80: =DM80*97%/2 -> 0.035114 | DO80: =DM80*96%/4 -> 0.017376 | DP80: =DM80*95%/12 -> 0.005731666667 | EK80: 250000 | EL80: =IFERROR(VLOOKUP(Age,'JL_50%_Revised Mar 2021'!$C$4:$CG$85,_Age1-16,0),0) -> 0.0724 | EM80: =EL80*97%/2 -> 0.035114 | EN80: =EL80*96%/4 -> 0.017376 | EO80: =EL80*95%/12 -> 0.005731666667
AL81: 500000 | AM81: =AM80*1.0063 -> 0.07285612 | AN81: =AM81*97%/2 -> 0.0353352182 | AO81: =AM81*96%/4 -> 0.0174854688 | AP81: =AM81*95%/12 -> 0.005767776167 | BN81: 500000 | BO81: =BO80*1.0063 -> 0.07285612 | BP81: =BO81*97%/2 -> 0.0353352182 | BQ81: =BO81*96%/4 -> 0.0174854688 | BR81: =BO81*95%/12 -> 0.005767776167 | CM81: 500000 | CN81: =CN80*1.0063 -> 0.07285612 | CO81: =CN81*97%/2 -> 0.0353352182 | CP81: =CN81*96%/4 -> 0.0174854688 | CQ81: =CN81*95%/12 -> 0.005767776167 | DL81: 500000 | DM81: =DM80*1.0063 -> 0.07285612 | DN81: =DM81*97%/2 -> 0.0353352182 | DO81: =DM81*96%/4 -> 0.0174854688 | DP81: =DM81*95%/12 -> 0.005767776167 | EK81: 500000 | EL81: =EL80*1.0063 -> 0.07285612 | EM81: =EL81*97%/2 -> 0.0353352182 | EN81: =EL81*96%/4 -> 0.0174854688 | EO81: =EL81*95%/12 -> 0.005767776167
AL82: 1000000 | AM82: =AM80*1.0188 -> 0.07376112 | AN82: =AM82*97%/2 -> 0.0357741432 | AO82: =AM82*96%/4 -> 0.0177026688 | AP82: =AM82*95%/12 -> 0.005839422 | BN82: 1000000 | BO82: =BO80*1.0188 -> 0.07376112 | BP82: =BO82*97%/2 -> 0.0357741432 | BQ82: =BO82*96%/4 -> 0.0177026688 | BR82: =BO82*95%/12 -> 0.005839422 | CM82: 1000000 | CN82: =CN80*1.0188 -> 0.07376112 | CO82: =CN82*97%/2 -> 0.0357741432 | CP82: =CN82*96%/4 -> 0.0177026688 | CQ82: =CN82*95%/12 -> 0.005839422 | DL82: 1000000 | DM82: =DM80*1.0188 -> 0.07376112 | DN82: =DM82*97%/2 -> 0.0357741432 | DO82: =DM82*96%/4 -> 0.0177026688 | DP82: =DM82*95%/12 -> 0.005839422 | EK82: 1000000 | EL82: =EL80*1.0188 -> 0.07376112 | EM82: =EL82*97%/2 -> 0.0357741432 | EN82: =EL82*96%/4 -> 0.0177026688 | EO82: =EL82*95%/12 -> 0.005839422
AL83: 5000000 | AM83: =AM80*1.025 -> 0.07421 | AN83: =AM83*97%/2 -> 0.03599185 | AO83: =AM83*96%/4 -> 0.0178104 | AP83: =AM83*95%/12 -> 0.005874958333 | BN83: 5000000 | BO83: =BO80*1.025 -> 0.07421 | BP83: =BO83*97%/2 -> 0.03599185 | BQ83: =BO83*96%/4 -> 0.0178104 | BR83: =BO83*95%/12 -> 0.005874958333 | CM83: 5000000 | CN83: =CN80*1.025 -> 0.07421 | CO83: =CN83*97%/2 -> 0.03599185 | CP83: =CN83*96%/4 -> 0.0178104 | CQ83: =CN83*95%/12 -> 0.005874958333 | DL83: 5000000 | DM83: =DM80*1.025 -> 0.07421 | DN83: =DM83*97%/2 -> 0.03599185 | DO83: =DM83*96%/4 -> 0.0178104 | DP83: =DM83*95%/12 -> 0.005874958333 | EK83: 5000000 | EL83: =EL80*1.025 -> 0.07421 | EM83: =EL83*97%/2 -> 0.03599185 | EN83: =EL83*96%/4 -> 0.0178104 | EO83: =EL83*95%/12 -> 0.005874958333
AL84: 5000,000+ | AM84: =AM80*1.03 -> 0.074572 | AN84: =AM84*97%/2 -> 0.03616742 | AO84: =AM84*96%/4 -> 0.01789728 | AP84: =AM84*95%/12 -> 0.005903616667 | BN84: 5000,000+ | BO84: =BO80*1.03 -> 0.074572 | BP84: =BO84*97%/2 -> 0.03616742 | BQ84: =BO84*96%/4 -> 0.01789728 | BR84: =BO84*95%/12 -> 0.005903616667 | CM84: 5000,000+ | CN84: =CN80*1.03 -> 0.074572 | CO84: =CN84*97%/2 -> 0.03616742 | CP84: =CN84*96%/4 -> 0.01789728 | CQ84: =CN84*95%/12 -> 0.005903616667 | DL84: 5000,000+ | DM84: =DM80*1.03 -> 0.074572 | DN84: =DM84*97%/2 -> 0.03616742 | DO84: =DM84*96%/4 -> 0.01789728 | DP84: =DM84*95%/12 -> 0.005903616667 | EK84: 5000,000+ | EL84: =EL80*1.03 -> 0.074572 | EM84: =EL84*97%/2 -> 0.03616742 | EN84: =EL84*96%/4 -> 0.01789728 | EO84: =EL84*95%/12 -> 0.005903616667
AL85: Annuity | AM85: =IF(SP<$AL80,AM80,IF(SP<$AL81,AM81,IF(SP<$AL82,AM82,IF(SP<$AL83,AM83,AM84))))*IF(OR($K$11="Existing Pension Plan policyholders of KLI",$K$11="Nominees of deceased KLI pension policyholder",$K$11="Members of Superannuation scheme",$K$11="New Group Customers",$K$11="Existing Group Customers"),101%,1) -> 0.0744987312 | AN85: =IF(SP<$AL80,AN80,IF(SP<$AL81,AN81,IF(SP<$AL82,AN82,IF(SP<$AL83,AN83,AN84))))*IF(OR($K$11="Existing Pension Plan policyholders of KLI",$K$11="Nominees of deceased KLI pension policyholder",$K$11="Members of Superannuation scheme",$K$11="New Group Customers",$K$11="Existing Group Customers"),101%,1) -> 0.03613188463 | AO85: =IF(SP<$AL80,AO80,IF(SP<$AL81,AO81,IF(SP<$AL82,AO82,IF(SP<$AL83,AO83,AO84))))*IF(OR($K$11="Existing Pension Plan policyholders of KLI",$K$11="Nominees of deceased KLI pension policyholder",$K$11="Members of Superannuation scheme",$K$11="New Group Customers",$K$11="Existing Group Customers"),101%,1) -> 0.01787969549 | AP85: =IF(SP<$AL80,AP80,IF(SP<$AL81,AP81,IF(SP<$AL82,AP82,IF(SP<$AL83,AP83,AP84))))*IF(OR($K$11="Existing Pension Plan policyholders of KLI",$K$11="Nominees of deceased KLI pension policyholder",$K$11="Members of Superannuation scheme",$K$11="New Group Customers",$K$11="Existing Group Customers"),101%,1) -> 0.00589781622 | BN85: Annuity | BO85: =IF(SP<$AL80,BO80,IF(SP<$AL81,BO81,IF(SP<$AL82,BO82,IF(SP<$AL83,BO83,BO84))))*IF(OR($K$11="Existing Pension Plan policyholders of KLI",$K$11="Nominees of deceased KLI pension policyholder",$K$11="Members of Superannuation scheme",$K$11="New Group Customers",$K$11="Existing Group Customers"),101%,1) -> 0.0744987312 | BP85: =IF(SP<$AL80,BP80,IF(SP<$AL81,BP81,IF(SP<$AL82,BP82,IF(SP<$AL83,BP83,BP84))))*IF(OR($K$11="Existing Pension Plan policyholders of KLI",$K$11="Nominees of deceased KLI pension policyholder",$K$11="Members of Superannuation scheme",$K$11="New Group Customers",$K$11="Existing Group Customers"),101%,1) -> 0.03613188463 | BQ85: =IF(SP<$AL80,BQ80,IF(SP<$AL81,BQ81,IF(SP<$AL82,BQ82,IF(SP<$AL83,BQ83,BQ84))))*IF(OR($K$11="Existing Pension Plan policyholders of KLI",$K$11="Nominees of deceased KLI pension policyholder",$K$11="Members of Superannuation scheme",$K$11="New Group Customers",$K$11="Existing Group Customers"),101%,1) -> 0.01787969549 | BR85: =IF(SP<$AL80,BR80,IF(SP<$AL81,BR81,IF(SP<$AL82,BR82,IF(SP<$AL83,BR83,BR84))))*IF(OR($K$11="Existing Pension Plan policyholders of KLI",$K$11="Nominees of deceased KLI pension policyholder",$K$11="Members of Superannuation scheme",$K$11="New Group Customers",$K$11="Existing Group Customers"),101%,1) -> 0.00589781622 | CM85: Annuity | CN85: =IF(SP<$AL80,CN80,IF(SP<$AL81,CN81,IF(SP<$AL82,CN82,IF(SP<$AL83,CN83,CN84))))*IF(OR($K$11="Existing Pension Plan policyholders of KLI",$K$11="Nominees of deceased KLI pension policyholder",$K$11="Members of Superannuation scheme",$K$11="New Group Customers",$K$11="Existing Group Customers"),101%,1) -> 0.0744987312 | CO85: =IF(SP<$AL80,CO80,IF(SP<$AL81,CO81,IF(SP<$AL82,CO82,IF(SP<$AL83,CO83,CO84))))*IF(OR($K$11="Existing Pension Plan policyholders of KLI",$K$11="Nominees of deceased KLI pension policyholder",$K$11="Members of Superannuation scheme",$K$11="New Group Customers",$K$11="Existing Group Customers"),101%,1) -> 0.03613188463 | CP85: =IF(SP<$AL80,CP80,IF(SP<$AL81,CP81,IF(SP<$AL82,CP82,IF(SP<$AL83,CP83,CP84))))*IF(OR($K$11="Existing Pension Plan policyholders of KLI",$K$11="Nominees of deceased KLI pension policyholder",$K$11="Members of Superannuation scheme",$K$11="New Group Customers",$K$11="Existing Group Customers"),101%,1) -> 0.01787969549 | CQ85: =IF(SP<$AL80,CQ80,IF(SP<$AL81,CQ81,IF(SP<$AL82,CQ82,IF(SP<$AL83,CQ83,CQ84))))*IF(OR($K$11="Existing Pension Plan policyholders of KLI",$K$11="Nominees of deceased KLI pension policyholder",$K$11="Members of Superannuation scheme",$K$11="New Group Customers",$K$11="Existing Group Customers"),101%,1) -> 0.00589781622 | DL85: Annuity | DM85: =IF(SP<$AL80,DM80,IF(SP<$AL81,DM81,IF(SP<$AL82,DM82,IF(SP<$AL83,DM83,DM84))))*IF(OR($K$11="Existing Pension Plan policyholders of KLI",$K$11="Nominees of deceased KLI pension policyholder",$K$11="Members of Superannuation scheme",$K$11="New Group Customers",$K$11="Existing Group Customers"),101%,1) -> 0.0744987312 | DN85: =IF(SP<$AL80,DN80,IF(SP<$AL81,DN81,IF(SP<$AL82,DN82,IF(SP<$AL83,DN83,DN84))))*IF(OR($K$11="Existing Pension Plan policyholders of KLI",$K$11="Nominees of deceased KLI pension policyholder",$K$11="Members of Superannuation scheme",$K$11="New Group Customers",$K$11="Existing Group Customers"),101%,1) -> 0.03613188463 | DO85: =IF(SP<$AL80,DO80,IF(SP<$AL81,DO81,IF(SP<$AL82,DO82,IF(SP<$AL83,DO83,DO84))))*IF(OR($K$11="Existing Pension Plan policyholders of KLI",$K$11="Nominees of deceased KLI pension policyholder",$K$11="Members of Superannuation scheme",$K$11="New Group Customers",$K$11="Existing Group Customers"),101%,1) -> 0.01787969549 | DP85: =IF(SP<$AL80,DP80,IF(SP<$AL81,DP81,IF(SP<$AL82,DP82,IF(SP<$AL83,DP83,DP84))))*IF(OR($K$11="Existing Pension Plan policyholders of KLI",$K$11="Nominees of deceased KLI pension policyholder",$K$11="Members of Superannuation scheme",$K$11="New Group Customers",$K$11="Existing Group Customers"),101%,1) -> 0.00589781622 | EK85: Annuity | EL85: =IF(SP<$AL80,EL80,IF(SP<$AL81,EL81,IF(SP<$AL82,EL82,IF(SP<$AL83,EL83,EL84))))*IF(OR($K$11="Existing Pension Plan policyholders of KLI",$K$11="Nominees of deceased KLI pension policyholder",$K$11="Members of Superannuation scheme",$K$11="New Group Customers",$K$11="Existing Group Customers"),101%,1) -> 0.0744987312 | EM85: =IF(SP<$AL80,EM80,IF(SP<$AL81,EM81,IF(SP<$AL82,EM82,IF(SP<$AL83,EM83,EM84))))*IF(OR($K$11="Existing Pension Plan policyholders of KLI",$K$11="Nominees of deceased KLI pension policyholder",$K$11="Members of Superannuation scheme",$K$11="New Group Customers",$K$11="Existing Group Customers"),101%,1) -> 0.03613188463 | EN85: =IF(SP<$AL80,EN80,IF(SP<$AL81,EN81,IF(SP<$AL82,EN82,IF(SP<$AL83,EN83,EN84))))*IF(OR($K$11="Existing Pension Plan policyholders of KLI",$K$11="Nominees of deceased KLI pension policyholder",$K$11="Members of Superannuation scheme",$K$11="New Group Customers",$K$11="Existing Group Customers"),101%,1) -> 0.01787969549 | EO85: =IF(SP<$AL80,EO80,IF(SP<$AL81,EO81,IF(SP<$AL82,EO82,IF(SP<$AL83,EO83,EO84))))*IF(OR($K$11="Existing Pension Plan policyholders of KLI",$K$11="Nominees of deceased KLI pension policyholder",$K$11="Members of Superannuation scheme",$K$11="New Group Customers",$K$11="Existing Group Customers"),101%,1) -> 0.00589781622
AL88: Last survivor Lifetime Income with 100% annuity to the Surviving Spouse and Cash-back on death of Surviving SpouseN/A | BN88: Last survivor Lifetime Income with 100% annuity to the Surviving Spouse and Cash-back on death of Surviving SpouseN/A | CM88: Last survivor Lifetime Income with 100% annuity to the Surviving Spouse and Cash-back on death of Surviving SpouseN/A | DL88: Last survivor Lifetime Income with 100% annuity to the Surviving Spouse and Cash-back on death of Surviving SpouseN/A | EK88: Last survivor Lifetime Income with 100% annuity to the Surviving Spouse and Cash-back on death of Surviving SpouseN/A
AL89: Single Premium Bands | AM89: Frequency of Payment | BN89: Single Premium Bands | BO89: Frequency of Payment | CM89: Single Premium Bands | CN89: Frequency of Payment | DL89: Single Premium Bands | DM89: Frequency of Payment | EK89: Single Premium Bands | EL89: Frequency of Payment
AM90: ann | AN90: hlf | AO90: qrt | AP90: mth | BO90: ann | BP90: hlf | BQ90: qrt | BR90: mth | CN90: ann | CO90: hlf | CP90: qrt | CQ90: mth | DM90: ann | DN90: hlf | DO90: qrt | DP90: mth | EL90: ann | EM90: hlf | EN90: qrt | EO90: mth
AL91: 250000 | AM91: =IFERROR(IF(Age>_Age1,VLOOKUP($D$10,'JLRP_Revised Mar 2021'!$A$4:$CE$85,_Age1-16,0),VLOOKUP(_Age1,'JLRP_Revised Mar 2021'!$A$4:$CE$85,Age-16,0)),0) -> 0.0586 | AN91: =AM91*97%/2 -> 0.028421 | AO91: =AM91*96%/4 -> 0.014064 | AP91: =AM91*95%/12 -> 0.004639166667 | BN91: 250000 | BO91: =IFERROR(IF(Age>_Age1,VLOOKUP($D$10,'JLRP_Revised Mar 2021'!$A$4:$CE$85,_Age1-16,0),VLOOKUP(_Age1,'JLRP_Revised Mar 2021'!$A$4:$CE$85,Age-16,0)),0) -> 0.0586 | BP91: =BO91*97%/2 -> 0.028421 | BQ91: =BO91*96%/4 -> 0.014064 | BR91: =BO91*95%/12 -> 0.004639166667 | CM91: 250000 | CN91: =IFERROR(IF(Age>_Age1,VLOOKUP($D$10,'JLRP_Revised Mar 2021'!$A$4:$CE$85,_Age1-16,0),VLOOKUP(_Age1,'JLRP_Revised Mar 2021'!$A$4:$CE$85,Age-16,0)),0) -> 0.0586 | CO91: =CN91*97%/2 -> 0.028421 | CP91: =CN91*96%/4 -> 0.014064 | CQ91: =CN91*95%/12 -> 0.004639166667 | DL91: 250000 | DM91: =IFERROR(IF(Age>_Age1,VLOOKUP($D$10,'JLRP_Revised Mar 2021'!$A$4:$CE$85,_Age1-16,0),VLOOKUP(_Age1,'JLRP_Revised Mar 2021'!$A$4:$CE$85,Age-16,0)),0) -> 0.0586 | DN91: =DM91*97%/2 -> 0.028421 | DO91: =DM91*96%/4 -> 0.014064 | DP91: =DM91*95%/12 -> 0.004639166667 | EK91: 250000 | EL91: =IFERROR(IF(Age>_Age1,VLOOKUP($D$10,'JLRP_Revised Mar 2021'!$A$4:$CE$85,_Age1-16,0),VLOOKUP(_Age1,'JLRP_Revised Mar 2021'!$A$4:$CE$85,Age-16,0)),0) -> 0.0586 | EM91: =EL91*97%/2 -> 0.028421 | EN91: =EL91*96%/4 -> 0.014064 | EO91: =EL91*95%/12 -> 0.004639166667
AL92: 500000 | AM92: =AM91*1.0063 -> 0.05896918 | AN92: =AM92*97%/2 -> 0.0286000523 | AO92: =AM92*96%/4 -> 0.0141526032 | AP92: =AM92*95%/12 -> 0.004668393417 | BN92: 500000 | BO92: =BO91*1.0063 -> 0.05896918 | BP92: =BO92*97%/2 -> 0.0286000523 | BQ92: =BO92*96%/4 -> 0.0141526032 | BR92: =BO92*95%/12 -> 0.004668393417 | CM92: 500000 | CN92: =CN91*1.0063 -> 0.05896918 | CO92: =CN92*97%/2 -> 0.0286000523 | CP92: =CN92*96%/4 -> 0.0141526032 | CQ92: =CN92*95%/12 -> 0.004668393417 | DL92: 500000 | DM92: =DM91*1.0063 -> 0.05896918 | DN92: =DM92*97%/2 -> 0.0286000523 | DO92: =DM92*96%/4 -> 0.0141526032 | DP92: =DM92*95%/12 -> 0.004668393417 | EK92: 500000 | EL92: =EL91*1.0063 -> 0.05896918 | EM92: =EL92*97%/2 -> 0.0286000523 | EN92: =EL92*96%/4 -> 0.0141526032 | EO92: =EL92*95%/12 -> 0.004668393417
AL93: 1000000 | AM93: =AM91*1.0188 -> 0.05970168 | AN93: =AM93*97%/2 -> 0.0289553148 | AO93: =AM93*96%/4 -> 0.0143284032 | AP93: =AM93*95%/12 -> 0.004726383 | BN93: 1000000 | BO93: =BO91*1.0188 -> 0.05970168 | BP93: =BO93*97%/2 -> 0.0289553148 | BQ93: =BO93*96%/4 -> 0.0143284032 | BR93: =BO93*95%/12 -> 0.004726383 | CM93: 1000000 | CN93: =CN91*1.0188 -> 0.05970168 | CO93: =CN93*97%/2 -> 0.0289553148 | CP93: =CN93*96%/4 -> 0.0143284032 | CQ93: =CN93*95%/12 -> 0.004726383 | DL93: 1000000 | DM93: =DM91*1.0188 -> 0.05970168 | DN93: =DM93*97%/2 -> 0.0289553148 | DO93: =DM93*96%/4 -> 0.0143284032 | DP93: =DM93*95%/12 -> 0.004726383 | EK93: 1000000 | EL93: =EL91*1.0188 -> 0.05970168 | EM93: =EL93*97%/2 -> 0.0289553148 | EN93: =EL93*96%/4 -> 0.0143284032 | EO93: =EL93*95%/12 -> 0.004726383
AL94: 5000000 | AM94: =AM91*1.025 -> 0.060065 | AN94: =AM94*97%/2 -> 0.029131525 | AO94: =AM94*96%/4 -> 0.0144156 | AP94: =AM94*95%/12 -> 0.004755145833 | BN94: 5000000 | BO94: =BO91*1.025 -> 0.060065 | BP94: =BO94*97%/2 -> 0.029131525 | BQ94: =BO94*96%/4 -> 0.0144156 | BR94: =BO94*95%/12 -> 0.004755145833 | CM94: 5000000 | CN94: =CN91*1.025 -> 0.060065 | CO94: =CN94*97%/2 -> 0.029131525 | CP94: =CN94*96%/4 -> 0.0144156 | CQ94: =CN94*95%/12 -> 0.004755145833 | DL94: 5000000 | DM94: =DM91*1.025 -> 0.060065 | DN94: =DM94*97%/2 -> 0.029131525 | DO94: =DM94*96%/4 -> 0.0144156 | DP94: =DM94*95%/12 -> 0.004755145833 | EK94: 5000000 | EL94: =EL91*1.025 -> 0.060065 | EM94: =EL94*97%/2 -> 0.029131525 | EN94: =EL94*96%/4 -> 0.0144156 | EO94: =EL94*95%/12 -> 0.004755145833
AL95: 5000,000+ | AM95: =AM91*1.03 -> 0.060358 | AN95: =AM95*97%/2 -> 0.02927363 | AO95: =AM95*96%/4 -> 0.01448592 | AP95: =AM95*95%/12 -> 0.004778341667 | BN95: 5000,000+ | BO95: =BO91*1.03 -> 0.060358 | BP95: =BO95*97%/2 -> 0.02927363 | BQ95: =BO95*96%/4 -> 0.01448592 | BR95: =BO95*95%/12 -> 0.004778341667 | CM95: 5000,000+ | CN95: =CN91*1.03 -> 0.060358 | CO95: =CN95*97%/2 -> 0.02927363 | CP95: =CN95*96%/4 -> 0.01448592 | CQ95: =CN95*95%/12 -> 0.004778341667 | DL95: 5000,000+ | DM95: =DM91*1.03 -> 0.060358 | DN95: =DM95*97%/2 -> 0.02927363 | DO95: =DM95*96%/4 -> 0.01448592 | DP95: =DM95*95%/12 -> 0.004778341667 | EK95: 5000,000+ | EL95: =EL91*1.03 -> 0.060358 | EM95: =EL95*97%/2 -> 0.02927363 | EN95: =EL95*96%/4 -> 0.01448592 | EO95: =EL95*95%/12 -> 0.004778341667
AL96: Annuity | AM96: =IF(SP<$AL91,AM91,IF(SP<$AL92,AM92,IF(SP<$AL93,AM93,IF(SP<$AL94,AM94,AM95))))*IF(OR($K$11="Existing Pension Plan policyholders of KLI",$K$11="Nominees of deceased KLI pension policyholder",$K$11="Members of Superannuation scheme",$K$11="New Group Customers",$K$11="Existing Group Customers"),101%,1) -> 0.0602986968 | AN96: =IF(SP<$AL91,AN91,IF(SP<$AL92,AN92,IF(SP<$AL93,AN93,IF(SP<$AL94,AN94,AN95))))*IF(OR($K$11="Existing Pension Plan policyholders of KLI",$K$11="Nominees of deceased KLI pension policyholder",$K$11="Members of Superannuation scheme",$K$11="New Group Customers",$K$11="Existing Group Customers"),101%,1) -> 0.02924486795 | AO96: =IF(SP<$AL91,AO91,IF(SP<$AL92,AO92,IF(SP<$AL93,AO93,IF(SP<$AL94,AO94,AO95))))*IF(OR($K$11="Existing Pension Plan policyholders of KLI",$K$11="Nominees of deceased KLI pension policyholder",$K$11="Members of Superannuation scheme",$K$11="New Group Customers",$K$11="Existing Group Customers"),101%,1) -> 0.01447168723 | AP96: =IF(SP<$AL91,AP91,IF(SP<$AL92,AP92,IF(SP<$AL93,AP93,IF(SP<$AL94,AP94,AP95))))*IF(OR($K$11="Existing Pension Plan policyholders of KLI",$K$11="Nominees of deceased KLI pension policyholder",$K$11="Members of Superannuation scheme",$K$11="New Group Customers",$K$11="Existing Group Customers"),101%,1) -> 0.00477364683 | BN96: Annuity | BO96: =IF(SP<$AL91,BO91,IF(SP<$AL92,BO92,IF(SP<$AL93,BO93,IF(SP<$AL94,BO94,BO95))))*IF(OR($K$11="Existing Pension Plan policyholders of KLI",$K$11="Nominees of deceased KLI pension policyholder",$K$11="Members of Superannuation scheme",$K$11="New Group Customers",$K$11="Existing Group Customers"),101%,1) -> 0.0602986968 | BP96: =IF(SP<$AL91,BP91,IF(SP<$AL92,BP92,IF(SP<$AL93,BP93,IF(SP<$AL94,BP94,BP95))))*IF(OR($K$11="Existing Pension Plan policyholders of KLI",$K$11="Nominees of deceased KLI pension policyholder",$K$11="Members of Superannuation scheme",$K$11="New Group Customers",$K$11="Existing Group Customers"),101%,1) -> 0.02924486795 | BQ96: =IF(SP<$AL91,BQ91,IF(SP<$AL92,BQ92,IF(SP<$AL93,BQ93,IF(SP<$AL94,BQ94,BQ95))))*IF(OR($K$11="Existing Pension Plan policyholders of KLI",$K$11="Nominees of deceased KLI pension policyholder",$K$11="Members of Superannuation scheme",$K$11="New Group Customers",$K$11="Existing Group Customers"),101%,1) -> 0.01447168723 | BR96: =IF(SP<$AL91,BR91,IF(SP<$AL92,BR92,IF(SP<$AL93,BR93,IF(SP<$AL94,BR94,BR95))))*IF(OR($K$11="Existing Pension Plan policyholders of KLI",$K$11="Nominees of deceased KLI pension policyholder",$K$11="Members of Superannuation scheme",$K$11="New Group Customers",$K$11="Existing Group Customers"),101%,1) -> 0.00477364683 | CM96: Annuity | CN96: =IF(SP<$AL91,CN91,IF(SP<$AL92,CN92,IF(SP<$AL93,CN93,IF(SP<$AL94,CN94,CN95))))*IF(OR($K$11="Existing Pension Plan policyholders of KLI",$K$11="Nominees of deceased KLI pension policyholder",$K$11="Members of Superannuation scheme",$K$11="New Group Customers",$K$11="Existing Group Customers"),101%,1) -> 0.0602986968 | CO96: =IF(SP<$AL91,CO91,IF(SP<$AL92,CO92,IF(SP<$AL93,CO93,IF(SP<$AL94,CO94,CO95))))*IF(OR($K$11="Existing Pension Plan policyholders of KLI",$K$11="Nominees of deceased KLI pension policyholder",$K$11="Members of Superannuation scheme",$K$11="New Group Customers",$K$11="Existing Group Customers"),101%,1) -> 0.02924486795 | CP96: =IF(SP<$AL91,CP91,IF(SP<$AL92,CP92,IF(SP<$AL93,CP93,IF(SP<$AL94,CP94,CP95))))*IF(OR($K$11="Existing Pension Plan policyholders of KLI",$K$11="Nominees of deceased KLI pension policyholder",$K$11="Members of Superannuation scheme",$K$11="New Group Customers",$K$11="Existing Group Customers"),101%,1) -> 0.01447168723 | CQ96: =IF(SP<$AL91,CQ91,IF(SP<$AL92,CQ92,IF(SP<$AL93,CQ93,IF(SP<$AL94,CQ94,CQ95))))*IF(OR($K$11="Existing Pension Plan policyholders of KLI",$K$11="Nominees of deceased KLI pension policyholder",$K$11="Members of Superannuation scheme",$K$11="New Group Customers",$K$11="Existing Group Customers"),101%,1) -> 0.00477364683 | DL96: Annuity | DM96: =IF(SP<$AL91,DM91,IF(SP<$AL92,DM92,IF(SP<$AL93,DM93,IF(SP<$AL94,DM94,DM95))))*IF(OR($K$11="Existing Pension Plan policyholders of KLI",$K$11="Nominees of deceased KLI pension policyholder",$K$11="Members of Superannuation scheme",$K$11="New Group Customers",$K$11="Existing Group Customers"),101%,1) -> 0.0602986968 | DN96: =IF(SP<$AL91,DN91,IF(SP<$AL92,DN92,IF(SP<$AL93,DN93,IF(SP<$AL94,DN94,DN95))))*IF(OR($K$11="Existing Pension Plan policyholders of KLI",$K$11="Nominees of deceased KLI pension policyholder",$K$11="Members of Superannuation scheme",$K$11="New Group Customers",$K$11="Existing Group Customers"),101%,1) -> 0.02924486795 | DO96: =IF(SP<$AL91,DO91,IF(SP<$AL92,DO92,IF(SP<$AL93,DO93,IF(SP<$AL94,DO94,DO95))))*IF(OR($K$11="Existing Pension Plan policyholders of KLI",$K$11="Nominees of deceased KLI pension policyholder",$K$11="Members of Superannuation scheme",$K$11="New Group Customers",$K$11="Existing Group Customers"),101%,1) -> 0.01447168723 | DP96: =IF(SP<$AL91,DP91,IF(SP<$AL92,DP92,IF(SP<$AL93,DP93,IF(SP<$AL94,DP94,DP95))))*IF(OR($K$11="Existing Pension Plan policyholders of KLI",$K$11="Nominees of deceased KLI pension policyholder",$K$11="Members of Superannuation scheme",$K$11="New Group Customers",$K$11="Existing Group Customers"),101%,1) -> 0.00477364683 | EK96: Annuity | EL96: =IF(SP<$AL91,EL91,IF(SP<$AL92,EL92,IF(SP<$AL93,EL93,IF(SP<$AL94,EL94,EL95))))*IF(OR($K$11="Existing Pension Plan policyholders of KLI",$K$11="Nominees of deceased KLI pension policyholder",$K$11="Members of Superannuation scheme",$K$11="New Group Customers",$K$11="Existing Group Customers"),101%,1) -> 0.0602986968 | EM96: =IF(SP<$AL91,EM91,IF(SP<$AL92,EM92,IF(SP<$AL93,EM93,IF(SP<$AL94,EM94,EM95))))*IF(OR($K$11="Existing Pension Plan policyholders of KLI",$K$11="Nominees of deceased KLI pension policyholder",$K$11="Members of Superannuation scheme",$K$11="New Group Customers",$K$11="Existing Group Customers"),101%,1) -> 0.02924486795 | EN96: =IF(SP<$AL91,EN91,IF(SP<$AL92,EN92,IF(SP<$AL93,EN93,IF(SP<$AL94,EN94,EN95))))*IF(OR($K$11="Existing Pension Plan policyholders of KLI",$K$11="Nominees of deceased KLI pension policyholder",$K$11="Members of Superannuation scheme",$K$11="New Group Customers",$K$11="Existing Group Customers"),101%,1) -> 0.01447168723 | EO96: =IF(SP<$AL91,EO91,IF(SP<$AL92,EO92,IF(SP<$AL93,EO93,IF(SP<$AL94,EO94,EO95))))*IF(OR($K$11="Existing Pension Plan policyholders of KLI",$K$11="Nominees of deceased KLI pension policyholder",$K$11="Members of Superannuation scheme",$K$11="New Group Customers",$K$11="Existing Group Customers"),101%,1) -> 0.00477364683
AL102: From File & use | BN102: From File & use | CM102: From File & use | DL102: From File & use | EK102: From File & use
AL104: Premium Band | AM104: % | BN104: Premium Band | BO104: % | CM104: Premium Band | CN104: % | DL104: Premium Band | DM104: % | EK104: Premium Band | EL104: %
AL105: Less than Rs.250,000 | AM105: 0 | BN105: Less than Rs.250,000 | BO105: 0 | CM105: Less than Rs.250,000 | CN105: 0 | DL105: Less than Rs.250,000 | DM105: 0 | EK105: Less than Rs.250,000 | EL105: 0
AL106: 250,000 to less than 500,000 | AM106: 0.0063 | BN106: 250,000 to less than 500,000 | BO106: 0.0063 | CM106: 250,000 to less than 500,000 | CN106: 0.0063 | DL106: 250,000 to less than 500,000 | DM106: 0.0063 | EK106: 250,000 to less than 500,000 | EL106: 0.0063
AL107: 500,000 to less than 10,00,000 | AM107: 0.0188 | BN107: 500,000 to less than 10,00,000 | BO107: 0.0188 | CM107: 500,000 to less than 10,00,000 | CN107: 0.0188 | DL107: 500,000 to less than 10,00,000 | DM107: 0.0188 | EK107: 500,000 to less than 10,00,000 | EL107: 0.0188
AL108: 10,00,000 to less than 50,00,000 | AM108: 0.025 | BN108: 10,00,000 to less than 50,00,000 | BO108: 0.025 | CM108: 10,00,000 to less than 50,00,000 | CN108: 0.025 | DL108: 10,00,000 to less than 50,00,000 | DM108: 0.025 | EK108: 10,00,000 to less than 50,00,000 | EL108: 0.025
AL109: 50,00,000 & above | AM109: 0.03 | BN109: 50,00,000 & above | BO109: 0.03 | CM109: 50,00,000 & above | CN109: 0.03 | DL109: 50,00,000 & above | DM109: 0.03 | EK109: 50,00,000 & above | EL109: 0.03
AL111: Mode | AM111: Annuity Installment (per frequency) | BN111: Mode | BO111: Annuity Installment (per frequency) | CM111: Mode | CN111: Annuity Installment (per frequency) | DL111: Mode | DM111: Annuity Installment (per frequency) | EK111: Mode | EL111: Annuity Installment (per frequency)
AL112: Half-yearly | AM112: 97% of Yearly Annuity x ½ | BN112: Half-yearly | BO112: 97% of Yearly Annuity x ½ | CM112: Half-yearly | CN112: 97% of Yearly Annuity x ½ | DL112: Half-yearly | DM112: 97% of Yearly Annuity x ½ | EK112: Half-yearly | EL112: 97% of Yearly Annuity x ½
AL113: Quarterly | AM113: 96% of Yearly Annuity x ¼ | BN113: Quarterly | BO113: 96% of Yearly Annuity x ¼ | CM113: Quarterly | CN113: 96% of Yearly Annuity x ¼ | DL113: Quarterly | DM113: 96% of Yearly Annuity x ¼ | EK113: Quarterly | EL113: 96% of Yearly Annuity x ¼
AL114: Monthly | AM114: 95% of Yearly Annuity x 1/12 | BN114: Monthly | BO114: 95% of Yearly Annuity x 1/12 | CM114: Monthly | CN114: 95% of Yearly Annuity x 1/12 | DL114: Monthly | DM114: 95% of Yearly Annuity x 1/12 | EK114: Monthly | EL114: 95% of Yearly Annuity x 1/12

Sheet Modifications (hidden)
A1: Date | B1: With Effect From | C1: Modified By | D1: Old Version | E1: New Version | F1: Changes | G1: File Name
A2: 2017-10-28 | C2: Sriganesh Kumar Sridhar | D2: NA | E2: Nov 17_Ver 1.0 | F2: New BI | G2: Kotak Lifetime Income Plan_107N103V01_Nov 17_Ver 1.0
A3: 2017-11-08 | C3: Sriganesh Kumar Sridhar | D3: Nov 17_Ver 1.0 | E3: Nov 17_Ver 1.0 | F3: Added validations for QROPS | G3: Kotak Lifetime Income Plan_107N103V01_Nov 17_Ver 1.1
D4: Nov 17_Ver 1.1 | E4: Nov 17_Ver 1.1 | F4: Kotak life name and logo changed | G4: Kotak Lifetime Income Plan_107N103V01_Nov 17_Ver 1.1
D5: Dec 17_V1.0 | E5: Dec 17_V1.0 | F5: Verison number changed | G5: Kotak Lifetime Income Plan_107N103V01_Dec 17_Ver 1.0
A6: 2018-10-05 | C6: Ritika Khirwadkar | D6: Dec 17_V1.0 | E6: Nov 2018 Ver 1.0 | F6: Updateing of annuity rates | G6: Kotak Lifetime Income Plan_107N103V02_Oct 2018_Ver 1.0.xlsm
A7: 2019-09-27 | C7: Ritika Khirwadkar | D7: Nov 2018 Ver 1.0 | E7: Nov 2018 Ver 1.1 | F7: 1. Agents oaction added
F8: 2. Proposers loaction adedd
F9: 3. Service tax change for kerala
F10: 4. QROPS (Existing and new) category added
F11: 5. Discount to Existing QROPS customer
F12: 6. If proposers location is "Foreign country" then tax is zeo
F13: 7. Kerala cess considered 1.9%
A15: 2019-11-15 | C15: K Sandhya | D15: Nov 2018 Ver 1.1 | E15: Nov 2019 Ver 1.1 | F15: GST for NPS set to 0% in T12
F16: Added NPS in T34
F17: Changed Conditional formating in I12:L12 - This is to ensure existing customer display is not there if NPS is chosen
A18: 2019-12-02 | C18: Ritika Khirwadkar | D18: Nov 2018 Ver 1.1 | E18: Dec 2019 Ver 1.2 | F18: Updated revised annuity rates in sheets ending with Dec 2019. Updated the UIN to V03 Updated annuity increase %s for high SP bands in column AM of Input sheet Addded the Location NRI/Resident India and impliacton of same on tax
A19: 2020-04-07 | C19: Nivedha R | D19: Dec 2019 Ver 1.2 | E19: Apr 2020 Ver 1.3 | F19: Input Sheet Split the Client Category to NPS - New Customers and NPS - Existing Pension Plan Policyholders of KLI in T34:T35 Included annuity rate discount in the formulas for Annuity rate for all options under NPS - Existing Pension Plan Policyholders of KLI Client Category Modified K11 for the Client Category dropdown Modified G9 and I21 for allowing only Monthly annuity payout frequency for NPS Category
A20: 2020-04-16 | C20: Nivedha R | D20: Apr 2020 Ver 1.3 | E20: Apr 2020 Ver 1.1 | F20: Updated revised annuity rates in sheets ending with Apr 2020. Updated the UIN to V04
A21: 2020-04-24 | C21: Nivedha R | D21: Apr 2020 Ver 1.1 | E21: Apr 2020 Ver 1.2 | F21: Updated the tagline basis signed off Pol doc
A22: 2020-04-24 | C22: Nivedha R | D22: Apr 2020 Ver 1.2 | E22: Apr 2020 Ver 1.3 | F22: Added Applicable rate of GST and cess on Single premium in cell L23 as per checklist
A23: 2020-04-30 | C23: Nivedha R | D23: Apr 2020 Ver 1.3 | E23: Apr 2020 Ver 1.4 | F23: Input Sheet Modified the formula in T12 such that GST is waived of for NPS Client Category and for QROPS-New Customers Client Category with Proposer Location as Foreign Country ModIfied the formula in B16 as QROPS was not detected in the validation; This validation was already working fine in Web BI Modified the spell error in I12 Validation
A24: 2020-05-04 | C24: Nivedha R | D24: Apr 2020 Ver 1.4 | E24: Apr 2020 Ver 1.5 | F24: Updated revised annuity rates in sheets ending with May 2020. The rate change made on 16 Apr 2020 become redundant as the rates have been revised before launch. Input Sheet: Modified validation to incorporate addition of NPS - Existing Pension Plan Policyholders of KLI and NPS - New Customers : G11,G13,I17,I12
A25: 2020-08-19 | C25: Nivedha R | D25: Apr 2020 Ver 1.5 | E25: Nov 2020 Ver 1.0 | F25: Input Sheet Modified the dropdown in cell K11 to include Group customers and removed QROPs Existing and NPS Existing as required by Mktg Applied discount for Group Customers and removed references for NPS Exisiting and QROPS Exisiting Modified formulas in G9,G11,G13, I12 and I17 to account for Group Changed UIN and Ver No
A26: 2020-11-03 | C26: Sandhya K | D26: Aug 2020 Ver 1.0 | E26: Nov 2020 Ver 1.0 | F26: Input Sheet: Replaced Group Customers with New Group Customers and Existing Group Customers (T34:T35) Updated the validation for ensuring min age is 45 for new group and 18 for existing group (G11:H11) Updated the version no. and w.e.f month
A27: 2020-11-03 | C27: Sandhya K | D27: Aug 2020 Ver 1.0 | E27: Nov 2020 Ver 1.0 | F27: Input Sheet: Updated formula in row 10/20/30/41/52/63/74/85/96 in column AL to AP. This is to ensure the discount % applicable to group customers both new and Iexisting
A28: 2020-12-07 | C28: Nivedha R | D28: Nov 2020 Ver 1.0 | E28: Dec 2020 Ver 1.0 | F28: Input Sheet Updated formula in T12 to account for GST in case of Location= Resident India and Client Category - QROPS Updated formula in G13 to revise for Min Entry age for QROPS Spouse age

Sheet SL_Revised May 2020 (hidden)
A1: Kotak Lifetime Income - Annuity Rates Applicaple for Purchase Price Less than Rs.2,50,000 and for Annual Mode
A3: Age | B3: Option 1 | C3: Option 2 | D3: Option 3 ( GT 5) | E3: Option 3 ( GT 10) | F3: Option 3 ( GT 15) | G3: Option 3 ( GT 20)
A4: 0 | B4: 0.054 | C4: 0.0529 | D4: 0.054 | E4: 0.054 | F4: 0.0539 | G4: 0.0539
A5: 1 | B5: 0.0541 | C5: 0.0529 | D5: 0.0541 | E5: 0.054 | F5: 0.054 | G5: 0.0539
A6: 2 | B6: 0.0541 | C6: 0.0529 | D6: 0.0541 | E6: 0.0541 | F6: 0.054 | G6: 0.054
A7: 3 | B7: 0.0542 | C7: 0.0529 | D7: 0.0541 | E7: 0.0541 | F7: 0.0541 | G7: 0.054
A8: 4 | B8: 0.0542 | C8: 0.0529 | D8: 0.0542 | E8: 0.0542 | F8: 0.0541 | G8: 0.0541
A9: 5 | B9: 0.0543 | C9: 0.0528 | D9: 0.0542 | E9: 0.0542 | F9: 0.0542 | G9: 0.0541
A10: 6 | B10: 0.0543 | C10: 0.0528 | D10: 0.0543 | E10: 0.0543 | F10: 0.0542 | G10: 0.0542
A11: 7 | B11: 0.0544 | C11: 0.0528 | D11: 0.0544 | E11: 0.0543 | F11: 0.0543 | G11: 0.0542
A12: 8 | B12: 0.0544 | C12: 0.0528 | D12: 0.0544 | E12: 0.0544 | F12: 0.0543 | G12: 0.0543
A13: 9 | B13: 0.0545 | C13: 0.0528 | D13: 0.0545 | E13: 0.0545 | F13: 0.0544 | G13: 0.0544
A14: 10 | B14: 0.0546 | C14: 0.0527 | D14: 0.0546 | E14: 0.0545 | F14: 0.0545 | G14: 0.0544
A15: 11 | B15: 0.0547 | C15: 0.0527 | D15: 0.0547 | E15: 0.0546 | F15: 0.0546 | G15: 0.0545
A16: 12 | B16: 0.0548 | C16: 0.0527 | D16: 0.0548 | E16: 0.0547 | F16: 0.0547 | G16: 0.0546
A17: 13 | B17: 0.0549 | C17: 0.0527 | D17: 0.0549 | E17: 0.0548 | F17: 0.0548 | G17: 0.0547
A18: 14 | B18: 0.055 | C18: 0.0527 | D18: 0.055 | E18: 0.0549 | F18: 0.0549 | G18: 0.0548
A19: 15 | B19: 0.0551 | C19: 0.0527 | D19: 0.0551 | E19: 0.055 | F19: 0.055 | G19: 0.0549
A20: 16 | B20: 0.0552 | C20: 0.0527 | D20: 0.0552 | E20: 0.0552 | F20: 0.0551 | G20: 0.055
A21: 17 | B21: 0.0553 | C21: 0.0527 | D21: 0.0553 | E21: 0.0553 | F21: 0.0552 | G21: 0.0552
A22: 18 | B22: 0.0555 | C22: 0.0527 | D22: 0.0555 | E22: 0.0554 | F22: 0.0554 | G22: 0.0553
A23: 19 | B23: 0.0556 | C23: 0.0527 | D23: 0.0556 | E23: 0.0556 | F23: 0.0555 | G23: 0.0554
A24: 20 | B24: 0.0558 | C24: 0.0528 | D24: 0.0557 | E24: 0.0557 | F24: 0.0556 | G24: 0.0556
A25: 21 | B25: 0.0559 | C25: 0.0528 | D25: 0.0559 | E25: 0.0559 | F25: 0.0558 | G25: 0.0557
A26: 22 | B26: 0.0561 | C26: 0.0528 | D26: 0.0561 | E26: 0.056 | F26: 0.056 | G26: 0.0559
A27: 23 | B27: 0.0563 | C27: 0.0529 | D27: 0.0562 | E27: 0.0562 | F27: 0.0561 | G27: 0.0561
A28: 24 | B28: 0.0565 | C28: 0.0529 | D28: 0.0564 | E28: 0.0564 | F28: 0.0563 | G28: 0.0562
A29: 25 | B29: 0.0566 | C29: 0.0529 | D29: 0.0566 | E29: 0.0566 | F29: 0.0565 | G29: 0.0564
A30: 26 | B30: 0.0569 | C30: 0.053 | D30: 0.0568 | E30: 0.0568 | F30: 0.0567 | G30: 0.0566
A31: 27 | B31: 0.0571 | C31: 0.053 | D31: 0.057 | E31: 0.057 | F31: 0.0569 | G31: 0.0568
A32: 28 | B32: 0.0573 | C32: 0.0531 | D32: 0.0573 | E32: 0.0572 | F32: 0.0571 | G32: 0.057
A33: 29 | B33: 0.0575 | C33: 0.0532 | D33: 0.0575 | E33: 0.0574 | F33: 0.0574 | G33: 0.0573
A34: 30 | B34: 0.0578 | C34: 0.0532 | D34: 0.0578 | E34: 0.0577 | F34: 0.0576 | G34: 0.0575
A35: 31 | B35: 0.058 | C35: 0.0533 | D35: 0.058 | E35: 0.058 | F35: 0.0579 | G35: 0.0578
A36: 32 | B36: 0.0583 | C36: 0.0533 | D36: 0.0583 | E36: 0.0582 | F36: 0.0581 | G36: 0.058
A37: 33 | B37: 0.0586 | C37: 0.0534 | D37: 0.0586 | E37: 0.0585 | F37: 0.0584 | G37: 0.0583
A38: 34 | B38: 0.0589 | C38: 0.0535 | D38: 0.0589 | E38: 0.0588 | F38: 0.0587 | G38: 0.0586
A39: 35 | B39: 0.0593 | C39: 0.0536 | D39: 0.0592 | E39: 0.0591 | F39: 0.059 | G39: 0.0589
A40: 36 | B40: 0.0596 | C40: 0.0536 | D40: 0.0596 | E40: 0.0595 | F40: 0.0594 | G40: 0.0592
A41: 37 | B41: 0.06 | C41: 0.0537 | D41: 0.0599 | E41: 0.0598 | F41: 0.0597 | G41: 0.0595
A42: 38 | B42: 0.0603 | C42: 0.0538 | D42: 0.0603 | E42: 0.0602 | F42: 0.0601 | G42: 0.0598
A43: 39 | B43: 0.0607 | C43: 0.0539 | D43: 0.0607 | E43: 0.0606 | F43: 0.0604 | G43: 0.0602
A44: 40 | B44: 0.0612 | C44: 0.054 | D44: 0.0611 | E44: 0.061 | F44: 0.0608 | G44: 0.0605
A45: 41 | B45: 0.0616 | C45: 0.0541 | D45: 0.0616 | E45: 0.0614 | F45: 0.0612 | G45: 0.0609
A46: 42 | B46: 0.0621 | C46: 0.0542 | D46: 0.062 | E46: 0.0619 | F46: 0.0616 | G46: 0.0613
A47: 43 | B47: 0.0626 | C47: 0.0543 | D47: 0.0625 | E47: 0.0623 | F47: 0.0621 | G47: 0.0617
A48: 44 | B48: 0.0631 | C48: 0.0544 | D48: 0.063 | E48: 0.0628 | F48: 0.0625 | G48: 0.0621
A49: 45 | B49: 0.0636 | C49: 0.0545 | D49: 0.0636 | E49: 0.0633 | F49: 0.063 | G49: 0.0626
A50: 46 | B50: 0.0642 | C50: 0.0546 | D50: 0.0641 | E50: 0.0639 | F50: 0.0635 | G50: 0.063
A51: 47 | B51: 0.0648 | C51: 0.0547 | D51: 0.0647 | E51: 0.0644 | F51: 0.064 | G51: 0.0635
A52: 48 | B52: 0.0654 | C52: 0.0548 | D52: 0.0653 | E52: 0.065 | F52: 0.0646 | G52: 0.064
A53: 49 | B53: 0.0661 | C53: 0.0549 | D53: 0.066 | E53: 0.0656 | F53: 0.0651 | G53: 0.0645
A54: 50 | B54: 0.0668 | C54: 0.055 | D54: 0.0667 | E54: 0.0663 | F54: 0.0657 | G54: 0.065
A55: 51 | B55: 0.0675 | C55: 0.0552 | D55: 0.0674 | E55: 0.067 | F55: 0.0663 | G55: 0.0656
A56: 52 | B56: 0.0683 | C56: 0.0553 | D56: 0.0682 | E56: 0.0677 | F56: 0.067 | G56: 0.0661
A57: 53 | B57: 0.0691 | C57: 0.0554 | D57: 0.0689 | E57: 0.0684 | F57: 0.0676 | G57: 0.0667
A58: 54 | B58: 0.07 | C58: 0.0555 | D58: 0.0698 | E58: 0.0692 | F58: 0.0683 | G58: 0.0673
A59: 55 | B59: 0.0708 | C59: 0.0556 | D59: 0.0706 | E59: 0.0699 | F59: 0.069 | G59: 0.0679
A60: 56 | B60: 0.0718 | C60: 0.0557 | D60: 0.0715 | E60: 0.0708 | F60: 0.0698 | G60: 0.0686
A61: 57 | B61: 0.0727 | C61: 0.0558 | D61: 0.0725 | E61: 0.0717 | F61: 0.0706 | G61: 0.0692
A62: 58 | B62: 0.0738 | C62: 0.0559 | D62: 0.0735 | E62: 0.0726 | F62: 0.0714 | G62: 0.0699
A63: 59 | B63: 0.0749 | C63: 0.056 | D63: 0.0745 | E63: 0.0736 | F63: 0.0722 | G63: 0.0705
A64: 60 | B64: 0.076 | C64: 0.0561 | D64: 0.0757 | E64: 0.0746 | F64: 0.0731 | G64: 0.0712
A65: 61 | B65: 0.0772 | C65: 0.0562 | D65: 0.0769 | E65: 0.0757 | F65: 0.074 | G65: 0.0719
A66: 62 | B66: 0.0785 | C66: 0.0563 | D66: 0.0781 | E66: 0.0769 | F66: 0.075 | G66: 0.0726
A67: 63 | B67: 0.08 | C67: 0.0563 | D67: 0.0795 | E67: 0.0781 | F67: 0.076 | G67: 0.0733
A68: 64 | B68: 0.0816 | C68: 0.0564 | D68: 0.081 | E68: 0.0794 | F68: 0.077 | G68: 0.074
A69: 65 | B69: 0.0833 | C69: 0.0564 | D69: 0.0827 | E69: 0.0808 | F69: 0.078 | G69: 0.0747
A70: 66 | B70: 0.0851 | C70: 0.0564 | D70: 0.0844 | E70: 0.0823 | F70: 0.0791 | G70: 0.0754
A71: 67 | B71: 0.0871 | C71: 0.0564 | D71: 0.0863 | E71: 0.0838 | F71: 0.0802 | G71: 0.0761
A72: 68 | B72: 0.0892 | C72: 0.0564 | D72: 0.0883 | E72: 0.0854 | F72: 0.0813 | G72: 0.0768
A73: 69 | B73: 0.0915 | C73: 0.0564 | D73: 0.0904 | E73: 0.087 | F73: 0.0823 | G73: 0.0774
A74: 70 | B74: 0.0939 | C74: 0.0564 | D74: 0.0926 | E74: 0.0887 | F74: 0.0834 | G74: 0.0781
A75: 71 | B75: 0.0964 | C75: 0.0563 | D75: 0.0949 | E75: 0.0904 | F75: 0.0845 | G75: 0.0787
A76: 72 | B76: 0.0992 | C76: 0.0562 | D76: 0.0974 | E76: 0.0921 | F76: 0.0856 | G76: 0.0792
A77: 73 | B77: 0.102 | C77: 0.0561 | D77: 0.0999 | E77: 0.0939 | F77: 0.0866 | G77: 0.0798
A78: 74 | B78: 0.1051 | C78: 0.056 | D78: 0.1026 | E78: 0.0957 | F78: 0.0876 | G78: 0.0803
A79: 75 | B79: 0.1082 | C79: 0.0559 | D79: 0.1053 | E79: 0.0975 | F79: 0.0886 | G79: 0.0807
A80: 76 | B80: 0.1116 | C80: 0.0557 | D80: 0.1082 | E80: 0.0993 | F80: 0.0896 | G80: 0.0812
A81: 77 | B81: 0.1151 | C81: 0.0556 | D81: 0.1112 | E81: 0.1011 | F81: 0.0905 | G81: 0.0816
A82: 78 | B82: 0.1188 | C82: 0.0554 | D82: 0.1143 | E82: 0.1029 | F82: 0.0913 | G82: 0.082
A83: 79 | B83: 0.1227 | C83: 0.0552 | D83: 0.1174 | E83: 0.1047 | F83: 0.0922 | G83: 0.0823
A84: 80 | B84: 0.1268 | C84: 0.055 | D84: 0.1207 | E84: 0.1065 | F84: 0.093 | G84: 0.0826
A85: 81 | B85: 0.131 | C85: 0.0548 | D85: 0.1241 | E85: 0.1082 | F85: 0.0937 | G85: 0.0829
A86: 82 | B86: 0.1355 | C86: 0.0545 | D86: 0.1275 | E86: 0.1099 | F86: 0.0944 | G86: 0.0832
A87: 83 | B87: 0.1401 | C87: 0.0543 | D87: 0.131 | E87: 0.1116 | F87: 0.0951 | G87: 0.0834
A88: 84 | B88: 0.145 | C88: 0.054 | D88: 0.1346 | E88: 0.1132 | F88: 0.0957 | G88: 0.0836
A89: 85 | B89: 0.1501 | C89: 0.0537 | D89: 0.1382 | E89: 0.1148 | F89: 0.0962 | G89: 0.0838
A90: 86 | B90: 0.1553 | C90: 0.0534 | D90: 0.1419 | E90: 0.1163 | F90: 0.0968 | G90: 0.084
A91: 87 | B91: 0.1609 | C91: 0.0531 | D91: 0.1457 | E91: 0.1177 | F91: 0.0972 | G91: 0.0841
A92: 88 | B92: 0.1666 | C92: 0.0527 | D92: 0.1494 | E92: 0.1191 | F92: 0.0977 | G92: 0.0842
A93: 89 | B93: 0.1726 | C93: 0.0524 | D93: 0.1533 | E93: 0.1205 | F93: 0.0981 | G93: 0.0844
A94: 90 | B94: 0.1788 | C94: 0.052 | D94: 0.1571 | E94: 0.1217 | F94: 0.0984 | G94: 0.0845
A95: 91 | B95: 0.1853 | C95: 0.0516 | D95: 0.161 | E95: 0.123 | F95: 0.0988 | G95: 0.0846
A96: 92 | B96: 0.192 | C96: 0.0512 | D96: 0.1649 | E96: 0.1241 | F96: 0.0991 | G96: 0.0846
A97: 93 | B97: 0.199 | C97: 0.0508 | D97: 0.1688 | E97: 0.1252 | F97: 0.0994 | G97: 0.0847
A98: 94 | B98: 0.2063 | C98: 0.0504 | D98: 0.1727 | E98: 0.1262 | F98: 0.0996 | G98: 0.0848
A99: 95 | B99: 0.214 | C99: 0.05 | D99: 0.1767 | E99: 0.1272 | F99: 0.0998 | G99: 0.0848
A100: 96 | B100: 0.2219 | C100: 0.0495 | D100: 0.1806 | E100: 0.1281 | F100: 0.1001 | G100: 0.0849
A101: 97 | B101: 0.2302 | C101: 0.049 | D101: 0.1845 | E101: 0.129 | F101: 0.1003 | G101: 0.0849
A102: 98 | B102: 0.2389 | C102: 0.0486 | D102: 0.1884 | E102: 0.1298 | F102: 0.1004 | G102: 0.0849
A103: 99 | B103: 0.2479 | C103: 0.0481 | D103: 0.1923 | E103: 0.1306 | F103: 0.1006 | G103: 0.0849
A105: Sum of Differences | B105: =SUM(A106:G205) -> 0
A106: =A4-'[3]New Rates_V05'!A5 -> 0 | B106: =B4-'[3]New Rates_V05'!B5 -> 0 | C106: =C4-'[3]New Rates_V05'!C5 -> 0 | D106: =D4-'[3]New Rates_V05'!D5 -> 0 | E106: =E4-'[3]New Rates_V05'!E5 -> 0 | F106: =F4-'[3]New Rates_V05'!F5 -> 0 | G106: =G4-'[3]New Rates_V05'!G5 -> 0
A107: =A5-'[3]New Rates_V05'!A6 -> 0 | B107: =B5-'[3]New Rates_V05'!B6 -> 0 | C107: =C5-'[3]New Rates_V05'!C6 -> 0 | D107: =D5-'[3]New Rates_V05'!D6 -> 0 | E107: =E5-'[3]New Rates_V05'!E6 -> 0 | F107: =F5-'[3]New Rates_V05'!F6 -> 0 | G107: =G5-'[3]New Rates_V05'!G6 -> 0
A108: =A6-'[3]New Rates_V05'!A7 -> 0 | B108: =B6-'[3]New Rates_V05'!B7 -> 0 | C108: =C6-'[3]New Rates_V05'!C7 -> 0 | D108: =D6-'[3]New Rates_V05'!D7 -> 0 | E108: =E6-'[3]New Rates_V05'!E7 -> 0 | F108: =F6-'[3]New Rates_V05'!F7 -> 0 | G108: =G6-'[3]New Rates_V05'!G7 -> 0
A109: =A7-'[3]New Rates_V05'!A8 -> 0 | B109: =B7-'[3]New Rates_V05'!B8 -> 0 | C109: =C7-'[3]New Rates_V05'!C8 -> 0 | D109: =D7-'[3]New Rates_V05'!D8 -> 0 | E109: =E7-'[3]New Rates_V05'!E8 -> 0 | F109: =F7-'[3]New Rates_V05'!F8 -> 0 | G109: =G7-'[3]New Rates_V05'!G8 -> 0
A110: =A8-'[3]New Rates_V05'!A9 -> 0 | B110: =B8-'[3]New Rates_V05'!B9 -> 0 | C110: =C8-'[3]New Rates_V05'!C9 -> 0 | D110: =D8-'[3]New Rates_V05'!D9 -> 0 | E110: =E8-'[3]New Rates_V05'!E9 -> 0 | F110: =F8-'[3]New Rates_V05'!F9 -> 0 | G110: =G8-'[3]New Rates_V05'!G9 -> 0
A111: =A9-'[3]New Rates_V05'!A10 -> 0 | B111: =B9-'[3]New Rates_V05'!B10 -> 0 | C111: =C9-'[3]New Rates_V05'!C10 -> 0 | D111: =D9-'[3]New Rates_V05'!D10 -> 0 | E111: =E9-'[3]New Rates_V05'!E10 -> 0 | F111: =F9-'[3]New Rates_V05'!F10 -> 0 | G111: =G9-'[3]New Rates_V05'!G10 -> 0
A112: =A10-'[3]New Rates_V05'!A11 -> 0 | B112: =B10-'[3]New Rates_V05'!B11 -> 0 | C112: =C10-'[3]New Rates_V05'!C11 -> 0 | D112: =D10-'[3]New Rates_V05'!D11 -> 0 | E112: =E10-'[3]New Rates_V05'!E11 -> 0 | F112: =F10-'[3]New Rates_V05'!F11 -> 0 | G112: =G10-'[3]New Rates_V05'!G11 -> 0
A113: =A11-'[3]New Rates_V05'!A12 -> 0 | B113: =B11-'[3]New Rates_V05'!B12 -> 0 | C113: =C11-'[3]New Rates_V05'!C12 -> 0 | D113: =D11-'[3]New Rates_V05'!D12 -> 0 | E113: =E11-'[3]New Rates_V05'!E12 -> 0 | F113: =F11-'[3]New Rates_V05'!F12 -> 0 | G113: =G11-'[3]New Rates_V05'!G12 -> 0
A114: =A12-'[3]New Rates_V05'!A13 -> 0 | B114: =B12-'[3]New Rates_V05'!B13 -> 0 | C114: =C12-'[3]New Rates_V05'!C13 -> 0 | D114: =D12-'[3]New Rates_V05'!D13 -> 0 | E114: =E12-'[3]New Rates_V05'!E13 -> 0 | F114: =F12-'[3]New Rates_V05'!F13 -> 0 | G114: =G12-'[3]New Rates_V05'!G13 -> 0
A115: =A13-'[3]New Rates_V05'!A14 -> 0 | B115: =B13-'[3]New Rates_V05'!B14 -> 0 | C115: =C13-'[3]New Rates_V05'!C14 -> 0 | D115: =D13-'[3]New Rates_V05'!D14 -> 0 | E115: =E13-'[3]New Rates_V05'!E14 -> 0 | F115: =F13-'[3]New Rates_V05'!F14 -> 0 | G115: =G13-'[3]New Rates_V05'!G14 -> 0
A116: =A14-'[3]New Rates_V05'!A15 -> 0 | B116: =B14-'[3]New Rates_V05'!B15 -> 0 | C116: =C14-'[3]New Rates_V05'!C15 -> 0 | D116: =D14-'[3]New Rates_V05'!D15 -> 0 | E116: =E14-'[3]New Rates_V05'!E15 -> 0 | F116: =F14-'[3]New Rates_V05'!F15 -> 0 | G116: =G14-'[3]New Rates_V05'!G15 -> 0
A117: =A15-'[3]New Rates_V05'!A16 -> 0 | B117: =B15-'[3]New Rates_V05'!B16 -> 0 | C117: =C15-'[3]New Rates_V05'!C16 -> 0 | D117: =D15-'[3]New Rates_V05'!D16 -> 0 | E117: =E15-'[3]New Rates_V05'!E16 -> 0 | F117: =F15-'[3]New Rates_V05'!F16 -> 0 | G117: =G15-'[3]New Rates_V05'!G16 -> 0
A118: =A16-'[3]New Rates_V05'!A17 -> 0 | B118: =B16-'[3]New Rates_V05'!B17 -> 0 | C118: =C16-'[3]New Rates_V05'!C17 -> 0 | D118: =D16-'[3]New Rates_V05'!D17 -> 0 | E118: =E16-'[3]New Rates_V05'!E17 -> 0 | F118: =F16-'[3]New Rates_V05'!F17 -> 0 | G118: =G16-'[3]New Rates_V05'!G17 -> 0
A119: =A17-'[3]New Rates_V05'!A18 -> 0 | B119: =B17-'[3]New Rates_V05'!B18 -> 0 | C119: =C17-'[3]New Rates_V05'!C18 -> 0 | D119: =D17-'[3]New Rates_V05'!D18 -> 0 | E119: =E17-'[3]New Rates_V05'!E18 -> 0 | F119: =F17-'[3]New Rates_V05'!F18 -> 0 | G119: =G17-'[3]New Rates_V05'!G18 -> 0
A120: =A18-'[3]New Rates_V05'!A19 -> 0 | B120: =B18-'[3]New Rates_V05'!B19 -> 0 | C120: =C18-'[3]New Rates_V05'!C19 -> 0 | D120: =D18-'[3]New Rates_V05'!D19 -> 0 | E120: =E18-'[3]New Rates_V05'!E19 -> 0 | F120: =F18-'[3]New Rates_V05'!F19 -> 0 | G120: =G18-'[3]New Rates_V05'!G19 -> 0
A121: =A19-'[3]New Rates_V05'!A20 -> 0 | B121: =B19-'[3]New Rates_V05'!B20 -> 0 | C121: =C19-'[3]New Rates_V05'!C20 -> 0 | D121: =D19-'[3]New Rates_V05'!D20 -> 0 | E121: =E19-'[3]New Rates_V05'!E20 -> 0 | F121: =F19-'[3]New Rates_V05'!F20 -> 0 | G121: =G19-'[3]New Rates_V05'!G20 -> 0
A122: =A20-'[3]New Rates_V05'!A21 -> 0 | B122: =B20-'[3]New Rates_V05'!B21 -> 0 | C122: =C20-'[3]New Rates_V05'!C21 -> 0 | D122: =D20-'[3]New Rates_V05'!D21 -> 0 | E122: =E20-'[3]New Rates_V05'!E21 -> 0 | F122: =F20-'[3]New Rates_V05'!F21 -> 0 | G122: =G20-'[3]New Rates_V05'!G21 -> 0
A123: =A21-'[3]New Rates_V05'!A22 -> 0 | B123: =B21-'[3]New Rates_V05'!B22 -> 0 | C123: =C21-'[3]New Rates_V05'!C22 -> 0 | D123: =D21-'[3]New Rates_V05'!D22 -> 0 | E123: =E21-'[3]New Rates_V05'!E22 -> 0 | F123: =F21-'[3]New Rates_V05'!F22 -> 0 | G123: =G21-'[3]New Rates_V05'!G22 -> 0
A124: =A22-'[3]New Rates_V05'!A23 -> 0 | B124: =B22-'[3]New Rates_V05'!B23 -> 0 | C124: =C22-'[3]New Rates_V05'!C23 -> 0 | D124: =D22-'[3]New Rates_V05'!D23 -> 0 | E124: =E22-'[3]New Rates_V05'!E23 -> 0 | F124: =F22-'[3]New Rates_V05'!F23 -> 0 | G124: =G22-'[3]New Rates_V05'!G23 -> 0
A125: =A23-'[3]New Rates_V05'!A24 -> 0 | B125: =B23-'[3]New Rates_V05'!B24 -> 0 | C125: =C23-'[3]New Rates_V05'!C24 -> 0 | D125: =D23-'[3]New Rates_V05'!D24 -> 0 | E125: =E23-'[3]New Rates_V05'!E24 -> 0 | F125: =F23-'[3]New Rates_V05'!F24 -> 0 | G125: =G23-'[3]New Rates_V05'!G24 -> 0
A126: =A24-'[3]New Rates_V05'!A25 -> 0 | B126: =B24-'[3]New Rates_V05'!B25 -> 0 | C126: =C24-'[3]New Rates_V05'!C25 -> 0 | D126: =D24-'[3]New Rates_V05'!D25 -> 0 | E126: =E24-'[3]New Rates_V05'!E25 -> 0 | F126: =F24-'[3]New Rates_V05'!F25 -> 0 | G126: =G24-'[3]New Rates_V05'!G25 -> 0
A127: =A25-'[3]New Rates_V05'!A26 -> 0 | B127: =B25-'[3]New Rates_V05'!B26 -> 0 | C127: =C25-'[3]New Rates_V05'!C26 -> 0 | D127: =D25-'[3]New Rates_V05'!D26 -> 0 | E127: =E25-'[3]New Rates_V05'!E26 -> 0 | F127: =F25-'[3]New Rates_V05'!F26 -> 0 | G127: =G25-'[3]New Rates_V05'!G26 -> 0
A128: =A26-'[3]New Rates_V05'!A27 -> 0 | B128: =B26-'[3]New Rates_V05'!B27 -> 0 | C128: =C26-'[3]New Rates_V05'!C27 -> 0 | D128: =D26-'[3]New Rates_V05'!D27 -> 0 | E128: =E26-'[3]New Rates_V05'!E27 -> 0 | F128: =F26-'[3]New Rates_V05'!F27 -> 0 | G128: =G26-'[3]New Rates_V05'!G27 -> 0
A129: =A27-'[3]New Rates_V05'!A28 -> 0 | B129: =B27-'[3]New Rates_V05'!B28 -> 0 | C129: =C27-'[3]New Rates_V05'!C28 -> 0 | D129: =D27-'[3]New Rates_V05'!D28 -> 0 | E129: =E27-'[3]New Rates_V05'!E28 -> 0 | F129: =F27-'[3]New Rates_V05'!F28 -> 0 | G129: =G27-'[3]New Rates_V05'!G28 -> 0
A130: =A28-'[3]New Rates_V05'!A29 -> 0 | B130: =B28-'[3]New Rates_V05'!B29 -> 0 | C130: =C28-'[3]New Rates_V05'!C29 -> 0 | D130: =D28-'[3]New Rates_V05'!D29 -> 0 | E130: =E28-'[3]New Rates_V05'!E29 -> 0 | F130: =F28-'[3]New Rates_V05'!F29 -> 0 | G130: =G28-'[3]New Rates_V05'!G29 -> 0
A131: =A29-'[3]New Rates_V05'!A30 -> 0 | B131: =B29-'[3]New Rates_V05'!B30 -> 0 | C131: =C29-'[3]New Rates_V05'!C30 -> 0 | D131: =D29-'[3]New Rates_V05'!D30 -> 0 | E131: =E29-'[3]New Rates_V05'!E30 -> 0 | F131: =F29-'[3]New Rates_V05'!F30 -> 0 | G131: =G29-'[3]New Rates_V05'!G30 -> 0
A132: =A30-'[3]New Rates_V05'!A31 -> 0 | B132: =B30-'[3]New Rates_V05'!B31 -> 0 | C132: =C30-'[3]New Rates_V05'!C31 -> 0 | D132: =D30-'[3]New Rates_V05'!D31 -> 0 | E132: =E30-'[3]New Rates_V05'!E31 -> 0 | F132: =F30-'[3]New Rates_V05'!F31 -> 0 | G132: =G30-'[3]New Rates_V05'!G31 -> 0
A133: =A31-'[3]New Rates_V05'!A32 -> 0 | B133: =B31-'[3]New Rates_V05'!B32 -> 0 | C133: =C31-'[3]New Rates_V05'!C32 -> 0 | D133: =D31-'[3]New Rates_V05'!D32 -> 0 | E133: =E31-'[3]New Rates_V05'!E32 -> 0 | F133: =F31-'[3]New Rates_V05'!F32 -> 0 | G133: =G31-'[3]New Rates_V05'!G32 -> 0
A134: =A32-'[3]New Rates_V05'!A33 -> 0 | B134: =B32-'[3]New Rates_V05'!B33 -> 0 | C134: =C32-'[3]New Rates_V05'!C33 -> 0 | D134: =D32-'[3]New Rates_V05'!D33 -> 0 | E134: =E32-'[3]New Rates_V05'!E33 -> 0 | F134: =F32-'[3]New Rates_V05'!F33 -> 0 | G134: =G32-'[3]New Rates_V05'!G33 -> 0
A135: =A33-'[3]New Rates_V05'!A34 -> 0 | B135: =B33-'[3]New Rates_V05'!B34 -> 0 | C135: =C33-'[3]New Rates_V05'!C34 -> 0 | D135: =D33-'[3]New Rates_V05'!D34 -> 0 | E135: =E33-'[3]New Rates_V05'!E34 -> 0 | F135: =F33-'[3]New Rates_V05'!F34 -> 0 | G135: =G33-'[3]New Rates_V05'!G34 -> 0
A136: =A34-'[3]New Rates_V05'!A35 -> 0 | B136: =B34-'[3]New Rates_V05'!B35 -> 0 | C136: =C34-'[3]New Rates_V05'!C35 -> 0 | D136: =D34-'[3]New Rates_V05'!D35 -> 0 | E136: =E34-'[3]New Rates_V05'!E35 -> 0 | F136: =F34-'[3]New Rates_V05'!F35 -> 0 | G136: =G34-'[3]New Rates_V05'!G35 -> 0
A137: =A35-'[3]New Rates_V05'!A36 -> 0 | B137: =B35-'[3]New Rates_V05'!B36 -> 0 | C137: =C35-'[3]New Rates_V05'!C36 -> 0 | D137: =D35-'[3]New Rates_V05'!D36 -> 0 | E137: =E35-'[3]New Rates_V05'!E36 -> 0 | F137: =F35-'[3]New Rates_V05'!F36 -> 0 | G137: =G35-'[3]New Rates_V05'!G36 -> 0
A138: =A36-'[3]New Rates_V05'!A37 -> 0 | B138: =B36-'[3]New Rates_V05'!B37 -> 0 | C138: =C36-'[3]New Rates_V05'!C37 -> 0 | D138: =D36-'[3]New Rates_V05'!D37 -> 0 | E138: =E36-'[3]New Rates_V05'!E37 -> 0 | F138: =F36-'[3]New Rates_V05'!F37 -> 0 | G138: =G36-'[3]New Rates_V05'!G37 -> 0
A139: =A37-'[3]New Rates_V05'!A38 -> 0 | B139: =B37-'[3]New Rates_V05'!B38 -> 0 | C139: =C37-'[3]New Rates_V05'!C38 -> 0 | D139: =D37-'[3]New Rates_V05'!D38 -> 0 | E139: =E37-'[3]New Rates_V05'!E38 -> 0 | F139: =F37-'[3]New Rates_V05'!F38 -> 0 | G139: =G37-'[3]New Rates_V05'!G38 -> 0
A140: =A38-'[3]New Rates_V05'!A39 -> 0 | B140: =B38-'[3]New Rates_V05'!B39 -> 0 | C140: =C38-'[3]New Rates_V05'!C39 -> 0 | D140: =D38-'[3]New Rates_V05'!D39 -> 0 | E140: =E38-'[3]New Rates_V05'!E39 -> 0 | F140: =F38-'[3]New Rates_V05'!F39 -> 0 | G140: =G38-'[3]New Rates_V05'!G39 -> 0
A141: =A39-'[3]New Rates_V05'!A40 -> 0 | B141: =B39-'[3]New Rates_V05'!B40 -> 0 | C141: =C39-'[3]New Rates_V05'!C40 -> 0 | D141: =D39-'[3]New Rates_V05'!D40 -> 0 | E141: =E39-'[3]New Rates_V05'!E40 -> 0 | F141: =F39-'[3]New Rates_V05'!F40 -> 0 | G141: =G39-'[3]New Rates_V05'!G40 -> 0
A142: =A40-'[3]New Rates_V05'!A41 -> 0 | B142: =B40-'[3]New Rates_V05'!B41 -> 0 | C142: =C40-'[3]New Rates_V05'!C41 -> 0 | D142: =D40-'[3]New Rates_V05'!D41 -> 0 | E142: =E40-'[3]New Rates_V05'!E41 -> 0 | F142: =F40-'[3]New Rates_V05'!F41 -> 0 | G142: =G40-'[3]New Rates_V05'!G41 -> 0
A143: =A41-'[3]New Rates_V05'!A42 -> 0 | B143: =B41-'[3]New Rates_V05'!B42 -> 0 | C143: =C41-'[3]New Rates_V05'!C42 -> 0 | D143: =D41-'[3]New Rates_V05'!D42 -> 0 | E143: =E41-'[3]New Rates_V05'!E42 -> 0 | F143: =F41-'[3]New Rates_V05'!F42 -> 0 | G143: =G41-'[3]New Rates_V05'!G42 -> 0
A144: =A42-'[3]New Rates_V05'!A43 -> 0 | B144: =B42-'[3]New Rates_V05'!B43 -> 0 | C144: =C42-'[3]New Rates_V05'!C43 -> 0 | D144: =D42-'[3]New Rates_V05'!D43 -> 0 | E144: =E42-'[3]New Rates_V05'!E43 -> 0 | F144: =F42-'[3]New Rates_V05'!F43 -> 0 | G144: =G42-'[3]New Rates_V05'!G43 -> 0
A145: =A43-'[3]New Rates_V05'!A44 -> 0 | B145: =B43-'[3]New Rates_V05'!B44 -> 0 | C145: =C43-'[3]New Rates_V05'!C44 -> 0 | D145: =D43-'[3]New Rates_V05'!D44 -> 0 | E145: =E43-'[3]New Rates_V05'!E44 -> 0 | F145: =F43-'[3]New Rates_V05'!F44 -> 0 | G145: =G43-'[3]New Rates_V05'!G44 -> 0
A146: =A44-'[3]New Rates_V05'!A45 -> 0 | B146: =B44-'[3]New Rates_V05'!B45 -> 0 | C146: =C44-'[3]New Rates_V05'!C45 -> 0 | D146: =D44-'[3]New Rates_V05'!D45 -> 0 | E146: =E44-'[3]New Rates_V05'!E45 -> 0 | F146: =F44-'[3]New Rates_V05'!F45 -> 0 | G146: =G44-'[3]New Rates_V05'!G45 -> 0
A147: =A45-'[3]New Rates_V05'!A46 -> 0 | B147: =B45-'[3]New Rates_V05'!B46 -> 0 | C147: =C45-'[3]New Rates_V05'!C46 -> 0 | D147: =D45-'[3]New Rates_V05'!D46 -> 0 | E147: =E45-'[3]New Rates_V05'!E46 -> 0 | F147: =F45-'[3]New Rates_V05'!F46 -> 0 | G147: =G45-'[3]New Rates_V05'!G46 -> 0
A148: =A46-'[3]New Rates_V05'!A47 -> 0 | B148: =B46-'[3]New Rates_V05'!B47 -> 0 | C148: =C46-'[3]New Rates_V05'!C47 -> 0 | D148: =D46-'[3]New Rates_V05'!D47 -> 0 | E148: =E46-'[3]New Rates_V05'!E47 -> 0 | F148: =F46-'[3]New Rates_V05'!F47 -> 0 | G148: =G46-'[3]New Rates_V05'!G47 -> 0
A149: =A47-'[3]New Rates_V05'!A48 -> 0 | B149: =B47-'[3]New Rates_V05'!B48 -> 0 | C149: =C47-'[3]New Rates_V05'!C48 -> 0 | D149: =D47-'[3]New Rates_V05'!D48 -> 0 | E149: =E47-'[3]New Rates_V05'!E48 -> 0 | F149: =F47-'[3]New Rates_V05'!F48 -> 0 | G149: =G47-'[3]New Rates_V05'!G48 -> 0
A150: =A48-'[3]New Rates_V05'!A49 -> 0 | B150: =B48-'[3]New Rates_V05'!B49 -> 0 | C150: =C48-'[3]New Rates_V05'!C49 -> 0 | D150: =D48-'[3]New Rates_V05'!D49 -> 0 | E150: =E48-'[3]New Rates_V05'!E49 -> 0 | F150: =F48-'[3]New Rates_V05'!F49 -> 0 | G150: =G48-'[3]New Rates_V05'!G49 -> 0
A151: =A49-'[3]New Rates_V05'!A50 -> 0 | B151: =B49-'[3]New Rates_V05'!B50 -> 0 | C151: =C49-'[3]New Rates_V05'!C50 -> 0 | D151: =D49-'[3]New Rates_V05'!D50 -> 0 | E151: =E49-'[3]New Rates_V05'!E50 -> 0 | F151: =F49-'[3]New Rates_V05'!F50 -> 0 | G151: =G49-'[3]New Rates_V05'!G50 -> 0
A152: =A50-'[3]New Rates_V05'!A51 -> 0 | B152: =B50-'[3]New Rates_V05'!B51 -> 0 | C152: =C50-'[3]New Rates_V05'!C51 -> 0 | D152: =D50-'[3]New Rates_V05'!D51 -> 0 | E152: =E50-'[3]New Rates_V05'!E51 -> 0 | F152: =F50-'[3]New Rates_V05'!F51 -> 0 | G152: =G50-'[3]New Rates_V05'!G51 -> 0
A153: =A51-'[3]New Rates_V05'!A52 -> 0 | B153: =B51-'[3]New Rates_V05'!B52 -> 0 | C153: =C51-'[3]New Rates_V05'!C52 -> 0 | D153: =D51-'[3]New Rates_V05'!D52 -> 0 | E153: =E51-'[3]New Rates_V05'!E52 -> 0 | F153: =F51-'[3]New Rates_V05'!F52 -> 0 | G153: =G51-'[3]New Rates_V05'!G52 -> 0
A154: =A52-'[3]New Rates_V05'!A53 -> 0 | B154: =B52-'[3]New Rates_V05'!B53 -> 0 | C154: =C52-'[3]New Rates_V05'!C53 -> 0 | D154: =D52-'[3]New Rates_V05'!D53 -> 0 | E154: =E52-'[3]New Rates_V05'!E53 -> 0 | F154: =F52-'[3]New Rates_V05'!F53 -> 0 | G154: =G52-'[3]New Rates_V05'!G53 -> 0
A155: =A53-'[3]New Rates_V05'!A54 -> 0 | B155: =B53-'[3]New Rates_V05'!B54 -> 0 | C155: =C53-'[3]New Rates_V05'!C54 -> 0 | D155: =D53-'[3]New Rates_V05'!D54 -> 0 | E155: =E53-'[3]New Rates_V05'!E54 -> 0 | F155: =F53-'[3]New Rates_V05'!F54 -> 0 | G155: =G53-'[3]New Rates_V05'!G54 -> 0
A156: =A54-'[3]New Rates_V05'!A55 -> 0 | B156: =B54-'[3]New Rates_V05'!B55 -> 0 | C156: =C54-'[3]New Rates_V05'!C55 -> 0 | D156: =D54-'[3]New Rates_V05'!D55 -> 0 | E156: =E54-'[3]New Rates_V05'!E55 -> 0 | F156: =F54-'[3]New Rates_V05'!F55 -> 0 | G156: =G54-'[3]New Rates_V05'!G55 -> 0
A157: =A55-'[3]New Rates_V05'!A56 -> 0 | B157: =B55-'[3]New Rates_V05'!B56 -> 0 | C157: =C55-'[3]New Rates_V05'!C56 -> 0 | D157: =D55-'[3]New Rates_V05'!D56 -> 0 | E157: =E55-'[3]New Rates_V05'!E56 -> 0 | F157: =F55-'[3]New Rates_V05'!F56 -> 0 | G157: =G55-'[3]New Rates_V05'!G56 -> 0
A158: =A56-'[3]New Rates_V05'!A57 -> 0 | B158: =B56-'[3]New Rates_V05'!B57 -> 0 | C158: =C56-'[3]New Rates_V05'!C57 -> 0 | D158: =D56-'[3]New Rates_V05'!D57 -> 0 | E158: =E56-'[3]New Rates_V05'!E57 -> 0 | F158: =F56-'[3]New Rates_V05'!F57 -> 0 | G158: =G56-'[3]New Rates_V05'!G57 -> 0
A159: =A57-'[3]New Rates_V05'!A58 -> 0 | B159: =B57-'[3]New Rates_V05'!B58 -> 0 | C159: =C57-'[3]New Rates_V05'!C58 -> 0 | D159: =D57-'[3]New Rates_V05'!D58 -> 0 | E159: =E57-'[3]New Rates_V05'!E58 -> 0 | F159: =F57-'[3]New Rates_V05'!F58 -> 0 | G159: =G57-'[3]New Rates_V05'!G58 -> 0
A160: =A58-'[3]New Rates_V05'!A59 -> 0 | B160: =B58-'[3]New Rates_V05'!B59 -> 0 | C160: =C58-'[3]New Rates_V05'!C59 -> 0 | D160: =D58-'[3]New Rates_V05'!D59 -> 0 | E160: =E58-'[3]New Rates_V05'!E59 -> 0 | F160: =F58-'[3]New Rates_V05'!F59 -> 0 | G160: =G58-'[3]New Rates_V05'!G59 -> 0
A161: =A59-'[3]New Rates_V05'!A60 -> 0 | B161: =B59-'[3]New Rates_V05'!B60 -> 0 | C161: =C59-'[3]New Rates_V05'!C60 -> 0 | D161: =D59-'[3]New Rates_V05'!D60 -> 0 | E161: =E59-'[3]New Rates_V05'!E60 -> 0 | F161: =F59-'[3]New Rates_V05'!F60 -> 0 | G161: =G59-'[3]New Rates_V05'!G60 -> 0
A162: =A60-'[3]New Rates_V05'!A61 -> 0 | B162: =B60-'[3]New Rates_V05'!B61 -> 0 | C162: =C60-'[3]New Rates_V05'!C61 -> 0 | D162: =D60-'[3]New Rates_V05'!D61 -> 0 | E162: =E60-'[3]New Rates_V05'!E61 -> 0 | F162: =F60-'[3]New Rates_V05'!F61 -> 0 | G162: =G60-'[3]New Rates_V05'!G61 -> 0
A163: =A61-'[3]New Rates_V05'!A62 -> 0 | B163: =B61-'[3]New Rates_V05'!B62 -> 0 | C163: =C61-'[3]New Rates_V05'!C62 -> 0 | D163: =D61-'[3]New Rates_V05'!D62 -> 0 | E163: =E61-'[3]New Rates_V05'!E62 -> 0 | F163: =F61-'[3]New Rates_V05'!F62 -> 0 | G163: =G61-'[3]New Rates_V05'!G62 -> 0
A164: =A62-'[3]New Rates_V05'!A63 -> 0 | B164: =B62-'[3]New Rates_V05'!B63 -> 0 | C164: =C62-'[3]New Rates_V05'!C63 -> 0 | D164: =D62-'[3]New Rates_V05'!D63 -> 0 | E164: =E62-'[3]New Rates_V05'!E63 -> 0 | F164: =F62-'[3]New Rates_V05'!F63 -> 0 | G164: =G62-'[3]New Rates_V05'!G63 -> 0
A165: =A63-'[3]New Rates_V05'!A64 -> 0 | B165: =B63-'[3]New Rates_V05'!B64 -> 0 | C165: =C63-'[3]New Rates_V05'!C64 -> 0 | D165: =D63-'[3]New Rates_V05'!D64 -> 0 | E165: =E63-'[3]New Rates_V05'!E64 -> 0 | F165: =F63-'[3]New Rates_V05'!F64 -> 0 | G165: =G63-'[3]New Rates_V05'!G64 -> 0
A166: =A64-'[3]New Rates_V05'!A65 -> 0 | B166: =B64-'[3]New Rates_V05'!B65 -> 0 | C166: =C64-'[3]New Rates_V05'!C65 -> 0 | D166: =D64-'[3]New Rates_V05'!D65 -> 0 | E166: =E64-'[3]New Rates_V05'!E65 -> 0 | F166: =F64-'[3]New Rates_V05'!F65 -> 0 | G166: =G64-'[3]New Rates_V05'!G65 -> 0
A167: =A65-'[3]New Rates_V05'!A66 -> 0 | B167: =B65-'[3]New Rates_V05'!B66 -> 0 | C167: =C65-'[3]New Rates_V05'!C66 -> 0 | D167: =D65-'[3]New Rates_V05'!D66 -> 0 | E167: =E65-'[3]New Rates_V05'!E66 -> 0 | F167: =F65-'[3]New Rates_V05'!F66 -> 0 | G167: =G65-'[3]New Rates_V05'!G66 -> 0
A168: =A66-'[3]New Rates_V05'!A67 -> 0 | B168: =B66-'[3]New Rates_V05'!B67 -> 0 | C168: =C66-'[3]New Rates_V05'!C67 -> 0 | D168: =D66-'[3]New Rates_V05'!D67 -> 0 | E168: =E66-'[3]New Rates_V05'!E67 -> 0 | F168: =F66-'[3]New Rates_V05'!F67 -> 0 | G168: =G66-'[3]New Rates_V05'!G67 -> 0
A169: =A67-'[3]New Rates_V05'!A68 -> 0 | B169: =B67-'[3]New Rates_V05'!B68 -> 0 | C169: =C67-'[3]New Rates_V05'!C68 -> 0 | D169: =D67-'[3]New Rates_V05'!D68 -> 0 | E169: =E67-'[3]New Rates_V05'!E68 -> 0 | F169: =F67-'[3]New Rates_V05'!F68 -> 0 | G169: =G67-'[3]New Rates_V05'!G68 -> 0
A170: =A68-'[3]New Rates_V05'!A69 -> 0 | B170: =B68-'[3]New Rates_V05'!B69 -> 0 | C170: =C68-'[3]New Rates_V05'!C69 -> 0 | D170: =D68-'[3]New Rates_V05'!D69 -> 0 | E170: =E68-'[3]New Rates_V05'!E69 -> 0 | F170: =F68-'[3]New Rates_V05'!F69 -> 0 | G170: =G68-'[3]New Rates_V05'!G69 -> 0
A171: =A69-'[3]New Rates_V05'!A70 -> 0 | B171: =B69-'[3]New Rates_V05'!B70 -> 0 | C171: =C69-'[3]New Rates_V05'!C70 -> 0 | D171: =D69-'[3]New Rates_V05'!D70 -> 0 | E171: =E69-'[3]New Rates_V05'!E70 -> 0 | F171: =F69-'[3]New Rates_V05'!F70 -> 0 | G171: =G69-'[3]New Rates_V05'!G70 -> 0
A172: =A70-'[3]New Rates_V05'!A71 -> 0 | B172: =B70-'[3]New Rates_V05'!B71 -> 0 | C172: =C70-'[3]New Rates_V05'!C71 -> 0 | D172: =D70-'[3]New Rates_V05'!D71 -> 0 | E172: =E70-'[3]New Rates_V05'!E71 -> 0 | F172: =F70-'[3]New Rates_V05'!F71 -> 0 | G172: =G70-'[3]New Rates_V05'!G71 -> 0
A173: =A71-'[3]New Rates_V05'!A72 -> 0 | B173: =B71-'[3]New Rates_V05'!B72 -> 0 | C173: =C71-'[3]New Rates_V05'!C72 -> 0 | D173: =D71-'[3]New Rates_V05'!D72 -> 0 | E173: =E71-'[3]New Rates_V05'!E72 -> 0 | F173: =F71-'[3]New Rates_V05'!F72 -> 0 | G173: =G71-'[3]New Rates_V05'!G72 -> 0
A174: =A72-'[3]New Rates_V05'!A73 -> 0 | B174: =B72-'[3]New Rates_V05'!B73 -> 0 | C174: =C72-'[3]New Rates_V05'!C73 -> 0 | D174: =D72-'[3]New Rates_V05'!D73 -> 0 | E174: =E72-'[3]New Rates_V05'!E73 -> 0 | F174: =F72-'[3]New Rates_V05'!F73 -> 0 | G174: =G72-'[3]New Rates_V05'!G73 -> 0
A175: =A73-'[3]New Rates_V05'!A74 -> 0 | B175: =B73-'[3]New Rates_V05'!B74 -> 0 | C175: =C73-'[3]New Rates_V05'!C74 -> 0 | D175: =D73-'[3]New Rates_V05'!D74 -> 0 | E175: =E73-'[3]New Rates_V05'!E74 -> 0 | F175: =F73-'[3]New Rates_V05'!F74 -> 0 | G175: =G73-'[3]New Rates_V05'!G74 -> 0
A176: =A74-'[3]New Rates_V05'!A75 -> 0 | B176: =B74-'[3]New Rates_V05'!B75 -> 0 | C176: =C74-'[3]New Rates_V05'!C75 -> 0 | D176: =D74-'[3]New Rates_V05'!D75 -> 0 | E176: =E74-'[3]New Rates_V05'!E75 -> 0 | F176: =F74-'[3]New Rates_V05'!F75 -> 0 | G176: =G74-'[3]New Rates_V05'!G75 -> 0
A177: =A75-'[3]New Rates_V05'!A76 -> 0 | B177: =B75-'[3]New Rates_V05'!B76 -> 0 | C177: =C75-'[3]New Rates_V05'!C76 -> 0 | D177: =D75-'[3]New Rates_V05'!D76 -> 0 | E177: =E75-'[3]New Rates_V05'!E76 -> 0 | F177: =F75-'[3]New Rates_V05'!F76 -> 0 | G177: =G75-'[3]New Rates_V05'!G76 -> 0
A178: =A76-'[3]New Rates_V05'!A77 -> 0 | B178: =B76-'[3]New Rates_V05'!B77 -> 0 | C178: =C76-'[3]New Rates_V05'!C77 -> 0 | D178: =D76-'[3]New Rates_V05'!D77 -> 0 | E178: =E76-'[3]New Rates_V05'!E77 -> 0 | F178: =F76-'[3]New Rates_V05'!F77 -> 0 | G178: =G76-'[3]New Rates_V05'!G77 -> 0
A179: =A77-'[3]New Rates_V05'!A78 -> 0 | B179: =B77-'[3]New Rates_V05'!B78 -> 0 | C179: =C77-'[3]New Rates_V05'!C78 -> 0 | D179: =D77-'[3]New Rates_V05'!D78 -> 0 | E179: =E77-'[3]New Rates_V05'!E78 -> 0 | F179: =F77-'[3]New Rates_V05'!F78 -> 0 | G179: =G77-'[3]New Rates_V05'!G78 -> 0
A180: =A78-'[3]New Rates_V05'!A79 -> 0 | B180: =B78-'[3]New Rates_V05'!B79 -> 0 | C180: =C78-'[3]New Rates_V05'!C79 -> 0 | D180: =D78-'[3]New Rates_V05'!D79 -> 0 | E180: =E78-'[3]New Rates_V05'!E79 -> 0 | F180: =F78-'[3]New Rates_V05'!F79 -> 0 | G180: =G78-'[3]New Rates_V05'!G79 -> 0
A181: =A79-'[3]New Rates_V05'!A80 -> 0 | B181: =B79-'[3]New Rates_V05'!B80 -> 0 | C181: =C79-'[3]New Rates_V05'!C80 -> 0 | D181: =D79-'[3]New Rates_V05'!D80 -> 0 | E181: =E79-'[3]New Rates_V05'!E80 -> 0 | F181: =F79-'[3]New Rates_V05'!F80 -> 0 | G181: =G79-'[3]New Rates_V05'!G80 -> 0
A182: =A80-'[3]New Rates_V05'!A81 -> 0 | B182: =B80-'[3]New Rates_V05'!B81 -> 0 | C182: =C80-'[3]New Rates_V05'!C81 -> 0 | D182: =D80-'[3]New Rates_V05'!D81 -> 0 | E182: =E80-'[3]New Rates_V05'!E81 -> 0 | F182: =F80-'[3]New Rates_V05'!F81 -> 0 | G182: =G80-'[3]New Rates_V05'!G81 -> 0
A183: =A81-'[3]New Rates_V05'!A82 -> 0 | B183: =B81-'[3]New Rates_V05'!B82 -> 0 | C183: =C81-'[3]New Rates_V05'!C82 -> 0 | D183: =D81-'[3]New Rates_V05'!D82 -> 0 | E183: =E81-'[3]New Rates_V05'!E82 -> 0 | F183: =F81-'[3]New Rates_V05'!F82 -> 0 | G183: =G81-'[3]New Rates_V05'!G82 -> 0
A184: =A82-'[3]New Rates_V05'!A83 -> 0 | B184: =B82-'[3]New Rates_V05'!B83 -> 0 | C184: =C82-'[3]New Rates_V05'!C83 -> 0 | D184: =D82-'[3]New Rates_V05'!D83 -> 0 | E184: =E82-'[3]New Rates_V05'!E83 -> 0 | F184: =F82-'[3]New Rates_V05'!F83 -> 0 | G184: =G82-'[3]New Rates_V05'!G83 -> 0
A185: =A83-'[3]New Rates_V05'!A84 -> 0 | B185: =B83-'[3]New Rates_V05'!B84 -> 0 | C185: =C83-'[3]New Rates_V05'!C84 -> 0 | D185: =D83-'[3]New Rates_V05'!D84 -> 0 | E185: =E83-'[3]New Rates_V05'!E84 -> 0 | F185: =F83-'[3]New Rates_V05'!F84 -> 0 | G185: =G83-'[3]New Rates_V05'!G84 -> 0
A186: =A84-'[3]New Rates_V05'!A85 -> 0 | B186: =B84-'[3]New Rates_V05'!B85 -> 0 | C186: =C84-'[3]New Rates_V05'!C85 -> 0 | D186: =D84-'[3]New Rates_V05'!D85 -> 0 | E186: =E84-'[3]New Rates_V05'!E85 -> 0 | F186: =F84-'[3]New Rates_V05'!F85 -> 0 | G186: =G84-'[3]New Rates_V05'!G85 -> 0
A187: =A85-'[3]New Rates_V05'!A86 -> 0 | B187: =B85-'[3]New Rates_V05'!B86 -> 0 | C187: =C85-'[3]New Rates_V05'!C86 -> 0 | D187: =D85-'[3]New Rates_V05'!D86 -> 0 | E187: =E85-'[3]New Rates_V05'!E86 -> 0 | F187: =F85-'[3]New Rates_V05'!F86 -> 0 | G187: =G85-'[3]New Rates_V05'!G86 -> 0
A188: =A86-'[3]New Rates_V05'!A87 -> 0 | B188: =B86-'[3]New Rates_V05'!B87 -> 0 | C188: =C86-'[3]New Rates_V05'!C87 -> 0 | D188: =D86-'[3]New Rates_V05'!D87 -> 0 | E188: =E86-'[3]New Rates_V05'!E87 -> 0 | F188: =F86-'[3]New Rates_V05'!F87 -> 0 | G188: =G86-'[3]New Rates_V05'!G87 -> 0
A189: =A87-'[3]New Rates_V05'!A88 -> 0 | B189: =B87-'[3]New Rates_V05'!B88 -> 0 | C189: =C87-'[3]New Rates_V05'!C88 -> 0 | D189: =D87-'[3]New Rates_V05'!D88 -> 0 | E189: =E87-'[3]New Rates_V05'!E88 -> 0 | F189: =F87-'[3]New Rates_V05'!F88 -> 0 | G189: =G87-'[3]New Rates_V05'!G88 -> 0
A190: =A88-'[3]New Rates_V05'!A89 -> 0 | B190: =B88-'[3]New Rates_V05'!B89 -> 0 | C190: =C88-'[3]New Rates_V05'!C89 -> 0 | D190: =D88-'[3]New Rates_V05'!D89 -> 0 | E190: =E88-'[3]New Rates_V05'!E89 -> 0 | F190: =F88-'[3]New Rates_V05'!F89 -> 0 | G190: =G88-'[3]New Rates_V05'!G89 -> 0
A191: =A89-'[3]New Rates_V05'!A90 -> 0 | B191: =B89-'[3]New Rates_V05'!B90 -> 0 | C191: =C89-'[3]New Rates_V05'!C90 -> 0 | D191: =D89-'[3]New Rates_V05'!D90 -> 0 | E191: =E89-'[3]New Rates_V05'!E90 -> 0 | F191: =F89-'[3]New Rates_V05'!F90 -> 0 | G191: =G89-'[3]New Rates_V05'!G90 -> 0
A192: =A90-'[3]New Rates_V05'!A91 -> 0 | B192: =B90-'[3]New Rates_V05'!B91 -> 0 | C192: =C90-'[3]New Rates_V05'!C91 -> 0 | D192: =D90-'[3]New Rates_V05'!D91 -> 0 | E192: =E90-'[3]New Rates_V05'!E91 -> 0 | F192: =F90-'[3]New Rates_V05'!F91 -> 0 | G192: =G90-'[3]New Rates_V05'!G91 -> 0
A193: =A91-'[3]New Rates_V05'!A92 -> 0 | B193: =B91-'[3]New Rates_V05'!B92 -> 0 | C193: =C91-'[3]New Rates_V05'!C92 -> 0 | D193: =D91-'[3]New Rates_V05'!D92 -> 0 | E193: =E91-'[3]New Rates_V05'!E92 -> 0 | F193: =F91-'[3]New Rates_V05'!F92 -> 0 | G193: =G91-'[3]New Rates_V05'!G92 -> 0
A194: =A92-'[3]New Rates_V05'!A93 -> 0 | B194: =B92-'[3]New Rates_V05'!B93 -> 0 | C194: =C92-'[3]New Rates_V05'!C93 -> 0 | D194: =D92-'[3]New Rates_V05'!D93 -> 0 | E194: =E92-'[3]New Rates_V05'!E93 -> 0 | F194: =F92-'[3]New Rates_V05'!F93 -> 0 | G194: =G92-'[3]New Rates_V05'!G93 -> 0
A195: =A93-'[3]New Rates_V05'!A94 -> 0 | B195: =B93-'[3]New Rates_V05'!B94 -> 0 | C195: =C93-'[3]New Rates_V05'!C94 -> 0 | D195: =D93-'[3]New Rates_V05'!D94 -> 0 | E195: =E93-'[3]New Rates_V05'!E94 -> 0 | F195: =F93-'[3]New Rates_V05'!F94 -> 0 | G195: =G93-'[3]New Rates_V05'!G94 -> 0
A196: =A94-'[3]New Rates_V05'!A95 -> 0 | B196: =B94-'[3]New Rates_V05'!B95 -> 0 | C196: =C94-'[3]New Rates_V05'!C95 -> 0 | D196: =D94-'[3]New Rates_V05'!D95 -> 0 | E196: =E94-'[3]New Rates_V05'!E95 -> 0 | F196: =F94-'[3]New Rates_V05'!F95 -> 0 | G196: =G94-'[3]New Rates_V05'!G95 -> 0
A197: =A95-'[3]New Rates_V05'!A96 -> 0 | B197: =B95-'[3]New Rates_V05'!B96 -> 0 | C197: =C95-'[3]New Rates_V05'!C96 -> 0 | D197: =D95-'[3]New Rates_V05'!D96 -> 0 | E197: =E95-'[3]New Rates_V05'!E96 -> 0 | F197: =F95-'[3]New Rates_V05'!F96 -> 0 | G197: =G95-'[3]New Rates_V05'!G96 -> 0
A198: =A96-'[3]New Rates_V05'!A97 -> 0 | B198: =B96-'[3]New Rates_V05'!B97 -> 0 | C198: =C96-'[3]New Rates_V05'!C97 -> 0 | D198: =D96-'[3]New Rates_V05'!D97 -> 0 | E198: =E96-'[3]New Rates_V05'!E97 -> 0 | F198: =F96-'[3]New Rates_V05'!F97 -> 0 | G198: =G96-'[3]New Rates_V05'!G97 -> 0
A199: =A97-'[3]New Rates_V05'!A98 -> 0 | B199: =B97-'[3]New Rates_V05'!B98 -> 0 | C199: =C97-'[3]New Rates_V05'!C98 -> 0 | D199: =D97-'[3]New Rates_V05'!D98 -> 0 | E199: =E97-'[3]New Rates_V05'!E98 -> 0 | F199: =F97-'[3]New Rates_V05'!F98 -> 0 | G199: =G97-'[3]New Rates_V05'!G98 -> 0
A200: =A98-'[3]New Rates_V05'!A99 -> 0 | B200: =B98-'[3]New Rates_V05'!B99 -> 0 | C200: =C98-'[3]New Rates_V05'!C99 -> 0 | D200: =D98-'[3]New Rates_V05'!D99 -> 0 | E200: =E98-'[3]New Rates_V05'!E99 -> 0 | F200: =F98-'[3]New Rates_V05'!F99 -> 0 | G200: =G98-'[3]New Rates_V05'!G99 -> 0
A201: =A99-'[3]New Rates_V05'!A100 -> 0 | B201: =B99-'[3]New Rates_V05'!B100 -> 0 | C201: =C99-'[3]New Rates_V05'!C100 -> 0 | D201: =D99-'[3]New Rates_V05'!D100 -> 0 | E201: =E99-'[3]New Rates_V05'!E100 -> 0 | F201: =F99-'[3]New Rates_V05'!F100 -> 0 | G201: =G99-'[3]New Rates_V05'!G100 -> 0
A202: =A100-'[3]New Rates_V05'!A101 -> 0 | B202: =B100-'[3]New Rates_V05'!B101 -> 0 | C202: =C100-'[3]New Rates_V05'!C101 -> 0 | D202: =D100-'[3]New Rates_V05'!D101 -> 0 | E202: =E100-'[3]New Rates_V05'!E101 -> 0 | F202: =F100-'[3]New Rates_V05'!F101 -> 0 | G202: =G100-'[3]New Rates_V05'!G101 -> 0
... 104 more rows

Sheet JL_Revised May 2020 (hidden)
A1: Kotak Lifetime Income (Option 4) - Annuity Rates Applicaple for Purchase Price Less than Rs.2,50,000 and for Annual Mode
A3: Age | B3: 18 | C3: 19 | D3: 20 | E3: 21 | F3: 22 | G3: 23 | H3: 24 | I3: 25 | J3: 26 | K3: 27 | L3: 28 | M3: 29 | N3: 30 | O3: 31 | P3: 32 | Q3: 33 | R3: 34 | S3: 35 | T3: 36 | U3: 37 | V3: 38 | W3: 39 | X3: 40 | Y3: 41 | Z3: 42 | AA3: 43 | AB3: 44 | AC3: 45 | AD3: 46 | AE3: 47 | AF3: 48 | AG3: 49 | AH3: 50 | AI3: 51 | AJ3: 52 | AK3: 53 | AL3: 54 | AM3: 55 | AN3: 56 | AO3: 57 | AP3: 58 | AQ3: 59 | AR3: 60 | AS3: 61 | AT3: 62 | AU3: 63 | AV3: 64 | AW3: 65 | AX3: 66 | AY3: 67 | AZ3: 68 | BA3: 69 | BB3: 70 | BC3: 71 | BD3: 72 | BE3: 73 | BF3: 74 | BG3: 75 | BH3: 76 | BI3: 77 | BJ3: 78 | BK3: 79 | BL3: 80 | BM3: 81 | BN3: 82 | BO3: 83 | BP3: 84 | BQ3: 85 | BR3: 86 | BS3: 87 | BT3: 88 | BU3: 89 | BV3: 90 | BW3: 91 | BX3: 92 | BY3: 93 | BZ3: 94 | CA3: 95 | CB3: 96 | CC3: 97 | CD3: 98 | CE3: 99 | CF3: Age
A4: 18 | B4: 0.0539 | CF4: 18
A5: 19 | B5: 0.0539 | C5: 0.054 | CF5: 19
A6: 20 | B6: 0.054 | C6: 0.054 | D6: 0.0541 | CF6: 20
A7: 21 | B7: 0.054 | C7: 0.0541 | D7: 0.0541 | E7: 0.0542 | CF7: 21
A8: 22 | B8: 0.0541 | C8: 0.0541 | D8: 0.0542 | E8: 0.0542 | F8: 0.0543 | CF8: 22
A9: 23 | B9: 0.0541 | C9: 0.0542 | D9: 0.0542 | E9: 0.0543 | F9: 0.0543 | G9: 0.0544 | CF9: 23
A10: 24 | B10: 0.0542 | C10: 0.0542 | D10: 0.0543 | E10: 0.0543 | F10: 0.0544 | G10: 0.0544 | H10: 0.0545 | CF10: 24
A11: 25 | B11: 0.0542 | C11: 0.0543 | D11: 0.0543 | E11: 0.0544 | F11: 0.0544 | G11: 0.0545 | H11: 0.0546 | I11: 0.0546 | CF11: 25
A12: 26 | B12: 0.0542 | C12: 0.0543 | D12: 0.0544 | E12: 0.0544 | F12: 0.0545 | G12: 0.0546 | H12: 0.0546 | I12: 0.0547 | J12: 0.0548 | CF12: 26
A13: 27 | B13: 0.0543 | C13: 0.0543 | D13: 0.0544 | E13: 0.0545 | F13: 0.0545 | G13: 0.0546 | H13: 0.0547 | I13: 0.0547 | J13: 0.0548 | K13: 0.0549 | CF13: 27
A14: 28 | B14: 0.0543 | C14: 0.0544 | D14: 0.0544 | E14: 0.0545 | F14: 0.0546 | G14: 0.0547 | H14: 0.0547 | I14: 0.0548 | J14: 0.0549 | K14: 0.055 | L14: 0.055 | CF14: 28
A15: 29 | B15: 0.0544 | C15: 0.0544 | D15: 0.0545 | E15: 0.0546 | F15: 0.0546 | G15: 0.0547 | H15: 0.0548 | I15: 0.0549 | J15: 0.0549 | K15: 0.055 | L15: 0.0551 | M15: 0.0552 | CF15: 29
A16: 30 | B16: 0.0544 | C16: 0.0545 | D16: 0.0545 | E16: 0.0546 | F16: 0.0547 | G16: 0.0548 | H16: 0.0549 | I16: 0.0549 | J16: 0.055 | K16: 0.0551 | L16: 0.0552 | M16: 0.0553 | N16: 0.0553 | CF16: 30
A17: 31 | B17: 0.0544 | C17: 0.0545 | D17: 0.0546 | E17: 0.0547 | F17: 0.0547 | G17: 0.0548 | H17: 0.0549 | I17: 0.055 | J17: 0.0551 | K17: 0.0552 | L17: 0.0553 | M17: 0.0553 | N17: 0.0554 | O17: 0.0555 | CF17: 31
A18: 32 | B18: 0.0545 | C18: 0.0545 | D18: 0.0546 | E18: 0.0547 | F18: 0.0548 | G18: 0.0549 | H18: 0.055 | I18: 0.0551 | J18: 0.0551 | K18: 0.0552 | L18: 0.0553 | M18: 0.0554 | N18: 0.0555 | O18: 0.0556 | P18: 0.0557 | CF18: 32
A19: 33 | B19: 0.0545 | C19: 0.0546 | D19: 0.0547 | E19: 0.0548 | F19: 0.0548 | G19: 0.0549 | H19: 0.055 | I19: 0.0551 | J19: 0.0552 | K19: 0.0553 | L19: 0.0554 | M19: 0.0555 | N19: 0.0556 | O19: 0.0557 | P19: 0.0558 | Q19: 0.0559 | CF19: 33
A20: 34 | B20: 0.0545 | C20: 0.0546 | D20: 0.0547 | E20: 0.0548 | F20: 0.0549 | G20: 0.055 | H20: 0.0551 | I20: 0.0552 | J20: 0.0553 | K20: 0.0554 | L20: 0.0555 | M20: 0.0556 | N20: 0.0557 | O20: 0.0558 | P20: 0.0559 | Q20: 0.056 | R20: 0.0561 | CF20: 34
A21: 35 | B21: 0.0546 | C21: 0.0547 | D21: 0.0548 | E21: 0.0548 | F21: 0.0549 | G21: 0.055 | H21: 0.0551 | I21: 0.0552 | J21: 0.0553 | K21: 0.0554 | L21: 0.0555 | M21: 0.0556 | N21: 0.0558 | O21: 0.0559 | P21: 0.056 | Q21: 0.0561 | R21: 0.0562 | S21: 0.0563 | CF21: 35
A22: 36 | B22: 0.0546 | C22: 0.0547 | D22: 0.0548 | E22: 0.0549 | F22: 0.055 | G22: 0.0551 | H22: 0.0552 | I22: 0.0553 | J22: 0.0554 | K22: 0.0555 | L22: 0.0556 | M22: 0.0557 | N22: 0.0558 | O22: 0.0559 | P22: 0.0561 | Q22: 0.0562 | R22: 0.0563 | S22: 0.0564 | T22: 0.0565 | CF22: 36
A23: 37 | B23: 0.0546 | C23: 0.0547 | D23: 0.0548 | E23: 0.0549 | F23: 0.055 | G23: 0.0551 | H23: 0.0552 | I23: 0.0553 | J23: 0.0555 | K23: 0.0556 | L23: 0.0557 | M23: 0.0558 | N23: 0.0559 | O23: 0.056 | P23: 0.0561 | Q23: 0.0563 | R23: 0.0564 | S23: 0.0565 | T23: 0.0566 | U23: 0.0567 | CF23: 37
A24: 38 | B24: 0.0547 | C24: 0.0548 | D24: 0.0549 | E24: 0.055 | F24: 0.0551 | G24: 0.0552 | H24: 0.0553 | I24: 0.0554 | J24: 0.0555 | K24: 0.0556 | L24: 0.0557 | M24: 0.0559 | N24: 0.056 | O24: 0.0561 | P24: 0.0562 | Q24: 0.0563 | R24: 0.0565 | S24: 0.0566 | T24: 0.0567 | U24: 0.0568 | V24: 0.057 | CF24: 38
A25: 39 | B25: 0.0547 | C25: 0.0548 | D25: 0.0549 | E25: 0.055 | F25: 0.0551 | G25: 0.0552 | H25: 0.0553 | I25: 0.0555 | J25: 0.0556 | K25: 0.0557 | L25: 0.0558 | M25: 0.0559 | N25: 0.0561 | O25: 0.0562 | P25: 0.0563 | Q25: 0.0564 | R25: 0.0566 | S25: 0.0567 | T25: 0.0568 | U25: 0.057 | V25: 0.0571 | W25: 0.0572 | CF25: 39
A26: 40 | B26: 0.0547 | C26: 0.0548 | D26: 0.0549 | E26: 0.055 | F26: 0.0552 | G26: 0.0553 | H26: 0.0554 | I26: 0.0555 | J26: 0.0556 | K26: 0.0557 | L26: 0.0559 | M26: 0.056 | N26: 0.0561 | O26: 0.0563 | P26: 0.0564 | Q26: 0.0565 | R26: 0.0567 | S26: 0.0568 | T26: 0.0569 | U26: 0.0571 | V26: 0.0572 | W26: 0.0573 | X26: 0.0575 | CF26: 40
A27: 41 | B27: 0.0548 | C27: 0.0549 | D27: 0.055 | E27: 0.0551 | F27: 0.0552 | G27: 0.0553 | H27: 0.0554 | I27: 0.0556 | J27: 0.0557 | K27: 0.0558 | L27: 0.0559 | M27: 0.0561 | N27: 0.0562 | O27: 0.0563 | P27: 0.0565 | Q27: 0.0566 | R27: 0.0568 | S27: 0.0569 | T27: 0.057 | U27: 0.0572 | V27: 0.0573 | W27: 0.0575 | X27: 0.0576 | Y27: 0.0578 | CF27: 41
A28: 42 | B28: 0.0548 | C28: 0.0549 | D28: 0.055 | E28: 0.0551 | F28: 0.0552 | G28: 0.0554 | H28: 0.0555 | I28: 0.0556 | J28: 0.0557 | K28: 0.0559 | L28: 0.056 | M28: 0.0561 | N28: 0.0563 | O28: 0.0564 | P28: 0.0566 | Q28: 0.0567 | R28: 0.0568 | S28: 0.057 | T28: 0.0571 | U28: 0.0573 | V28: 0.0574 | W28: 0.0576 | X28: 0.0577 | Y28: 0.0579 | Z28: 0.058 | CF28: 42
A29: 43 | B29: 0.0548 | C29: 0.0549 | D29: 0.055 | E29: 0.0552 | F29: 0.0553 | G29: 0.0554 | H29: 0.0555 | I29: 0.0556 | J29: 0.0558 | K29: 0.0559 | L29: 0.0561 | M29: 0.0562 | N29: 0.0563 | O29: 0.0565 | P29: 0.0566 | Q29: 0.0568 | R29: 0.0569 | S29: 0.0571 | T29: 0.0572 | U29: 0.0574 | V29: 0.0576 | W29: 0.0577 | X29: 0.0579 | Y29: 0.058 | Z29: 0.0582 | AA29: 0.0583 | CF29: 43
A30: 44 | B30: 0.0549 | C30: 0.055 | D30: 0.0551 | E30: 0.0552 | F30: 0.0553 | G30: 0.0554 | H30: 0.0556 | I30: 0.0557 | J30: 0.0558 | K30: 0.056 | L30: 0.0561 | M30: 0.0563 | N30: 0.0564 | O30: 0.0566 | P30: 0.0567 | Q30: 0.0569 | R30: 0.057 | S30: 0.0572 | T30: 0.0573 | U30: 0.0575 | V30: 0.0577 | W30: 0.0578 | X30: 0.058 | Y30: 0.0582 | Z30: 0.0583 | AA30: 0.0585 | AB30: 0.0587 | CF30: 44
A31: 45 | B31: 0.0549 | C31: 0.055 | D31: 0.0551 | E31: 0.0552 | F31: 0.0553 | G31: 0.0555 | H31: 0.0556 | I31: 0.0557 | J31: 0.0559 | K31: 0.056 | L31: 0.0562 | M31: 0.0563 | N31: 0.0565 | O31: 0.0566 | P31: 0.0568 | Q31: 0.0569 | R31: 0.0571 | S31: 0.0573 | T31: 0.0574 | U31: 0.0576 | V31: 0.0578 | W31: 0.058 | X31: 0.0581 | Y31: 0.0583 | Z31: 0.0585 | AA31: 0.0586 | AB31: 0.0588 | AC31: 0.059 | CF31: 45
A32: 46 | B32: 0.0549 | C32: 0.055 | D32: 0.0551 | E32: 0.0552 | F32: 0.0554 | G32: 0.0555 | H32: 0.0556 | I32: 0.0558 | J32: 0.0559 | K32: 0.0561 | L32: 0.0562 | M32: 0.0564 | N32: 0.0565 | O32: 0.0567 | P32: 0.0569 | Q32: 0.057 | R32: 0.0572 | S32: 0.0574 | T32: 0.0575 | U32: 0.0577 | V32: 0.0579 | W32: 0.0581 | X32: 0.0583 | Y32: 0.0584 | Z32: 0.0586 | AA32: 0.0588 | AB32: 0.059 | AC32: 0.0592 | AD32: 0.0593 | CF32: 46
A33: 47 | B33: 0.0549 | C33: 0.055 | D33: 0.0552 | E33: 0.0553 | F33: 0.0554 | G33: 0.0555 | H33: 0.0557 | I33: 0.0558 | J33: 0.056 | K33: 0.0561 | L33: 0.0563 | M33: 0.0564 | N33: 0.0566 | O33: 0.0568 | P33: 0.0569 | Q33: 0.0571 | R33: 0.0573 | S33: 0.0574 | T33: 0.0576 | U33: 0.0578 | V33: 0.058 | W33: 0.0582 | X33: 0.0584 | Y33: 0.0586 | Z33: 0.0588 | AA33: 0.0589 | AB33: 0.0591 | AC33: 0.0593 | AD33: 0.0595 | AE33: 0.0597 | CF33: 47
A34: 48 | B34: 0.0549 | C34: 0.0551 | D34: 0.0552 | E34: 0.0553 | F34: 0.0554 | G34: 0.0556 | H34: 0.0557 | I34: 0.0559 | J34: 0.056 | K34: 0.0562 | L34: 0.0563 | M34: 0.0565 | N34: 0.0566 | O34: 0.0568 | P34: 0.057 | Q34: 0.0572 | R34: 0.0573 | S34: 0.0575 | T34: 0.0577 | U34: 0.0579 | V34: 0.0581 | W34: 0.0583 | X34: 0.0585 | Y34: 0.0587 | Z34: 0.0589 | AA34: 0.0591 | AB34: 0.0593 | AC34: 0.0595 | AD34: 0.0597 | AE34: 0.0599 | AF34: 0.0601 | CF34: 48
A35: 49 | B35: 0.055 | C35: 0.0551 | D35: 0.0552 | E35: 0.0553 | F35: 0.0555 | G35: 0.0556 | H35: 0.0557 | I35: 0.0559 | J35: 0.056 | K35: 0.0562 | L35: 0.0564 | M35: 0.0565 | N35: 0.0567 | O35: 0.0569 | P35: 0.0571 | Q35: 0.0572 | R35: 0.0574 | S35: 0.0576 | T35: 0.0578 | U35: 0.058 | V35: 0.0582 | W35: 0.0584 | X35: 0.0586 | Y35: 0.0588 | Z35: 0.059 | AA35: 0.0592 | AB35: 0.0595 | AC35: 0.0597 | AD35: 0.0599 | AE35: 0.0601 | AF35: 0.0603 | AG35: 0.0605 | CF35: 49
A36: 50 | B36: 0.055 | C36: 0.0551 | D36: 0.0552 | E36: 0.0554 | F36: 0.0555 | G36: 0.0556 | H36: 0.0558 | I36: 0.0559 | J36: 0.0561 | K36: 0.0562 | L36: 0.0564 | M36: 0.0566 | N36: 0.0568 | O36: 0.0569 | P36: 0.0571 | Q36: 0.0573 | R36: 0.0575 | S36: 0.0577 | T36: 0.0579 | U36: 0.0581 | V36: 0.0583 | W36: 0.0585 | X36: 0.0587 | Y36: 0.0589 | Z36: 0.0592 | AA36: 0.0594 | AB36: 0.0596 | AC36: 0.0598 | AD36: 0.06 | AE36: 0.0603 | AF36: 0.0605 | AG36: 0.0607 | AH36: 0.0609 | CF36: 50
A37: 51 | B37: 0.055 | C37: 0.0551 | D37: 0.0553 | E37: 0.0554 | F37: 0.0555 | G37: 0.0557 | H37: 0.0558 | I37: 0.056 | J37: 0.0561 | K37: 0.0563 | L37: 0.0564 | M37: 0.0566 | N37: 0.0568 | O37: 0.057 | P37: 0.0572 | Q37: 0.0574 | R37: 0.0576 | S37: 0.0578 | T37: 0.058 | U37: 0.0582 | V37: 0.0584 | W37: 0.0586 | X37: 0.0588 | Y37: 0.0591 | Z37: 0.0593 | AA37: 0.0595 | AB37: 0.0598 | AC37: 0.06 | AD37: 0.0602 | AE37: 0.0605 | AF37: 0.0607 | AG37: 0.0609 | AH37: 0.0612 | AI37: 0.0614 | CF37: 51
A38: 52 | B38: 0.055 | C38: 0.0551 | D38: 0.0553 | E38: 0.0554 | F38: 0.0555 | G38: 0.0557 | H38: 0.0558 | I38: 0.056 | J38: 0.0562 | K38: 0.0563 | L38: 0.0565 | M38: 0.0567 | N38: 0.0569 | O38: 0.057 | P38: 0.0572 | Q38: 0.0574 | R38: 0.0576 | S38: 0.0578 | T38: 0.0581 | U38: 0.0583 | V38: 0.0585 | W38: 0.0587 | X38: 0.059 | Y38: 0.0592 | Z38: 0.0594 | AA38: 0.0597 | AB38: 0.0599 | AC38: 0.0601 | AD38: 0.0604 | AE38: 0.0606 | AF38: 0.0609 | AG38: 0.0611 | AH38: 0.0614 | AI38: 0.0616 | AJ38: 0.0619 | CF38: 52
A39: 53 | B39: 0.055 | C39: 0.0552 | D39: 0.0553 | E39: 0.0554 | F39: 0.0556 | G39: 0.0557 | H39: 0.0559 | I39: 0.056 | J39: 0.0562 | K39: 0.0564 | L39: 0.0565 | M39: 0.0567 | N39: 0.0569 | O39: 0.0571 | P39: 0.0573 | Q39: 0.0575 | R39: 0.0577 | S39: 0.0579 | T39: 0.0581 | U39: 0.0584 | V39: 0.0586 | W39: 0.0588 | X39: 0.0591 | Y39: 0.0593 | Z39: 0.0595 | AA39: 0.0598 | AB39: 0.06 | AC39: 0.0603 | AD39: 0.0606 | AE39: 0.0608 | AF39: 0.0611 | AG39: 0.0613 | AH39: 0.0616 | AI39: 0.0619 | AJ39: 0.0621 | AK39: 0.0624 | CF39: 53
A40: 54 | B40: 0.0551 | C40: 0.0552 | D40: 0.0553 | E40: 0.0555 | F40: 0.0556 | G40: 0.0557 | H40: 0.0559 | I40: 0.0561 | J40: 0.0562 | K40: 0.0564 | L40: 0.0566 | M40: 0.0568 | N40: 0.0569 | O40: 0.0571 | P40: 0.0573 | Q40: 0.0575 | R40: 0.0578 | S40: 0.058 | T40: 0.0582 | U40: 0.0584 | V40: 0.0587 | W40: 0.0589 | X40: 0.0592 | Y40: 0.0594 | Z40: 0.0597 | AA40: 0.0599 | AB40: 0.0602 | AC40: 0.0604 | AD40: 0.0607 | AE40: 0.061 | AF40: 0.0613 | AG40: 0.0615 | AH40: 0.0618 | AI40: 0.0621 | AJ40: 0.0624 | AK40: 0.0626 | AL40: 0.0629 | CF40: 54
A41: 55 | B41: 0.0551 | C41: 0.0552 | D41: 0.0553 | E41: 0.0555 | F41: 0.0556 | G41: 0.0558 | H41: 0.0559 | I41: 0.0561 | J41: 0.0563 | K41: 0.0564 | L41: 0.0566 | M41: 0.0568 | N41: 0.057 | O41: 0.0572 | P41: 0.0574 | Q41: 0.0576 | R41: 0.0578 | S41: 0.0581 | T41: 0.0583 | U41: 0.0585 | V41: 0.0588 | W41: 0.059 | X41: 0.0593 | Y41: 0.0595 | Z41: 0.0598 | AA41: 0.06 | AB41: 0.0603 | AC41: 0.0606 | AD41: 0.0609 | AE41: 0.0612 | AF41: 0.0614 | AG41: 0.0617 | AH41: 0.062 | AI41: 0.0623 | AJ41: 0.0626 | AK41: 0.0629 | AL41: 0.0632 | AM41: 0.0635 | CF41: 55
A42: 56 | B42: 0.0551 | C42: 0.0552 | D42: 0.0554 | E42: 0.0555 | F42: 0.0556 | G42: 0.0558 | H42: 0.0559 | I42: 0.0561 | J42: 0.0563 | K42: 0.0565 | L42: 0.0566 | M42: 0.0568 | N42: 0.057 | O42: 0.0572 | P42: 0.0574 | Q42: 0.0577 | R42: 0.0579 | S42: 0.0581 | T42: 0.0584 | U42: 0.0586 | V42: 0.0588 | W42: 0.0591 | X42: 0.0594 | Y42: 0.0596 | Z42: 0.0599 | AA42: 0.0602 | AB42: 0.0605 | AC42: 0.0607 | AD42: 0.061 | AE42: 0.0613 | AF42: 0.0616 | AG42: 0.0619 | AH42: 0.0622 | AI42: 0.0625 | AJ42: 0.0628 | AK42: 0.0631 | AL42: 0.0634 | AM42: 0.0637 | AN42: 0.064 | CF42: 56
A43: 57 | B43: 0.0551 | C43: 0.0552 | D43: 0.0554 | E43: 0.0555 | F43: 0.0557 | G43: 0.0558 | H43: 0.056 | I43: 0.0561 | J43: 0.0563 | K43: 0.0565 | L43: 0.0567 | M43: 0.0569 | N43: 0.0571 | O43: 0.0573 | P43: 0.0575 | Q43: 0.0577 | R43: 0.0579 | S43: 0.0582 | T43: 0.0584 | U43: 0.0587 | V43: 0.0589 | W43: 0.0592 | X43: 0.0595 | Y43: 0.0597 | Z43: 0.06 | AA43: 0.0603 | AB43: 0.0606 | AC43: 0.0609 | AD43: 0.0612 | AE43: 0.0615 | AF43: 0.0618 | AG43: 0.0621 | AH43: 0.0624 | AI43: 0.0627 | AJ43: 0.0631 | AK43: 0.0634 | AL43: 0.0637 | AM43: 0.064 | AN43: 0.0643 | AO43: 0.0647 | CF43: 57
A44: 58 | B44: 0.0551 | C44: 0.0553 | D44: 0.0554 | E44: 0.0555 | F44: 0.0557 | G44: 0.0558 | H44: 0.056 | I44: 0.0562 | J44: 0.0563 | K44: 0.0565 | L44: 0.0567 | M44: 0.0569 | N44: 0.0571 | O44: 0.0573 | P44: 0.0575 | Q44: 0.0578 | R44: 0.058 | S44: 0.0582 | T44: 0.0585 | U44: 0.0587 | V44: 0.059 | W44: 0.0593 | X44: 0.0595 | Y44: 0.0598 | Z44: 0.0601 | AA44: 0.0604 | AB44: 0.0607 | AC44: 0.061 | AD44: 0.0613 | AE44: 0.0616 | AF44: 0.062 | AG44: 0.0623 | AH44: 0.0626 | AI44: 0.063 | AJ44: 0.0633 | AK44: 0.0636 | AL44: 0.064 | AM44: 0.0643 | AN44: 0.0646 | AO44: 0.065 | AP44: 0.0653 | CF44: 58
A45: 59 | B45: 0.0551 | C45: 0.0553 | D45: 0.0554 | E45: 0.0556 | F45: 0.0557 | G45: 0.0559 | H45: 0.056 | I45: 0.0562 | J45: 0.0564 | K45: 0.0565 | L45: 0.0567 | M45: 0.0569 | N45: 0.0571 | O45: 0.0574 | P45: 0.0576 | Q45: 0.0578 | R45: 0.058 | S45: 0.0583 | T45: 0.0585 | U45: 0.0588 | V45: 0.0591 | W45: 0.0593 | X45: 0.0596 | Y45: 0.0599 | Z45: 0.0602 | AA45: 0.0605 | AB45: 0.0608 | AC45: 0.0611 | AD45: 0.0615 | AE45: 0.0618 | AF45: 0.0621 | AG45: 0.0625 | AH45: 0.0628 | AI45: 0.0632 | AJ45: 0.0635 | AK45: 0.0639 | AL45: 0.0642 | AM45: 0.0646 | AN45: 0.0649 | AO45: 0.0653 | AP45: 0.0657 | AQ45: 0.066 | CF45: 59
A46: 60 | B46: 0.0552 | C46: 0.0553 | D46: 0.0554 | E46: 0.0556 | F46: 0.0557 | G46: 0.0559 | H46: 0.056 | I46: 0.0562 | J46: 0.0564 | K46: 0.0566 | L46: 0.0568 | M46: 0.057 | N46: 0.0572 | O46: 0.0574 | P46: 0.0576 | Q46: 0.0579 | R46: 0.0581 | S46: 0.0583 | T46: 0.0586 | U46: 0.0589 | V46: 0.0591 | W46: 0.0594 | X46: 0.0597 | Y46: 0.06 | Z46: 0.0603 | AA46: 0.0606 | AB46: 0.0609 | AC46: 0.0613 | AD46: 0.0616 | AE46: 0.062 | AF46: 0.0623 | AG46: 0.0627 | AH46: 0.063 | AI46: 0.0634 | AJ46: 0.0637 | AK46: 0.0641 | AL46: 0.0645 | AM46: 0.0649 | AN46: 0.0652 | AO46: 0.0656 | AP46: 0.066 | AQ46: 0.0664 | AR46: 0.0668 | CF46: 60
A47: 61 | B47: 0.0552 | C47: 0.0553 | D47: 0.0554 | E47: 0.0556 | F47: 0.0557 | G47: 0.0559 | H47: 0.0561 | I47: 0.0562 | J47: 0.0564 | K47: 0.0566 | L47: 0.0568 | M47: 0.057 | N47: 0.0572 | O47: 0.0574 | P47: 0.0577 | Q47: 0.0579 | R47: 0.0581 | S47: 0.0584 | T47: 0.0587 | U47: 0.0589 | V47: 0.0592 | W47: 0.0595 | X47: 0.0598 | Y47: 0.0601 | Z47: 0.0604 | AA47: 0.0607 | AB47: 0.0611 | AC47: 0.0614 | AD47: 0.0617 | AE47: 0.0621 | AF47: 0.0625 | AG47: 0.0628 | AH47: 0.0632 | AI47: 0.0636 | AJ47: 0.064 | AK47: 0.0643 | AL47: 0.0647 | AM47: 0.0651 | AN47: 0.0655 | AO47: 0.0659 | AP47: 0.0663 | AQ47: 0.0667 | AR47: 0.0671 | AS47: 0.0675 | CF47: 61
A48: 62 | B48: 0.0552 | C48: 0.0553 | D48: 0.0555 | E48: 0.0556 | F48: 0.0558 | G48: 0.0559 | H48: 0.0561 | I48: 0.0563 | J48: 0.0564 | K48: 0.0566 | L48: 0.0568 | M48: 0.057 | N48: 0.0572 | O48: 0.0575 | P48: 0.0577 | Q48: 0.0579 | R48: 0.0582 | S48: 0.0584 | T48: 0.0587 | U48: 0.059 | V48: 0.0593 | W48: 0.0596 | X48: 0.0599 | Y48: 0.0602 | Z48: 0.0605 | AA48: 0.0608 | AB48: 0.0612 | AC48: 0.0615 | AD48: 0.0619 | AE48: 0.0622 | AF48: 0.0626 | AG48: 0.063 | AH48: 0.0634 | AI48: 0.0638 | AJ48: 0.0642 | AK48: 0.0646 | AL48: 0.065 | AM48: 0.0654 | AN48: 0.0658 | AO48: 0.0662 | AP48: 0.0667 | AQ48: 0.0671 | AR48: 0.0675 | AS48: 0.0679 | AT48: 0.0684 | CF48: 62
A49: 63 | B49: 0.0552 | C49: 0.0553 | D49: 0.0555 | E49: 0.0556 | F49: 0.0558 | G49: 0.0559 | H49: 0.0561 | I49: 0.0563 | J49: 0.0565 | K49: 0.0567 | L49: 0.0569 | M49: 0.0571 | N49: 0.0573 | O49: 0.0575 | P49: 0.0577 | Q49: 0.058 | R49: 0.0582 | S49: 0.0585 | T49: 0.0588 | U49: 0.0591 | V49: 0.0593 | W49: 0.0596 | X49: 0.06 | Y49: 0.0603 | Z49: 0.0606 | AA49: 0.0609 | AB49: 0.0613 | AC49: 0.0616 | AD49: 0.062 | AE49: 0.0624 | AF49: 0.0628 | AG49: 0.0632 | AH49: 0.0636 | AI49: 0.064 | AJ49: 0.0644 | AK49: 0.0648 | AL49: 0.0652 | AM49: 0.0657 | AN49: 0.0661 | AO49: 0.0665 | AP49: 0.067 | AQ49: 0.0674 | AR49: 0.0679 | AS49: 0.0683 | AT49: 0.0688 | AU49: 0.0693 | CF49: 63
A50: 64 | B50: 0.0552 | C50: 0.0553 | D50: 0.0555 | E50: 0.0556 | F50: 0.0558 | G50: 0.056 | H50: 0.0561 | I50: 0.0563 | J50: 0.0565 | K50: 0.0567 | L50: 0.0569 | M50: 0.0571 | N50: 0.0573 | O50: 0.0575 | P50: 0.0578 | Q50: 0.058 | R50: 0.0583 | S50: 0.0585 | T50: 0.0588 | U50: 0.0591 | V50: 0.0594 | W50: 0.0597 | X50: 0.06 | Y50: 0.0604 | Z50: 0.0607 | AA50: 0.061 | AB50: 0.0614 | AC50: 0.0618 | AD50: 0.0621 | AE50: 0.0625 | AF50: 0.0629 | AG50: 0.0633 | AH50: 0.0637 | AI50: 0.0642 | AJ50: 0.0646 | AK50: 0.065 | AL50: 0.0655 | AM50: 0.0659 | AN50: 0.0664 | AO50: 0.0668 | AP50: 0.0673 | AQ50: 0.0678 | AR50: 0.0683 | AS50: 0.0688 | AT50: 0.0692 | AU50: 0.0697 | AV50: 0.0702 | CF50: 64
A51: 65 | B51: 0.0552 | C51: 0.0554 | D51: 0.0555 | E51: 0.0557 | F51: 0.0558 | G51: 0.056 | H51: 0.0561 | I51: 0.0563 | J51: 0.0565 | K51: 0.0567 | L51: 0.0569 | M51: 0.0571 | N51: 0.0573 | O51: 0.0576 | P51: 0.0578 | Q51: 0.0581 | R51: 0.0583 | S51: 0.0586 | T51: 0.0589 | U51: 0.0592 | V51: 0.0595 | W51: 0.0598 | X51: 0.0601 | Y51: 0.0604 | Z51: 0.0608 | AA51: 0.0611 | AB51: 0.0615 | AC51: 0.0619 | AD51: 0.0623 | AE51: 0.0627 | AF51: 0.0631 | AG51: 0.0635 | AH51: 0.0639 | AI51: 0.0643 | AJ51: 0.0648 | AK51: 0.0653 | AL51: 0.0657 | AM51: 0.0662 | AN51: 0.0667 | AO51: 0.0671 | AP51: 0.0676 | AQ51: 0.0681 | AR51: 0.0686 | AS51: 0.0692 | AT51: 0.0697 | AU51: 0.0702 | AV51: 0.0707 | AW51: 0.0713 | CF51: 65
A52: 66 | B52: 0.0552 | C52: 0.0554 | D52: 0.0555 | E52: 0.0557 | F52: 0.0558 | G52: 0.056 | H52: 0.0562 | I52: 0.0563 | J52: 0.0565 | K52: 0.0567 | L52: 0.0569 | M52: 0.0571 | N52: 0.0574 | O52: 0.0576 | P52: 0.0578 | Q52: 0.0581 | R52: 0.0584 | S52: 0.0586 | T52: 0.0589 | U52: 0.0592 | V52: 0.0595 | W52: 0.0598 | X52: 0.0602 | Y52: 0.0605 | Z52: 0.0609 | AA52: 0.0612 | AB52: 0.0616 | AC52: 0.062 | AD52: 0.0624 | AE52: 0.0628 | AF52: 0.0632 | AG52: 0.0636 | AH52: 0.0641 | AI52: 0.0645 | AJ52: 0.065 | AK52: 0.0655 | AL52: 0.0659 | AM52: 0.0664 | AN52: 0.0669 | AO52: 0.0674 | AP52: 0.068 | AQ52: 0.0685 | AR52: 0.069 | AS52: 0.0696 | AT52: 0.0701 | AU52: 0.0707 | AV52: 0.0712 | AW52: 0.0718 | AX52: 0.0724 | CF52: 66
A53: 67 | B53: 0.0553 | C53: 0.0554 | D53: 0.0555 | E53: 0.0557 | F53: 0.0558 | G53: 0.056 | H53: 0.0562 | I53: 0.0564 | J53: 0.0565 | K53: 0.0567 | L53: 0.0569 | M53: 0.0572 | N53: 0.0574 | O53: 0.0576 | P53: 0.0579 | Q53: 0.0581 | R53: 0.0584 | S53: 0.0587 | T53: 0.059 | U53: 0.0593 | V53: 0.0596 | W53: 0.0599 | X53: 0.0602 | Y53: 0.0606 | Z53: 0.0609 | AA53: 0.0613 | AB53: 0.0617 | AC53: 0.0621 | AD53: 0.0625 | AE53: 0.0629 | AF53: 0.0633 | AG53: 0.0638 | AH53: 0.0642 | AI53: 0.0647 | AJ53: 0.0652 | AK53: 0.0657 | AL53: 0.0662 | AM53: 0.0667 | AN53: 0.0672 | AO53: 0.0677 | AP53: 0.0683 | AQ53: 0.0688 | AR53: 0.0694 | AS53: 0.07 | AT53: 0.0705 | AU53: 0.0711 | AV53: 0.0717 | AW53: 0.0723 | AX53: 0.0729 | AY53: 0.0736 | CF53: 67
A54: 68 | B54: 0.0553 | C54: 0.0554 | D54: 0.0555 | E54: 0.0557 | F54: 0.0559 | G54: 0.056 | H54: 0.0562 | I54: 0.0564 | J54: 0.0566 | K54: 0.0568 | L54: 0.057 | M54: 0.0572 | N54: 0.0574 | O54: 0.0577 | P54: 0.0579 | Q54: 0.0582 | R54: 0.0584 | S54: 0.0587 | T54: 0.059 | U54: 0.0593 | V54: 0.0596 | W54: 0.06 | X54: 0.0603 | Y54: 0.0606 | Z54: 0.061 | AA54: 0.0614 | AB54: 0.0618 | AC54: 0.0622 | AD54: 0.0626 | AE54: 0.063 | AF54: 0.0635 | AG54: 0.0639 | AH54: 0.0644 | AI54: 0.0649 | AJ54: 0.0654 | AK54: 0.0659 | AL54: 0.0664 | AM54: 0.0669 | AN54: 0.0675 | AO54: 0.068 | AP54: 0.0686 | AQ54: 0.0692 | AR54: 0.0697 | AS54: 0.0703 | AT54: 0.071 | AU54: 0.0716 | AV54: 0.0722 | AW54: 0.0729 | AX54: 0.0735 | AY54: 0.0742 | AZ54: 0.0748 | CF54: 68
A55: 69 | B55: 0.0553 | C55: 0.0554 | D55: 0.0556 | E55: 0.0557 | F55: 0.0559 | G55: 0.056 | H55: 0.0562 | I55: 0.0564 | J55: 0.0566 | K55: 0.0568 | L55: 0.057 | M55: 0.0572 | N55: 0.0574 | O55: 0.0577 | P55: 0.0579 | Q55: 0.0582 | R55: 0.0585 | S55: 0.0587 | T55: 0.059 | U55: 0.0594 | V55: 0.0597 | W55: 0.06 | X55: 0.0603 | Y55: 0.0607 | Z55: 0.0611 | AA55: 0.0615 | AB55: 0.0619 | AC55: 0.0623 | AD55: 0.0627 | AE55: 0.0631 | AF55: 0.0636 | AG55: 0.0641 | AH55: 0.0645 | AI55: 0.065 | AJ55: 0.0655 | AK55: 0.0661 | AL55: 0.0666 | AM55: 0.0672 | AN55: 0.0677 | AO55: 0.0683 | AP55: 0.0689 | AQ55: 0.0695 | AR55: 0.0701 | AS55: 0.0707 | AT55: 0.0714 | AU55: 0.072 | AV55: 0.0727 | AW55: 0.0734 | AX55: 0.0741 | AY55: 0.0748 | AZ55: 0.0755 | BA55: 0.0762 | CF55: 69
A56: 70 | B56: 0.0553 | C56: 0.0554 | D56: 0.0556 | E56: 0.0557 | F56: 0.0559 | G56: 0.056 | H56: 0.0562 | I56: 0.0564 | J56: 0.0566 | K56: 0.0568 | L56: 0.057 | M56: 0.0572 | N56: 0.0575 | O56: 0.0577 | P56: 0.058 | Q56: 0.0582 | R56: 0.0585 | S56: 0.0588 | T56: 0.0591 | U56: 0.0594 | V56: 0.0597 | W56: 0.0601 | X56: 0.0604 | Y56: 0.0608 | Z56: 0.0611 | AA56: 0.0615 | AB56: 0.0619 | AC56: 0.0624 | AD56: 0.0628 | AE56: 0.0632 | AF56: 0.0637 | AG56: 0.0642 | AH56: 0.0647 | AI56: 0.0652 | AJ56: 0.0657 | AK56: 0.0663 | AL56: 0.0668 | AM56: 0.0674 | AN56: 0.068 | AO56: 0.0686 | AP56: 0.0692 | AQ56: 0.0698 | AR56: 0.0704 | AS56: 0.0711 | AT56: 0.0718 | AU56: 0.0725 | AV56: 0.0732 | AW56: 0.0739 | AX56: 0.0746 | AY56: 0.0754 | AZ56: 0.0761 | BA56: 0.0769 | BB56: 0.0776 | CF56: 70
A57: 71 | B57: 0.0553 | C57: 0.0554 | D57: 0.0556 | E57: 0.0557 | F57: 0.0559 | G57: 0.0561 | H57: 0.0562 | I57: 0.0564 | J57: 0.0566 | K57: 0.0568 | L57: 0.057 | M57: 0.0572 | N57: 0.0575 | O57: 0.0577 | P57: 0.058 | Q57: 0.0582 | R57: 0.0585 | S57: 0.0588 | T57: 0.0591 | U57: 0.0594 | V57: 0.0598 | W57: 0.0601 | X57: 0.0605 | Y57: 0.0608 | Z57: 0.0612 | AA57: 0.0616 | AB57: 0.062 | AC57: 0.0624 | AD57: 0.0629 | AE57: 0.0633 | AF57: 0.0638 | AG57: 0.0643 | AH57: 0.0648 | AI57: 0.0653 | AJ57: 0.0659 | AK57: 0.0664 | AL57: 0.067 | AM57: 0.0676 | AN57: 0.0682 | AO57: 0.0688 | AP57: 0.0694 | AQ57: 0.0701 | AR57: 0.0708 | AS57: 0.0714 | AT57: 0.0721 | AU57: 0.0729 | AV57: 0.0736 | AW57: 0.0744 | AX57: 0.0752 | AY57: 0.076 | AZ57: 0.0767 | BA57: 0.0775 | BB57: 0.0783 | BC57: 0.0791 | CF57: 71
A58: 72 | B58: 0.0553 | C58: 0.0554 | D58: 0.0556 | E58: 0.0557 | F58: 0.0559 | G58: 0.0561 | H58: 0.0562 | I58: 0.0564 | J58: 0.0566 | K58: 0.0568 | L58: 0.057 | M58: 0.0573 | N58: 0.0575 | O58: 0.0577 | P58: 0.058 | Q58: 0.0583 | R58: 0.0585 | S58: 0.0588 | T58: 0.0591 | U58: 0.0595 | V58: 0.0598 | W58: 0.0601 | X58: 0.0605 | Y58: 0.0609 | Z58: 0.0613 | AA58: 0.0617 | AB58: 0.0621 | AC58: 0.0625 | AD58: 0.063 | AE58: 0.0634 | AF58: 0.0639 | AG58: 0.0644 | AH58: 0.0649 | AI58: 0.0655 | AJ58: 0.066 | AK58: 0.0666 | AL58: 0.0672 | AM58: 0.0678 | AN58: 0.0684 | AO58: 0.069 | AP58: 0.0697 | AQ58: 0.0704 | AR58: 0.0711 | AS58: 0.0718 | AT58: 0.0725 | AU58: 0.0733 | AV58: 0.0741 | AW58: 0.0749 | AX58: 0.0757 | AY58: 0.0765 | AZ58: 0.0774 | BA58: 0.0782 | BB58: 0.0791 | BC58: 0.0799 | BD58: 0.0807 | CF58: 72
A59: 73 | B59: 0.0553 | C59: 0.0555 | D59: 0.0556 | E59: 0.0558 | F59: 0.0559 | G59: 0.0561 | H59: 0.0563 | I59: 0.0564 | J59: 0.0566 | K59: 0.0568 | L59: 0.0571 | M59: 0.0573 | N59: 0.0575 | O59: 0.0578 | P59: 0.058 | Q59: 0.0583 | R59: 0.0586 | S59: 0.0589 | T59: 0.0592 | U59: 0.0595 | V59: 0.0598 | W59: 0.0602 | X59: 0.0605 | Y59: 0.0609 | Z59: 0.0613 | AA59: 0.0617 | AB59: 0.0622 | AC59: 0.0626 | AD59: 0.0631 | AE59: 0.0635 | AF59: 0.064 | AG59: 0.0645 | AH59: 0.0651 | AI59: 0.0656 | AJ59: 0.0662 | AK59: 0.0668 | AL59: 0.0674 | AM59: 0.068 | AN59: 0.0686 | AO59: 0.0693 | AP59: 0.07 | AQ59: 0.0707 | AR59: 0.0714 | AS59: 0.0721 | AT59: 0.0729 | AU59: 0.0737 | AV59: 0.0745 | AW59: 0.0753 | AX59: 0.0762 | AY59: 0.0771 | AZ59: 0.078 | BA59: 0.0789 | BB59: 0.0798 | BC59: 0.0807 | BD59: 0.0816 | BE59: 0.0824 | CF59: 73
A60: 74 | B60: 0.0553 | C60: 0.0555 | D60: 0.0556 | E60: 0.0558 | F60: 0.0559 | G60: 0.0561 | H60: 0.0563 | I60: 0.0565 | J60: 0.0567 | K60: 0.0569 | L60: 0.0571 | M60: 0.0573 | N60: 0.0575 | O60: 0.0578 | P60: 0.058 | Q60: 0.0583 | R60: 0.0586 | S60: 0.0589 | T60: 0.0592 | U60: 0.0595 | V60: 0.0599 | W60: 0.0602 | X60: 0.0606 | Y60: 0.061 | Z60: 0.0614 | AA60: 0.0618 | AB60: 0.0622 | AC60: 0.0627 | AD60: 0.0631 | AE60: 0.0636 | AF60: 0.0641 | AG60: 0.0646 | AH60: 0.0652 | AI60: 0.0657 | AJ60: 0.0663 | AK60: 0.0669 | AL60: 0.0675 | AM60: 0.0682 | AN60: 0.0688 | AO60: 0.0695 | AP60: 0.0702 | AQ60: 0.0709 | AR60: 0.0717 | AS60: 0.0724 | AT60: 0.0732 | AU60: 0.074 | AV60: 0.0749 | AW60: 0.0758 | AX60: 0.0767 | AY60: 0.0776 | AZ60: 0.0786 | BA60: 0.0795 | BB60: 0.0805 | BC60: 0.0814 | BD60: 0.0824 | BE60: 0.0833 | BF60: 0.0842 | CF60: 74
A61: 75 | B61: 0.0553 | C61: 0.0555 | D61: 0.0556 | E61: 0.0558 | F61: 0.0559 | G61: 0.0561 | H61: 0.0563 | I61: 0.0565 | J61: 0.0567 | K61: 0.0569 | L61: 0.0571 | M61: 0.0573 | N61: 0.0576 | O61: 0.0578 | P61: 0.0581 | Q61: 0.0583 | R61: 0.0586 | S61: 0.0589 | T61: 0.0592 | U61: 0.0596 | V61: 0.0599 | W61: 0.0603 | X61: 0.0606 | Y61: 0.061 | Z61: 0.0614 | AA61: 0.0618 | AB61: 0.0623 | AC61: 0.0627 | AD61: 0.0632 | AE61: 0.0637 | AF61: 0.0642 | AG61: 0.0647 | AH61: 0.0653 | AI61: 0.0659 | AJ61: 0.0665 | AK61: 0.0671 | AL61: 0.0677 | AM61: 0.0683 | AN61: 0.069 | AO61: 0.0697 | AP61: 0.0704 | AQ61: 0.0712 | AR61: 0.0719 | AS61: 0.0727 | AT61: 0.0735 | AU61: 0.0744 | AV61: 0.0753 | AW61: 0.0762 | AX61: 0.0772 | AY61: 0.0781 | AZ61: 0.0791 | BA61: 0.0801 | BB61: 0.0811 | BC61: 0.0821 | BD61: 0.0832 | BE61: 0.0842 | BF61: 0.0852 | BG61: 0.0861 | CF61: 75
A62: 76 | B62: 0.0553 | C62: 0.0555 | D62: 0.0556 | E62: 0.0558 | F62: 0.0559 | G62: 0.0561 | H62: 0.0563 | I62: 0.0565 | J62: 0.0567 | K62: 0.0569 | L62: 0.0571 | M62: 0.0573 | N62: 0.0576 | O62: 0.0578 | P62: 0.0581 | Q62: 0.0584 | R62: 0.0586 | S62: 0.0589 | T62: 0.0593 | U62: 0.0596 | V62: 0.0599 | W62: 0.0603 | X62: 0.0607 | Y62: 0.0611 | Z62: 0.0615 | AA62: 0.0619 | AB62: 0.0623 | AC62: 0.0628 | AD62: 0.0633 | AE62: 0.0638 | AF62: 0.0643 | AG62: 0.0648 | AH62: 0.0654 | AI62: 0.066 | AJ62: 0.0666 | AK62: 0.0672 | AL62: 0.0678 | AM62: 0.0685 | AN62: 0.0692 | AO62: 0.0699 | AP62: 0.0706 | AQ62: 0.0714 | AR62: 0.0722 | AS62: 0.073 | AT62: 0.0739 | AU62: 0.0748 | AV62: 0.0757 | AW62: 0.0766 | AX62: 0.0776 | AY62: 0.0787 | AZ62: 0.0797 | BA62: 0.0807 | BB62: 0.0818 | BC62: 0.0829 | BD62: 0.0839 | BE62: 0.085 | BF62: 0.0861 | BG62: 0.0871 | BH62: 0.0882 | CF62: 76
A63: 77 | B63: 0.0553 | C63: 0.0555 | D63: 0.0556 | E63: 0.0558 | F63: 0.056 | G63: 0.0561 | H63: 0.0563 | I63: 0.0565 | J63: 0.0567 | K63: 0.0569 | L63: 0.0571 | M63: 0.0573 | N63: 0.0576 | O63: 0.0578 | P63: 0.0581 | Q63: 0.0584 | R63: 0.0587 | S63: 0.059 | T63: 0.0593 | U63: 0.0596 | V63: 0.06 | W63: 0.0603 | X63: 0.0607 | Y63: 0.0611 | Z63: 0.0615 | AA63: 0.0619 | AB63: 0.0624 | AC63: 0.0629 | AD63: 0.0633 | AE63: 0.0638 | AF63: 0.0644 | AG63: 0.0649 | AH63: 0.0655 | AI63: 0.0661 | AJ63: 0.0667 | AK63: 0.0673 | AL63: 0.068 | AM63: 0.0687 | AN63: 0.0694 | AO63: 0.0701 | AP63: 0.0708 | AQ63: 0.0716 | AR63: 0.0724 | AS63: 0.0733 | AT63: 0.0742 | AU63: 0.0751 | AV63: 0.076 | AW63: 0.077 | AX63: 0.0781 | AY63: 0.0791 | AZ63: 0.0802 | BA63: 0.0813 | BB63: 0.0824 | BC63: 0.0836 | BD63: 0.0847 | BE63: 0.0858 | BF63: 0.087 | BG63: 0.0881 | BH63: 0.0892 | BI63: 0.0903 | CF63: 77
A64: 78 | B64: 0.0554 | C64: 0.0555 | D64: 0.0556 | E64: 0.0558 | F64: 0.056 | G64: 0.0561 | H64: 0.0563 | I64: 0.0565 | J64: 0.0567 | K64: 0.0569 | L64: 0.0571 | M64: 0.0574 | N64: 0.0576 | O64: 0.0578 | P64: 0.0581 | Q64: 0.0584 | R64: 0.0587 | S64: 0.059 | T64: 0.0593 | U64: 0.0596 | V64: 0.06 | W64: 0.0604 | X64: 0.0607 | Y64: 0.0611 | Z64: 0.0616 | AA64: 0.062 | AB64: 0.0624 | AC64: 0.0629 | AD64: 0.0634 | AE64: 0.0639 | AF64: 0.0644 | AG64: 0.065 | AH64: 0.0656 | AI64: 0.0662 | AJ64: 0.0668 | AK64: 0.0674 | AL64: 0.0681 | AM64: 0.0688 | AN64: 0.0695 | AO64: 0.0703 | AP64: 0.071 | AQ64: 0.0718 | AR64: 0.0727 | AS64: 0.0735 | AT64: 0.0744 | AU64: 0.0754 | AV64: 0.0764 | AW64: 0.0774 | AX64: 0.0785 | AY64: 0.0796 | AZ64: 0.0807 | BA64: 0.0819 | BB64: 0.0831 | BC64: 0.0842 | BD64: 0.0854 | BE64: 0.0866 | BF64: 0.0878 | BG64: 0.089 | BH64: 0.0902 | BI64: 0.0914 | BJ64: 0.0925 | CF64: 78
A65: 79 | B65: 0.0554 | C65: 0.0555 | D65: 0.0556 | E65: 0.0558 | F65: 0.056 | G65: 0.0561 | H65: 0.0563 | I65: 0.0565 | J65: 0.0567 | K65: 0.0569 | L65: 0.0571 | M65: 0.0574 | N65: 0.0576 | O65: 0.0579 | P65: 0.0581 | Q65: 0.0584 | R65: 0.0587 | S65: 0.059 | T65: 0.0593 | U65: 0.0597 | V65: 0.06 | W65: 0.0604 | X65: 0.0608 | Y65: 0.0612 | Z65: 0.0616 | AA65: 0.062 | AB65: 0.0625 | AC65: 0.063 | AD65: 0.0635 | AE65: 0.064 | AF65: 0.0645 | AG65: 0.0651 | AH65: 0.0657 | AI65: 0.0663 | AJ65: 0.0669 | AK65: 0.0676 | AL65: 0.0682 | AM65: 0.0689 | AN65: 0.0697 | AO65: 0.0704 | AP65: 0.0712 | AQ65: 0.072 | AR65: 0.0729 | AS65: 0.0738 | AT65: 0.0747 | AU65: 0.0757 | AV65: 0.0767 | AW65: 0.0778 | AX65: 0.0789 | AY65: 0.0801 | AZ65: 0.0812 | BA65: 0.0824 | BB65: 0.0837 | BC65: 0.0849 | BD65: 0.0861 | BE65: 0.0874 | BF65: 0.0887 | BG65: 0.0899 | BH65: 0.0912 | BI65: 0.0924 | BJ65: 0.0936 | BK65: 0.0949 | CF65: 79
A66: 80 | B66: 0.0554 | C66: 0.0555 | D66: 0.0557 | E66: 0.0558 | F66: 0.056 | G66: 0.0561 | H66: 0.0563 | I66: 0.0565 | J66: 0.0567 | K66: 0.0569 | L66: 0.0571 | M66: 0.0574 | N66: 0.0576 | O66: 0.0579 | P66: 0.0581 | Q66: 0.0584 | R66: 0.0587 | S66: 0.059 | T66: 0.0593 | U66: 0.0597 | V66: 0.06 | W66: 0.0604 | X66: 0.0608 | Y66: 0.0612 | Z66: 0.0616 | AA66: 0.0621 | AB66: 0.0625 | AC66: 0.063 | AD66: 0.0635 | AE66: 0.064 | AF66: 0.0646 | AG66: 0.0651 | AH66: 0.0657 | AI66: 0.0664 | AJ66: 0.067 | AK66: 0.0677 | AL66: 0.0684 | AM66: 0.0691 | AN66: 0.0698 | AO66: 0.0706 | AP66: 0.0714 | AQ66: 0.0722 | AR66: 0.0731 | AS66: 0.074 | AT66: 0.075 | AU66: 0.076 | AV66: 0.077 | AW66: 0.0781 | AX66: 0.0793 | AY66: 0.0805 | AZ66: 0.0817 | BA66: 0.083 | BB66: 0.0842 | BC66: 0.0855 | BD66: 0.0868 | BE66: 0.0882 | BF66: 0.0895 | BG66: 0.0908 | BH66: 0.0921 | BI66: 0.0934 | BJ66: 0.0948 | BK66: 0.096 | BL66: 0.0973 | CF66: 80
A67: 81 | B67: 0.0554 | C67: 0.0555 | D67: 0.0557 | E67: 0.0558 | F67: 0.056 | G67: 0.0562 | H67: 0.0563 | I67: 0.0565 | J67: 0.0567 | K67: 0.0569 | L67: 0.0572 | M67: 0.0574 | N67: 0.0576 | O67: 0.0579 | P67: 0.0582 | Q67: 0.0584 | R67: 0.0587 | S67: 0.059 | T67: 0.0594 | U67: 0.0597 | V67: 0.0601 | W67: 0.0604 | X67: 0.0608 | Y67: 0.0612 | Z67: 0.0617 | AA67: 0.0621 | AB67: 0.0626 | AC67: 0.063 | AD67: 0.0636 | AE67: 0.0641 | AF67: 0.0646 | AG67: 0.0652 | AH67: 0.0658 | AI67: 0.0664 | AJ67: 0.0671 | AK67: 0.0678 | AL67: 0.0685 | AM67: 0.0692 | AN67: 0.0699 | AO67: 0.0707 | AP67: 0.0715 | AQ67: 0.0724 | AR67: 0.0733 | AS67: 0.0742 | AT67: 0.0752 | AU67: 0.0762 | AV67: 0.0773 | AW67: 0.0785 | AX67: 0.0797 | AY67: 0.0809 | AZ67: 0.0822 | BA67: 0.0835 | BB67: 0.0848 | BC67: 0.0861 | BD67: 0.0875 | BE67: 0.0889 | BF67: 0.0903 | BG67: 0.0917 | BH67: 0.0931 | BI67: 0.0945 | BJ67: 0.0958 | BK67: 0.0972 | BL67: 0.0986 | BM67: 0.0999 | CF67: 81
A68: 82 | B68: 0.0554 | C68: 0.0555 | D68: 0.0557 | E68: 0.0558 | F68: 0.056 | G68: 0.0562 | H68: 0.0563 | I68: 0.0565 | J68: 0.0567 | K68: 0.0569 | L68: 0.0572 | M68: 0.0574 | N68: 0.0576 | O68: 0.0579 | P68: 0.0582 | Q68: 0.0584 | R68: 0.0587 | S68: 0.0591 | T68: 0.0594 | U68: 0.0597 | V68: 0.0601 | W68: 0.0605 | X68: 0.0609 | Y68: 0.0613 | Z68: 0.0617 | AA68: 0.0621 | AB68: 0.0626 | AC68: 0.0631 | AD68: 0.0636 | AE68: 0.0641 | AF68: 0.0647 | AG68: 0.0653 | AH68: 0.0659 | AI68: 0.0665 | AJ68: 0.0672 | AK68: 0.0679 | AL68: 0.0686 | AM68: 0.0693 | AN68: 0.0701 | AO68: 0.0709 | AP68: 0.0717 | AQ68: 0.0726 | AR68: 0.0735 | AS68: 0.0744 | AT68: 0.0754 | AU68: 0.0765 | AV68: 0.0776 | AW68: 0.0788 | AX68: 0.08 | AY68: 0.0813 | AZ68: 0.0826 | BA68: 0.0839 | BB68: 0.0853 | BC68: 0.0867 | BD68: 0.0881 | BE68: 0.0896 | BF68: 0.091 | BG68: 0.0925 | BH68: 0.094 | BI68: 0.0954 | BJ68: 0.0969 | BK68: 0.0984 | BL68: 0.0998 | BM68: 0.1012 | BN68: 0.1026 | CF68: 82
A69: 83 | B69: 0.0554 | C69: 0.0555 | D69: 0.0557 | E69: 0.0558 | F69: 0.056 | G69: 0.0562 | H69: 0.0564 | I69: 0.0565 | J69: 0.0567 | K69: 0.057 | L69: 0.0572 | M69: 0.0574 | N69: 0.0576 | O69: 0.0579 | P69: 0.0582 | Q69: 0.0585 | R69: 0.0588 | S69: 0.0591 | T69: 0.0594 | U69: 0.0597 | V69: 0.0601 | W69: 0.0605 | X69: 0.0609 | Y69: 0.0613 | Z69: 0.0617 | AA69: 0.0622 | AB69: 0.0626 | AC69: 0.0631 | AD69: 0.0636 | AE69: 0.0642 | AF69: 0.0647 | AG69: 0.0653 | AH69: 0.0659 | AI69: 0.0666 | AJ69: 0.0673 | AK69: 0.0679 | AL69: 0.0687 | AM69: 0.0694 | AN69: 0.0702 | AO69: 0.071 | AP69: 0.0718 | AQ69: 0.0727 | AR69: 0.0737 | AS69: 0.0746 | AT69: 0.0756 | AU69: 0.0767 | AV69: 0.0779 | AW69: 0.0791 | AX69: 0.0803 | AY69: 0.0816 | AZ69: 0.083 | BA69: 0.0844 | BB69: 0.0858 | BC69: 0.0873 | BD69: 0.0888 | BE69: 0.0903 | BF69: 0.0918 | BG69: 0.0933 | BH69: 0.0949 | BI69: 0.0964 | BJ69: 0.0979 | BK69: 0.0995 | BL69: 0.101 | BM69: 0.1025 | BN69: 0.104 | BO69: 0.1054 | CF69: 83
A70: 84 | B70: 0.0554 | C70: 0.0555 | D70: 0.0557 | E70: 0.0558 | F70: 0.056 | G70: 0.0562 | H70: 0.0564 | I70: 0.0565 | J70: 0.0567 | K70: 0.057 | L70: 0.0572 | M70: 0.0574 | N70: 0.0577 | O70: 0.0579 | P70: 0.0582 | Q70: 0.0585 | R70: 0.0588 | S70: 0.0591 | T70: 0.0594 | U70: 0.0598 | V70: 0.0601 | W70: 0.0605 | X70: 0.0609 | Y70: 0.0613 | Z70: 0.0617 | AA70: 0.0622 | AB70: 0.0627 | AC70: 0.0632 | AD70: 0.0637 | AE70: 0.0642 | AF70: 0.0648 | AG70: 0.0654 | AH70: 0.066 | AI70: 0.0667 | AJ70: 0.0673 | AK70: 0.068 | AL70: 0.0687 | AM70: 0.0695 | AN70: 0.0703 | AO70: 0.0711 | AP70: 0.072 | AQ70: 0.0729 | AR70: 0.0738 | AS70: 0.0748 | AT70: 0.0758 | AU70: 0.077 | AV70: 0.0781 | AW70: 0.0794 | AX70: 0.0807 | AY70: 0.082 | AZ70: 0.0834 | BA70: 0.0848 | BB70: 0.0863 | BC70: 0.0878 | BD70: 0.0894 | BE70: 0.0909 | BF70: 0.0925 | BG70: 0.0941 | BH70: 0.0957 | BI70: 0.0973 | BJ70: 0.0989 | BK70: 0.1006 | BL70: 0.1022 | BM70: 0.1037 | BN70: 0.1053 | BO70: 0.1069 | BP70: 0.1084 | CF70: 84
A71: 85 | B71: 0.0554 | C71: 0.0555 | D71: 0.0557 | E71: 0.0558 | F71: 0.056 | G71: 0.0562 | H71: 0.0564 | I71: 0.0566 | J71: 0.0568 | K71: 0.057 | L71: 0.0572 | M71: 0.0574 | N71: 0.0577 | O71: 0.0579 | P71: 0.0582 | Q71: 0.0585 | R71: 0.0588 | S71: 0.0591 | T71: 0.0594 | U71: 0.0598 | V71: 0.0601 | W71: 0.0605 | X71: 0.0609 | Y71: 0.0613 | Z71: 0.0618 | AA71: 0.0622 | AB71: 0.0627 | AC71: 0.0632 | AD71: 0.0637 | AE71: 0.0643 | AF71: 0.0648 | AG71: 0.0654 | AH71: 0.0661 | AI71: 0.0667 | AJ71: 0.0674 | AK71: 0.0681 | AL71: 0.0688 | AM71: 0.0696 | AN71: 0.0704 | AO71: 0.0712 | AP71: 0.0721 | AQ71: 0.073 | AR71: 0.074 | AS71: 0.075 | AT71: 0.076 | AU71: 0.0772 | AV71: 0.0784 | AW71: 0.0796 | AX71: 0.0809 | AY71: 0.0823 | AZ71: 0.0838 | BA71: 0.0852 | BB71: 0.0868 | BC71: 0.0883 | BD71: 0.0899 | BE71: 0.0915 | BF71: 0.0932 | BG71: 0.0949 | BH71: 0.0965 | BI71: 0.0982 | BJ71: 0.0999 | BK71: 0.1016 | BL71: 0.1033 | BM71: 0.105 | BN71: 0.1066 | BO71: 0.1083 | BP71: 0.1099 | BQ71: 0.1115 | CF71: 85
A72: 86 | B72: 0.0554 | C72: 0.0555 | D72: 0.0557 | E72: 0.0558 | F72: 0.056 | G72: 0.0562 | H72: 0.0564 | I72: 0.0566 | J72: 0.0568 | K72: 0.057 | L72: 0.0572 | M72: 0.0574 | N72: 0.0577 | O72: 0.0579 | P72: 0.0582 | Q72: 0.0585 | R72: 0.0588 | S72: 0.0591 | T72: 0.0594 | U72: 0.0598 | V72: 0.0602 | W72: 0.0605 | X72: 0.0609 | Y72: 0.0614 | Z72: 0.0618 | AA72: 0.0622 | AB72: 0.0627 | AC72: 0.0632 | AD72: 0.0638 | AE72: 0.0643 | AF72: 0.0649 | AG72: 0.0655 | AH72: 0.0661 | AI72: 0.0668 | AJ72: 0.0675 | AK72: 0.0682 | AL72: 0.0689 | AM72: 0.0697 | AN72: 0.0705 | AO72: 0.0713 | AP72: 0.0722 | AQ72: 0.0731 | AR72: 0.0741 | AS72: 0.0751 | AT72: 0.0762 | AU72: 0.0774 | AV72: 0.0786 | AW72: 0.0799 | AX72: 0.0812 | AY72: 0.0826 | AZ72: 0.0841 | BA72: 0.0856 | BB72: 0.0872 | BC72: 0.0888 | BD72: 0.0905 | BE72: 0.0921 | BF72: 0.0938 | BG72: 0.0956 | BH72: 0.0973 | BI72: 0.0991 | BJ72: 0.1009 | BK72: 0.1026 | BL72: 0.1044 | BM72: 0.1062 | BN72: 0.1079 | BO72: 0.1097 | BP72: 0.1114 | BQ72: 0.1131 | BR72: 0.1147 | CF72: 86
A73: 87 | B73: 0.0554 | C73: 0.0555 | D73: 0.0557 | E73: 0.0559 | F73: 0.056 | G73: 0.0562 | H73: 0.0564 | I73: 0.0566 | J73: 0.0568 | K73: 0.057 | L73: 0.0572 | M73: 0.0574 | N73: 0.0577 | O73: 0.0579 | P73: 0.0582 | Q73: 0.0585 | R73: 0.0588 | S73: 0.0591 | T73: 0.0595 | U73: 0.0598 | V73: 0.0602 | W73: 0.0605 | X73: 0.0609 | Y73: 0.0614 | Z73: 0.0618 | AA73: 0.0623 | AB73: 0.0628 | AC73: 0.0633 | AD73: 0.0638 | AE73: 0.0643 | AF73: 0.0649 | AG73: 0.0655 | AH73: 0.0662 | AI73: 0.0668 | AJ73: 0.0675 | AK73: 0.0682 | AL73: 0.069 | AM73: 0.0698 | AN73: 0.0706 | AO73: 0.0714 | AP73: 0.0723 | AQ73: 0.0733 | AR73: 0.0742 | AS73: 0.0753 | AT73: 0.0764 | AU73: 0.0775 | AV73: 0.0788 | AW73: 0.0801 | AX73: 0.0815 | AY73: 0.0829 | AZ73: 0.0844 | BA73: 0.086 | BB73: 0.0876 | BC73: 0.0893 | BD73: 0.091 | BE73: 0.0927 | BF73: 0.0945 | BG73: 0.0963 | BH73: 0.0981 | BI73: 0.0999 | BJ73: 0.1018 | BK73: 0.1036 | BL73: 0.1055 | BM73: 0.1073 | BN73: 0.1092 | BO73: 0.111 | BP73: 0.1128 | BQ73: 0.1146 | BR73: 0.1164 | BS73: 0.1181 | CF73: 87
A74: 88 | B74: 0.0554 | C74: 0.0556 | D74: 0.0557 | E74: 0.0559 | F74: 0.056 | G74: 0.0562 | H74: 0.0564 | I74: 0.0566 | J74: 0.0568 | K74: 0.057 | L74: 0.0572 | M74: 0.0574 | N74: 0.0577 | O74: 0.0579 | P74: 0.0582 | Q74: 0.0585 | R74: 0.0588 | S74: 0.0591 | T74: 0.0595 | U74: 0.0598 | V74: 0.0602 | W74: 0.0606 | X74: 0.061 | Y74: 0.0614 | Z74: 0.0618 | AA74: 0.0623 | AB74: 0.0628 | AC74: 0.0633 | AD74: 0.0638 | AE74: 0.0644 | AF74: 0.065 | AG74: 0.0656 | AH74: 0.0662 | AI74: 0.0669 | AJ74: 0.0676 | AK74: 0.0683 | AL74: 0.069 | AM74: 0.0698 | AN74: 0.0707 | AO74: 0.0715 | AP74: 0.0724 | AQ74: 0.0734 | AR74: 0.0744 | AS74: 0.0754 | AT74: 0.0765 | AU74: 0.0777 | AV74: 0.079 | AW74: 0.0803 | AX74: 0.0817 | AY74: 0.0832 | AZ74: 0.0847 | BA74: 0.0863 | BB74: 0.088 | BC74: 0.0897 | BD74: 0.0915 | BE74: 0.0932 | BF74: 0.0951 | BG74: 0.0969 | BH74: 0.0988 | BI74: 0.1007 | BJ74: 0.1026 | BK74: 0.1046 | BL74: 0.1065 | BM74: 0.1085 | BN74: 0.1104 | BO74: 0.1123 | BP74: 0.1142 | BQ74: 0.1161 | BR74: 0.118 | BS74: 0.1198 | BT74: 0.1216 | CF74: 88
A75: 89 | B75: 0.0554 | C75: 0.0556 | D75: 0.0557 | E75: 0.0559 | F75: 0.056 | G75: 0.0562 | H75: 0.0564 | I75: 0.0566 | J75: 0.0568 | K75: 0.057 | L75: 0.0572 | M75: 0.0574 | N75: 0.0577 | O75: 0.058 | P75: 0.0582 | Q75: 0.0585 | R75: 0.0588 | S75: 0.0591 | T75: 0.0595 | U75: 0.0598 | V75: 0.0602 | W75: 0.0606 | X75: 0.061 | Y75: 0.0614 | Z75: 0.0618 | AA75: 0.0623 | AB75: 0.0628 | AC75: 0.0633 | AD75: 0.0638 | AE75: 0.0644 | AF75: 0.065 | AG75: 0.0656 | AH75: 0.0662 | AI75: 0.0669 | AJ75: 0.0676 | AK75: 0.0684 | AL75: 0.0691 | AM75: 0.0699 | AN75: 0.0707 | AO75: 0.0716 | AP75: 0.0725 | AQ75: 0.0735 | AR75: 0.0745 | AS75: 0.0755 | AT75: 0.0767 | AU75: 0.0779 | AV75: 0.0792 | AW75: 0.0805 | AX75: 0.082 | AY75: 0.0835 | AZ75: 0.085 | BA75: 0.0867 | BB75: 0.0884 | BC75: 0.0901 | BD75: 0.0919 | BE75: 0.0938 | BF75: 0.0957 | BG75: 0.0976 | BH75: 0.0995 | BI75: 0.1015 | BJ75: 0.1035 | BK75: 0.1055 | BL75: 0.1075 | BM75: 0.1095 | BN75: 0.1116 | BO75: 0.1136 | BP75: 0.1156 | BQ75: 0.1176 | BR75: 0.1195 | BS75: 0.1215 | BT75: 0.1234 | BU75: 0.1253 | CF75: 89
A76: 90 | B76: 0.0554 | C76: 0.0556 | D76: 0.0557 | E76: 0.0559 | F76: 0.056 | G76: 0.0562 | H76: 0.0564 | I76: 0.0566 | J76: 0.0568 | K76: 0.057 | L76: 0.0572 | M76: 0.0575 | N76: 0.0577 | O76: 0.058 | P76: 0.0582 | Q76: 0.0585 | R76: 0.0588 | S76: 0.0591 | T76: 0.0595 | U76: 0.0598 | V76: 0.0602 | W76: 0.0606 | X76: 0.061 | Y76: 0.0614 | Z76: 0.0619 | AA76: 0.0623 | AB76: 0.0628 | AC76: 0.0633 | AD76: 0.0639 | AE76: 0.0644 | AF76: 0.065 | AG76: 0.0656 | AH76: 0.0663 | AI76: 0.067 | AJ76: 0.0677 | AK76: 0.0684 | AL76: 0.0692 | AM76: 0.07 | AN76: 0.0708 | AO76: 0.0717 | AP76: 0.0726 | AQ76: 0.0736 | AR76: 0.0746 | AS76: 0.0757 | AT76: 0.0768 | AU76: 0.078 | AV76: 0.0793 | AW76: 0.0807 | AX76: 0.0822 | AY76: 0.0837 | AZ76: 0.0853 | BA76: 0.087 | BB76: 0.0887 | BC76: 0.0905 | BD76: 0.0924 | BE76: 0.0943 | BF76: 0.0962 | BG76: 0.0982 | BH76: 0.1002 | BI76: 0.1022 | BJ76: 0.1043 | BK76: 0.1064 | BL76: 0.1085 | BM76: 0.1106 | BN76: 0.1127 | BO76: 0.1148 | BP76: 0.1169 | BQ76: 0.119 | BR76: 0.1211 | BS76: 0.1231 | BT76: 0.1252 | BU76: 0.1272 | BV76: 0.1291 | CF76: 90
A77: 91 | B77: 0.0554 | C77: 0.0556 | D77: 0.0557 | E77: 0.0559 | F77: 0.056 | G77: 0.0562 | H77: 0.0564 | I77: 0.0566 | J77: 0.0568 | K77: 0.057 | L77: 0.0572 | M77: 0.0575 | N77: 0.0577 | O77: 0.058 | P77: 0.0582 | Q77: 0.0585 | R77: 0.0588 | S77: 0.0592 | T77: 0.0595 | U77: 0.0598 | V77: 0.0602 | W77: 0.0606 | X77: 0.061 | Y77: 0.0614 | Z77: 0.0619 | AA77: 0.0623 | AB77: 0.0628 | AC77: 0.0633 | AD77: 0.0639 | AE77: 0.0645 | AF77: 0.0651 | AG77: 0.0657 | AH77: 0.0663 | AI77: 0.067 | AJ77: 0.0677 | AK77: 0.0685 | AL77: 0.0692 | AM77: 0.07 | AN77: 0.0709 | AO77: 0.0718 | AP77: 0.0727 | AQ77: 0.0737 | AR77: 0.0747 | AS77: 0.0758 | AT77: 0.0769 | AU77: 0.0782 | AV77: 0.0795 | AW77: 0.0809 | AX77: 0.0824 | AY77: 0.0839 | AZ77: 0.0856 | BA77: 0.0873 | BB77: 0.0891 | BC77: 0.0909 | BD77: 0.0928 | BE77: 0.0947 | BF77: 0.0967 | BG77: 0.0988 | BH77: 0.1008 | BI77: 0.1029 | BJ77: 0.1051 | BK77: 0.1072 | BL77: 0.1094 | BM77: 0.1116 | BN77: 0.1138 | BO77: 0.116 | BP77: 0.1182 | BQ77: 0.1204 | BR77: 0.1226 | BS77: 0.1247 | BT77: 0.1269 | BU77: 0.129 | BV77: 0.1311 | BW77: 0.1331 | CF77: 91
A78: 92 | B78: 0.0554 | C78: 0.0556 | D78: 0.0557 | E78: 0.0559 | F78: 0.056 | G78: 0.0562 | H78: 0.0564 | I78: 0.0566 | J78: 0.0568 | K78: 0.057 | L78: 0.0572 | M78: 0.0575 | N78: 0.0577 | O78: 0.058 | P78: 0.0582 | Q78: 0.0585 | R78: 0.0588 | S78: 0.0592 | T78: 0.0595 | U78: 0.0599 | V78: 0.0602 | W78: 0.0606 | X78: 0.061 | Y78: 0.0614 | Z78: 0.0619 | AA78: 0.0624 | AB78: 0.0629 | AC78: 0.0634 | AD78: 0.0639 | AE78: 0.0645 | AF78: 0.0651 | AG78: 0.0657 | AH78: 0.0664 | AI78: 0.067 | AJ78: 0.0678 | AK78: 0.0685 | AL78: 0.0693 | AM78: 0.0701 | AN78: 0.0709 | AO78: 0.0718 | AP78: 0.0728 | AQ78: 0.0737 | AR78: 0.0748 | AS78: 0.0759 | AT78: 0.077 | AU78: 0.0783 | AV78: 0.0796 | AW78: 0.0811 | AX78: 0.0826 | AY78: 0.0841 | AZ78: 0.0858 | BA78: 0.0876 | BB78: 0.0894 | BC78: 0.0912 | BD78: 0.0932 | BE78: 0.0952 | BF78: 0.0972 | BG78: 0.0993 | BH78: 0.1014 | BI78: 0.1036 | BJ78: 0.1058 | BK78: 0.1081 | BL78: 0.1103 | BM78: 0.1126 | BN78: 0.1149 | BO78: 0.1172 | BP78: 0.1195 | BQ78: 0.1218 | BR78: 0.124 | BS78: 0.1263 | BT78: 0.1285 | BU78: 0.1308 | BV78: 0.133 | BW78: 0.1351 | BX78: 0.1373 | CF78: 92
A79: 93 | B79: 0.0554 | C79: 0.0556 | D79: 0.0557 | E79: 0.0559 | F79: 0.056 | G79: 0.0562 | H79: 0.0564 | I79: 0.0566 | J79: 0.0568 | K79: 0.057 | L79: 0.0572 | M79: 0.0575 | N79: 0.0577 | O79: 0.058 | P79: 0.0583 | Q79: 0.0585 | R79: 0.0588 | S79: 0.0592 | T79: 0.0595 | U79: 0.0599 | V79: 0.0602 | W79: 0.0606 | X79: 0.061 | Y79: 0.0615 | Z79: 0.0619 | AA79: 0.0624 | AB79: 0.0629 | AC79: 0.0634 | AD79: 0.0639 | AE79: 0.0645 | AF79: 0.0651 | AG79: 0.0657 | AH79: 0.0664 | AI79: 0.0671 | AJ79: 0.0678 | AK79: 0.0685 | AL79: 0.0693 | AM79: 0.0701 | AN79: 0.071 | AO79: 0.0719 | AP79: 0.0728 | AQ79: 0.0738 | AR79: 0.0749 | AS79: 0.076 | AT79: 0.0771 | AU79: 0.0784 | AV79: 0.0798 | AW79: 0.0812 | AX79: 0.0827 | AY79: 0.0844 | AZ79: 0.086 | BA79: 0.0878 | BB79: 0.0897 | BC79: 0.0916 | BD79: 0.0936 | BE79: 0.0956 | BF79: 0.0977 | BG79: 0.0998 | BH79: 0.102 | BI79: 0.1043 | BJ79: 0.1066 | BK79: 0.1089 | BL79: 0.1112 | BM79: 0.1135 | BN79: 0.1159 | BO79: 0.1183 | BP79: 0.1207 | BQ79: 0.1231 | BR79: 0.1255 | BS79: 0.1278 | BT79: 0.1302 | BU79: 0.1325 | BV79: 0.1348 | BW79: 0.1371 | BX79: 0.1394 | BY79: 0.1416 | CF79: 93
A80: 94 | B80: 0.0554 | C80: 0.0556 | D80: 0.0557 | E80: 0.0559 | F80: 0.056 | G80: 0.0562 | H80: 0.0564 | I80: 0.0566 | J80: 0.0568 | K80: 0.057 | L80: 0.0572 | M80: 0.0575 | N80: 0.0577 | O80: 0.058 | P80: 0.0583 | Q80: 0.0585 | R80: 0.0589 | S80: 0.0592 | T80: 0.0595 | U80: 0.0599 | V80: 0.0602 | W80: 0.0606 | X80: 0.061 | Y80: 0.0615 | Z80: 0.0619 | AA80: 0.0624 | AB80: 0.0629 | AC80: 0.0634 | AD80: 0.064 | AE80: 0.0645 | AF80: 0.0651 | AG80: 0.0658 | AH80: 0.0664 | AI80: 0.0671 | AJ80: 0.0678 | AK80: 0.0686 | AL80: 0.0694 | AM80: 0.0702 | AN80: 0.071 | AO80: 0.0719 | AP80: 0.0729 | AQ80: 0.0739 | AR80: 0.0749 | AS80: 0.0761 | AT80: 0.0772 | AU80: 0.0785 | AV80: 0.0799 | AW80: 0.0814 | AX80: 0.0829 | AY80: 0.0845 | AZ80: 0.0863 | BA80: 0.0881 | BB80: 0.0899 | BC80: 0.0919 | BD80: 0.0939 | BE80: 0.096 | BF80: 0.0981 | BG80: 0.1003 | BH80: 0.1026 | BI80: 0.1049 | BJ80: 0.1072 | BK80: 0.1096 | BL80: 0.112 | BM80: 0.1145 | BN80: 0.1169 | BO80: 0.1194 | BP80: 0.1219 | BQ80: 0.1244 | BR80: 0.1268 | BS80: 0.1293 | BT80: 0.1318 | BU80: 0.1342 | BV80: 0.1367 | BW80: 0.1391 | BX80: 0.1415 | BY80: 0.1438 | BZ80: 0.1461 | CF80: 94
A81: 95 | B81: 0.0554 | C81: 0.0556 | D81: 0.0557 | E81: 0.0559 | F81: 0.056 | G81: 0.0562 | H81: 0.0564 | I81: 0.0566 | J81: 0.0568 | K81: 0.057 | L81: 0.0572 | M81: 0.0575 | N81: 0.0577 | O81: 0.058 | P81: 0.0583 | Q81: 0.0585 | R81: 0.0589 | S81: 0.0592 | T81: 0.0595 | U81: 0.0599 | V81: 0.0602 | W81: 0.0606 | X81: 0.061 | Y81: 0.0615 | Z81: 0.0619 | AA81: 0.0624 | AB81: 0.0629 | AC81: 0.0634 | AD81: 0.064 | AE81: 0.0645 | AF81: 0.0651 | AG81: 0.0658 | AH81: 0.0664 | AI81: 0.0671 | AJ81: 0.0679 | AK81: 0.0686 | AL81: 0.0694 | AM81: 0.0702 | AN81: 0.0711 | AO81: 0.072 | AP81: 0.073 | AQ81: 0.074 | AR81: 0.075 | AS81: 0.0761 | AT81: 0.0773 | AU81: 0.0786 | AV81: 0.08 | AW81: 0.0815 | AX81: 0.0831 | AY81: 0.0847 | AZ81: 0.0865 | BA81: 0.0883 | BB81: 0.0902 | BC81: 0.0922 | BD81: 0.0942 | BE81: 0.0964 | BF81: 0.0986 | BG81: 0.1008 | BH81: 0.1031 | BI81: 0.1055 | BJ81: 0.1079 | BK81: 0.1103 | BL81: 0.1128 | BM81: 0.1153 | BN81: 0.1179 | BO81: 0.1204 | BP81: 0.123 | BQ81: 0.1256 | BR81: 0.1282 | BS81: 0.1308 | BT81: 0.1333 | BU81: 0.1359 | BV81: 0.1385 | BW81: 0.141 | BX81: 0.1435 | BY81: 0.146 | BZ81: 0.1484 | CA81: 0.1509 | CF81: 95
A82: 96 | B82: 0.0554 | C82: 0.0556 | D82: 0.0557 | E82: 0.0559 | F82: 0.0561 | G82: 0.0562 | H82: 0.0564 | I82: 0.0566 | J82: 0.0568 | K82: 0.057 | L82: 0.0572 | M82: 0.0575 | N82: 0.0577 | O82: 0.058 | P82: 0.0583 | Q82: 0.0586 | R82: 0.0589 | S82: 0.0592 | T82: 0.0595 | U82: 0.0599 | V82: 0.0603 | W82: 0.0606 | X82: 0.0611 | Y82: 0.0615 | Z82: 0.0619 | AA82: 0.0624 | AB82: 0.0629 | AC82: 0.0634 | AD82: 0.064 | AE82: 0.0646 | AF82: 0.0652 | AG82: 0.0658 | AH82: 0.0665 | AI82: 0.0672 | AJ82: 0.0679 | AK82: 0.0687 | AL82: 0.0694 | AM82: 0.0703 | AN82: 0.0711 | AO82: 0.0721 | AP82: 0.073 | AQ82: 0.074 | AR82: 0.0751 | AS82: 0.0762 | AT82: 0.0774 | AU82: 0.0787 | AV82: 0.0801 | AW82: 0.0816 | AX82: 0.0832 | AY82: 0.0849 | AZ82: 0.0867 | BA82: 0.0885 | BB82: 0.0905 | BC82: 0.0925 | BD82: 0.0946 | BE82: 0.0967 | BF82: 0.099 | BG82: 0.1013 | BH82: 0.1036 | BI82: 0.1061 | BJ82: 0.1085 | BK82: 0.111 | BL82: 0.1136 | BM82: 0.1162 | BN82: 0.1188 | BO82: 0.1215 | BP82: 0.1241 | BQ82: 0.1268 | BR82: 0.1295 | BS82: 0.1322 | BT82: 0.1349 | BU82: 0.1375 | BV82: 0.1402 | BW82: 0.1429 | BX82: 0.1455 | BY82: 0.1481 | BZ82: 0.1507 | CA82: 0.1533 | CB82: 0.1558 | CF82: 96
A83: 97 | B83: 0.0554 | C83: 0.0556 | D83: 0.0557 | E83: 0.0559 | F83: 0.0561 | G83: 0.0562 | H83: 0.0564 | I83: 0.0566 | J83: 0.0568 | K83: 0.057 | L83: 0.0572 | M83: 0.0575 | N83: 0.0577 | O83: 0.058 | P83: 0.0583 | Q83: 0.0586 | R83: 0.0589 | S83: 0.0592 | T83: 0.0595 | U83: 0.0599 | V83: 0.0603 | W83: 0.0607 | X83: 0.0611 | Y83: 0.0615 | Z83: 0.062 | AA83: 0.0624 | AB83: 0.0629 | AC83: 0.0634 | AD83: 0.064 | AE83: 0.0646 | AF83: 0.0652 | AG83: 0.0658 | AH83: 0.0665 | AI83: 0.0672 | AJ83: 0.0679 | AK83: 0.0687 | AL83: 0.0695 | AM83: 0.0703 | AN83: 0.0712 | AO83: 0.0721 | AP83: 0.0731 | AQ83: 0.0741 | AR83: 0.0752 | AS83: 0.0763 | AT83: 0.0775 | AU83: 0.0788 | AV83: 0.0802 | AW83: 0.0817 | AX83: 0.0833 | AY83: 0.085 | AZ83: 0.0868 | BA83: 0.0887 | BB83: 0.0907 | BC83: 0.0927 | BD83: 0.0949 | BE83: 0.0971 | BF83: 0.0994 | BG83: 0.1017 | BH83: 0.1041 | BI83: 0.1066 | BJ83: 0.1091 | BK83: 0.1117 | BL83: 0.1143 | BM83: 0.117 | BN83: 0.1197 | BO83: 0.1224 | BP83: 0.1252 | BQ83: 0.128 | BR83: 0.1308 | BS83: 0.1336 | BT83: 0.1364 | BU83: 0.1392 | BV83: 0.1419 | BW83: 0.1447 | BX83: 0.1475 | BY83: 0.1502 | BZ83: 0.1529 | CA83: 0.1556 | CB83: 0.1583 | CC83: 0.161 | CF83: 97
A84: 98 | B84: 0.0554 | C84: 0.0556 | D84: 0.0557 | E84: 0.0559 | F84: 0.0561 | G84: 0.0562 | H84: 0.0564 | I84: 0.0566 | J84: 0.0568 | K84: 0.057 | L84: 0.0573 | M84: 0.0575 | N84: 0.0577 | O84: 0.058 | P84: 0.0583 | Q84: 0.0586 | R84: 0.0589 | S84: 0.0592 | T84: 0.0595 | U84: 0.0599 | V84: 0.0603 | W84: 0.0607 | X84: 0.0611 | Y84: 0.0615 | Z84: 0.062 | AA84: 0.0624 | AB84: 0.0629 | AC84: 0.0635 | AD84: 0.064 | AE84: 0.0646 | AF84: 0.0652 | AG84: 0.0658 | AH84: 0.0665 | AI84: 0.0672 | AJ84: 0.068 | AK84: 0.0687 | AL84: 0.0695 | AM84: 0.0704 | AN84: 0.0712 | AO84: 0.0721 | AP84: 0.0731 | AQ84: 0.0741 | AR84: 0.0752 | AS84: 0.0764 | AT84: 0.0776 | AU84: 0.0789 | AV84: 0.0803 | AW84: 0.0819 | AX84: 0.0835 | AY84: 0.0852 | AZ84: 0.087 | BA84: 0.0889 | BB84: 0.0909 | BC84: 0.093 | BD84: 0.0952 | BE84: 0.0974 | BF84: 0.0997 | BG84: 0.1021 | BH84: 0.1046 | BI84: 0.1071 | BJ84: 0.1097 | BK84: 0.1124 | BL84: 0.1151 | BM84: 0.1178 | BN84: 0.1206 | BO84: 0.1234 | BP84: 0.1263 | BQ84: 0.1291 | BR84: 0.132 | BS84: 0.1349 | BT84: 0.1378 | BU84: 0.1407 | BV84: 0.1436 | BW84: 0.1465 | BX84: 0.1494 | BY84: 0.1523 | BZ84: 0.1551 | CA84: 0.158 | CB84: 0.1608 | CC84: 0.1636 | CD84: 0.1664 | CF84: 98
A85: 99 | B85: 0.0554 | C85: 0.0556 | D85: 0.0557 | E85: 0.0559 | F85: 0.0561 | G85: 0.0562 | H85: 0.0564 | I85: 0.0566 | J85: 0.0568 | K85: 0.057 | L85: 0.0573 | M85: 0.0575 | N85: 0.0577 | O85: 0.058 | P85: 0.0583 | Q85: 0.0586 | R85: 0.0589 | S85: 0.0592 | T85: 0.0595 | U85: 0.0599 | V85: 0.0603 | W85: 0.0607 | X85: 0.0611 | Y85: 0.0615 | Z85: 0.062 | AA85: 0.0624 | AB85: 0.0629 | AC85: 0.0635 | AD85: 0.064 | AE85: 0.0646 | AF85: 0.0652 | AG85: 0.0659 | AH85: 0.0665 | AI85: 0.0672 | AJ85: 0.068 | AK85: 0.0687 | AL85: 0.0695 | AM85: 0.0704 | AN85: 0.0713 | AO85: 0.0722 | AP85: 0.0732 | AQ85: 0.0742 | AR85: 0.0753 | AS85: 0.0764 | AT85: 0.0777 | AU85: 0.079 | AV85: 0.0804 | AW85: 0.082 | AX85: 0.0836 | AY85: 0.0853 | AZ85: 0.0872 | BA85: 0.0891 | BB85: 0.0911 | BC85: 0.0932 | BD85: 0.0954 | BE85: 0.0977 | BF85: 0.1001 | BG85: 0.1025 | BH85: 0.105 | BI85: 0.1076 | BJ85: 0.1103 | BK85: 0.113 | BL85: 0.1158 | BM85: 0.1186 | BN85: 0.1214 | BO85: 0.1243 | BP85: 0.1273 | BQ85: 0.1302 | BR85: 0.1332 | BS85: 0.1362 | BT85: 0.1392 | BU85: 0.1423 | BV85: 0.1453 | BW85: 0.1483 | BX85: 0.1513 | BY85: 0.1543 | BZ85: 0.1573 | CA85: 0.1603 | CB85: 0.1633 | CC85: 0.1662 | CD85: 0.1691 | CE85: 0.1721 | CF85: 99
A87: Sum of Differences | C87: =SUM($A$88:$CF$169) -> 0
A88: =IF(A4="",0,A4)-IF('[3]New Rates_V05'!L5="",0,'[3]New Rates_V05'!L5) -> 0 | B88: =IF(B4="",0,B4)-IF('[3]New Rates_V05'!M5="",0,'[3]New Rates_V05'!M5) -> 0 | C88: =IF(C4="",0,C4)-IF('[3]New Rates_V05'!N5="",0,'[3]New Rates_V05'!N5) -> 0 | D88: =IF(D4="",0,D4)-IF('[3]New Rates_V05'!O5="",0,'[3]New Rates_V05'!O5) -> 0 | E88: =IF(E4="",0,E4)-IF('[3]New Rates_V05'!P5="",0,'[3]New Rates_V05'!P5) -> 0 | F88: =IF(F4="",0,F4)-IF('[3]New Rates_V05'!Q5="",0,'[3]New Rates_V05'!Q5) -> 0 | G88: =IF(G4="",0,G4)-IF('[3]New Rates_V05'!R5="",0,'[3]New Rates_V05'!R5) -> 0 | H88: =IF(H4="",0,H4)-IF('[3]New Rates_V05'!S5="",0,'[3]New Rates_V05'!S5) -> 0 | I88: =IF(I4="",0,I4)-IF('[3]New Rates_V05'!T5="",0,'[3]New Rates_V05'!T5) -> 0 | J88: =IF(J4="",0,J4)-IF('[3]New Rates_V05'!U5="",0,'[3]New Rates_V05'!U5) -> 0 | K88: =IF(K4="",0,K4)-IF('[3]New Rates_V05'!V5="",0,'[3]New Rates_V05'!V5) -> 0 | L88: =IF(L4="",0,L4)-IF('[3]New Rates_V05'!W5="",0,'[3]New Rates_V05'!W5) -> 0 | M88: =IF(M4="",0,M4)-IF('[3]New Rates_V05'!X5="",0,'[3]New Rates_V05'!X5) -> 0 | N88: =IF(N4="",0,N4)-IF('[3]New Rates_V05'!Y5="",0,'[3]New Rates_V05'!Y5) -> 0 | O88: =IF(O4="",0,O4)-IF('[3]New Rates_V05'!Z5="",0,'[3]New Rates_V05'!Z5) -> 0 | P88: =IF(P4="",0,P4)-IF('[3]New Rates_V05'!AA5="",0,'[3]New Rates_V05'!AA5) -> 0 | Q88: =IF(Q4="",0,Q4)-IF('[3]New Rates_V05'!AB5="",0,'[3]New Rates_V05'!AB5) -> 0 | R88: =IF(R4="",0,R4)-IF('[3]New Rates_V05'!AC5="",0,'[3]New Rates_V05'!AC5) -> 0 | S88: =IF(S4="",0,S4)-IF('[3]New Rates_V05'!AD5="",0,'[3]New Rates_V05'!AD5) -> 0 | T88: =IF(T4="",0,T4)-IF('[3]New Rates_V05'!AE5="",0,'[3]New Rates_V05'!AE5) -> 0 | U88: =IF(U4="",0,U4)-IF('[3]New Rates_V05'!AF5="",0,'[3]New Rates_V05'!AF5) -> 0 | V88: =IF(V4="",0,V4)-IF('[3]New Rates_V05'!AG5="",0,'[3]New Rates_V05'!AG5) -> 0 | W88: =IF(W4="",0,W4)-IF('[3]New Rates_V05'!AH5="",0,'[3]New Rates_V05'!AH5) -> 0 | X88: =IF(X4="",0,X4)-IF('[3]New Rates_V05'!AI5="",0,'[3]New Rates_V05'!AI5) -> 0 | Y88: =IF(Y4="",0,Y4)-IF('[3]New Rates_V05'!AJ5="",0,'[3]New Rates_V05'!AJ5) -> 0 | Z88: =IF(Z4="",0,Z4)-IF('[3]New Rates_V05'!AK5="",0,'[3]New Rates_V05'!AK5) -> 0 | AA88: =IF(AA4="",0,AA4)-IF('[3]New Rates_V05'!AL5="",0,'[3]New Rates_V05'!AL5) -> 0 | AB88: =IF(AB4="",0,AB4)-IF('[3]New Rates_V05'!AM5="",0,'[3]New Rates_V05'!AM5) -> 0 | AC88: =IF(AC4="",0,AC4)-IF('[3]New Rates_V05'!AN5="",0,'[3]New Rates_V05'!AN5) -> 0 | AD88: =IF(AD4="",0,AD4)-IF('[3]New Rates_V05'!AO5="",0,'[3]New Rates_V05'!AO5) -> 0 | AE88: =IF(AE4="",0,AE4)-IF('[3]New Rates_V05'!AP5="",0,'[3]New Rates_V05'!AP5) -> 0 | AF88: =IF(AF4="",0,AF4)-IF('[3]New Rates_V05'!AQ5="",0,'[3]New Rates_V05'!AQ5) -> 0 | AG88: =IF(AG4="",0,AG4)-IF('[3]New Rates_V05'!AR5="",0,'[3]New Rates_V05'!AR5) -> 0 | AH88: =IF(AH4="",0,AH4)-IF('[3]New Rates_V05'!AS5="",0,'[3]New Rates_V05'!AS5) -> 0 | AI88: =IF(AI4="",0,AI4)-IF('[3]New Rates_V05'!AT5="",0,'[3]New Rates_V05'!AT5) -> 0 | AJ88: =IF(AJ4="",0,AJ4)-IF('[3]New Rates_V05'!AU5="",0,'[3]New Rates_V05'!AU5) -> 0 | AK88: =IF(AK4="",0,AK4)-IF('[3]New Rates_V05'!AV5="",0,'[3]New Rates_V05'!AV5) -> 0 | AL88: =IF(AL4="",0,AL4)-IF('[3]New Rates_V05'!AW5="",0,'[3]New Rates_V05'!AW5) -> 0 | AM88: =IF(AM4="",0,AM4)-IF('[3]New Rates_V05'!AX5="",0,'[3]New Rates_V05'!AX5) -> 0 | AN88: =IF(AN4="",0,AN4)-IF('[3]New Rates_V05'!AY5="",0,'[3]New Rates_V05'!AY5) -> 0 | AO88: =IF(AO4="",0,AO4)-IF('[3]New Rates_V05'!AZ5="",0,'[3]New Rates_V05'!AZ5) -> 0 | AP88: =IF(AP4="",0,AP4)-IF('[3]New Rates_V05'!BA5="",0,'[3]New Rates_V05'!BA5) -> 0 | AQ88: =IF(AQ4="",0,AQ4)-IF('[3]New Rates_V05'!BB5="",0,'[3]New Rates_V05'!BB5) -> 0 | AR88: =IF(AR4="",0,AR4)-IF('[3]New Rates_V05'!BC5="",0,'[3]New Rates_V05'!BC5) -> 0 | AS88: =IF(AS4="",0,AS4)-IF('[3]New Rates_V05'!BD5="",0,'[3]New Rates_V05'!BD5) -> 0 | AT88: =IF(AT4="",0,AT4)-IF('[3]New Rates_V05'!BE5="",0,'[3]New Rates_V05'!BE5) -> 0 | AU88: =IF(AU4="",0,AU4)-IF('[3]New Rates_V05'!BF5="",0,'[3]New Rates_V05'!BF5) -> 0 | AV88: =IF(AV4="",0,AV4)-IF('[3]New Rates_V05'!BG5="",0,'[3]New Rates_V05'!BG5) -> 0 | AW88: =IF(AW4="",0,AW4)-IF('[3]New Rates_V05'!BH5="",0,'[3]New Rates_V05'!BH5) -> 0 | AX88: =IF(AX4="",0,AX4)-IF('[3]New Rates_V05'!BI5="",0,'[3]New Rates_V05'!BI5) -> 0 | AY88: =IF(AY4="",0,AY4)-IF('[3]New Rates_V05'!BJ5="",0,'[3]New Rates_V05'!BJ5) -> 0 | AZ88: =IF(AZ4="",0,AZ4)-IF('[3]New Rates_V05'!BK5="",0,'[3]New Rates_V05'!BK5) -> 0 | BA88: =IF(BA4="",0,BA4)-IF('[3]New Rates_V05'!BL5="",0,'[3]New Rates_V05'!BL5) -> 0 | BB88: =IF(BB4="",0,BB4)-IF('[3]New Rates_V05'!BM5="",0,'[3]New Rates_V05'!BM5) -> 0 | BC88: =IF(BC4="",0,BC4)-IF('[3]New Rates_V05'!BN5="",0,'[3]New Rates_V05'!BN5) -> 0 | BD88: =IF(BD4="",0,BD4)-IF('[3]New Rates_V05'!BO5="",0,'[3]New Rates_V05'!BO5) -> 0 | BE88: =IF(BE4="",0,BE4)-IF('[3]New Rates_V05'!BP5="",0,'[3]New Rates_V05'!BP5) -> 0 | BF88: =IF(BF4="",0,BF4)-IF('[3]New Rates_V05'!BQ5="",0,'[3]New Rates_V05'!BQ5) -> 0 | BG88: =IF(BG4="",0,BG4)-IF('[3]New Rates_V05'!BR5="",0,'[3]New Rates_V05'!BR5) -> 0 | BH88: =IF(BH4="",0,BH4)-IF('[3]New Rates_V05'!BS5="",0,'[3]New Rates_V05'!BS5) -> 0 | BI88: =IF(BI4="",0,BI4)-IF('[3]New Rates_V05'!BT5="",0,'[3]New Rates_V05'!BT5) -> 0 | BJ88: =IF(BJ4="",0,BJ4)-IF('[3]New Rates_V05'!BU5="",0,'[3]New Rates_V05'!BU5) -> 0 | BK88: =IF(BK4="",0,BK4)-IF('[3]New Rates_V05'!BV5="",0,'[3]New Rates_V05'!BV5) -> 0 | BL88: =IF(BL4="",0,BL4)-IF('[3]New Rates_V05'!BW5="",0,'[3]New Rates_V05'!BW5) -> 0 | BM88: =IF(BM4="",0,BM4)-IF('[3]New Rates_V05'!BX5="",0,'[3]New Rates_V05'!BX5) -> 0 | BN88: =IF(BN4="",0,BN4)-IF('[3]New Rates_V05'!BY5="",0,'[3]New Rates_V05'!BY5) -> 0 | BO88: =IF(BO4="",0,BO4)-IF('[3]New Rates_V05'!BZ5="",0,'[3]New Rates_V05'!BZ5) -> 0 | BP88: =IF(BP4="",0,BP4)-IF('[3]New Rates_V05'!CA5="",0,'[3]New Rates_V05'!CA5) -> 0 | BQ88: =IF(BQ4="",0,BQ4)-IF('[3]New Rates_V05'!CB5="",0,'[3]New Rates_V05'!CB5) -> 0 | BR88: =IF(BR4="",0,BR4)-IF('[3]New Rates_V05'!CC5="",0,'[3]New Rates_V05'!CC5) -> 0 | BS88: =IF(BS4="",0,BS4)-IF('[3]New Rates_V05'!CD5="",0,'[3]New Rates_V05'!CD5) -> 0 | BT88: =IF(BT4="",0,BT4)-IF('[3]New Rates_V05'!CE5="",0,'[3]New Rates_V05'!CE5) -> 0 | BU88: =IF(BU4="",0,BU4)-IF('[3]New Rates_V05'!CF5="",0,'[3]New Rates_V05'!CF5) -> 0 | BV88: =IF(BV4="",0,BV4)-IF('[3]New Rates_V05'!CG5="",0,'[3]New Rates_V05'!CG5) -> 0 | BW88: =IF(BW4="",0,BW4)-IF('[3]New Rates_V05'!CH5="",0,'[3]New Rates_V05'!CH5) -> 0 | BX88: =IF(BX4="",0,BX4)-IF('[3]New Rates_V05'!CI5="",0,'[3]New Rates_V05'!CI5) -> 0 | BY88: =IF(BY4="",0,BY4)-IF('[3]New Rates_V05'!CJ5="",0,'[3]New Rates_V05'!CJ5) -> 0 | BZ88: =IF(BZ4="",0,BZ4)-IF('[3]New Rates_V05'!CK5="",0,'[3]New Rates_V05'!CK5) -> 0 | CA88: =IF(CA4="",0,CA4)-IF('[3]New Rates_V05'!CL5="",0,'[3]New Rates_V05'!CL5) -> 0 | CB88: =IF(CB4="",0,CB4)-IF('[3]New Rates_V05'!CM5="",0,'[3]New Rates_V05'!CM5) -> 0 | CC88: =IF(CC4="",0,CC4)-IF('[3]New Rates_V05'!CN5="",0,'[3]New Rates_V05'!CN5) -> 0 | CD88: =IF(CD4="",0,CD4)-IF('[3]New Rates_V05'!CO5="",0,'[3]New Rates_V05'!CO5) -> 0 | CE88: =IF(CE4="",0,CE4)-IF('[3]New Rates_V05'!CP5="",0,'[3]New Rates_V05'!CP5) -> 0 | CF88: =IF(CF4="",0,CF4)-IF('[3]New Rates_V05'!CQ5="",0,'[3]New Rates_V05'!CQ5) -> 0
A89: =IF(A5="",0,A5)-IF('[3]New Rates_V05'!L6="",0,'[3]New Rates_V05'!L6) -> 0 | B89: =IF(B5="",0,B5)-IF('[3]New Rates_V05'!M6="",0,'[3]New Rates_V05'!M6) -> 0 | C89: =IF(C5="",0,C5)-IF('[3]New Rates_V05'!N6="",0,'[3]New Rates_V05'!N6) -> 0 | D89: =IF(D5="",0,D5)-IF('[3]New Rates_V05'!O6="",0,'[3]New Rates_V05'!O6) -> 0 | E89: =IF(E5="",0,E5)-IF('[3]New Rates_V05'!P6="",0,'[3]New Rates_V05'!P6) -> 0 | F89: =IF(F5="",0,F5)-IF('[3]New Rates_V05'!Q6="",0,'[3]New Rates_V05'!Q6) -> 0 | G89: =IF(G5="",0,G5)-IF('[3]New Rates_V05'!R6="",0,'[3]New Rates_V05'!R6) -> 0 | H89: =IF(H5="",0,H5)-IF('[3]New Rates_V05'!S6="",0,'[3]New Rates_V05'!S6) -> 0 | I89: =IF(I5="",0,I5)-IF('[3]New Rates_V05'!T6="",0,'[3]New Rates_V05'!T6) -> 0 | J89: =IF(J5="",0,J5)-IF('[3]New Rates_V05'!U6="",0,'[3]New Rates_V05'!U6) -> 0 | K89: =IF(K5="",0,K5)-IF('[3]New Rates_V05'!V6="",0,'[3]New Rates_V05'!V6) -> 0 | L89: =IF(L5="",0,L5)-IF('[3]New Rates_V05'!W6="",0,'[3]New Rates_V05'!W6) -> 0 | M89: =IF(M5="",0,M5)-IF('[3]New Rates_V05'!X6="",0,'[3]New Rates_V05'!X6) -> 0 | N89: =IF(N5="",0,N5)-IF('[3]New Rates_V05'!Y6="",0,'[3]New Rates_V05'!Y6) -> 0 | O89: =IF(O5="",0,O5)-IF('[3]New Rates_V05'!Z6="",0,'[3]New Rates_V05'!Z6) -> 0 | P89: =IF(P5="",0,P5)-IF('[3]New Rates_V05'!AA6="",0,'[3]New Rates_V05'!AA6) -> 0 | Q89: =IF(Q5="",0,Q5)-IF('[3]New Rates_V05'!AB6="",0,'[3]New Rates_V05'!AB6) -> 0 | R89: =IF(R5="",0,R5)-IF('[3]New Rates_V05'!AC6="",0,'[3]New Rates_V05'!AC6) -> 0 | S89: =IF(S5="",0,S5)-IF('[3]New Rates_V05'!AD6="",0,'[3]New Rates_V05'!AD6) -> 0 | T89: =IF(T5="",0,T5)-IF('[3]New Rates_V05'!AE6="",0,'[3]New Rates_V05'!AE6) -> 0 | U89: =IF(U5="",0,U5)-IF('[3]New Rates_V05'!AF6="",0,'[3]New Rates_V05'!AF6) -> 0 | V89: =IF(V5="",0,V5)-IF('[3]New Rates_V05'!AG6="",0,'[3]New Rates_V05'!AG6) -> 0 | W89: =IF(W5="",0,W5)-IF('[3]New Rates_V05'!AH6="",0,'[3]New Rates_V05'!AH6) -> 0 | X89: =IF(X5="",0,X5)-IF('[3]New Rates_V05'!AI6="",0,'[3]New Rates_V05'!AI6) -> 0 | Y89: =IF(Y5="",0,Y5)-IF('[3]New Rates_V05'!AJ6="",0,'[3]New Rates_V05'!AJ6) -> 0 | Z89: =IF(Z5="",0,Z5)-IF('[3]New Rates_V05'!AK6="",0,'[3]New Rates_V05'!AK6) -> 0 | AA89: =IF(AA5="",0,AA5)-IF('[3]New Rates_V05'!AL6="",0,'[3]New Rates_V05'!AL6) -> 0 | AB89: =IF(AB5="",0,AB5)-IF('[3]New Rates_V05'!AM6="",0,'[3]New Rates_V05'!AM6) -> 0 | AC89: =IF(AC5="",0,AC5)-IF('[3]New Rates_V05'!AN6="",0,'[3]New Rates_V05'!AN6) -> 0 | AD89: =IF(AD5="",0,AD5)-IF('[3]New Rates_V05'!AO6="",0,'[3]New Rates_V05'!AO6) -> 0 | AE89: =IF(AE5="",0,AE5)-IF('[3]New Rates_V05'!AP6="",0,'[3]New Rates_V05'!AP6) -> 0 | AF89: =IF(AF5="",0,AF5)-IF('[3]New Rates_V05'!AQ6="",0,'[3]New Rates_V05'!AQ6) -> 0 | AG89: =IF(AG5="",0,AG5)-IF('[3]New Rates_V05'!AR6="",0,'[3]New Rates_V05'!AR6) -> 0 | AH89: =IF(AH5="",0,AH5)-IF('[3]New Rates_V05'!AS6="",0,'[3]New Rates_V05'!AS6) -> 0 | AI89: =IF(AI5="",0,AI5)-IF('[3]New Rates_V05'!AT6="",0,'[3]New Rates_V05'!AT6) -> 0 | AJ89: =IF(AJ5="",0,AJ5)-IF('[3]New Rates_V05'!AU6="",0,'[3]New Rates_V05'!AU6) -> 0 | AK89: =IF(AK5="",0,AK5)-IF('[3]New Rates_V05'!AV6="",0,'[3]New Rates_V05'!AV6) -> 0 | AL89: =IF(AL5="",0,AL5)-IF('[3]New Rates_V05'!AW6="",0,'[3]New Rates_V05'!AW6) -> 0 | AM89: =IF(AM5="",0,AM5)-IF('[3]New Rates_V05'!AX6="",0,'[3]New Rates_V05'!AX6) -> 0 | AN89: =IF(AN5="",0,AN5)-IF('[3]New Rates_V05'!AY6="",0,'[3]New Rates_V05'!AY6) -> 0 | AO89: =IF(AO5="",0,AO5)-IF('[3]New Rates_V05'!AZ6="",0,'[3]New Rates_V05'!AZ6) -> 0 | AP89: =IF(AP5="",0,AP5)-IF('[3]New Rates_V05'!BA6="",0,'[3]New Rates_V05'!BA6) -> 0 | AQ89: =IF(AQ5="",0,AQ5)-IF('[3]New Rates_V05'!BB6="",0,'[3]New Rates_V05'!BB6) -> 0 | AR89: =IF(AR5="",0,AR5)-IF('[3]New Rates_V05'!BC6="",0,'[3]New Rates_V05'!BC6) -> 0 | AS89: =IF(AS5="",0,AS5)-IF('[3]New Rates_V05'!BD6="",0,'[3]New Rates_V05'!BD6) -> 0 | AT89: =IF(AT5="",0,AT5)-IF('[3]New Rates_V05'!BE6="",0,'[3]New Rates_V05'!BE6) -> 0 | AU89: =IF(AU5="",0,AU5)-IF('[3]New Rates_V05'!BF6="",0,'[3]New Rates_V05'!BF6) -> 0 | AV89: =IF(AV5="",0,AV5)-IF('[3]New Rates_V05'!BG6="",0,'[3]New Rates_V05'!BG6) -> 0 | AW89: =IF(AW5="",0,AW5)-IF('[3]New Rates_V05'!BH6="",0,'[3]New Rates_V05'!BH6) -> 0 | AX89: =IF(AX5="",0,AX5)-IF('[3]New Rates_V05'!BI6="",0,'[3]New Rates_V05'!BI6) -> 0 | AY89: =IF(AY5="",0,AY5)-IF('[3]New Rates_V05'!BJ6="",0,'[3]New Rates_V05'!BJ6) -> 0 | AZ89: =IF(AZ5="",0,AZ5)-IF('[3]New Rates_V05'!BK6="",0,'[3]New Rates_V05'!BK6) -> 0 | BA89: =IF(BA5="",0,BA5)-IF('[3]New Rates_V05'!BL6="",0,'[3]New Rates_V05'!BL6) -> 0 | BB89: =IF(BB5="",0,BB5)-IF('[3]New Rates_V05'!BM6="",0,'[3]New Rates_V05'!BM6) -> 0 | BC89: =IF(BC5="",0,BC5)-IF('[3]New Rates_V05'!BN6="",0,'[3]New Rates_V05'!BN6) -> 0 | BD89: =IF(BD5="",0,BD5)-IF('[3]New Rates_V05'!BO6="",0,'[3]New Rates_V05'!BO6) -> 0 | BE89: =IF(BE5="",0,BE5)-IF('[3]New Rates_V05'!BP6="",0,'[3]New Rates_V05'!BP6) -> 0 | BF89: =IF(BF5="",0,BF5)-IF('[3]New Rates_V05'!BQ6="",0,'[3]New Rates_V05'!BQ6) -> 0 | BG89: =IF(BG5="",0,BG5)-IF('[3]New Rates_V05'!BR6="",0,'[3]New Rates_V05'!BR6) -> 0 | BH89: =IF(BH5="",0,BH5)-IF('[3]New Rates_V05'!BS6="",0,'[3]New Rates_V05'!BS6) -> 0 | BI89: =IF(BI5="",0,BI5)-IF('[3]New Rates_V05'!BT6="",0,'[3]New Rates_V05'!BT6) -> 0 | BJ89: =IF(BJ5="",0,BJ5)-IF('[3]New Rates_V05'!BU6="",0,'[3]New Rates_V05'!BU6) -> 0 | BK89: =IF(BK5="",0,BK5)-IF('[3]New Rates_V05'!BV6="",0,'[3]New Rates_V05'!BV6) -> 0 | BL89: =IF(BL5="",0,BL5)-IF('[3]New Rates_V05'!BW6="",0,'[3]New Rates_V05'!BW6) -> 0 | BM89: =IF(BM5="",0,BM5)-IF('[3]New Rates_V05'!BX6="",0,'[3]New Rates_V05'!BX6) -> 0 | BN89: =IF(BN5="",0,BN5)-IF('[3]New Rates_V05'!BY6="",0,'[3]New Rates_V05'!BY6) -> 0 | BO89: =IF(BO5="",0,BO5)-IF('[3]New Rates_V05'!BZ6="",0,'[3]New Rates_V05'!BZ6) -> 0 | BP89: =IF(BP5="",0,BP5)-IF('[3]New Rates_V05'!CA6="",0,'[3]New Rates_V05'!CA6) -> 0 | BQ89: =IF(BQ5="",0,BQ5)-IF('[3]New Rates_V05'!CB6="",0,'[3]New Rates_V05'!CB6) -> 0 | BR89: =IF(BR5="",0,BR5)-IF('[3]New Rates_V05'!CC6="",0,'[3]New Rates_V05'!CC6) -> 0 | BS89: =IF(BS5="",0,BS5)-IF('[3]New Rates_V05'!CD6="",0,'[3]New Rates_V05'!CD6) -> 0 | BT89: =IF(BT5="",0,BT5)-IF('[3]New Rates_V05'!CE6="",0,'[3]New Rates_V05'!CE6) -> 0 | BU89: =IF(BU5="",0,BU5)-IF('[3]New Rates_V05'!CF6="",0,'[3]New Rates_V05'!CF6) -> 0 | BV89: =IF(BV5="",0,BV5)-IF('[3]New Rates_V05'!CG6="",0,'[3]New Rates_V05'!CG6) -> 0 | BW89: =IF(BW5="",0,BW5)-IF('[3]New Rates_V05'!CH6="",0,'[3]New Rates_V05'!CH6) -> 0 | BX89: =IF(BX5="",0,BX5)-IF('[3]New Rates_V05'!CI6="",0,'[3]New Rates_V05'!CI6) -> 0 | BY89: =IF(BY5="",0,BY5)-IF('[3]New Rates_V05'!CJ6="",0,'[3]New Rates_V05'!CJ6) -> 0 | BZ89: =IF(BZ5="",0,BZ5)-IF('[3]New Rates_V05'!CK6="",0,'[3]New Rates_V05'!CK6) -> 0 | CA89: =IF(CA5="",0,CA5)-IF('[3]New Rates_V05'!CL6="",0,'[3]New Rates_V05'!CL6) -> 0 | CB89: =IF(CB5="",0,CB5)-IF('[3]New Rates_V05'!CM6="",0,'[3]New Rates_V05'!CM6) -> 0 | CC89: =IF(CC5="",0,CC5)-IF('[3]New Rates_V05'!CN6="",0,'[3]New Rates_V05'!CN6) -> 0 | CD89: =IF(CD5="",0,CD5)-IF('[3]New Rates_V05'!CO6="",0,'[3]New Rates_V05'!CO6) -> 0 | CE89: =IF(CE5="",0,CE5)-IF('[3]New Rates_V05'!CP6="",0,'[3]New Rates_V05'!CP6) -> 0 | CF89: =IF(CF5="",0,CF5)-IF('[3]New Rates_V05'!CQ6="",0,'[3]New Rates_V05'!CQ6) -> 0
A90: =IF(A6="",0,A6)-IF('[3]New Rates_V05'!L7="",0,'[3]New Rates_V05'!L7) -> 0 | B90: =IF(B6="",0,B6)-IF('[3]New Rates_V05'!M7="",0,'[3]New Rates_V05'!M7) -> 0 | C90: =IF(C6="",0,C6)-IF('[3]New Rates_V05'!N7="",0,'[3]New Rates_V05'!N7) -> 0 | D90: =IF(D6="",0,D6)-IF('[3]New Rates_V05'!O7="",0,'[3]New Rates_V05'!O7) -> 0 | E90: =IF(E6="",0,E6)-IF('[3]New Rates_V05'!P7="",0,'[3]New Rates_V05'!P7) -> 0 | F90: =IF(F6="",0,F6)-IF('[3]New Rates_V05'!Q7="",0,'[3]New Rates_V05'!Q7) -> 0 | G90: =IF(G6="",0,G6)-IF('[3]New Rates_V05'!R7="",0,'[3]New Rates_V05'!R7) -> 0 | H90: =IF(H6="",0,H6)-IF('[3]New Rates_V05'!S7="",0,'[3]New Rates_V05'!S7) -> 0 | I90: =IF(I6="",0,I6)-IF('[3]New Rates_V05'!T7="",0,'[3]New Rates_V05'!T7) -> 0 | J90: =IF(J6="",0,J6)-IF('[3]New Rates_V05'!U7="",0,'[3]New Rates_V05'!U7) -> 0 | K90: =IF(K6="",0,K6)-IF('[3]New Rates_V05'!V7="",0,'[3]New Rates_V05'!V7) -> 0 | L90: =IF(L6="",0,L6)-IF('[3]New Rates_V05'!W7="",0,'[3]New Rates_V05'!W7) -> 0 | M90: =IF(M6="",0,M6)-IF('[3]New Rates_V05'!X7="",0,'[3]New Rates_V05'!X7) -> 0 | N90: =IF(N6="",0,N6)-IF('[3]New Rates_V05'!Y7="",0,'[3]New Rates_V05'!Y7) -> 0 | O90: =IF(O6="",0,O6)-IF('[3]New Rates_V05'!Z7="",0,'[3]New Rates_V05'!Z7) -> 0 | P90: =IF(P6="",0,P6)-IF('[3]New Rates_V05'!AA7="",0,'[3]New Rates_V05'!AA7) -> 0 | Q90: =IF(Q6="",0,Q6)-IF('[3]New Rates_V05'!AB7="",0,'[3]New Rates_V05'!AB7) -> 0 | R90: =IF(R6="",0,R6)-IF('[3]New Rates_V05'!AC7="",0,'[3]New Rates_V05'!AC7) -> 0 | S90: =IF(S6="",0,S6)-IF('[3]New Rates_V05'!AD7="",0,'[3]New Rates_V05'!AD7) -> 0 | T90: =IF(T6="",0,T6)-IF('[3]New Rates_V05'!AE7="",0,'[3]New Rates_V05'!AE7) -> 0 | U90: =IF(U6="",0,U6)-IF('[3]New Rates_V05'!AF7="",0,'[3]New Rates_V05'!AF7) -> 0 | V90: =IF(V6="",0,V6)-IF('[3]New Rates_V05'!AG7="",0,'[3]New Rates_V05'!AG7) -> 0 | W90: =IF(W6="",0,W6)-IF('[3]New Rates_V05'!AH7="",0,'[3]New Rates_V05'!AH7) -> 0 | X90: =IF(X6="",0,X6)-IF('[3]New Rates_V05'!AI7="",0,'[3]New Rates_V05'!AI7) -> 0 | Y90: =IF(Y6="",0,Y6)-IF('[3]New Rates_V05'!AJ7="",0,'[3]New Rates_V05'!AJ7) -> 0 | Z90: =IF(Z6="",0,Z6)-IF('[3]New Rates_V05'!AK7="",0,'[3]New Rates_V05'!AK7) -> 0 | AA90: =IF(AA6="",0,AA6)-IF('[3]New Rates_V05'!AL7="",0,'[3]New Rates_V05'!AL7) -> 0 | AB90: =IF(AB6="",0,AB6)-IF('[3]New Rates_V05'!AM7="",0,'[3]New Rates_V05'!AM7) -> 0 | AC90: =IF(AC6="",0,AC6)-IF('[3]New Rates_V05'!AN7="",0,'[3]New Rates_V05'!AN7) -> 0 | AD90: =IF(AD6="",0,AD6)-IF('[3]New Rates_V05'!AO7="",0,'[3]New Rates_V05'!AO7) -> 0 | AE90: =IF(AE6="",0,AE6)-IF('[3]New Rates_V05'!AP7="",0,'[3]New Rates_V05'!AP7) -> 0 | AF90: =IF(AF6="",0,AF6)-IF('[3]New Rates_V05'!AQ7="",0,'[3]New Rates_V05'!AQ7) -> 0 | AG90: =IF(AG6="",0,AG6)-IF('[3]New Rates_V05'!AR7="",0,'[3]New Rates_V05'!AR7) -> 0 | AH90: =IF(AH6="",0,AH6)-IF('[3]New Rates_V05'!AS7="",0,'[3]New Rates_V05'!AS7) -> 0 | AI90: =IF(AI6="",0,AI6)-IF('[3]New Rates_V05'!AT7="",0,'[3]New Rates_V05'!AT7) -> 0 | AJ90: =IF(AJ6="",0,AJ6)-IF('[3]New Rates_V05'!AU7="",0,'[3]New Rates_V05'!AU7) -> 0 | AK90: =IF(AK6="",0,AK6)-IF('[3]New Rates_V05'!AV7="",0,'[3]New Rates_V05'!AV7) -> 0 | AL90: =IF(AL6="",0,AL6)-IF('[3]New Rates_V05'!AW7="",0,'[3]New Rates_V05'!AW7) -> 0 | AM90: =IF(AM6="",0,AM6)-IF('[3]New Rates_V05'!AX7="",0,'[3]New Rates_V05'!AX7) -> 0 | AN90: =IF(AN6="",0,AN6)-IF('[3]New Rates_V05'!AY7="",0,'[3]New Rates_V05'!AY7) -> 0 | AO90: =IF(AO6="",0,AO6)-IF('[3]New Rates_V05'!AZ7="",0,'[3]New Rates_V05'!AZ7) -> 0 | AP90: =IF(AP6="",0,AP6)-IF('[3]New Rates_V05'!BA7="",0,'[3]New Rates_V05'!BA7) -> 0 | AQ90: =IF(AQ6="",0,AQ6)-IF('[3]New Rates_V05'!BB7="",0,'[3]New Rates_V05'!BB7) -> 0 | AR90: =IF(AR6="",0,AR6)-IF('[3]New Rates_V05'!BC7="",0,'[3]New Rates_V05'!BC7) -> 0 | AS90: =IF(AS6="",0,AS6)-IF('[3]New Rates_V05'!BD7="",0,'[3]New Rates_V05'!BD7) -> 0 | AT90: =IF(AT6="",0,AT6)-IF('[3]New Rates_V05'!BE7="",0,'[3]New Rates_V05'!BE7) -> 0 | AU90: =IF(AU6="",0,AU6)-IF('[3]New Rates_V05'!BF7="",0,'[3]New Rates_V05'!BF7) -> 0 | AV90: =IF(AV6="",0,AV6)-IF('[3]New Rates_V05'!BG7="",0,'[3]New Rates_V05'!BG7) -> 0 | AW90: =IF(AW6="",0,AW6)-IF('[3]New Rates_V05'!BH7="",0,'[3]New Rates_V05'!BH7) -> 0 | AX90: =IF(AX6="",0,AX6)-IF('[3]New Rates_V05'!BI7="",0,'[3]New Rates_V05'!BI7) -> 0 | AY90: =IF(AY6="",0,AY6)-IF('[3]New Rates_V05'!BJ7="",0,'[3]New Rates_V05'!BJ7) -> 0 | AZ90: =IF(AZ6="",0,AZ6)-IF('[3]New Rates_V05'!BK7="",0,'[3]New Rates_V05'!BK7) -> 0 | BA90: =IF(BA6="",0,BA6)-IF('[3]New Rates_V05'!BL7="",0,'[3]New Rates_V05'!BL7) -> 0 | BB90: =IF(BB6="",0,BB6)-IF('[3]New Rates_V05'!BM7="",0,'[3]New Rates_V05'!BM7) -> 0 | BC90: =IF(BC6="",0,BC6)-IF('[3]New Rates_V05'!BN7="",0,'[3]New Rates_V05'!BN7) -> 0 | BD90: =IF(BD6="",0,BD6)-IF('[3]New Rates_V05'!BO7="",0,'[3]New Rates_V05'!BO7) -> 0 | BE90: =IF(BE6="",0,BE6)-IF('[3]New Rates_V05'!BP7="",0,'[3]New Rates_V05'!BP7) -> 0 | BF90: =IF(BF6="",0,BF6)-IF('[3]New Rates_V05'!BQ7="",0,'[3]New Rates_V05'!BQ7) -> 0 | BG90: =IF(BG6="",0,BG6)-IF('[3]New Rates_V05'!BR7="",0,'[3]New Rates_V05'!BR7) -> 0 | BH90: =IF(BH6="",0,BH6)-IF('[3]New Rates_V05'!BS7="",0,'[3]New Rates_V05'!BS7) -> 0 | BI90: =IF(BI6="",0,BI6)-IF('[3]New Rates_V05'!BT7="",0,'[3]New Rates_V05'!BT7) -> 0 | BJ90: =IF(BJ6="",0,BJ6)-IF('[3]New Rates_V05'!BU7="",0,'[3]New Rates_V05'!BU7) -> 0 | BK90: =IF(BK6="",0,BK6)-IF('[3]New Rates_V05'!BV7="",0,'[3]New Rates_V05'!BV7) -> 0 | BL90: =IF(BL6="",0,BL6)-IF('[3]New Rates_V05'!BW7="",0,'[3]New Rates_V05'!BW7) -> 0 | BM90: =IF(BM6="",0,BM6)-IF('[3]New Rates_V05'!BX7="",0,'[3]New Rates_V05'!BX7) -> 0 | BN90: =IF(BN6="",0,BN6)-IF('[3]New Rates_V05'!BY7="",0,'[3]New Rates_V05'!BY7) -> 0 | BO90: =IF(BO6="",0,BO6)-IF('[3]New Rates_V05'!BZ7="",0,'[3]New Rates_V05'!BZ7) -> 0 | BP90: =IF(BP6="",0,BP6)-IF('[3]New Rates_V05'!CA7="",0,'[3]New Rates_V05'!CA7) -> 0 | BQ90: =IF(BQ6="",0,BQ6)-IF('[3]New Rates_V05'!CB7="",0,'[3]New Rates_V05'!CB7) -> 0 | BR90: =IF(BR6="",0,BR6)-IF('[3]New Rates_V05'!CC7="",0,'[3]New Rates_V05'!CC7) -> 0 | BS90: =IF(BS6="",0,BS6)-IF('[3]New Rates_V05'!CD7="",0,'[3]New Rates_V05'!CD7) -> 0 | BT90: =IF(BT6="",0,BT6)-IF('[3]New Rates_V05'!CE7="",0,'[3]New Rates_V05'!CE7) -> 0 | BU90: =IF(BU6="",0,BU6)-IF('[3]New Rates_V05'!CF7="",0,'[3]New Rates_V05'!CF7) -> 0 | BV90: =IF(BV6="",0,BV6)-IF('[3]New Rates_V05'!CG7="",0,'[3]New Rates_V05'!CG7) -> 0 | BW90: =IF(BW6="",0,BW6)-IF('[3]New Rates_V05'!CH7="",0,'[3]New Rates_V05'!CH7) -> 0 | BX90: =IF(BX6="",0,BX6)-IF('[3]New Rates_V05'!CI7="",0,'[3]New Rates_V05'!CI7) -> 0 | BY90: =IF(BY6="",0,BY6)-IF('[3]New Rates_V05'!CJ7="",0,'[3]New Rates_V05'!CJ7) -> 0 | BZ90: =IF(BZ6="",0,BZ6)-IF('[3]New Rates_V05'!CK7="",0,'[3]New Rates_V05'!CK7) -> 0 | CA90: =IF(CA6="",0,CA6)-IF('[3]New Rates_V05'!CL7="",0,'[3]New Rates_V05'!CL7) -> 0 | CB90: =IF(CB6="",0,CB6)-IF('[3]New Rates_V05'!CM7="",0,'[3]New Rates_V05'!CM7) -> 0 | CC90: =IF(CC6="",0,CC6)-IF('[3]New Rates_V05'!CN7="",0,'[3]New Rates_V05'!CN7) -> 0 | CD90: =IF(CD6="",0,CD6)-IF('[3]New Rates_V05'!CO7="",0,'[3]New Rates_V05'!CO7) -> 0 | CE90: =IF(CE6="",0,CE6)-IF('[3]New Rates_V05'!CP7="",0,'[3]New Rates_V05'!CP7) -> 0 | CF90: =IF(CF6="",0,CF6)-IF('[3]New Rates_V05'!CQ7="",0,'[3]New Rates_V05'!CQ7) -> 0
A91: =IF(A7="",0,A7)-IF('[3]New Rates_V05'!L8="",0,'[3]New Rates_V05'!L8) -> 0 | B91: =IF(B7="",0,B7)-IF('[3]New Rates_V05'!M8="",0,'[3]New Rates_V05'!M8) -> 0 | C91: =IF(C7="",0,C7)-IF('[3]New Rates_V05'!N8="",0,'[3]New Rates_V05'!N8) -> 0 | D91: =IF(D7="",0,D7)-IF('[3]New Rates_V05'!O8="",0,'[3]New Rates_V05'!O8) -> 0 | E91: =IF(E7="",0,E7)-IF('[3]New Rates_V05'!P8="",0,'[3]New Rates_V05'!P8) -> 0 | F91: =IF(F7="",0,F7)-IF('[3]New Rates_V05'!Q8="",0,'[3]New Rates_V05'!Q8) -> 0 | G91: =IF(G7="",0,G7)-IF('[3]New Rates_V05'!R8="",0,'[3]New Rates_V05'!R8) -> 0 | H91: =IF(H7="",0,H7)-IF('[3]New Rates_V05'!S8="",0,'[3]New Rates_V05'!S8) -> 0 | I91: =IF(I7="",0,I7)-IF('[3]New Rates_V05'!T8="",0,'[3]New Rates_V05'!T8) -> 0 | J91: =IF(J7="",0,J7)-IF('[3]New Rates_V05'!U8="",0,'[3]New Rates_V05'!U8) -> 0 | K91: =IF(K7="",0,K7)-IF('[3]New Rates_V05'!V8="",0,'[3]New Rates_V05'!V8) -> 0 | L91: =IF(L7="",0,L7)-IF('[3]New Rates_V05'!W8="",0,'[3]New Rates_V05'!W8) -> 0 | M91: =IF(M7="",0,M7)-IF('[3]New Rates_V05'!X8="",0,'[3]New Rates_V05'!X8) -> 0 | N91: =IF(N7="",0,N7)-IF('[3]New Rates_V05'!Y8="",0,'[3]New Rates_V05'!Y8) -> 0 | O91: =IF(O7="",0,O7)-IF('[3]New Rates_V05'!Z8="",0,'[3]New Rates_V05'!Z8) -> 0 | P91: =IF(P7="",0,P7)-IF('[3]New Rates_V05'!AA8="",0,'[3]New Rates_V05'!AA8) -> 0 | Q91: =IF(Q7="",0,Q7)-IF('[3]New Rates_V05'!AB8="",0,'[3]New Rates_V05'!AB8) -> 0 | R91: =IF(R7="",0,R7)-IF('[3]New Rates_V05'!AC8="",0,'[3]New Rates_V05'!AC8) -> 0 | S91: =IF(S7="",0,S7)-IF('[3]New Rates_V05'!AD8="",0,'[3]New Rates_V05'!AD8) -> 0 | T91: =IF(T7="",0,T7)-IF('[3]New Rates_V05'!AE8="",0,'[3]New Rates_V05'!AE8) -> 0 | U91: =IF(U7="",0,U7)-IF('[3]New Rates_V05'!AF8="",0,'[3]New Rates_V05'!AF8) -> 0 | V91: =IF(V7="",0,V7)-IF('[3]New Rates_V05'!AG8="",0,'[3]New Rates_V05'!AG8) -> 0 | W91: =IF(W7="",0,W7)-IF('[3]New Rates_V05'!AH8="",0,'[3]New Rates_V05'!AH8) -> 0 | X91: =IF(X7="",0,X7)-IF('[3]New Rates_V05'!AI8="",0,'[3]New Rates_V05'!AI8) -> 0 | Y91: =IF(Y7="",0,Y7)-IF('[3]New Rates_V05'!AJ8="",0,'[3]New Rates_V05'!AJ8) -> 0 | Z91: =IF(Z7="",0,Z7)-IF('[3]New Rates_V05'!AK8="",0,'[3]New Rates_V05'!AK8) -> 0 | AA91: =IF(AA7="",0,AA7)-IF('[3]New Rates_V05'!AL8="",0,'[3]New Rates_V05'!AL8) -> 0 | AB91: =IF(AB7="",0,AB7)-IF('[3]New Rates_V05'!AM8="",0,'[3]New Rates_V05'!AM8) -> 0 | AC91: =IF(AC7="",0,AC7)-IF('[3]New Rates_V05'!AN8="",0,'[3]New Rates_V05'!AN8) -> 0 | AD91: =IF(AD7="",0,AD7)-IF('[3]New Rates_V05'!AO8="",0,'[3]New Rates_V05'!AO8) -> 0 | AE91: =IF(AE7="",0,AE7)-IF('[3]New Rates_V05'!AP8="",0,'[3]New Rates_V05'!AP8) -> 0 | AF91: =IF(AF7="",0,AF7)-IF('[3]New Rates_V05'!AQ8="",0,'[3]New Rates_V05'!AQ8) -> 0 | AG91: =IF(AG7="",0,AG7)-IF('[3]New Rates_V05'!AR8="",0,'[3]New Rates_V05'!AR8) -> 0 | AH91: =IF(AH7="",0,AH7)-IF('[3]New Rates_V05'!AS8="",0,'[3]New Rates_V05'!AS8) -> 0 | AI91: =IF(AI7="",0,AI7)-IF('[3]New Rates_V05'!AT8="",0,'[3]New Rates_V05'!AT8) -> 0 | AJ91: =IF(AJ7="",0,AJ7)-IF('[3]New Rates_V05'!AU8="",0,'[3]New Rates_V05'!AU8) -> 0 | AK91: =IF(AK7="",0,AK7)-IF('[3]New Rates_V05'!AV8="",0,'[3]New Rates_V05'!AV8) -> 0 | AL91: =IF(AL7="",0,AL7)-IF('[3]New Rates_V05'!AW8="",0,'[3]New Rates_V05'!AW8) -> 0 | AM91: =IF(AM7="",0,AM7)-IF('[3]New Rates_V05'!AX8="",0,'[3]New Rates_V05'!AX8) -> 0 | AN91: =IF(AN7="",0,AN7)-IF('[3]New Rates_V05'!AY8="",0,'[3]New Rates_V05'!AY8) -> 0 | AO91: =IF(AO7="",0,AO7)-IF('[3]New Rates_V05'!AZ8="",0,'[3]New Rates_V05'!AZ8) -> 0 | AP91: =IF(AP7="",0,AP7)-IF('[3]New Rates_V05'!BA8="",0,'[3]New Rates_V05'!BA8) -> 0 | AQ91: =IF(AQ7="",0,AQ7)-IF('[3]New Rates_V05'!BB8="",0,'[3]New Rates_V05'!BB8) -> 0 | AR91: =IF(AR7="",0,AR7)-IF('[3]New Rates_V05'!BC8="",0,'[3]New Rates_V05'!BC8) -> 0 | AS91: =IF(AS7="",0,AS7)-IF('[3]New Rates_V05'!BD8="",0,'[3]New Rates_V05'!BD8) -> 0 | AT91: =IF(AT7="",0,AT7)-IF('[3]New Rates_V05'!BE8="",0,'[3]New Rates_V05'!BE8) -> 0 | AU91: =IF(AU7="",0,AU7)-IF('[3]New Rates_V05'!BF8="",0,'[3]New Rates_V05'!BF8) -> 0 | AV91: =IF(AV7="",0,AV7)-IF('[3]New Rates_V05'!BG8="",0,'[3]New Rates_V05'!BG8) -> 0 | AW91: =IF(AW7="",0,AW7)-IF('[3]New Rates_V05'!BH8="",0,'[3]New Rates_V05'!BH8) -> 0 | AX91: =IF(AX7="",0,AX7)-IF('[3]New Rates_V05'!BI8="",0,'[3]New Rates_V05'!BI8) -> 0 | AY91: =IF(AY7="",0,AY7)-IF('[3]New Rates_V05'!BJ8="",0,'[3]New Rates_V05'!BJ8) -> 0 | AZ91: =IF(AZ7="",0,AZ7)-IF('[3]New Rates_V05'!BK8="",0,'[3]New Rates_V05'!BK8) -> 0 | BA91: =IF(BA7="",0,BA7)-IF('[3]New Rates_V05'!BL8="",0,'[3]New Rates_V05'!BL8) -> 0 | BB91: =IF(BB7="",0,BB7)-IF('[3]New Rates_V05'!BM8="",0,'[3]New Rates_V05'!BM8) -> 0 | BC91: =IF(BC7="",0,BC7)-IF('[3]New Rates_V05'!BN8="",0,'[3]New Rates_V05'!BN8) -> 0 | BD91: =IF(BD7="",0,BD7)-IF('[3]New Rates_V05'!BO8="",0,'[3]New Rates_V05'!BO8) -> 0 | BE91: =IF(BE7="",0,BE7)-IF('[3]New Rates_V05'!BP8="",0,'[3]New Rates_V05'!BP8) -> 0 | BF91: =IF(BF7="",0,BF7)-IF('[3]New Rates_V05'!BQ8="",0,'[3]New Rates_V05'!BQ8) -> 0 | BG91: =IF(BG7="",0,BG7)-IF('[3]New Rates_V05'!BR8="",0,'[3]New Rates_V05'!BR8) -> 0 | BH91: =IF(BH7="",0,BH7)-IF('[3]New Rates_V05'!BS8="",0,'[3]New Rates_V05'!BS8) -> 0 | BI91: =IF(BI7="",0,BI7)-IF('[3]New Rates_V05'!BT8="",0,'[3]New Rates_V05'!BT8) -> 0 | BJ91: =IF(BJ7="",0,BJ7)-IF('[3]New Rates_V05'!BU8="",0,'[3]New Rates_V05'!BU8) -> 0 | BK91: =IF(BK7="",0,BK7)-IF('[3]New Rates_V05'!BV8="",0,'[3]New Rates_V05'!BV8) -> 0 | BL91: =IF(BL7="",0,BL7)-IF('[3]New Rates_V05'!BW8="",0,'[3]New Rates_V05'!BW8) -> 0 | BM91: =IF(BM7="",0,BM7)-IF('[3]New Rates_V05'!BX8="",0,'[3]New Rates_V05'!BX8) -> 0 | BN91: =IF(BN7="",0,BN7)-IF('[3]New Rates_V05'!BY8="",0,'[3]New Rates_V05'!BY8) -> 0 | BO91: =IF(BO7="",0,BO7)-IF('[3]New Rates_V05'!BZ8="",0,'[3]New Rates_V05'!BZ8) -> 0 | BP91: =IF(BP7="",0,BP7)-IF('[3]New Rates_V05'!CA8="",0,'[3]New Rates_V05'!CA8) -> 0 | BQ91: =IF(BQ7="",0,BQ7)-IF('[3]New Rates_V05'!CB8="",0,'[3]New Rates_V05'!CB8) -> 0 | BR91: =IF(BR7="",0,BR7)-IF('[3]New Rates_V05'!CC8="",0,'[3]New Rates_V05'!CC8) -> 0 | BS91: =IF(BS7="",0,BS7)-IF('[3]New Rates_V05'!CD8="",0,'[3]New Rates_V05'!CD8) -> 0 | BT91: =IF(BT7="",0,BT7)-IF('[3]New Rates_V05'!CE8="",0,'[3]New Rates_V05'!CE8) -> 0 | BU91: =IF(BU7="",0,BU7)-IF('[3]New Rates_V05'!CF8="",0,'[3]New Rates_V05'!CF8) -> 0 | BV91: =IF(BV7="",0,BV7)-IF('[3]New Rates_V05'!CG8="",0,'[3]New Rates_V05'!CG8) -> 0 | BW91: =IF(BW7="",0,BW7)-IF('[3]New Rates_V05'!CH8="",0,'[3]New Rates_V05'!CH8) -> 0 | BX91: =IF(BX7="",0,BX7)-IF('[3]New Rates_V05'!CI8="",0,'[3]New Rates_V05'!CI8) -> 0 | BY91: =IF(BY7="",0,BY7)-IF('[3]New Rates_V05'!CJ8="",0,'[3]New Rates_V05'!CJ8) -> 0 | BZ91: =IF(BZ7="",0,BZ7)-IF('[3]New Rates_V05'!CK8="",0,'[3]New Rates_V05'!CK8) -> 0 | CA91: =IF(CA7="",0,CA7)-IF('[3]New Rates_V05'!CL8="",0,'[3]New Rates_V05'!CL8) -> 0 | CB91: =IF(CB7="",0,CB7)-IF('[3]New Rates_V05'!CM8="",0,'[3]New Rates_V05'!CM8) -> 0 | CC91: =IF(CC7="",0,CC7)-IF('[3]New Rates_V05'!CN8="",0,'[3]New Rates_V05'!CN8) -> 0 | CD91: =IF(CD7="",0,CD7)-IF('[3]New Rates_V05'!CO8="",0,'[3]New Rates_V05'!CO8) -> 0 | CE91: =IF(CE7="",0,CE7)-IF('[3]New Rates_V05'!CP8="",0,'[3]New Rates_V05'!CP8) -> 0 | CF91: =IF(CF7="",0,CF7)-IF('[3]New Rates_V05'!CQ8="",0,'[3]New Rates_V05'!CQ8) -> 0
A92: =IF(A8="",0,A8)-IF('[3]New Rates_V05'!L9="",0,'[3]New Rates_V05'!L9) -> 0 | B92: =IF(B8="",0,B8)-IF('[3]New Rates_V05'!M9="",0,'[3]New Rates_V05'!M9) -> 0 | C92: =IF(C8="",0,C8)-IF('[3]New Rates_V05'!N9="",0,'[3]New Rates_V05'!N9) -> 0 | D92: =IF(D8="",0,D8)-IF('[3]New Rates_V05'!O9="",0,'[3]New Rates_V05'!O9) -> 0 | E92: =IF(E8="",0,E8)-IF('[3]New Rates_V05'!P9="",0,'[3]New Rates_V05'!P9) -> 0 | F92: =IF(F8="",0,F8)-IF('[3]New Rates_V05'!Q9="",0,'[3]New Rates_V05'!Q9) -> 0 | G92: =IF(G8="",0,G8)-IF('[3]New Rates_V05'!R9="",0,'[3]New Rates_V05'!R9) -> 0 | H92: =IF(H8="",0,H8)-IF('[3]New Rates_V05'!S9="",0,'[3]New Rates_V05'!S9) -> 0 | I92: =IF(I8="",0,I8)-IF('[3]New Rates_V05'!T9="",0,'[3]New Rates_V05'!T9) -> 0 | J92: =IF(J8="",0,J8)-IF('[3]New Rates_V05'!U9="",0,'[3]New Rates_V05'!U9) -> 0 | K92: =IF(K8="",0,K8)-IF('[3]New Rates_V05'!V9="",0,'[3]New Rates_V05'!V9) -> 0 | L92: =IF(L8="",0,L8)-IF('[3]New Rates_V05'!W9="",0,'[3]New Rates_V05'!W9) -> 0 | M92: =IF(M8="",0,M8)-IF('[3]New Rates_V05'!X9="",0,'[3]New Rates_V05'!X9) -> 0 | N92: =IF(N8="",0,N8)-IF('[3]New Rates_V05'!Y9="",0,'[3]New Rates_V05'!Y9) -> 0 | O92: =IF(O8="",0,O8)-IF('[3]New Rates_V05'!Z9="",0,'[3]New Rates_V05'!Z9) -> 0 | P92: =IF(P8="",0,P8)-IF('[3]New Rates_V05'!AA9="",0,'[3]New Rates_V05'!AA9) -> 0 | Q92: =IF(Q8="",0,Q8)-IF('[3]New Rates_V05'!AB9="",0,'[3]New Rates_V05'!AB9) -> 0 | R92: =IF(R8="",0,R8)-IF('[3]New Rates_V05'!AC9="",0,'[3]New Rates_V05'!AC9) -> 0 | S92: =IF(S8="",0,S8)-IF('[3]New Rates_V05'!AD9="",0,'[3]New Rates_V05'!AD9) -> 0 | T92: =IF(T8="",0,T8)-IF('[3]New Rates_V05'!AE9="",0,'[3]New Rates_V05'!AE9) -> 0 | U92: =IF(U8="",0,U8)-IF('[3]New Rates_V05'!AF9="",0,'[3]New Rates_V05'!AF9) -> 0 | V92: =IF(V8="",0,V8)-IF('[3]New Rates_V05'!AG9="",0,'[3]New Rates_V05'!AG9) -> 0 | W92: =IF(W8="",0,W8)-IF('[3]New Rates_V05'!AH9="",0,'[3]New Rates_V05'!AH9) -> 0 | X92: =IF(X8="",0,X8)-IF('[3]New Rates_V05'!AI9="",0,'[3]New Rates_V05'!AI9) -> 0 | Y92: =IF(Y8="",0,Y8)-IF('[3]New Rates_V05'!AJ9="",0,'[3]New Rates_V05'!AJ9) -> 0 | Z92: =IF(Z8="",0,Z8)-IF('[3]New Rates_V05'!AK9="",0,'[3]New Rates_V05'!AK9) -> 0 | AA92: =IF(AA8="",0,AA8)-IF('[3]New Rates_V05'!AL9="",0,'[3]New Rates_V05'!AL9) -> 0 | AB92: =IF(AB8="",0,AB8)-IF('[3]New Rates_V05'!AM9="",0,'[3]New Rates_V05'!AM9) -> 0 | AC92: =IF(AC8="",0,AC8)-IF('[3]New Rates_V05'!AN9="",0,'[3]New Rates_V05'!AN9) -> 0 | AD92: =IF(AD8="",0,AD8)-IF('[3]New Rates_V05'!AO9="",0,'[3]New Rates_V05'!AO9) -> 0 | AE92: =IF(AE8="",0,AE8)-IF('[3]New Rates_V05'!AP9="",0,'[3]New Rates_V05'!AP9) -> 0 | AF92: =IF(AF8="",0,AF8)-IF('[3]New Rates_V05'!AQ9="",0,'[3]New Rates_V05'!AQ9) -> 0 | AG92: =IF(AG8="",0,AG8)-IF('[3]New Rates_V05'!AR9="",0,'[3]New Rates_V05'!AR9) -> 0 | AH92: =IF(AH8="",0,AH8)-IF('[3]New Rates_V05'!AS9="",0,'[3]New Rates_V05'!AS9) -> 0 | AI92: =IF(AI8="",0,AI8)-IF('[3]New Rates_V05'!AT9="",0,'[3]New Rates_V05'!AT9) -> 0 | AJ92: =IF(AJ8="",0,AJ8)-IF('[3]New Rates_V05'!AU9="",0,'[3]New Rates_V05'!AU9) -> 0 | AK92: =IF(AK8="",0,AK8)-IF('[3]New Rates_V05'!AV9="",0,'[3]New Rates_V05'!AV9) -> 0 | AL92: =IF(AL8="",0,AL8)-IF('[3]New Rates_V05'!AW9="",0,'[3]New Rates_V05'!AW9) -> 0 | AM92: =IF(AM8="",0,AM8)-IF('[3]New Rates_V05'!AX9="",0,'[3]New Rates_V05'!AX9) -> 0 | AN92: =IF(AN8="",0,AN8)-IF('[3]New Rates_V05'!AY9="",0,'[3]New Rates_V05'!AY9) -> 0 | AO92: =IF(AO8="",0,AO8)-IF('[3]New Rates_V05'!AZ9="",0,'[3]New Rates_V05'!AZ9) -> 0 | AP92: =IF(AP8="",0,AP8)-IF('[3]New Rates_V05'!BA9="",0,'[3]New Rates_V05'!BA9) -> 0 | AQ92: =IF(AQ8="",0,AQ8)-IF('[3]New Rates_V05'!BB9="",0,'[3]New Rates_V05'!BB9) -> 0 | AR92: =IF(AR8="",0,AR8)-IF('[3]New Rates_V05'!BC9="",0,'[3]New Rates_V05'!BC9) -> 0 | AS92: =IF(AS8="",0,AS8)-IF('[3]New Rates_V05'!BD9="",0,'[3]New Rates_V05'!BD9) -> 0 | AT92: =IF(AT8="",0,AT8)-IF('[3]New Rates_V05'!BE9="",0,'[3]New Rates_V05'!BE9) -> 0 | AU92: =IF(AU8="",0,AU8)-IF('[3]New Rates_V05'!BF9="",0,'[3]New Rates_V05'!BF9) -> 0 | AV92: =IF(AV8="",0,AV8)-IF('[3]New Rates_V05'!BG9="",0,'[3]New Rates_V05'!BG9) -> 0 | AW92: =IF(AW8="",0,AW8)-IF('[3]New Rates_V05'!BH9="",0,'[3]New Rates_V05'!BH9) -> 0 | AX92: =IF(AX8="",0,AX8)-IF('[3]New Rates_V05'!BI9="",0,'[3]New Rates_V05'!BI9) -> 0 | AY92: =IF(AY8="",0,AY8)-IF('[3]New Rates_V05'!BJ9="",0,'[3]New Rates_V05'!BJ9) -> 0 | AZ92: =IF(AZ8="",0,AZ8)-IF('[3]New Rates_V05'!BK9="",0,'[3]New Rates_V05'!BK9) -> 0 | BA92: =IF(BA8="",0,BA8)-IF('[3]New Rates_V05'!BL9="",0,'[3]New Rates_V05'!BL9) -> 0 | BB92: =IF(BB8="",0,BB8)-IF('[3]New Rates_V05'!BM9="",0,'[3]New Rates_V05'!BM9) -> 0 | BC92: =IF(BC8="",0,BC8)-IF('[3]New Rates_V05'!BN9="",0,'[3]New Rates_V05'!BN9) -> 0 | BD92: =IF(BD8="",0,BD8)-IF('[3]New Rates_V05'!BO9="",0,'[3]New Rates_V05'!BO9) -> 0 | BE92: =IF(BE8="",0,BE8)-IF('[3]New Rates_V05'!BP9="",0,'[3]New Rates_V05'!BP9) -> 0 | BF92: =IF(BF8="",0,BF8)-IF('[3]New Rates_V05'!BQ9="",0,'[3]New Rates_V05'!BQ9) -> 0 | BG92: =IF(BG8="",0,BG8)-IF('[3]New Rates_V05'!BR9="",0,'[3]New Rates_V05'!BR9) -> 0 | BH92: =IF(BH8="",0,BH8)-IF('[3]New Rates_V05'!BS9="",0,'[3]New Rates_V05'!BS9) -> 0 | BI92: =IF(BI8="",0,BI8)-IF('[3]New Rates_V05'!BT9="",0,'[3]New Rates_V05'!BT9) -> 0 | BJ92: =IF(BJ8="",0,BJ8)-IF('[3]New Rates_V05'!BU9="",0,'[3]New Rates_V05'!BU9) -> 0 | BK92: =IF(BK8="",0,BK8)-IF('[3]New Rates_V05'!BV9="",0,'[3]New Rates_V05'!BV9) -> 0 | BL92: =IF(BL8="",0,BL8)-IF('[3]New Rates_V05'!BW9="",0,'[3]New Rates_V05'!BW9) -> 0 | BM92: =IF(BM8="",0,BM8)-IF('[3]New Rates_V05'!BX9="",0,'[3]New Rates_V05'!BX9) -> 0 | BN92: =IF(BN8="",0,BN8)-IF('[3]New Rates_V05'!BY9="",0,'[3]New Rates_V05'!BY9) -> 0 | BO92: =IF(BO8="",0,BO8)-IF('[3]New Rates_V05'!BZ9="",0,'[3]New Rates_V05'!BZ9) -> 0 | BP92: =IF(BP8="",0,BP8)-IF('[3]New Rates_V05'!CA9="",0,'[3]New Rates_V05'!CA9) -> 0 | BQ92: =IF(BQ8="",0,BQ8)-IF('[3]New Rates_V05'!CB9="",0,'[3]New Rates_V05'!CB9) -> 0 | BR92: =IF(BR8="",0,BR8)-IF('[3]New Rates_V05'!CC9="",0,'[3]New Rates_V05'!CC9) -> 0 | BS92: =IF(BS8="",0,BS8)-IF('[3]New Rates_V05'!CD9="",0,'[3]New Rates_V05'!CD9) -> 0 | BT92: =IF(BT8="",0,BT8)-IF('[3]New Rates_V05'!CE9="",0,'[3]New Rates_V05'!CE9) -> 0 | BU92: =IF(BU8="",0,BU8)-IF('[3]New Rates_V05'!CF9="",0,'[3]New Rates_V05'!CF9) -> 0 | BV92: =IF(BV8="",0,BV8)-IF('[3]New Rates_V05'!CG9="",0,'[3]New Rates_V05'!CG9) -> 0 | BW92: =IF(BW8="",0,BW8)-IF('[3]New Rates_V05'!CH9="",0,'[3]New Rates_V05'!CH9) -> 0 | BX92: =IF(BX8="",0,BX8)-IF('[3]New Rates_V05'!CI9="",0,'[3]New Rates_V05'!CI9) -> 0 | BY92: =IF(BY8="",0,BY8)-IF('[3]New Rates_V05'!CJ9="",0,'[3]New Rates_V05'!CJ9) -> 0 | BZ92: =IF(BZ8="",0,BZ8)-IF('[3]New Rates_V05'!CK9="",0,'[3]New Rates_V05'!CK9) -> 0 | CA92: =IF(CA8="",0,CA8)-IF('[3]New Rates_V05'!CL9="",0,'[3]New Rates_V05'!CL9) -> 0 | CB92: =IF(CB8="",0,CB8)-IF('[3]New Rates_V05'!CM9="",0,'[3]New Rates_V05'!CM9) -> 0 | CC92: =IF(CC8="",0,CC8)-IF('[3]New Rates_V05'!CN9="",0,'[3]New Rates_V05'!CN9) -> 0 | CD92: =IF(CD8="",0,CD8)-IF('[3]New Rates_V05'!CO9="",0,'[3]New Rates_V05'!CO9) -> 0 | CE92: =IF(CE8="",0,CE8)-IF('[3]New Rates_V05'!CP9="",0,'[3]New Rates_V05'!CP9) -> 0 | CF92: =IF(CF8="",0,CF8)-IF('[3]New Rates_V05'!CQ9="",0,'[3]New Rates_V05'!CQ9) -> 0
A93: =IF(A9="",0,A9)-IF('[3]New Rates_V05'!L10="",0,'[3]New Rates_V05'!L10) -> 0 | B93: =IF(B9="",0,B9)-IF('[3]New Rates_V05'!M10="",0,'[3]New Rates_V05'!M10) -> 0 | C93: =IF(C9="",0,C9)-IF('[3]New Rates_V05'!N10="",0,'[3]New Rates_V05'!N10) -> 0 | D93: =IF(D9="",0,D9)-IF('[3]New Rates_V05'!O10="",0,'[3]New Rates_V05'!O10) -> 0 | E93: =IF(E9="",0,E9)-IF('[3]New Rates_V05'!P10="",0,'[3]New Rates_V05'!P10) -> 0 | F93: =IF(F9="",0,F9)-IF('[3]New Rates_V05'!Q10="",0,'[3]New Rates_V05'!Q10) -> 0 | G93: =IF(G9="",0,G9)-IF('[3]New Rates_V05'!R10="",0,'[3]New Rates_V05'!R10) -> 0 | H93: =IF(H9="",0,H9)-IF('[3]New Rates_V05'!S10="",0,'[3]New Rates_V05'!S10) -> 0 | I93: =IF(I9="",0,I9)-IF('[3]New Rates_V05'!T10="",0,'[3]New Rates_V05'!T10) -> 0 | J93: =IF(J9="",0,J9)-IF('[3]New Rates_V05'!U10="",0,'[3]New Rates_V05'!U10) -> 0 | K93: =IF(K9="",0,K9)-IF('[3]New Rates_V05'!V10="",0,'[3]New Rates_V05'!V10) -> 0 | L93: =IF(L9="",0,L9)-IF('[3]New Rates_V05'!W10="",0,'[3]New Rates_V05'!W10) -> 0 | M93: =IF(M9="",0,M9)-IF('[3]New Rates_V05'!X10="",0,'[3]New Rates_V05'!X10) -> 0 | N93: =IF(N9="",0,N9)-IF('[3]New Rates_V05'!Y10="",0,'[3]New Rates_V05'!Y10) -> 0 | O93: =IF(O9="",0,O9)-IF('[3]New Rates_V05'!Z10="",0,'[3]New Rates_V05'!Z10) -> 0 | P93: =IF(P9="",0,P9)-IF('[3]New Rates_V05'!AA10="",0,'[3]New Rates_V05'!AA10) -> 0 | Q93: =IF(Q9="",0,Q9)-IF('[3]New Rates_V05'!AB10="",0,'[3]New Rates_V05'!AB10) -> 0 | R93: =IF(R9="",0,R9)-IF('[3]New Rates_V05'!AC10="",0,'[3]New Rates_V05'!AC10) -> 0 | S93: =IF(S9="",0,S9)-IF('[3]New Rates_V05'!AD10="",0,'[3]New Rates_V05'!AD10) -> 0 | T93: =IF(T9="",0,T9)-IF('[3]New Rates_V05'!AE10="",0,'[3]New Rates_V05'!AE10) -> 0 | U93: =IF(U9="",0,U9)-IF('[3]New Rates_V05'!AF10="",0,'[3]New Rates_V05'!AF10) -> 0 | V93: =IF(V9="",0,V9)-IF('[3]New Rates_V05'!AG10="",0,'[3]New Rates_V05'!AG10) -> 0 | W93: =IF(W9="",0,W9)-IF('[3]New Rates_V05'!AH10="",0,'[3]New Rates_V05'!AH10) -> 0 | X93: =IF(X9="",0,X9)-IF('[3]New Rates_V05'!AI10="",0,'[3]New Rates_V05'!AI10) -> 0 | Y93: =IF(Y9="",0,Y9)-IF('[3]New Rates_V05'!AJ10="",0,'[3]New Rates_V05'!AJ10) -> 0 | Z93: =IF(Z9="",0,Z9)-IF('[3]New Rates_V05'!AK10="",0,'[3]New Rates_V05'!AK10) -> 0 | AA93: =IF(AA9="",0,AA9)-IF('[3]New Rates_V05'!AL10="",0,'[3]New Rates_V05'!AL10) -> 0 | AB93: =IF(AB9="",0,AB9)-IF('[3]New Rates_V05'!AM10="",0,'[3]New Rates_V05'!AM10) -> 0 | AC93: =IF(AC9="",0,AC9)-IF('[3]New Rates_V05'!AN10="",0,'[3]New Rates_V05'!AN10) -> 0 | AD93: =IF(AD9="",0,AD9)-IF('[3]New Rates_V05'!AO10="",0,'[3]New Rates_V05'!AO10) -> 0 | AE93: =IF(AE9="",0,AE9)-IF('[3]New Rates_V05'!AP10="",0,'[3]New Rates_V05'!AP10) -> 0 | AF93: =IF(AF9="",0,AF9)-IF('[3]New Rates_V05'!AQ10="",0,'[3]New Rates_V05'!AQ10) -> 0 | AG93: =IF(AG9="",0,AG9)-IF('[3]New Rates_V05'!AR10="",0,'[3]New Rates_V05'!AR10) -> 0 | AH93: =IF(AH9="",0,AH9)-IF('[3]New Rates_V05'!AS10="",0,'[3]New Rates_V05'!AS10) -> 0 | AI93: =IF(AI9="",0,AI9)-IF('[3]New Rates_V05'!AT10="",0,'[3]New Rates_V05'!AT10) -> 0 | AJ93: =IF(AJ9="",0,AJ9)-IF('[3]New Rates_V05'!AU10="",0,'[3]New Rates_V05'!AU10) -> 0 | AK93: =IF(AK9="",0,AK9)-IF('[3]New Rates_V05'!AV10="",0,'[3]New Rates_V05'!AV10) -> 0 | AL93: =IF(AL9="",0,AL9)-IF('[3]New Rates_V05'!AW10="",0,'[3]New Rates_V05'!AW10) -> 0 | AM93: =IF(AM9="",0,AM9)-IF('[3]New Rates_V05'!AX10="",0,'[3]New Rates_V05'!AX10) -> 0 | AN93: =IF(AN9="",0,AN9)-IF('[3]New Rates_V05'!AY10="",0,'[3]New Rates_V05'!AY10) -> 0 | AO93: =IF(AO9="",0,AO9)-IF('[3]New Rates_V05'!AZ10="",0,'[3]New Rates_V05'!AZ10) -> 0 | AP93: =IF(AP9="",0,AP9)-IF('[3]New Rates_V05'!BA10="",0,'[3]New Rates_V05'!BA10) -> 0 | AQ93: =IF(AQ9="",0,AQ9)-IF('[3]New Rates_V05'!BB10="",0,'[3]New Rates_V05'!BB10) -> 0 | AR93: =IF(AR9="",0,AR9)-IF('[3]New Rates_V05'!BC10="",0,'[3]New Rates_V05'!BC10) -> 0 | AS93: =IF(AS9="",0,AS9)-IF('[3]New Rates_V05'!BD10="",0,'[3]New Rates_V05'!BD10) -> 0 | AT93: =IF(AT9="",0,AT9)-IF('[3]New Rates_V05'!BE10="",0,'[3]New Rates_V05'!BE10) -> 0 | AU93: =IF(AU9="",0,AU9)-IF('[3]New Rates_V05'!BF10="",0,'[3]New Rates_V05'!BF10) -> 0 | AV93: =IF(AV9="",0,AV9)-IF('[3]New Rates_V05'!BG10="",0,'[3]New Rates_V05'!BG10) -> 0 | AW93: =IF(AW9="",0,AW9)-IF('[3]New Rates_V05'!BH10="",0,'[3]New Rates_V05'!BH10) -> 0 | AX93: =IF(AX9="",0,AX9)-IF('[3]New Rates_V05'!BI10="",0,'[3]New Rates_V05'!BI10) -> 0 | AY93: =IF(AY9="",0,AY9)-IF('[3]New Rates_V05'!BJ10="",0,'[3]New Rates_V05'!BJ10) -> 0 | AZ93: =IF(AZ9="",0,AZ9)-IF('[3]New Rates_V05'!BK10="",0,'[3]New Rates_V05'!BK10) -> 0 | BA93: =IF(BA9="",0,BA9)-IF('[3]New Rates_V05'!BL10="",0,'[3]New Rates_V05'!BL10) -> 0 | BB93: =IF(BB9="",0,BB9)-IF('[3]New Rates_V05'!BM10="",0,'[3]New Rates_V05'!BM10) -> 0 | BC93: =IF(BC9="",0,BC9)-IF('[3]New Rates_V05'!BN10="",0,'[3]New Rates_V05'!BN10) -> 0 | BD93: =IF(BD9="",0,BD9)-IF('[3]New Rates_V05'!BO10="",0,'[3]New Rates_V05'!BO10) -> 0 | BE93: =IF(BE9="",0,BE9)-IF('[3]New Rates_V05'!BP10="",0,'[3]New Rates_V05'!BP10) -> 0 | BF93: =IF(BF9="",0,BF9)-IF('[3]New Rates_V05'!BQ10="",0,'[3]New Rates_V05'!BQ10) -> 0 | BG93: =IF(BG9="",0,BG9)-IF('[3]New Rates_V05'!BR10="",0,'[3]New Rates_V05'!BR10) -> 0 | BH93: =IF(BH9="",0,BH9)-IF('[3]New Rates_V05'!BS10="",0,'[3]New Rates_V05'!BS10) -> 0 | BI93: =IF(BI9="",0,BI9)-IF('[3]New Rates_V05'!BT10="",0,'[3]New Rates_V05'!BT10) -> 0 | BJ93: =IF(BJ9="",0,BJ9)-IF('[3]New Rates_V05'!BU10="",0,'[3]New Rates_V05'!BU10) -> 0 | BK93: =IF(BK9="",0,BK9)-IF('[3]New Rates_V05'!BV10="",0,'[3]New Rates_V05'!BV10) -> 0 | BL93: =IF(BL9="",0,BL9)-IF('[3]New Rates_V05'!BW10="",0,'[3]New Rates_V05'!BW10) -> 0 | BM93: =IF(BM9="",0,BM9)-IF('[3]New Rates_V05'!BX10="",0,'[3]New Rates_V05'!BX10) -> 0 | BN93: =IF(BN9="",0,BN9)-IF('[3]New Rates_V05'!BY10="",0,'[3]New Rates_V05'!BY10) -> 0 | BO93: =IF(BO9="",0,BO9)-IF('[3]New Rates_V05'!BZ10="",0,'[3]New Rates_V05'!BZ10) -> 0 | BP93: =IF(BP9="",0,BP9)-IF('[3]New Rates_V05'!CA10="",0,'[3]New Rates_V05'!CA10) -> 0 | BQ93: =IF(BQ9="",0,BQ9)-IF('[3]New Rates_V05'!CB10="",0,'[3]New Rates_V05'!CB10) -> 0 | BR93: =IF(BR9="",0,BR9)-IF('[3]New Rates_V05'!CC10="",0,'[3]New Rates_V05'!CC10) -> 0 | BS93: =IF(BS9="",0,BS9)-IF('[3]New Rates_V05'!CD10="",0,'[3]New Rates_V05'!CD10) -> 0 | BT93: =IF(BT9="",0,BT9)-IF('[3]New Rates_V05'!CE10="",0,'[3]New Rates_V05'!CE10) -> 0 | BU93: =IF(BU9="",0,BU9)-IF('[3]New Rates_V05'!CF10="",0,'[3]New Rates_V05'!CF10) -> 0 | BV93: =IF(BV9="",0,BV9)-IF('[3]New Rates_V05'!CG10="",0,'[3]New Rates_V05'!CG10) -> 0 | BW93: =IF(BW9="",0,BW9)-IF('[3]New Rates_V05'!CH10="",0,'[3]New Rates_V05'!CH10) -> 0 | BX93: =IF(BX9="",0,BX9)-IF('[3]New Rates_V05'!CI10="",0,'[3]New Rates_V05'!CI10) -> 0 | BY93: =IF(BY9="",0,BY9)-IF('[3]New Rates_V05'!CJ10="",0,'[3]New Rates_V05'!CJ10) -> 0 | BZ93: =IF(BZ9="",0,BZ9)-IF('[3]New Rates_V05'!CK10="",0,'[3]New Rates_V05'!CK10) -> 0 | CA93: =IF(CA9="",0,CA9)-IF('[3]New Rates_V05'!CL10="",0,'[3]New Rates_V05'!CL10) -> 0 | CB93: =IF(CB9="",0,CB9)-IF('[3]New Rates_V05'!CM10="",0,'[3]New Rates_V05'!CM10) -> 0 | CC93: =IF(CC9="",0,CC9)-IF('[3]New Rates_V05'!CN10="",0,'[3]New Rates_V05'!CN10) -> 0 | CD93: =IF(CD9="",0,CD9)-IF('[3]New Rates_V05'!CO10="",0,'[3]New Rates_V05'!CO10) -> 0 | CE93: =IF(CE9="",0,CE9)-IF('[3]New Rates_V05'!CP10="",0,'[3]New Rates_V05'!CP10) -> 0 | CF93: =IF(CF9="",0,CF9)-IF('[3]New Rates_V05'!CQ10="",0,'[3]New Rates_V05'!CQ10) -> 0
A94: =IF(A10="",0,A10)-IF('[3]New Rates_V05'!L11="",0,'[3]New Rates_V05'!L11) -> 0 | B94: =IF(B10="",0,B10)-IF('[3]New Rates_V05'!M11="",0,'[3]New Rates_V05'!M11) -> 0 | C94: =IF(C10="",0,C10)-IF('[3]New Rates_V05'!N11="",0,'[3]New Rates_V05'!N11) -> 0 | D94: =IF(D10="",0,D10)-IF('[3]New Rates_V05'!O11="",0,'[3]New Rates_V05'!O11) -> 0 | E94: =IF(E10="",0,E10)-IF('[3]New Rates_V05'!P11="",0,'[3]New Rates_V05'!P11) -> 0 | F94: =IF(F10="",0,F10)-IF('[3]New Rates_V05'!Q11="",0,'[3]New Rates_V05'!Q11) -> 0 | G94: =IF(G10="",0,G10)-IF('[3]New Rates_V05'!R11="",0,'[3]New Rates_V05'!R11) -> 0 | H94: =IF(H10="",0,H10)-IF('[3]New Rates_V05'!S11="",0,'[3]New Rates_V05'!S11) -> 0 | I94: =IF(I10="",0,I10)-IF('[3]New Rates_V05'!T11="",0,'[3]New Rates_V05'!T11) -> 0 | J94: =IF(J10="",0,J10)-IF('[3]New Rates_V05'!U11="",0,'[3]New Rates_V05'!U11) -> 0 | K94: =IF(K10="",0,K10)-IF('[3]New Rates_V05'!V11="",0,'[3]New Rates_V05'!V11) -> 0 | L94: =IF(L10="",0,L10)-IF('[3]New Rates_V05'!W11="",0,'[3]New Rates_V05'!W11) -> 0 | M94: =IF(M10="",0,M10)-IF('[3]New Rates_V05'!X11="",0,'[3]New Rates_V05'!X11) -> 0 | N94: =IF(N10="",0,N10)-IF('[3]New Rates_V05'!Y11="",0,'[3]New Rates_V05'!Y11) -> 0 | O94: =IF(O10="",0,O10)-IF('[3]New Rates_V05'!Z11="",0,'[3]New Rates_V05'!Z11) -> 0 | P94: =IF(P10="",0,P10)-IF('[3]New Rates_V05'!AA11="",0,'[3]New Rates_V05'!AA11) -> 0 | Q94: =IF(Q10="",0,Q10)-IF('[3]New Rates_V05'!AB11="",0,'[3]New Rates_V05'!AB11) -> 0 | R94: =IF(R10="",0,R10)-IF('[3]New Rates_V05'!AC11="",0,'[3]New Rates_V05'!AC11) -> 0 | S94: =IF(S10="",0,S10)-IF('[3]New Rates_V05'!AD11="",0,'[3]New Rates_V05'!AD11) -> 0 | T94: =IF(T10="",0,T10)-IF('[3]New Rates_V05'!AE11="",0,'[3]New Rates_V05'!AE11) -> 0 | U94: =IF(U10="",0,U10)-IF('[3]New Rates_V05'!AF11="",0,'[3]New Rates_V05'!AF11) -> 0 | V94: =IF(V10="",0,V10)-IF('[3]New Rates_V05'!AG11="",0,'[3]New Rates_V05'!AG11) -> 0 | W94: =IF(W10="",0,W10)-IF('[3]New Rates_V05'!AH11="",0,'[3]New Rates_V05'!AH11) -> 0 | X94: =IF(X10="",0,X10)-IF('[3]New Rates_V05'!AI11="",0,'[3]New Rates_V05'!AI11) -> 0 | Y94: =IF(Y10="",0,Y10)-IF('[3]New Rates_V05'!AJ11="",0,'[3]New Rates_V05'!AJ11) -> 0 | Z94: =IF(Z10="",0,Z10)-IF('[3]New Rates_V05'!AK11="",0,'[3]New Rates_V05'!AK11) -> 0 | AA94: =IF(AA10="",0,AA10)-IF('[3]New Rates_V05'!AL11="",0,'[3]New Rates_V05'!AL11) -> 0 | AB94: =IF(AB10="",0,AB10)-IF('[3]New Rates_V05'!AM11="",0,'[3]New Rates_V05'!AM11) -> 0 | AC94: =IF(AC10="",0,AC10)-IF('[3]New Rates_V05'!AN11="",0,'[3]New Rates_V05'!AN11) -> 0 | AD94: =IF(AD10="",0,AD10)-IF('[3]New Rates_V05'!AO11="",0,'[3]New Rates_V05'!AO11) -> 0 | AE94: =IF(AE10="",0,AE10)-IF('[3]New Rates_V05'!AP11="",0,'[3]New Rates_V05'!AP11) -> 0 | AF94: =IF(AF10="",0,AF10)-IF('[3]New Rates_V05'!AQ11="",0,'[3]New Rates_V05'!AQ11) -> 0 | AG94: =IF(AG10="",0,AG10)-IF('[3]New Rates_V05'!AR11="",0,'[3]New Rates_V05'!AR11) -> 0 | AH94: =IF(AH10="",0,AH10)-IF('[3]New Rates_V05'!AS11="",0,'[3]New Rates_V05'!AS11) -> 0 | AI94: =IF(AI10="",0,AI10)-IF('[3]New Rates_V05'!AT11="",0,'[3]New Rates_V05'!AT11) -> 0 | AJ94: =IF(AJ10="",0,AJ10)-IF('[3]New Rates_V05'!AU11="",0,'[3]New Rates_V05'!AU11) -> 0 | AK94: =IF(AK10="",0,AK10)-IF('[3]New Rates_V05'!AV11="",0,'[3]New Rates_V05'!AV11) -> 0 | AL94: =IF(AL10="",0,AL10)-IF('[3]New Rates_V05'!AW11="",0,'[3]New Rates_V05'!AW11) -> 0 | AM94: =IF(AM10="",0,AM10)-IF('[3]New Rates_V05'!AX11="",0,'[3]New Rates_V05'!AX11) -> 0 | AN94: =IF(AN10="",0,AN10)-IF('[3]New Rates_V05'!AY11="",0,'[3]New Rates_V05'!AY11) -> 0 | AO94: =IF(AO10="",0,AO10)-IF('[3]New Rates_V05'!AZ11="",0,'[3]New Rates_V05'!AZ11) -> 0 | AP94: =IF(AP10="",0,AP10)-IF('[3]New Rates_V05'!BA11="",0,'[3]New Rates_V05'!BA11) -> 0 | AQ94: =IF(AQ10="",0,AQ10)-IF('[3]New Rates_V05'!BB11="",0,'[3]New Rates_V05'!BB11) -> 0 | AR94: =IF(AR10="",0,AR10)-IF('[3]New Rates_V05'!BC11="",0,'[3]New Rates_V05'!BC11) -> 0 | AS94: =IF(AS10="",0,AS10)-IF('[3]New Rates_V05'!BD11="",0,'[3]New Rates_V05'!BD11) -> 0 | AT94: =IF(AT10="",0,AT10)-IF('[3]New Rates_V05'!BE11="",0,'[3]New Rates_V05'!BE11) -> 0 | AU94: =IF(AU10="",0,AU10)-IF('[3]New Rates_V05'!BF11="",0,'[3]New Rates_V05'!BF11) -> 0 | AV94: =IF(AV10="",0,AV10)-IF('[3]New Rates_V05'!BG11="",0,'[3]New Rates_V05'!BG11) -> 0 | AW94: =IF(AW10="",0,AW10)-IF('[3]New Rates_V05'!BH11="",0,'[3]New Rates_V05'!BH11) -> 0 | AX94: =IF(AX10="",0,AX10)-IF('[3]New Rates_V05'!BI11="",0,'[3]New Rates_V05'!BI11) -> 0 | AY94: =IF(AY10="",0,AY10)-IF('[3]New Rates_V05'!BJ11="",0,'[3]New Rates_V05'!BJ11) -> 0 | AZ94: =IF(AZ10="",0,AZ10)-IF('[3]New Rates_V05'!BK11="",0,'[3]New Rates_V05'!BK11) -> 0 | BA94: =IF(BA10="",0,BA10)-IF('[3]New Rates_V05'!BL11="",0,'[3]New Rates_V05'!BL11) -> 0 | BB94: =IF(BB10="",0,BB10)-IF('[3]New Rates_V05'!BM11="",0,'[3]New Rates_V05'!BM11) -> 0 | BC94: =IF(BC10="",0,BC10)-IF('[3]New Rates_V05'!BN11="",0,'[3]New Rates_V05'!BN11) -> 0 | BD94: =IF(BD10="",0,BD10)-IF('[3]New Rates_V05'!BO11="",0,'[3]New Rates_V05'!BO11) -> 0 | BE94: =IF(BE10="",0,BE10)-IF('[3]New Rates_V05'!BP11="",0,'[3]New Rates_V05'!BP11) -> 0 | BF94: =IF(BF10="",0,BF10)-IF('[3]New Rates_V05'!BQ11="",0,'[3]New Rates_V05'!BQ11) -> 0 | BG94: =IF(BG10="",0,BG10)-IF('[3]New Rates_V05'!BR11="",0,'[3]New Rates_V05'!BR11) -> 0 | BH94: =IF(BH10="",0,BH10)-IF('[3]New Rates_V05'!BS11="",0,'[3]New Rates_V05'!BS11) -> 0 | BI94: =IF(BI10="",0,BI10)-IF('[3]New Rates_V05'!BT11="",0,'[3]New Rates_V05'!BT11) -> 0 | BJ94: =IF(BJ10="",0,BJ10)-IF('[3]New Rates_V05'!BU11="",0,'[3]New Rates_V05'!BU11) -> 0 | BK94: =IF(BK10="",0,BK10)-IF('[3]New Rates_V05'!BV11="",0,'[3]New Rates_V05'!BV11) -> 0 | BL94: =IF(BL10="",0,BL10)-IF('[3]New Rates_V05'!BW11="",0,'[3]New Rates_V05'!BW11) -> 0 | BM94: =IF(BM10="",0,BM10)-IF('[3]New Rates_V05'!BX11="",0,'[3]New Rates_V05'!BX11) -> 0 | BN94: =IF(BN10="",0,BN10)-IF('[3]New Rates_V05'!BY11="",0,'[3]New Rates_V05'!BY11) -> 0 | BO94: =IF(BO10="",0,BO10)-IF('[3]New Rates_V05'!BZ11="",0,'[3]New Rates_V05'!BZ11) -> 0 | BP94: =IF(BP10="",0,BP10)-IF('[3]New Rates_V05'!CA11="",0,'[3]New Rates_V05'!CA11) -> 0 | BQ94: =IF(BQ10="",0,BQ10)-IF('[3]New Rates_V05'!CB11="",0,'[3]New Rates_V05'!CB11) -> 0 | BR94: =IF(BR10="",0,BR10)-IF('[3]New Rates_V05'!CC11="",0,'[3]New Rates_V05'!CC11) -> 0 | BS94: =IF(BS10="",0,BS10)-IF('[3]New Rates_V05'!CD11="",0,'[3]New Rates_V05'!CD11) -> 0 | BT94: =IF(BT10="",0,BT10)-IF('[3]New Rates_V05'!CE11="",0,'[3]New Rates_V05'!CE11) -> 0 | BU94: =IF(BU10="",0,BU10)-IF('[3]New Rates_V05'!CF11="",0,'[3]New Rates_V05'!CF11) -> 0 | BV94: =IF(BV10="",0,BV10)-IF('[3]New Rates_V05'!CG11="",0,'[3]New Rates_V05'!CG11) -> 0 | BW94: =IF(BW10="",0,BW10)-IF('[3]New Rates_V05'!CH11="",0,'[3]New Rates_V05'!CH11) -> 0 | BX94: =IF(BX10="",0,BX10)-IF('[3]New Rates_V05'!CI11="",0,'[3]New Rates_V05'!CI11) -> 0 | BY94: =IF(BY10="",0,BY10)-IF('[3]New Rates_V05'!CJ11="",0,'[3]New Rates_V05'!CJ11) -> 0 | BZ94: =IF(BZ10="",0,BZ10)-IF('[3]New Rates_V05'!CK11="",0,'[3]New Rates_V05'!CK11) -> 0 | CA94: =IF(CA10="",0,CA10)-IF('[3]New Rates_V05'!CL11="",0,'[3]New Rates_V05'!CL11) -> 0 | CB94: =IF(CB10="",0,CB10)-IF('[3]New Rates_V05'!CM11="",0,'[3]New Rates_V05'!CM11) -> 0 | CC94: =IF(CC10="",0,CC10)-IF('[3]New Rates_V05'!CN11="",0,'[3]New Rates_V05'!CN11) -> 0 | CD94: =IF(CD10="",0,CD10)-IF('[3]New Rates_V05'!CO11="",0,'[3]New Rates_V05'!CO11) -> 0 | CE94: =IF(CE10="",0,CE10)-IF('[3]New Rates_V05'!CP11="",0,'[3]New Rates_V05'!CP11) -> 0 | CF94: =IF(CF10="",0,CF10)-IF('[3]New Rates_V05'!CQ11="",0,'[3]New Rates_V05'!CQ11) -> 0
A95: =IF(A11="",0,A11)-IF('[3]New Rates_V05'!L12="",0,'[3]New Rates_V05'!L12) -> 0 | B95: =IF(B11="",0,B11)-IF('[3]New Rates_V05'!M12="",0,'[3]New Rates_V05'!M12) -> 0 | C95: =IF(C11="",0,C11)-IF('[3]New Rates_V05'!N12="",0,'[3]New Rates_V05'!N12) -> 0 | D95: =IF(D11="",0,D11)-IF('[3]New Rates_V05'!O12="",0,'[3]New Rates_V05'!O12) -> 0 | E95: =IF(E11="",0,E11)-IF('[3]New Rates_V05'!P12="",0,'[3]New Rates_V05'!P12) -> 0 | F95: =IF(F11="",0,F11)-IF('[3]New Rates_V05'!Q12="",0,'[3]New Rates_V05'!Q12) -> 0 | G95: =IF(G11="",0,G11)-IF('[3]New Rates_V05'!R12="",0,'[3]New Rates_V05'!R12) -> 0 | H95: =IF(H11="",0,H11)-IF('[3]New Rates_V05'!S12="",0,'[3]New Rates_V05'!S12) -> 0 | I95: =IF(I11="",0,I11)-IF('[3]New Rates_V05'!T12="",0,'[3]New Rates_V05'!T12) -> 0 | J95: =IF(J11="",0,J11)-IF('[3]New Rates_V05'!U12="",0,'[3]New Rates_V05'!U12) -> 0 | K95: =IF(K11="",0,K11)-IF('[3]New Rates_V05'!V12="",0,'[3]New Rates_V05'!V12) -> 0 | L95: =IF(L11="",0,L11)-IF('[3]New Rates_V05'!W12="",0,'[3]New Rates_V05'!W12) -> 0 | M95: =IF(M11="",0,M11)-IF('[3]New Rates_V05'!X12="",0,'[3]New Rates_V05'!X12) -> 0 | N95: =IF(N11="",0,N11)-IF('[3]New Rates_V05'!Y12="",0,'[3]New Rates_V05'!Y12) -> 0 | O95: =IF(O11="",0,O11)-IF('[3]New Rates_V05'!Z12="",0,'[3]New Rates_V05'!Z12) -> 0 | P95: =IF(P11="",0,P11)-IF('[3]New Rates_V05'!AA12="",0,'[3]New Rates_V05'!AA12) -> 0 | Q95: =IF(Q11="",0,Q11)-IF('[3]New Rates_V05'!AB12="",0,'[3]New Rates_V05'!AB12) -> 0 | R95: =IF(R11="",0,R11)-IF('[3]New Rates_V05'!AC12="",0,'[3]New Rates_V05'!AC12) -> 0 | S95: =IF(S11="",0,S11)-IF('[3]New Rates_V05'!AD12="",0,'[3]New Rates_V05'!AD12) -> 0 | T95: =IF(T11="",0,T11)-IF('[3]New Rates_V05'!AE12="",0,'[3]New Rates_V05'!AE12) -> 0 | U95: =IF(U11="",0,U11)-IF('[3]New Rates_V05'!AF12="",0,'[3]New Rates_V05'!AF12) -> 0 | V95: =IF(V11="",0,V11)-IF('[3]New Rates_V05'!AG12="",0,'[3]New Rates_V05'!AG12) -> 0 | W95: =IF(W11="",0,W11)-IF('[3]New Rates_V05'!AH12="",0,'[3]New Rates_V05'!AH12) -> 0 | X95: =IF(X11="",0,X11)-IF('[3]New Rates_V05'!AI12="",0,'[3]New Rates_V05'!AI12) -> 0 | Y95: =IF(Y11="",0,Y11)-IF('[3]New Rates_V05'!AJ12="",0,'[3]New Rates_V05'!AJ12) -> 0 | Z95: =IF(Z11="",0,Z11)-IF('[3]New Rates_V05'!AK12="",0,'[3]New Rates_V05'!AK12) -> 0 | AA95: =IF(AA11="",0,AA11)-IF('[3]New Rates_V05'!AL12="",0,'[3]New Rates_V05'!AL12) -> 0 | AB95: =IF(AB11="",0,AB11)-IF('[3]New Rates_V05'!AM12="",0,'[3]New Rates_V05'!AM12) -> 0 | AC95: =IF(AC11="",0,AC11)-IF('[3]New Rates_V05'!AN12="",0,'[3]New Rates_V05'!AN12) -> 0 | AD95: =IF(AD11="",0,AD11)-IF('[3]New Rates_V05'!AO12="",0,'[3]New Rates_V05'!AO12) -> 0 | AE95: =IF(AE11="",0,AE11)-IF('[3]New Rates_V05'!AP12="",0,'[3]New Rates_V05'!AP12) -> 0 | AF95: =IF(AF11="",0,AF11)-IF('[3]New Rates_V05'!AQ12="",0,'[3]New Rates_V05'!AQ12) -> 0 | AG95: =IF(AG11="",0,AG11)-IF('[3]New Rates_V05'!AR12="",0,'[3]New Rates_V05'!AR12) -> 0 | AH95: =IF(AH11="",0,AH11)-IF('[3]New Rates_V05'!AS12="",0,'[3]New Rates_V05'!AS12) -> 0 | AI95: =IF(AI11="",0,AI11)-IF('[3]New Rates_V05'!AT12="",0,'[3]New Rates_V05'!AT12) -> 0 | AJ95: =IF(AJ11="",0,AJ11)-IF('[3]New Rates_V05'!AU12="",0,'[3]New Rates_V05'!AU12) -> 0 | AK95: =IF(AK11="",0,AK11)-IF('[3]New Rates_V05'!AV12="",0,'[3]New Rates_V05'!AV12) -> 0 | AL95: =IF(AL11="",0,AL11)-IF('[3]New Rates_V05'!AW12="",0,'[3]New Rates_V05'!AW12) -> 0 | AM95: =IF(AM11="",0,AM11)-IF('[3]New Rates_V05'!AX12="",0,'[3]New Rates_V05'!AX12) -> 0 | AN95: =IF(AN11="",0,AN11)-IF('[3]New Rates_V05'!AY12="",0,'[3]New Rates_V05'!AY12) -> 0 | AO95: =IF(AO11="",0,AO11)-IF('[3]New Rates_V05'!AZ12="",0,'[3]New Rates_V05'!AZ12) -> 0 | AP95: =IF(AP11="",0,AP11)-IF('[3]New Rates_V05'!BA12="",0,'[3]New Rates_V05'!BA12) -> 0 | AQ95: =IF(AQ11="",0,AQ11)-IF('[3]New Rates_V05'!BB12="",0,'[3]New Rates_V05'!BB12) -> 0 | AR95: =IF(AR11="",0,AR11)-IF('[3]New Rates_V05'!BC12="",0,'[3]New Rates_V05'!BC12) -> 0 | AS95: =IF(AS11="",0,AS11)-IF('[3]New Rates_V05'!BD12="",0,'[3]New Rates_V05'!BD12) -> 0 | AT95: =IF(AT11="",0,AT11)-IF('[3]New Rates_V05'!BE12="",0,'[3]New Rates_V05'!BE12) -> 0 | AU95: =IF(AU11="",0,AU11)-IF('[3]New Rates_V05'!BF12="",0,'[3]New Rates_V05'!BF12) -> 0 | AV95: =IF(AV11="",0,AV11)-IF('[3]New Rates_V05'!BG12="",0,'[3]New Rates_V05'!BG12) -> 0 | AW95: =IF(AW11="",0,AW11)-IF('[3]New Rates_V05'!BH12="",0,'[3]New Rates_V05'!BH12) -> 0 | AX95: =IF(AX11="",0,AX11)-IF('[3]New Rates_V05'!BI12="",0,'[3]New Rates_V05'!BI12) -> 0 | AY95: =IF(AY11="",0,AY11)-IF('[3]New Rates_V05'!BJ12="",0,'[3]New Rates_V05'!BJ12) -> 0 | AZ95: =IF(AZ11="",0,AZ11)-IF('[3]New Rates_V05'!BK12="",0,'[3]New Rates_V05'!BK12) -> 0 | BA95: =IF(BA11="",0,BA11)-IF('[3]New Rates_V05'!BL12="",0,'[3]New Rates_V05'!BL12) -> 0 | BB95: =IF(BB11="",0,BB11)-IF('[3]New Rates_V05'!BM12="",0,'[3]New Rates_V05'!BM12) -> 0 | BC95: =IF(BC11="",0,BC11)-IF('[3]New Rates_V05'!BN12="",0,'[3]New Rates_V05'!BN12) -> 0 | BD95: =IF(BD11="",0,BD11)-IF('[3]New Rates_V05'!BO12="",0,'[3]New Rates_V05'!BO12) -> 0 | BE95: =IF(BE11="",0,BE11)-IF('[3]New Rates_V05'!BP12="",0,'[3]New Rates_V05'!BP12) -> 0 | BF95: =IF(BF11="",0,BF11)-IF('[3]New Rates_V05'!BQ12="",0,'[3]New Rates_V05'!BQ12) -> 0 | BG95: =IF(BG11="",0,BG11)-IF('[3]New Rates_V05'!BR12="",0,'[3]New Rates_V05'!BR12) -> 0 | BH95: =IF(BH11="",0,BH11)-IF('[3]New Rates_V05'!BS12="",0,'[3]New Rates_V05'!BS12) -> 0 | BI95: =IF(BI11="",0,BI11)-IF('[3]New Rates_V05'!BT12="",0,'[3]New Rates_V05'!BT12) -> 0 | BJ95: =IF(BJ11="",0,BJ11)-IF('[3]New Rates_V05'!BU12="",0,'[3]New Rates_V05'!BU12) -> 0 | BK95: =IF(BK11="",0,BK11)-IF('[3]New Rates_V05'!BV12="",0,'[3]New Rates_V05'!BV12) -> 0 | BL95: =IF(BL11="",0,BL11)-IF('[3]New Rates_V05'!BW12="",0,'[3]New Rates_V05'!BW12) -> 0 | BM95: =IF(BM11="",0,BM11)-IF('[3]New Rates_V05'!BX12="",0,'[3]New Rates_V05'!BX12) -> 0 | BN95: =IF(BN11="",0,BN11)-IF('[3]New Rates_V05'!BY12="",0,'[3]New Rates_V05'!BY12) -> 0 | BO95: =IF(BO11="",0,BO11)-IF('[3]New Rates_V05'!BZ12="",0,'[3]New Rates_V05'!BZ12) -> 0 | BP95: =IF(BP11="",0,BP11)-IF('[3]New Rates_V05'!CA12="",0,'[3]New Rates_V05'!CA12) -> 0 | BQ95: =IF(BQ11="",0,BQ11)-IF('[3]New Rates_V05'!CB12="",0,'[3]New Rates_V05'!CB12) -> 0 | BR95: =IF(BR11="",0,BR11)-IF('[3]New Rates_V05'!CC12="",0,'[3]New Rates_V05'!CC12) -> 0 | BS95: =IF(BS11="",0,BS11)-IF('[3]New Rates_V05'!CD12="",0,'[3]New Rates_V05'!CD12) -> 0 | BT95: =IF(BT11="",0,BT11)-IF('[3]New Rates_V05'!CE12="",0,'[3]New Rates_V05'!CE12) -> 0 | BU95: =IF(BU11="",0,BU11)-IF('[3]New Rates_V05'!CF12="",0,'[3]New Rates_V05'!CF12) -> 0 | BV95: =IF(BV11="",0,BV11)-IF('[3]New Rates_V05'!CG12="",0,'[3]New Rates_V05'!CG12) -> 0 | BW95: =IF(BW11="",0,BW11)-IF('[3]New Rates_V05'!CH12="",0,'[3]New Rates_V05'!CH12) -> 0 | BX95: =IF(BX11="",0,BX11)-IF('[3]New Rates_V05'!CI12="",0,'[3]New Rates_V05'!CI12) -> 0 | BY95: =IF(BY11="",0,BY11)-IF('[3]New Rates_V05'!CJ12="",0,'[3]New Rates_V05'!CJ12) -> 0 | BZ95: =IF(BZ11="",0,BZ11)-IF('[3]New Rates_V05'!CK12="",0,'[3]New Rates_V05'!CK12) -> 0 | CA95: =IF(CA11="",0,CA11)-IF('[3]New Rates_V05'!CL12="",0,'[3]New Rates_V05'!CL12) -> 0 | CB95: =IF(CB11="",0,CB11)-IF('[3]New Rates_V05'!CM12="",0,'[3]New Rates_V05'!CM12) -> 0 | CC95: =IF(CC11="",0,CC11)-IF('[3]New Rates_V05'!CN12="",0,'[3]New Rates_V05'!CN12) -> 0 | CD95: =IF(CD11="",0,CD11)-IF('[3]New Rates_V05'!CO12="",0,'[3]New Rates_V05'!CO12) -> 0 | CE95: =IF(CE11="",0,CE11)-IF('[3]New Rates_V05'!CP12="",0,'[3]New Rates_V05'!CP12) -> 0 | CF95: =IF(CF11="",0,CF11)-IF('[3]New Rates_V05'!CQ12="",0,'[3]New Rates_V05'!CQ12) -> 0
A96: =IF(A12="",0,A12)-IF('[3]New Rates_V05'!L13="",0,'[3]New Rates_V05'!L13) -> 0 | B96: =IF(B12="",0,B12)-IF('[3]New Rates_V05'!M13="",0,'[3]New Rates_V05'!M13) -> 0 | C96: =IF(C12="",0,C12)-IF('[3]New Rates_V05'!N13="",0,'[3]New Rates_V05'!N13) -> 0 | D96: =IF(D12="",0,D12)-IF('[3]New Rates_V05'!O13="",0,'[3]New Rates_V05'!O13) -> 0 | E96: =IF(E12="",0,E12)-IF('[3]New Rates_V05'!P13="",0,'[3]New Rates_V05'!P13) -> 0 | F96: =IF(F12="",0,F12)-IF('[3]New Rates_V05'!Q13="",0,'[3]New Rates_V05'!Q13) -> 0 | G96: =IF(G12="",0,G12)-IF('[3]New Rates_V05'!R13="",0,'[3]New Rates_V05'!R13) -> 0 | H96: =IF(H12="",0,H12)-IF('[3]New Rates_V05'!S13="",0,'[3]New Rates_V05'!S13) -> 0 | I96: =IF(I12="",0,I12)-IF('[3]New Rates_V05'!T13="",0,'[3]New Rates_V05'!T13) -> 0 | J96: =IF(J12="",0,J12)-IF('[3]New Rates_V05'!U13="",0,'[3]New Rates_V05'!U13) -> 0 | K96: =IF(K12="",0,K12)-IF('[3]New Rates_V05'!V13="",0,'[3]New Rates_V05'!V13) -> 0 | L96: =IF(L12="",0,L12)-IF('[3]New Rates_V05'!W13="",0,'[3]New Rates_V05'!W13) -> 0 | M96: =IF(M12="",0,M12)-IF('[3]New Rates_V05'!X13="",0,'[3]New Rates_V05'!X13) -> 0 | N96: =IF(N12="",0,N12)-IF('[3]New Rates_V05'!Y13="",0,'[3]New Rates_V05'!Y13) -> 0 | O96: =IF(O12="",0,O12)-IF('[3]New Rates_V05'!Z13="",0,'[3]New Rates_V05'!Z13) -> 0 | P96: =IF(P12="",0,P12)-IF('[3]New Rates_V05'!AA13="",0,'[3]New Rates_V05'!AA13) -> 0 | Q96: =IF(Q12="",0,Q12)-IF('[3]New Rates_V05'!AB13="",0,'[3]New Rates_V05'!AB13) -> 0 | R96: =IF(R12="",0,R12)-IF('[3]New Rates_V05'!AC13="",0,'[3]New Rates_V05'!AC13) -> 0 | S96: =IF(S12="",0,S12)-IF('[3]New Rates_V05'!AD13="",0,'[3]New Rates_V05'!AD13) -> 0 | T96: =IF(T12="",0,T12)-IF('[3]New Rates_V05'!AE13="",0,'[3]New Rates_V05'!AE13) -> 0 | U96: =IF(U12="",0,U12)-IF('[3]New Rates_V05'!AF13="",0,'[3]New Rates_V05'!AF13) -> 0 | V96: =IF(V12="",0,V12)-IF('[3]New Rates_V05'!AG13="",0,'[3]New Rates_V05'!AG13) -> 0 | W96: =IF(W12="",0,W12)-IF('[3]New Rates_V05'!AH13="",0,'[3]New Rates_V05'!AH13) -> 0 | X96: =IF(X12="",0,X12)-IF('[3]New Rates_V05'!AI13="",0,'[3]New Rates_V05'!AI13) -> 0 | Y96: =IF(Y12="",0,Y12)-IF('[3]New Rates_V05'!AJ13="",0,'[3]New Rates_V05'!AJ13) -> 0 | Z96: =IF(Z12="",0,Z12)-IF('[3]New Rates_V05'!AK13="",0,'[3]New Rates_V05'!AK13) -> 0 | AA96: =IF(AA12="",0,AA12)-IF('[3]New Rates_V05'!AL13="",0,'[3]New Rates_V05'!AL13) -> 0 | AB96: =IF(AB12="",0,AB12)-IF('[3]New Rates_V05'!AM13="",0,'[3]New Rates_V05'!AM13) -> 0 | AC96: =IF(AC12="",0,AC12)-IF('[3]New Rates_V05'!AN13="",0,'[3]New Rates_V05'!AN13) -> 0 | AD96: =IF(AD12="",0,AD12)-IF('[3]New Rates_V05'!AO13="",0,'[3]New Rates_V05'!AO13) -> 0 | AE96: =IF(AE12="",0,AE12)-IF('[3]New Rates_V05'!AP13="",0,'[3]New Rates_V05'!AP13) -> 0 | AF96: =IF(AF12="",0,AF12)-IF('[3]New Rates_V05'!AQ13="",0,'[3]New Rates_V05'!AQ13) -> 0 | AG96: =IF(AG12="",0,AG12)-IF('[3]New Rates_V05'!AR13="",0,'[3]New Rates_V05'!AR13) -> 0 | AH96: =IF(AH12="",0,AH12)-IF('[3]New Rates_V05'!AS13="",0,'[3]New Rates_V05'!AS13) -> 0 | AI96: =IF(AI12="",0,AI12)-IF('[3]New Rates_V05'!AT13="",0,'[3]New Rates_V05'!AT13) -> 0 | AJ96: =IF(AJ12="",0,AJ12)-IF('[3]New Rates_V05'!AU13="",0,'[3]New Rates_V05'!AU13) -> 0 | AK96: =IF(AK12="",0,AK12)-IF('[3]New Rates_V05'!AV13="",0,'[3]New Rates_V05'!AV13) -> 0 | AL96: =IF(AL12="",0,AL12)-IF('[3]New Rates_V05'!AW13="",0,'[3]New Rates_V05'!AW13) -> 0 | AM96: =IF(AM12="",0,AM12)-IF('[3]New Rates_V05'!AX13="",0,'[3]New Rates_V05'!AX13) -> 0 | AN96: =IF(AN12="",0,AN12)-IF('[3]New Rates_V05'!AY13="",0,'[3]New Rates_V05'!AY13) -> 0 | AO96: =IF(AO12="",0,AO12)-IF('[3]New Rates_V05'!AZ13="",0,'[3]New Rates_V05'!AZ13) -> 0 | AP96: =IF(AP12="",0,AP12)-IF('[3]New Rates_V05'!BA13="",0,'[3]New Rates_V05'!BA13) -> 0 | AQ96: =IF(AQ12="",0,AQ12)-IF('[3]New Rates_V05'!BB13="",0,'[3]New Rates_V05'!BB13) -> 0 | AR96: =IF(AR12="",0,AR12)-IF('[3]New Rates_V05'!BC13="",0,'[3]New Rates_V05'!BC13) -> 0 | AS96: =IF(AS12="",0,AS12)-IF('[3]New Rates_V05'!BD13="",0,'[3]New Rates_V05'!BD13) -> 0 | AT96: =IF(AT12="",0,AT12)-IF('[3]New Rates_V05'!BE13="",0,'[3]New Rates_V05'!BE13) -> 0 | AU96: =IF(AU12="",0,AU12)-IF('[3]New Rates_V05'!BF13="",0,'[3]New Rates_V05'!BF13) -> 0 | AV96: =IF(AV12="",0,AV12)-IF('[3]New Rates_V05'!BG13="",0,'[3]New Rates_V05'!BG13) -> 0 | AW96: =IF(AW12="",0,AW12)-IF('[3]New Rates_V05'!BH13="",0,'[3]New Rates_V05'!BH13) -> 0 | AX96: =IF(AX12="",0,AX12)-IF('[3]New Rates_V05'!BI13="",0,'[3]New Rates_V05'!BI13) -> 0 | AY96: =IF(AY12="",0,AY12)-IF('[3]New Rates_V05'!BJ13="",0,'[3]New Rates_V05'!BJ13) -> 0 | AZ96: =IF(AZ12="",0,AZ12)-IF('[3]New Rates_V05'!BK13="",0,'[3]New Rates_V05'!BK13) -> 0 | BA96: =IF(BA12="",0,BA12)-IF('[3]New Rates_V05'!BL13="",0,'[3]New Rates_V05'!BL13) -> 0 | BB96: =IF(BB12="",0,BB12)-IF('[3]New Rates_V05'!BM13="",0,'[3]New Rates_V05'!BM13) -> 0 | BC96: =IF(BC12="",0,BC12)-IF('[3]New Rates_V05'!BN13="",0,'[3]New Rates_V05'!BN13) -> 0 | BD96: =IF(BD12="",0,BD12)-IF('[3]New Rates_V05'!BO13="",0,'[3]New Rates_V05'!BO13) -> 0 | BE96: =IF(BE12="",0,BE12)-IF('[3]New Rates_V05'!BP13="",0,'[3]New Rates_V05'!BP13) -> 0 | BF96: =IF(BF12="",0,BF12)-IF('[3]New Rates_V05'!BQ13="",0,'[3]New Rates_V05'!BQ13) -> 0 | BG96: =IF(BG12="",0,BG12)-IF('[3]New Rates_V05'!BR13="",0,'[3]New Rates_V05'!BR13) -> 0 | BH96: =IF(BH12="",0,BH12)-IF('[3]New Rates_V05'!BS13="",0,'[3]New Rates_V05'!BS13) -> 0 | BI96: =IF(BI12="",0,BI12)-IF('[3]New Rates_V05'!BT13="",0,'[3]New Rates_V05'!BT13) -> 0 | BJ96: =IF(BJ12="",0,BJ12)-IF('[3]New Rates_V05'!BU13="",0,'[3]New Rates_V05'!BU13) -> 0 | BK96: =IF(BK12="",0,BK12)-IF('[3]New Rates_V05'!BV13="",0,'[3]New Rates_V05'!BV13) -> 0 | BL96: =IF(BL12="",0,BL12)-IF('[3]New Rates_V05'!BW13="",0,'[3]New Rates_V05'!BW13) -> 0 | BM96: =IF(BM12="",0,BM12)-IF('[3]New Rates_V05'!BX13="",0,'[3]New Rates_V05'!BX13) -> 0 | BN96: =IF(BN12="",0,BN12)-IF('[3]New Rates_V05'!BY13="",0,'[3]New Rates_V05'!BY13) -> 0 | BO96: =IF(BO12="",0,BO12)-IF('[3]New Rates_V05'!BZ13="",0,'[3]New Rates_V05'!BZ13) -> 0 | BP96: =IF(BP12="",0,BP12)-IF('[3]New Rates_V05'!CA13="",0,'[3]New Rates_V05'!CA13) -> 0 | BQ96: =IF(BQ12="",0,BQ12)-IF('[3]New Rates_V05'!CB13="",0,'[3]New Rates_V05'!CB13) -> 0 | BR96: =IF(BR12="",0,BR12)-IF('[3]New Rates_V05'!CC13="",0,'[3]New Rates_V05'!CC13) -> 0 | BS96: =IF(BS12="",0,BS12)-IF('[3]New Rates_V05'!CD13="",0,'[3]New Rates_V05'!CD13) -> 0 | BT96: =IF(BT12="",0,BT12)-IF('[3]New Rates_V05'!CE13="",0,'[3]New Rates_V05'!CE13) -> 0 | BU96: =IF(BU12="",0,BU12)-IF('[3]New Rates_V05'!CF13="",0,'[3]New Rates_V05'!CF13) -> 0 | BV96: =IF(BV12="",0,BV12)-IF('[3]New Rates_V05'!CG13="",0,'[3]New Rates_V05'!CG13) -> 0 | BW96: =IF(BW12="",0,BW12)-IF('[3]New Rates_V05'!CH13="",0,'[3]New Rates_V05'!CH13) -> 0 | BX96: =IF(BX12="",0,BX12)-IF('[3]New Rates_V05'!CI13="",0,'[3]New Rates_V05'!CI13) -> 0 | BY96: =IF(BY12="",0,BY12)-IF('[3]New Rates_V05'!CJ13="",0,'[3]New Rates_V05'!CJ13) -> 0 | BZ96: =IF(BZ12="",0,BZ12)-IF('[3]New Rates_V05'!CK13="",0,'[3]New Rates_V05'!CK13) -> 0 | CA96: =IF(CA12="",0,CA12)-IF('[3]New Rates_V05'!CL13="",0,'[3]New Rates_V05'!CL13) -> 0 | CB96: =IF(CB12="",0,CB12)-IF('[3]New Rates_V05'!CM13="",0,'[3]New Rates_V05'!CM13) -> 0 | CC96: =IF(CC12="",0,CC12)-IF('[3]New Rates_V05'!CN13="",0,'[3]New Rates_V05'!CN13) -> 0 | CD96: =IF(CD12="",0,CD12)-IF('[3]New Rates_V05'!CO13="",0,'[3]New Rates_V05'!CO13) -> 0 | CE96: =IF(CE12="",0,CE12)-IF('[3]New Rates_V05'!CP13="",0,'[3]New Rates_V05'!CP13) -> 0 | CF96: =IF(CF12="",0,CF12)-IF('[3]New Rates_V05'!CQ13="",0,'[3]New Rates_V05'!CQ13) -> 0
